{"text_format":"1","workbook":"xlsx","n_sheets":7,"sheets":["Instruktion","Uträkningsmall","Beställningsformulär","Omfattning","Varukorg","Funktioner","Kontaktuppgifter"],"not_rendered":{"charts":0,"images":0,"macros":1,"external_links":0,"defined_names":19,"comments":0,"pivot_tables":0},"unopened":[],"bounds":{"document_bytes":16777216,"sheet_cells":100000,"rows_first":2000,"rows_last":500,"rows_between":2000,"halvings":0,"cell_chars":16384,"cell_head_chars":4096},"cells_cut":0,"cells_raw":0,"read":"whole","date_system":"1900"}

{"sheet":"Instruktion","index":0,"n_rows":21,"n_cols":2,"rows_kept":21,"cut":false,"hidden":false,"merged":[[8,0,8,1],[15,0,18,0],[0,0,0,1]]}
["Uträkningsmall"]
["Bilagan består av följande fem flikar:"]
["- Instruktion","Beskrivning av hur Avropet görs."]
["- Uträkningsmall","Mallen används för att få fram vinnande Ramavtalsleverantör vid varje Avrop."]
["- Beställningsformulär","Sammanställning av valda Varor och information om vinnande Ramavtalsleverantör."]
["- Omfattning","Innehåller samtliga Ramavtalsleverantörers uppgifter på artikelnivå."]
["- Varukorg","Ramavtalsupphandlingens Varukorg."]
[]
["Instruktion - Följ nedanstående steg vid Avrop"]
["Steg 1: Flik \"Uträkningsmall\"","Gå in i fliken \"Uträkningsmall\""]
["Steg 2: Varubenämning","Välj önskad vara i rullistan i kolumn B."]
["Steg 3: Storlek/ytvikt","Välj önskad storlek/ytvikt på varan i kolumn C."]
["Steg 4: Varubeskrivning","Välj varubeskrivning i rullistan i kolumn D."]
["Steg 5: Hålning","Välj hålning i rullistan i kolumn E."]
["Steg 6: Antal kartonger","Ange önskat antal kartonger i kolumn F."]
["Steg 7: Identifiera vinnande ramavtalsleverantör","Vinnande Ramavtalsleverantör utifrån totalpris på valda Varor visas högst upp i kolumn G. Den samlade rangordningen för samtliga Ramavtalsleverantörer visas högst upp i kolumn H-L. Av kolumn K framgår rangordningen utifrån lägst totalpris och av kolumn L framgår respektive Ramavtalsleverantörs leveranstid. Observera att om Ramavtalsleverantörerna har olika leveranstid för olika Varor är det den längsta leveranstiden för de valda Varorna som framgår av kolumn L."]
[null,"Om två eller flera Ramavtalsleverantörer erbjuder de valda Varorna till samma pris kommer den Ramavtalsleverantör som i samband med upphandlingen av Ramavtalet hade det lägsta summerade utvärderingspriset, dvs. det sammanlagda priset för samtliga Varor i varukorgen, att rangordnas som nummer ett (1) i Avropet (kolumn G)."]
[null,"Ifall någon av Ramavtalsleverantörerna inte kan leverera en vald Vara blir Ramavtalsleverantörens rad i kolumn I-L rödmarkerad."]
[null,"Avropsberättigad har rätt att avvika från rangordningen ifall en lägre rangordnad Ramavtalsleverantör har en kortare leveranstid, samt i enlighet med vad som framgår i avsnitt Avropsordning i Ramavtalets Huvuddokument. Detta görs genom att välja nästa Ramavtalsleverantör i rullistan i cell N8."]
["Steg 8: Skicka avrop (beställning)","Avropa från den vinnande Ramavtalsleverantören enligt något av de alternativa avropssätt som anges i Ramavtalet (webbshop, e-post, e-handel, telefon). \n\nI fliken \"Beställningsformulär\" visas en sammanställning av valda Varor och information om vinnande Ramavtalsleverantör. Den kan ni spara ner som en PDF eller klicka på knappen \"Exportera till PDF\" för att användas som specifikation till Avrop som skickas till Ramavtalsleverantören. "]
["Steg 9: Spara beställningsformulär","Spara beställningsformuläret från steg 8 som internt beställningsunderlag för Avropet."]

{"sheet":"Uträkningsmall","index":1,"n_rows":32,"n_cols":14,"rows_kept":32,"cut":false,"hidden":false,"merged":[[0,7,0,9],[17,12,17,13],[8,0,8,3],[0,13,6,13],[1,4,1,5],[2,4,2,5],[3,4,3,5],[4,4,4,5],[5,4,5,5],[6,4,6,5],[5,0,7,3],[2,0,4,3],[0,4,0,6],[1,0,1,2],[1,8,1,9],[2,8,2,9],[3,8,3,9],[4,8,4,9],[19,12,19,13],[20,12,20,13],[11,12,11,13],[12,12,12,13],[13,12,13,13],[14,12,14,13],[15,12,15,13],[16,12,16,13],[18,12,18,13],[31,12,31,13],[21,12,21,13],[22,12,22,13],[23,12,23,13],[24,12,24,13],[25,12,25,13],[26,12,26,13],[27,12,27,13],[28,12,28,13],[29,12,29,13],[30,12,30,13]]}
["Uträkningsmall för Avrop av Kontorspapper (gäller 2024 04 29 – 2024 07 30)",null,null,null,"Uppgifter om vinnande Ramavtalsleverantör",null,null,"Rangordnad ramavtalsleverantör för avropet",null,null,"Totalsumma","Leveranstid",null,"Avropsberättigad har rätt att avvika från rangordningen ifall en lägre rangordnad Ramavtalsleverantör har en kortare leveranstid, samt i enlighet med vad som framgår i avsnitt Avropsordning i Ramavtalets Huvuddokument. \n\nVälj nästa Ramavtalsleverantör i rangordningen i rullistan nedan."]
["Kontrollera alltid inför Avrop att du använder gällande version på",null,null,{"$f":"HYPERLINK(\"https://www.avropa.se/\")","v":"https://www.avropa.se/"},"Ramavtalsleverantör",null,{"$f":"IF(Funktioner!$Q37=0,\"\",IF(Funktioner!$R$94=0,\"\",Funktioner!$Q37))","v":""},"Rangordnad 1:a ",{"$f":"Funktioner!$S37","v":""},null,{"$f":"Funktioner!$T37","v":""},{"$f":"IF(Funktioner!$U37=0,\"\",Funktioner!$U37)","v":""}]
["Denna uträkningsmall används för att Avropsberättigad ska kunna beräkna vilken Ramavtalsleverantör som tillhandahåller efterfrågade Varor till lägst pris samt få information om respektive Ramavtalsleverantörs leveranstid.",null,null,null,"Organisationsnummer",null,{"$f":"IF(Funktioner!$Q38=0,\"\",IF(Funktioner!$R$94=0,\"\",Funktioner!$Q38))","v":""},"Rangordnad 2:a ",{"$f":"Funktioner!$S38","v":""},null,{"$f":"Funktioner!$T38","v":""},{"$f":"IF(Funktioner!$U38=0,\"\",Funktioner!$U38)","v":""}]
[null,null,null,null,"Kontaktperson",null,{"$f":"IF(Funktioner!$Q39=0,\"\",IF(Funktioner!$R$94=0,\"\",Funktioner!$Q39))","v":""},"Rangordnad 3:a ",{"$f":"Funktioner!$S39","v":""},null,{"$f":"Funktioner!$T39","v":""},{"$f":"IF(Funktioner!$U39=0,\"\",Funktioner!$U39)","v":""}]
[null,null,null,null,"Telefonnummer",null,{"$f":"IF(Funktioner!$Q40=0,\"\",IF(Funktioner!$R$94=0,\"\",Funktioner!$Q40))","v":""},"Rangordnad 4:a ",{"$f":"Funktioner!$S40","v":""},null,{"$f":"Funktioner!$T40","v":""},{"$f":"IF(Funktioner!$U40=0,\"\",Funktioner!$U40)","v":""}]
["Avropsberättigad fyller i de gulmarkerade cellerna i kolumnerna B till F för varje Vara som ingår i Avropet. Efter att ha fyllt i de gulmarkerade cellerna visas rangordningen för Avropet samt leveranstid för respektive Ramavtalsleverantör.\nObservera att om beställningsmängden överstiger en pall ska avrop göras genom förnyad konkurrensutsättning. \n(En pall A4 består av 48 kartonger, en pall A3 består av 24 kartonger).",null,null,null,"E-postadress",null,{"$f":"IF(Funktioner!$Q41=0,\"\",IF(Funktioner!$R$94=0,\"\",HYPERLINK(\"Mailto: \"&(Funktioner!$Q41))))","v":""}]
[null,null,null,null,"Totalsumma (SEK)",null,{"$f":"IF(Funktioner!$Q42=0,\"\",IF(Funktioner!$R$94=0,\"\",Funktioner!$Q42))","v":""}]
[null,null,null,null,null,null,null,null,null,null,null,null,null,1]
[]
[]
[]
["Varans position","Varubenämning","Storlek/ytvikt","Varubeskrivning","Hålning","Antal kartonger","Antal ark","Artikelnamn  ","Artikelnummer   ","Pris per kartong (SEK)","Totalpris (SEK)","Leveranstid","Eventuell övrig information"]
[{"$f":"IFERROR(IF(Funktioner!$D3=Funktioner!$C$3,1,IF(Funktioner!$D3=Funktioner!$C$4,2,IF(Funktioner!$D3=Funktioner!$C$5,3,IF(Funktioner!$D3=Funktioner!$C$6,4,IF(Funktioner!$D3=Funktioner!$C$7,5,IF(Funktioner!$D3=Funktioner!$C$8,6,IF(Funktioner!$D3=Funktioner!$C$9,7,IF(Funktioner!$D3=Funktioner!$C$10,8,IF(Funktioner!$D3=Funktioner!$C$11,9,IF(Funktioner!$D3=Funktioner!$C$12,10,IF(Funktioner!$D3=Funktioner!$C$13,11,IF(Funktioner!$D3=Funktioner!$C$14,12,IF(Funktioner!$D3=Funktioner!$C$15,13,IF(Funktioner!$D3=Funktioner!$C$16,14,IF(Funktioner!$D3=Funktioner!$C$17,15,IF(Funktioner!$D3=Funktioner!$C$18,16,IF(Funktioner!$D3=Funktioner!$C$19,17,IF(Funktioner!$D3=Funktioner!$C$20,18,IF(Funktioner!$D3=Funktioner!$C$21,19,IF(Funktioner!$D3=Funktioner!$C$22,20,\"\")))))))))))))))))))),\"\")","v":""},null,null,null,null,null,{"$f":"IF(Uträkningsmall!$A13=\"\",\"\",IF($B13=Funktioner!$C$93,Funktioner!$D$93,Funktioner!$D$94))","v":""},{"$f":"IF($F13=\"\",\"\",IF($K13=0,\"\",Funktioner!N74))","v":""},{"$f":"IF($F13=\"\",\"\",IF($K13=0,\"\",Funktioner!O74))","v":""},{"$f":"IF($F13=\"\",\"\",IF($K13=\"\",\"\",Funktioner!P74))","v":""},{"$f":"IF($F13=\"\",\"\",IF(Funktioner!R74=0,\"\",Funktioner!R74))","v":""},{"$f":"IF($F13=\"\",\"\",IF($K13=\"\",\"\",Funktioner!Q74))","v":""}]
[{"$f":"IFERROR(IF(Funktioner!$D4=Funktioner!$C$3,1,IF(Funktioner!$D4=Funktioner!$C$4,2,IF(Funktioner!$D4=Funktioner!$C$5,3,IF(Funktioner!$D4=Funktioner!$C$6,4,IF(Funktioner!$D4=Funktioner!$C$7,5,IF(Funktioner!$D4=Funktioner!$C$8,6,IF(Funktioner!$D4=Funktioner!$C$9,7,IF(Funktioner!$D4=Funktioner!$C$10,8,IF(Funktioner!$D4=Funktioner!$C$11,9,IF(Funktioner!$D4=Funktioner!$C$12,10,IF(Funktioner!$D4=Funktioner!$C$13,11,IF(Funktioner!$D4=Funktioner!$C$14,12,IF(Funktioner!$D4=Funktioner!$C$15,13,IF(Funktioner!$D4=Funktioner!$C$16,14,IF(Funktioner!$D4=Funktioner!$C$17,15,IF(Funktioner!$D4=Funktioner!$C$18,16,IF(Funktioner!$D4=Funktioner!$C$19,17,IF(Funktioner!$D4=Funktioner!$C$20,18,IF(Funktioner!$D4=Funktioner!$C$21,19,IF(Funktioner!$D4=Funktioner!$C$22,20,\"\")))))))))))))))))))),\"\")","v":""},null,null,null,null,null,{"$f":"IF(Uträkningsmall!$A14=\"\",\"\",IF($B14=Funktioner!$C$93,Funktioner!$D$93,Funktioner!$D$94))","v":""},{"$f":"IF($F14=\"\",\"\",IF($K14=0,\"\",Funktioner!N75))","v":""},{"$f":"IF($F14=\"\",\"\",IF($K14=0,\"\",Funktioner!O75))","v":""},{"$f":"IF($F14=\"\",\"\",IF($K14=\"\",\"\",Funktioner!P75))","v":""},{"$f":"IF($F14=\"\",\"\",IF(Funktioner!R75=0,\"\",Funktioner!R75))","v":""},{"$f":"IF($F14=\"\",\"\",IF($K14=\"\",\"\",Funktioner!Q75))","v":""}]
[{"$f":"IFERROR(IF(Funktioner!$D5=Funktioner!$C$3,1,IF(Funktioner!$D5=Funktioner!$C$4,2,IF(Funktioner!$D5=Funktioner!$C$5,3,IF(Funktioner!$D5=Funktioner!$C$6,4,IF(Funktioner!$D5=Funktioner!$C$7,5,IF(Funktioner!$D5=Funktioner!$C$8,6,IF(Funktioner!$D5=Funktioner!$C$9,7,IF(Funktioner!$D5=Funktioner!$C$10,8,IF(Funktioner!$D5=Funktioner!$C$11,9,IF(Funktioner!$D5=Funktioner!$C$12,10,IF(Funktioner!$D5=Funktioner!$C$13,11,IF(Funktioner!$D5=Funktioner!$C$14,12,IF(Funktioner!$D5=Funktioner!$C$15,13,IF(Funktioner!$D5=Funktioner!$C$16,14,IF(Funktioner!$D5=Funktioner!$C$17,15,IF(Funktioner!$D5=Funktioner!$C$18,16,IF(Funktioner!$D5=Funktioner!$C$19,17,IF(Funktioner!$D5=Funktioner!$C$20,18,IF(Funktioner!$D5=Funktioner!$C$21,19,IF(Funktioner!$D5=Funktioner!$C$22,20,\"\")))))))))))))))))))),\"\")","v":""},null,null,null,null,null,{"$f":"IF(Uträkningsmall!$A15=\"\",\"\",IF($B15=Funktioner!$C$93,Funktioner!$D$93,Funktioner!$D$94))","v":""},{"$f":"IF($F15=\"\",\"\",IF($K15=0,\"\",Funktioner!N76))","v":""},{"$f":"IF($F15=\"\",\"\",IF($K15=0,\"\",Funktioner!O76))","v":""},{"$f":"IF($F15=\"\",\"\",IF($K15=\"\",\"\",Funktioner!P76))","v":""},{"$f":"IF($F15=\"\",\"\",IF(Funktioner!R76=0,\"\",Funktioner!R76))","v":""},{"$f":"IF($F15=\"\",\"\",IF($K15=\"\",\"\",Funktioner!Q76))","v":""}]
[{"$f":"IFERROR(IF(Funktioner!$D6=Funktioner!$C$3,1,IF(Funktioner!$D6=Funktioner!$C$4,2,IF(Funktioner!$D6=Funktioner!$C$5,3,IF(Funktioner!$D6=Funktioner!$C$6,4,IF(Funktioner!$D6=Funktioner!$C$7,5,IF(Funktioner!$D6=Funktioner!$C$8,6,IF(Funktioner!$D6=Funktioner!$C$9,7,IF(Funktioner!$D6=Funktioner!$C$10,8,IF(Funktioner!$D6=Funktioner!$C$11,9,IF(Funktioner!$D6=Funktioner!$C$12,10,IF(Funktioner!$D6=Funktioner!$C$13,11,IF(Funktioner!$D6=Funktioner!$C$14,12,IF(Funktioner!$D6=Funktioner!$C$15,13,IF(Funktioner!$D6=Funktioner!$C$16,14,IF(Funktioner!$D6=Funktioner!$C$17,15,IF(Funktioner!$D6=Funktioner!$C$18,16,IF(Funktioner!$D6=Funktioner!$C$19,17,IF(Funktioner!$D6=Funktioner!$C$20,18,IF(Funktioner!$D6=Funktioner!$C$21,19,IF(Funktioner!$D6=Funktioner!$C$22,20,\"\")))))))))))))))))))),\"\")","v":""},null,null,null,null,null,{"$f":"IF(Uträkningsmall!$A16=\"\",\"\",IF($B16=Funktioner!$C$93,Funktioner!$D$93,Funktioner!$D$94))","v":""},{"$f":"IF($F16=\"\",\"\",IF($K16=0,\"\",Funktioner!N77))","v":""},{"$f":"IF($F16=\"\",\"\",IF($K16=0,\"\",Funktioner!O77))","v":""},{"$f":"IF($F16=\"\",\"\",IF($K16=\"\",\"\",Funktioner!P77))","v":""},{"$f":"IF($F16=\"\",\"\",IF(Funktioner!R77=0,\"\",Funktioner!R77))","v":""},{"$f":"IF($F16=\"\",\"\",IF($K16=\"\",\"\",Funktioner!Q77))","v":""}]
[{"$f":"IFERROR(IF(Funktioner!$D7=Funktioner!$C$3,1,IF(Funktioner!$D7=Funktioner!$C$4,2,IF(Funktioner!$D7=Funktioner!$C$5,3,IF(Funktioner!$D7=Funktioner!$C$6,4,IF(Funktioner!$D7=Funktioner!$C$7,5,IF(Funktioner!$D7=Funktioner!$C$8,6,IF(Funktioner!$D7=Funktioner!$C$9,7,IF(Funktioner!$D7=Funktioner!$C$10,8,IF(Funktioner!$D7=Funktioner!$C$11,9,IF(Funktioner!$D7=Funktioner!$C$12,10,IF(Funktioner!$D7=Funktioner!$C$13,11,IF(Funktioner!$D7=Funktioner!$C$14,12,IF(Funktioner!$D7=Funktioner!$C$15,13,IF(Funktioner!$D7=Funktioner!$C$16,14,IF(Funktioner!$D7=Funktioner!$C$17,15,IF(Funktioner!$D7=Funktioner!$C$18,16,IF(Funktioner!$D7=Funktioner!$C$19,17,IF(Funktioner!$D7=Funktioner!$C$20,18,IF(Funktioner!$D7=Funktioner!$C$21,19,IF(Funktioner!$D7=Funktioner!$C$22,20,\"\")))))))))))))))))))),\"\")","v":""},null,null,null,null,null,{"$f":"IF(Uträkningsmall!$A17=\"\",\"\",IF($B17=Funktioner!$C$93,Funktioner!$D$93,Funktioner!$D$94))","v":""},{"$f":"IF($F17=\"\",\"\",IF($K17=0,\"\",Funktioner!N78))","v":""},{"$f":"IF($F17=\"\",\"\",IF($K17=0,\"\",Funktioner!O78))","v":""},{"$f":"IF($F17=\"\",\"\",IF($K17=\"\",\"\",Funktioner!P78))","v":""},{"$f":"IF($F17=\"\",\"\",IF(Funktioner!R78=0,\"\",Funktioner!R78))","v":""},{"$f":"IF($F17=\"\",\"\",IF($K17=\"\",\"\",Funktioner!Q78))","v":""}]
[{"$f":"IFERROR(IF(Funktioner!$D8=Funktioner!$C$3,1,IF(Funktioner!$D8=Funktioner!$C$4,2,IF(Funktioner!$D8=Funktioner!$C$5,3,IF(Funktioner!$D8=Funktioner!$C$6,4,IF(Funktioner!$D8=Funktioner!$C$7,5,IF(Funktioner!$D8=Funktioner!$C$8,6,IF(Funktioner!$D8=Funktioner!$C$9,7,IF(Funktioner!$D8=Funktioner!$C$10,8,IF(Funktioner!$D8=Funktioner!$C$11,9,IF(Funktioner!$D8=Funktioner!$C$12,10,IF(Funktioner!$D8=Funktioner!$C$13,11,IF(Funktioner!$D8=Funktioner!$C$14,12,IF(Funktioner!$D8=Funktioner!$C$15,13,IF(Funktioner!$D8=Funktioner!$C$16,14,IF(Funktioner!$D8=Funktioner!$C$17,15,IF(Funktioner!$D8=Funktioner!$C$18,16,IF(Funktioner!$D8=Funktioner!$C$19,17,IF(Funktioner!$D8=Funktioner!$C$20,18,IF(Funktioner!$D8=Funktioner!$C$21,19,IF(Funktioner!$D8=Funktioner!$C$22,20,\"\")))))))))))))))))))),\"\")","v":""},null,null,null,null,null,{"$f":"IF(Uträkningsmall!$A18=\"\",\"\",IF($B18=Funktioner!$C$93,Funktioner!$D$93,Funktioner!$D$94))","v":""},{"$f":"IF($F18=\"\",\"\",IF($K18=0,\"\",Funktioner!N79))","v":""},{"$f":"IF($F18=\"\",\"\",IF($K18=0,\"\",Funktioner!O79))","v":""},{"$f":"IF($F18=\"\",\"\",IF($K18=\"\",\"\",Funktioner!P79))","v":""},{"$f":"IF($F18=\"\",\"\",IF(Funktioner!R79=0,\"\",Funktioner!R79))","v":""},{"$f":"IF($F18=\"\",\"\",IF($K18=\"\",\"\",Funktioner!Q79))","v":""}]
[{"$f":"IFERROR(IF(Funktioner!$D9=Funktioner!$C$3,1,IF(Funktioner!$D9=Funktioner!$C$4,2,IF(Funktioner!$D9=Funktioner!$C$5,3,IF(Funktioner!$D9=Funktioner!$C$6,4,IF(Funktioner!$D9=Funktioner!$C$7,5,IF(Funktioner!$D9=Funktioner!$C$8,6,IF(Funktioner!$D9=Funktioner!$C$9,7,IF(Funktioner!$D9=Funktioner!$C$10,8,IF(Funktioner!$D9=Funktioner!$C$11,9,IF(Funktioner!$D9=Funktioner!$C$12,10,IF(Funktioner!$D9=Funktioner!$C$13,11,IF(Funktioner!$D9=Funktioner!$C$14,12,IF(Funktioner!$D9=Funktioner!$C$15,13,IF(Funktioner!$D9=Funktioner!$C$16,14,IF(Funktioner!$D9=Funktioner!$C$17,15,IF(Funktioner!$D9=Funktioner!$C$18,16,IF(Funktioner!$D9=Funktioner!$C$19,17,IF(Funktioner!$D9=Funktioner!$C$20,18,IF(Funktioner!$D9=Funktioner!$C$21,19,IF(Funktioner!$D9=Funktioner!$C$22,20,\"\")))))))))))))))))))),\"\")","v":""},null,null,null,null,null,{"$f":"IF(Uträkningsmall!$A19=\"\",\"\",IF($B19=Funktioner!$C$93,Funktioner!$D$93,Funktioner!$D$94))","v":""},{"$f":"IF($F19=\"\",\"\",IF($K19=0,\"\",Funktioner!N80))","v":""},{"$f":"IF($F19=\"\",\"\",IF($K19=0,\"\",Funktioner!O80))","v":""},{"$f":"IF($F19=\"\",\"\",IF($K19=\"\",\"\",Funktioner!P80))","v":""},{"$f":"IF($F19=\"\",\"\",IF(Funktioner!R80=0,\"\",Funktioner!R80))","v":""},{"$f":"IF($F19=\"\",\"\",IF($K19=\"\",\"\",Funktioner!Q80))","v":""}]
[{"$f":"IFERROR(IF(Funktioner!$D10=Funktioner!$C$3,1,IF(Funktioner!$D10=Funktioner!$C$4,2,IF(Funktioner!$D10=Funktioner!$C$5,3,IF(Funktioner!$D10=Funktioner!$C$6,4,IF(Funktioner!$D10=Funktioner!$C$7,5,IF(Funktioner!$D10=Funktioner!$C$8,6,IF(Funktioner!$D10=Funktioner!$C$9,7,IF(Funktioner!$D10=Funktioner!$C$10,8,IF(Funktioner!$D10=Funktioner!$C$11,9,IF(Funktioner!$D10=Funktioner!$C$12,10,IF(Funktioner!$D10=Funktioner!$C$13,11,IF(Funktioner!$D10=Funktioner!$C$14,12,IF(Funktioner!$D10=Funktioner!$C$15,13,IF(Funktioner!$D10=Funktioner!$C$16,14,IF(Funktioner!$D10=Funktioner!$C$17,15,IF(Funktioner!$D10=Funktioner!$C$18,16,IF(Funktioner!$D10=Funktioner!$C$19,17,IF(Funktioner!$D10=Funktioner!$C$20,18,IF(Funktioner!$D10=Funktioner!$C$21,19,IF(Funktioner!$D10=Funktioner!$C$22,20,\"\")))))))))))))))))))),\"\")","v":""},null,null,null,null,null,{"$f":"IF(Uträkningsmall!$A20=\"\",\"\",IF($B20=Funktioner!$C$93,Funktioner!$D$93,Funktioner!$D$94))","v":""},{"$f":"IF($F20=\"\",\"\",IF($K20=0,\"\",Funktioner!N81))","v":""},{"$f":"IF($F20=\"\",\"\",IF($K20=0,\"\",Funktioner!O81))","v":""},{"$f":"IF($F20=\"\",\"\",IF($K20=\"\",\"\",Funktioner!P81))","v":""},{"$f":"IF($F20=\"\",\"\",IF(Funktioner!R81=0,\"\",Funktioner!R81))","v":""},{"$f":"IF($F20=\"\",\"\",IF($K20=\"\",\"\",Funktioner!Q81))","v":""}]
[{"$f":"IFERROR(IF(Funktioner!$D11=Funktioner!$C$3,1,IF(Funktioner!$D11=Funktioner!$C$4,2,IF(Funktioner!$D11=Funktioner!$C$5,3,IF(Funktioner!$D11=Funktioner!$C$6,4,IF(Funktioner!$D11=Funktioner!$C$7,5,IF(Funktioner!$D11=Funktioner!$C$8,6,IF(Funktioner!$D11=Funktioner!$C$9,7,IF(Funktioner!$D11=Funktioner!$C$10,8,IF(Funktioner!$D11=Funktioner!$C$11,9,IF(Funktioner!$D11=Funktioner!$C$12,10,IF(Funktioner!$D11=Funktioner!$C$13,11,IF(Funktioner!$D11=Funktioner!$C$14,12,IF(Funktioner!$D11=Funktioner!$C$15,13,IF(Funktioner!$D11=Funktioner!$C$16,14,IF(Funktioner!$D11=Funktioner!$C$17,15,IF(Funktioner!$D11=Funktioner!$C$18,16,IF(Funktioner!$D11=Funktioner!$C$19,17,IF(Funktioner!$D11=Funktioner!$C$20,18,IF(Funktioner!$D11=Funktioner!$C$21,19,IF(Funktioner!$D11=Funktioner!$C$22,20,\"\")))))))))))))))))))),\"\")","v":""},null,null,null,null,null,{"$f":"IF(Uträkningsmall!$A21=\"\",\"\",IF($B21=Funktioner!$C$93,Funktioner!$D$93,Funktioner!$D$94))","v":""},{"$f":"IF($F21=\"\",\"\",IF($K21=0,\"\",Funktioner!N82))","v":""},{"$f":"IF($F21=\"\",\"\",IF($K21=0,\"\",Funktioner!O82))","v":""},{"$f":"IF($F21=\"\",\"\",IF($K21=\"\",\"\",Funktioner!P82))","v":""},{"$f":"IF($F21=\"\",\"\",IF(Funktioner!R82=0,\"\",Funktioner!R82))","v":""},{"$f":"IF($F21=\"\",\"\",IF($K21=\"\",\"\",Funktioner!Q82))","v":""}]
[{"$f":"IFERROR(IF(Funktioner!$D12=Funktioner!$C$3,1,IF(Funktioner!$D12=Funktioner!$C$4,2,IF(Funktioner!$D12=Funktioner!$C$5,3,IF(Funktioner!$D12=Funktioner!$C$6,4,IF(Funktioner!$D12=Funktioner!$C$7,5,IF(Funktioner!$D12=Funktioner!$C$8,6,IF(Funktioner!$D12=Funktioner!$C$9,7,IF(Funktioner!$D12=Funktioner!$C$10,8,IF(Funktioner!$D12=Funktioner!$C$11,9,IF(Funktioner!$D12=Funktioner!$C$12,10,IF(Funktioner!$D12=Funktioner!$C$13,11,IF(Funktioner!$D12=Funktioner!$C$14,12,IF(Funktioner!$D12=Funktioner!$C$15,13,IF(Funktioner!$D12=Funktioner!$C$16,14,IF(Funktioner!$D12=Funktioner!$C$17,15,IF(Funktioner!$D12=Funktioner!$C$18,16,IF(Funktioner!$D12=Funktioner!$C$19,17,IF(Funktioner!$D12=Funktioner!$C$20,18,IF(Funktioner!$D12=Funktioner!$C$21,19,IF(Funktioner!$D12=Funktioner!$C$22,20,\"\")))))))))))))))))))),\"\")","v":""},null,null,null,null,null,{"$f":"IF(Uträkningsmall!$A22=\"\",\"\",IF($B22=Funktioner!$C$93,Funktioner!$D$93,Funktioner!$D$94))","v":""},{"$f":"IF($F22=\"\",\"\",IF($K22=0,\"\",Funktioner!N83))","v":""},{"$f":"IF($F22=\"\",\"\",IF($K22=0,\"\",Funktioner!O83))","v":""},{"$f":"IF($F22=\"\",\"\",IF($K22=\"\",\"\",Funktioner!P83))","v":""},{"$f":"IF($F22=\"\",\"\",IF(Funktioner!R83=0,\"\",Funktioner!R83))","v":""},{"$f":"IF($F22=\"\",\"\",IF($K22=\"\",\"\",Funktioner!Q83))","v":""}]
[{"$f":"IFERROR(IF(Funktioner!$D13=Funktioner!$C$3,1,IF(Funktioner!$D13=Funktioner!$C$4,2,IF(Funktioner!$D13=Funktioner!$C$5,3,IF(Funktioner!$D13=Funktioner!$C$6,4,IF(Funktioner!$D13=Funktioner!$C$7,5,IF(Funktioner!$D13=Funktioner!$C$8,6,IF(Funktioner!$D13=Funktioner!$C$9,7,IF(Funktioner!$D13=Funktioner!$C$10,8,IF(Funktioner!$D13=Funktioner!$C$11,9,IF(Funktioner!$D13=Funktioner!$C$12,10,IF(Funktioner!$D13=Funktioner!$C$13,11,IF(Funktioner!$D13=Funktioner!$C$14,12,IF(Funktioner!$D13=Funktioner!$C$15,13,IF(Funktioner!$D13=Funktioner!$C$16,14,IF(Funktioner!$D13=Funktioner!$C$17,15,IF(Funktioner!$D13=Funktioner!$C$18,16,IF(Funktioner!$D13=Funktioner!$C$19,17,IF(Funktioner!$D13=Funktioner!$C$20,18,IF(Funktioner!$D13=Funktioner!$C$21,19,IF(Funktioner!$D13=Funktioner!$C$22,20,\"\")))))))))))))))))))),\"\")","v":""},null,null,null,null,null,{"$f":"IF(Uträkningsmall!$A23=\"\",\"\",IF($B23=Funktioner!$C$93,Funktioner!$D$93,Funktioner!$D$94))","v":""},null,{"$f":"IF($F23=\"\",\"\",IF($K23=0,\"\",Funktioner!O84))","v":""},{"$f":"IF($F23=\"\",\"\",IF($K23=\"\",\"\",Funktioner!P84))","v":""},{"$f":"IF($F23=\"\",\"\",IF(Funktioner!R84=0,\"\",Funktioner!R84))","v":""},{"$f":"IF($F23=\"\",\"\",IF($K23=\"\",\"\",Funktioner!Q84))","v":""}]
[{"$f":"IFERROR(IF(Funktioner!$D14=Funktioner!$C$3,1,IF(Funktioner!$D14=Funktioner!$C$4,2,IF(Funktioner!$D14=Funktioner!$C$5,3,IF(Funktioner!$D14=Funktioner!$C$6,4,IF(Funktioner!$D14=Funktioner!$C$7,5,IF(Funktioner!$D14=Funktioner!$C$8,6,IF(Funktioner!$D14=Funktioner!$C$9,7,IF(Funktioner!$D14=Funktioner!$C$10,8,IF(Funktioner!$D14=Funktioner!$C$11,9,IF(Funktioner!$D14=Funktioner!$C$12,10,IF(Funktioner!$D14=Funktioner!$C$13,11,IF(Funktioner!$D14=Funktioner!$C$14,12,IF(Funktioner!$D14=Funktioner!$C$15,13,IF(Funktioner!$D14=Funktioner!$C$16,14,IF(Funktioner!$D14=Funktioner!$C$17,15,IF(Funktioner!$D14=Funktioner!$C$18,16,IF(Funktioner!$D14=Funktioner!$C$19,17,IF(Funktioner!$D14=Funktioner!$C$20,18,IF(Funktioner!$D14=Funktioner!$C$21,19,IF(Funktioner!$D14=Funktioner!$C$22,20,\"\")))))))))))))))))))),\"\")","v":""},null,null,null,null,null,{"$f":"IF(Uträkningsmall!$A24=\"\",\"\",IF($B24=Funktioner!$C$93,Funktioner!$D$93,Funktioner!$D$94))","v":""},{"$f":"IF($F24=\"\",\"\",IF($K24=0,\"\",Funktioner!N85))","v":""},{"$f":"IF($F24=\"\",\"\",IF($K24=0,\"\",Funktioner!O85))","v":""},{"$f":"IF($F24=\"\",\"\",IF($K24=\"\",\"\",Funktioner!P85))","v":""},{"$f":"IF($F24=\"\",\"\",IF(Funktioner!R85=0,\"\",Funktioner!R85))","v":""},{"$f":"IF($F24=\"\",\"\",IF($K24=\"\",\"\",Funktioner!Q85))","v":""}]
[{"$f":"IFERROR(IF(Funktioner!$D15=Funktioner!$C$3,1,IF(Funktioner!$D15=Funktioner!$C$4,2,IF(Funktioner!$D15=Funktioner!$C$5,3,IF(Funktioner!$D15=Funktioner!$C$6,4,IF(Funktioner!$D15=Funktioner!$C$7,5,IF(Funktioner!$D15=Funktioner!$C$8,6,IF(Funktioner!$D15=Funktioner!$C$9,7,IF(Funktioner!$D15=Funktioner!$C$10,8,IF(Funktioner!$D15=Funktioner!$C$11,9,IF(Funktioner!$D15=Funktioner!$C$12,10,IF(Funktioner!$D15=Funktioner!$C$13,11,IF(Funktioner!$D15=Funktioner!$C$14,12,IF(Funktioner!$D15=Funktioner!$C$15,13,IF(Funktioner!$D15=Funktioner!$C$16,14,IF(Funktioner!$D15=Funktioner!$C$17,15,IF(Funktioner!$D15=Funktioner!$C$18,16,IF(Funktioner!$D15=Funktioner!$C$19,17,IF(Funktioner!$D15=Funktioner!$C$20,18,IF(Funktioner!$D15=Funktioner!$C$21,19,IF(Funktioner!$D15=Funktioner!$C$22,20,\"\")))))))))))))))))))),\"\")","v":""},null,null,null,null,null,{"$f":"IF(Uträkningsmall!$A25=\"\",\"\",IF($B25=Funktioner!$C$93,Funktioner!$D$93,Funktioner!$D$94))","v":""},{"$f":"IF($F25=\"\",\"\",IF($K25=0,\"\",Funktioner!N86))","v":""},{"$f":"IF($F25=\"\",\"\",IF($K25=0,\"\",Funktioner!O86))","v":""},{"$f":"IF($F25=\"\",\"\",IF($K25=\"\",\"\",Funktioner!P86))","v":""},{"$f":"IF($F25=\"\",\"\",IF(Funktioner!R86=0,\"\",Funktioner!R86))","v":""},{"$f":"IF($F25=\"\",\"\",IF($K25=\"\",\"\",Funktioner!Q86))","v":""}]
[{"$f":"IFERROR(IF(Funktioner!$D16=Funktioner!$C$3,1,IF(Funktioner!$D16=Funktioner!$C$4,2,IF(Funktioner!$D16=Funktioner!$C$5,3,IF(Funktioner!$D16=Funktioner!$C$6,4,IF(Funktioner!$D16=Funktioner!$C$7,5,IF(Funktioner!$D16=Funktioner!$C$8,6,IF(Funktioner!$D16=Funktioner!$C$9,7,IF(Funktioner!$D16=Funktioner!$C$10,8,IF(Funktioner!$D16=Funktioner!$C$11,9,IF(Funktioner!$D16=Funktioner!$C$12,10,IF(Funktioner!$D16=Funktioner!$C$13,11,IF(Funktioner!$D16=Funktioner!$C$14,12,IF(Funktioner!$D16=Funktioner!$C$15,13,IF(Funktioner!$D16=Funktioner!$C$16,14,IF(Funktioner!$D16=Funktioner!$C$17,15,IF(Funktioner!$D16=Funktioner!$C$18,16,IF(Funktioner!$D16=Funktioner!$C$19,17,IF(Funktioner!$D16=Funktioner!$C$20,18,IF(Funktioner!$D16=Funktioner!$C$21,19,IF(Funktioner!$D16=Funktioner!$C$22,20,\"\")))))))))))))))))))),\"\")","v":""},null,null,null,null,null,{"$f":"IF(Uträkningsmall!$A26=\"\",\"\",IF($B26=Funktioner!$C$93,Funktioner!$D$93,Funktioner!$D$94))","v":""},{"$f":"IF($F26=\"\",\"\",IF($K26=0,\"\",Funktioner!N87))","v":""},{"$f":"IF($F26=\"\",\"\",IF($K26=0,\"\",Funktioner!O87))","v":""},{"$f":"IF($F26=\"\",\"\",IF($K26=\"\",\"\",Funktioner!P87))","v":""},{"$f":"IF($F26=\"\",\"\",IF(Funktioner!R87=0,\"\",Funktioner!R87))","v":""},{"$f":"IF($F26=\"\",\"\",IF($K26=\"\",\"\",Funktioner!Q87))","v":""}]
[{"$f":"IFERROR(IF(Funktioner!$D17=Funktioner!$C$3,1,IF(Funktioner!$D17=Funktioner!$C$4,2,IF(Funktioner!$D17=Funktioner!$C$5,3,IF(Funktioner!$D17=Funktioner!$C$6,4,IF(Funktioner!$D17=Funktioner!$C$7,5,IF(Funktioner!$D17=Funktioner!$C$8,6,IF(Funktioner!$D17=Funktioner!$C$9,7,IF(Funktioner!$D17=Funktioner!$C$10,8,IF(Funktioner!$D17=Funktioner!$C$11,9,IF(Funktioner!$D17=Funktioner!$C$12,10,IF(Funktioner!$D17=Funktioner!$C$13,11,IF(Funktioner!$D17=Funktioner!$C$14,12,IF(Funktioner!$D17=Funktioner!$C$15,13,IF(Funktioner!$D17=Funktioner!$C$16,14,IF(Funktioner!$D17=Funktioner!$C$17,15,IF(Funktioner!$D17=Funktioner!$C$18,16,IF(Funktioner!$D17=Funktioner!$C$19,17,IF(Funktioner!$D17=Funktioner!$C$20,18,IF(Funktioner!$D17=Funktioner!$C$21,19,IF(Funktioner!$D17=Funktioner!$C$22,20,\"\")))))))))))))))))))),\"\")","v":""},null,null,null,null,null,{"$f":"IF(Uträkningsmall!$A27=\"\",\"\",IF($B27=Funktioner!$C$93,Funktioner!$D$93,Funktioner!$D$94))","v":""},{"$f":"IF($F27=\"\",\"\",IF($K27=0,\"\",Funktioner!N88))","v":""},{"$f":"IF($F27=\"\",\"\",IF($K27=0,\"\",Funktioner!O88))","v":""},{"$f":"IF($F27=\"\",\"\",IF($K27=\"\",\"\",Funktioner!P88))","v":""},{"$f":"IF($F27=\"\",\"\",IF(Funktioner!R88=0,\"\",Funktioner!R88))","v":""},{"$f":"IF($F27=\"\",\"\",IF($K27=\"\",\"\",Funktioner!Q88))","v":""}]
[{"$f":"IFERROR(IF(Funktioner!$D18=Funktioner!$C$3,1,IF(Funktioner!$D18=Funktioner!$C$4,2,IF(Funktioner!$D18=Funktioner!$C$5,3,IF(Funktioner!$D18=Funktioner!$C$6,4,IF(Funktioner!$D18=Funktioner!$C$7,5,IF(Funktioner!$D18=Funktioner!$C$8,6,IF(Funktioner!$D18=Funktioner!$C$9,7,IF(Funktioner!$D18=Funktioner!$C$10,8,IF(Funktioner!$D18=Funktioner!$C$11,9,IF(Funktioner!$D18=Funktioner!$C$12,10,IF(Funktioner!$D18=Funktioner!$C$13,11,IF(Funktioner!$D18=Funktioner!$C$14,12,IF(Funktioner!$D18=Funktioner!$C$15,13,IF(Funktioner!$D18=Funktioner!$C$16,14,IF(Funktioner!$D18=Funktioner!$C$17,15,IF(Funktioner!$D18=Funktioner!$C$18,16,IF(Funktioner!$D18=Funktioner!$C$19,17,IF(Funktioner!$D18=Funktioner!$C$20,18,IF(Funktioner!$D18=Funktioner!$C$21,19,IF(Funktioner!$D18=Funktioner!$C$22,20,\"\")))))))))))))))))))),\"\")","v":""},null,null,null,null,null,{"$f":"IF(Uträkningsmall!$A28=\"\",\"\",IF($B28=Funktioner!$C$93,Funktioner!$D$93,Funktioner!$D$94))","v":""},{"$f":"IF($F28=\"\",\"\",IF($K28=0,\"\",Funktioner!N89))","v":""},{"$f":"IF($F28=\"\",\"\",IF($K28=0,\"\",Funktioner!O89))","v":""},{"$f":"IF($F28=\"\",\"\",IF($K28=\"\",\"\",Funktioner!P89))","v":""},{"$f":"IF($F28=\"\",\"\",IF(Funktioner!R89=0,\"\",Funktioner!R89))","v":""},{"$f":"IF($F28=\"\",\"\",IF($K28=\"\",\"\",Funktioner!Q89))","v":""}]
[{"$f":"IFERROR(IF(Funktioner!$D19=Funktioner!$C$3,1,IF(Funktioner!$D19=Funktioner!$C$4,2,IF(Funktioner!$D19=Funktioner!$C$5,3,IF(Funktioner!$D19=Funktioner!$C$6,4,IF(Funktioner!$D19=Funktioner!$C$7,5,IF(Funktioner!$D19=Funktioner!$C$8,6,IF(Funktioner!$D19=Funktioner!$C$9,7,IF(Funktioner!$D19=Funktioner!$C$10,8,IF(Funktioner!$D19=Funktioner!$C$11,9,IF(Funktioner!$D19=Funktioner!$C$12,10,IF(Funktioner!$D19=Funktioner!$C$13,11,IF(Funktioner!$D19=Funktioner!$C$14,12,IF(Funktioner!$D19=Funktioner!$C$15,13,IF(Funktioner!$D19=Funktioner!$C$16,14,IF(Funktioner!$D19=Funktioner!$C$17,15,IF(Funktioner!$D19=Funktioner!$C$18,16,IF(Funktioner!$D19=Funktioner!$C$19,17,IF(Funktioner!$D19=Funktioner!$C$20,18,IF(Funktioner!$D19=Funktioner!$C$21,19,IF(Funktioner!$D19=Funktioner!$C$22,20,\"\")))))))))))))))))))),\"\")","v":""},null,null,null,null,null,{"$f":"IF(Uträkningsmall!$A29=\"\",\"\",IF($B29=Funktioner!$C$93,Funktioner!$D$93,Funktioner!$D$94))","v":""},{"$f":"IF($F29=\"\",\"\",IF($K29=0,\"\",Funktioner!N90))","v":""},{"$f":"IF($F29=\"\",\"\",IF($K29=0,\"\",Funktioner!O90))","v":""},{"$f":"IF($F29=\"\",\"\",IF($K29=\"\",\"\",Funktioner!P90))","v":""},{"$f":"IF($F29=\"\",\"\",IF(Funktioner!R90=0,\"\",Funktioner!R90))","v":""},{"$f":"IF($F29=\"\",\"\",IF($K29=\"\",\"\",Funktioner!Q90))","v":""}]
[{"$f":"IFERROR(IF(Funktioner!$D20=Funktioner!$C$3,1,IF(Funktioner!$D20=Funktioner!$C$4,2,IF(Funktioner!$D20=Funktioner!$C$5,3,IF(Funktioner!$D20=Funktioner!$C$6,4,IF(Funktioner!$D20=Funktioner!$C$7,5,IF(Funktioner!$D20=Funktioner!$C$8,6,IF(Funktioner!$D20=Funktioner!$C$9,7,IF(Funktioner!$D20=Funktioner!$C$10,8,IF(Funktioner!$D20=Funktioner!$C$11,9,IF(Funktioner!$D20=Funktioner!$C$12,10,IF(Funktioner!$D20=Funktioner!$C$13,11,IF(Funktioner!$D20=Funktioner!$C$14,12,IF(Funktioner!$D20=Funktioner!$C$15,13,IF(Funktioner!$D20=Funktioner!$C$16,14,IF(Funktioner!$D20=Funktioner!$C$17,15,IF(Funktioner!$D20=Funktioner!$C$18,16,IF(Funktioner!$D20=Funktioner!$C$19,17,IF(Funktioner!$D20=Funktioner!$C$20,18,IF(Funktioner!$D20=Funktioner!$C$21,19,IF(Funktioner!$D20=Funktioner!$C$22,20,\"\")))))))))))))))))))),\"\")","v":""},null,null,null,null,null,{"$f":"IF(Uträkningsmall!$A30=\"\",\"\",IF($B30=Funktioner!$C$93,Funktioner!$D$93,Funktioner!$D$94))","v":""},{"$f":"IF($F30=\"\",\"\",IF($K30=0,\"\",Funktioner!N91))","v":""},{"$f":"IF($F30=\"\",\"\",IF($K30=0,\"\",Funktioner!O91))","v":""},{"$f":"IF($F30=\"\",\"\",IF($K30=\"\",\"\",Funktioner!P91))","v":""},{"$f":"IF($F30=\"\",\"\",IF(Funktioner!R91=0,\"\",Funktioner!R91))","v":""},{"$f":"IF($F30=\"\",\"\",IF($K30=\"\",\"\",Funktioner!Q91))","v":""}]
[{"$f":"IFERROR(IF(Funktioner!$D21=Funktioner!$C$3,1,IF(Funktioner!$D21=Funktioner!$C$4,2,IF(Funktioner!$D21=Funktioner!$C$5,3,IF(Funktioner!$D21=Funktioner!$C$6,4,IF(Funktioner!$D21=Funktioner!$C$7,5,IF(Funktioner!$D21=Funktioner!$C$8,6,IF(Funktioner!$D21=Funktioner!$C$9,7,IF(Funktioner!$D21=Funktioner!$C$10,8,IF(Funktioner!$D21=Funktioner!$C$11,9,IF(Funktioner!$D21=Funktioner!$C$12,10,IF(Funktioner!$D21=Funktioner!$C$13,11,IF(Funktioner!$D21=Funktioner!$C$14,12,IF(Funktioner!$D21=Funktioner!$C$15,13,IF(Funktioner!$D21=Funktioner!$C$16,14,IF(Funktioner!$D21=Funktioner!$C$17,15,IF(Funktioner!$D21=Funktioner!$C$18,16,IF(Funktioner!$D21=Funktioner!$C$19,17,IF(Funktioner!$D21=Funktioner!$C$20,18,IF(Funktioner!$D21=Funktioner!$C$21,19,IF(Funktioner!$D21=Funktioner!$C$22,20,\"\")))))))))))))))))))),\"\")","v":""},null,null,null,null,null,{"$f":"IF(Uträkningsmall!$A31=\"\",\"\",IF($B31=Funktioner!$C$93,Funktioner!$D$93,Funktioner!$D$94))","v":""},{"$f":"IF($F31=\"\",\"\",IF($K31=0,\"\",Funktioner!N92))","v":""},{"$f":"IF($F31=\"\",\"\",IF($K31=0,\"\",Funktioner!O92))","v":""},{"$f":"IF($F31=\"\",\"\",IF($K31=\"\",\"\",Funktioner!P92))","v":""},{"$f":"IF($F31=\"\",\"\",IF(Funktioner!R92=0,\"\",Funktioner!R92))","v":""},{"$f":"IF($F31=\"\",\"\",IF($K31=\"\",\"\",Funktioner!Q92))","v":""}]
[{"$f":"IFERROR(IF(Funktioner!$D22=Funktioner!$C$3,1,IF(Funktioner!$D22=Funktioner!$C$4,2,IF(Funktioner!$D22=Funktioner!$C$5,3,IF(Funktioner!$D22=Funktioner!$C$6,4,IF(Funktioner!$D22=Funktioner!$C$7,5,IF(Funktioner!$D22=Funktioner!$C$8,6,IF(Funktioner!$D22=Funktioner!$C$9,7,IF(Funktioner!$D22=Funktioner!$C$10,8,IF(Funktioner!$D22=Funktioner!$C$11,9,IF(Funktioner!$D22=Funktioner!$C$12,10,IF(Funktioner!$D22=Funktioner!$C$13,11,IF(Funktioner!$D22=Funktioner!$C$14,12,IF(Funktioner!$D22=Funktioner!$C$15,13,IF(Funktioner!$D22=Funktioner!$C$16,14,IF(Funktioner!$D22=Funktioner!$C$17,15,IF(Funktioner!$D22=Funktioner!$C$18,16,IF(Funktioner!$D22=Funktioner!$C$19,17,IF(Funktioner!$D22=Funktioner!$C$20,18,IF(Funktioner!$D22=Funktioner!$C$21,19,IF(Funktioner!$D22=Funktioner!$C$22,20,\"\")))))))))))))))))))),\"\")","v":""},null,null,null,null,null,{"$f":"IF(Uträkningsmall!$A32=\"\",\"\",IF($B32=Funktioner!$C$93,Funktioner!$D$93,Funktioner!$D$94))","v":""},{"$f":"IF($F32=\"\",\"\",IF($K32=0,\"\",Funktioner!N93))","v":""},{"$f":"IF($F32=\"\",\"\",IF($K32=0,\"\",Funktioner!O93))","v":""},{"$f":"IF($F32=\"\",\"\",IF($K32=\"\",\"\",Funktioner!P93))","v":""},{"$f":"IF($F32=\"\",\"\",IF(Funktioner!R93=0,\"\",Funktioner!R93))","v":""},{"$f":"IF($F32=\"\",\"\",IF($K32=\"\",\"\",Funktioner!Q93))","v":""}]

{"sheet":"Beställningsformulär","index":2,"n_rows":32,"n_cols":10,"rows_kept":32,"cut":false,"hidden":false,"merged":[[12,1,12,3],[11,1,11,3],[27,1,27,3],[28,1,28,3],[29,1,29,3],[17,1,17,3],[18,1,18,3],[19,1,19,3],[20,1,20,3],[21,1,21,3],[22,1,22,3],[23,1,23,3],[24,1,24,3],[25,1,25,3],[26,1,26,3],[30,1,30,3],[31,1,31,3],[13,1,13,3],[14,1,14,3],[15,1,15,3],[16,1,16,3]]}
[null,"Beställningsformulär",null,null,"Avrop från ramavtal för Kontorspapper  Dnr. 23.2-10936-2021"]
[]
[null,"Ramavtalsleverantör",{"$f":"IF(Uträkningsmall!$G2<>\"\",Uträkningsmall!$G2,\"\")","v":""},null,null,"Avropande myndighet"]
[null,"Organisationsnummer",{"$f":"IF(Uträkningsmall!$G3<>\"\",Uträkningsmall!$G3,\"\")","v":""},null,null,"Organisationsnr"]
[null,"Kontaktperson",{"$f":"IF(Uträkningsmall!$G4<>\"\",Uträkningsmall!$G4,\"\")","v":""},null,null,"Kontaktperson vid leverans"]
[null,"Telefonnummer",{"$f":"IF(Uträkningsmall!$G5<>\"\",Uträkningsmall!$G5,\"\")","v":""},null,null,"Telefonnummer"]
[null,"E-postadress",{"$f":"IF(Uträkningsmall!$G6<>\"\",HYPERLINK(Uträkningsmall!$G6),\"\")","v":""},null,null,"E-postadress"]
[null,"Beställningsdatum",null,null,null,"Adress för e-faktura/Peppol-ID"]
[null,null,null,null,null,"Fakturareferens",null,null,"Totalsumma:",{"$f":"IF(Uträkningsmall!$G$7<>\"\",Uträkningsmall!$G$7,\"\")","v":""}]
[null,null,null,null,null,"Leveransadress (samt ev. våningsplan)"]
[]
[null,"Varubeskrivning",null,null,"Antal karton","Artikelnamn  ","Artikelnummer   ","Pris per kartong","Totalpris","Leveranstid"]
[null,{"$f":"IF(Uträkningsmall!$A13<>\"\",Uträkningsmall!B13&\", \"&Uträkningsmall!C13&\", \"&Uträkningsmall!D13&\", \"&Uträkningsmall!E13&\", \"&Uträkningsmall!G13&\" (Position \"&Uträkningsmall!A13&\")\",\"\")","v":""},null,null,{"$f":"IF(Uträkningsmall!$A13<>\"\",Uträkningsmall!F13,\"\")","v":""},{"$f":"IF(Uträkningsmall!$H13<>\"\",Uträkningsmall!H13,\"\")","v":""},{"$f":"IF(Uträkningsmall!$I13<>\"\",Uträkningsmall!I13,\"\")","v":""},{"$f":"IF(Uträkningsmall!$J13<>\"\",Uträkningsmall!J13,\"\")","v":""},{"$f":"IF(Uträkningsmall!$K13<>\"\",Uträkningsmall!K13,\"\")","v":""},{"$f":"IF(Uträkningsmall!$L13<>\"\",Uträkningsmall!L13,\"\")","v":""}]
[null,{"$f":"IF(Uträkningsmall!$A14<>\"\",Uträkningsmall!B14&\", \"&Uträkningsmall!C14&\", \"&Uträkningsmall!D14&\", \"&Uträkningsmall!E14&\", \"&Uträkningsmall!G14&\" (Position \"&Uträkningsmall!A14&\")\",\"\")","v":""},null,null,{"$f":"IF(Uträkningsmall!$A14<>\"\",Uträkningsmall!F14,\"\")","v":""},{"$f":"IF(Uträkningsmall!$H14<>\"\",Uträkningsmall!H14,\"\")","v":""},{"$f":"IF(Uträkningsmall!$I14<>\"\",Uträkningsmall!I14,\"\")","v":""},{"$f":"IF(Uträkningsmall!$J14<>\"\",Uträkningsmall!J14,\"\")","v":""},{"$f":"IF(Uträkningsmall!$K14<>\"\",Uträkningsmall!K14,\"\")","v":""},{"$f":"IF(Uträkningsmall!L14<>\"\",Uträkningsmall!L14,\"\")","v":""}]
[null,{"$f":"IF(Uträkningsmall!$A15<>\"\",Uträkningsmall!B15&\", \"&Uträkningsmall!C15&\", \"&Uträkningsmall!D15&\", \"&Uträkningsmall!E15&\", \"&Uträkningsmall!G15&\" (Position \"&Uträkningsmall!A15&\")\",\"\")","v":""},null,null,{"$f":"IF(Uträkningsmall!$A15<>\"\",Uträkningsmall!F15,\"\")","v":""},{"$f":"IF(Uträkningsmall!$H15<>\"\",Uträkningsmall!H15,\"\")","v":""},{"$f":"IF(Uträkningsmall!$I15<>\"\",Uträkningsmall!I15,\"\")","v":""},{"$f":"IF(Uträkningsmall!$J15<>\"\",Uträkningsmall!J15,\"\")","v":""},{"$f":"IF(Uträkningsmall!$K15<>\"\",Uträkningsmall!K15,\"\")","v":""},{"$f":"IF(Uträkningsmall!L15<>\"\",Uträkningsmall!L15,\"\")","v":""}]
[null,{"$f":"IF(Uträkningsmall!$A16<>\"\",Uträkningsmall!B16&\", \"&Uträkningsmall!C16&\", \"&Uträkningsmall!D16&\", \"&Uträkningsmall!E16&\", \"&Uträkningsmall!G16&\" (Position \"&Uträkningsmall!A16&\")\",\"\")","v":""},null,null,{"$f":"IF(Uträkningsmall!$A16<>\"\",Uträkningsmall!F16,\"\")","v":""},{"$f":"IF(Uträkningsmall!$H16<>\"\",Uträkningsmall!H16,\"\")","v":""},{"$f":"IF(Uträkningsmall!$I16<>\"\",Uträkningsmall!I16,\"\")","v":""},{"$f":"IF(Uträkningsmall!$J16<>\"\",Uträkningsmall!J16,\"\")","v":""},{"$f":"IF(Uträkningsmall!$K16<>\"\",Uträkningsmall!K16,\"\")","v":""},{"$f":"IF(Uträkningsmall!L16<>\"\",Uträkningsmall!L16,\"\")","v":""}]
[null,{"$f":"IF(Uträkningsmall!$A17<>\"\",Uträkningsmall!B17&\", \"&Uträkningsmall!C17&\", \"&Uträkningsmall!D17&\", \"&Uträkningsmall!E17&\", \"&Uträkningsmall!G17&\" (Position \"&Uträkningsmall!A17&\")\",\"\")","v":""},null,null,{"$f":"IF(Uträkningsmall!$A17<>\"\",Uträkningsmall!F17,\"\")","v":""},{"$f":"IF(Uträkningsmall!$H17<>\"\",Uträkningsmall!H17,\"\")","v":""},{"$f":"IF(Uträkningsmall!$I17<>\"\",Uträkningsmall!I17,\"\")","v":""},{"$f":"IF(Uträkningsmall!$J17<>\"\",Uträkningsmall!J17,\"\")","v":""},{"$f":"IF(Uträkningsmall!$K17<>\"\",Uträkningsmall!K17,\"\")","v":""},{"$f":"IF(Uträkningsmall!L17<>\"\",Uträkningsmall!L17,\"\")","v":""}]
[null,{"$f":"IF(Uträkningsmall!$A18<>\"\",Uträkningsmall!B18&\", \"&Uträkningsmall!C18&\", \"&Uträkningsmall!D18&\", \"&Uträkningsmall!E18&\", \"&Uträkningsmall!G18&\" (Position \"&Uträkningsmall!A18&\")\",\"\")","v":""},null,null,{"$f":"IF(Uträkningsmall!$A18<>\"\",Uträkningsmall!F18,\"\")","v":""},{"$f":"IF(Uträkningsmall!$H18<>\"\",Uträkningsmall!H18,\"\")","v":""},{"$f":"IF(Uträkningsmall!$I18<>\"\",Uträkningsmall!I18,\"\")","v":""},{"$f":"IF(Uträkningsmall!$J18<>\"\",Uträkningsmall!J18,\"\")","v":""},{"$f":"IF(Uträkningsmall!$K18<>\"\",Uträkningsmall!K18,\"\")","v":""},{"$f":"IF(Uträkningsmall!L18<>\"\",Uträkningsmall!L18,\"\")","v":""}]
[null,{"$f":"IF(Uträkningsmall!$A19<>\"\",Uträkningsmall!B19&\", \"&Uträkningsmall!C19&\", \"&Uträkningsmall!D19&\", \"&Uträkningsmall!E19&\", \"&Uträkningsmall!G19&\" (Position \"&Uträkningsmall!A19&\")\",\"\")","v":""},null,null,{"$f":"IF(Uträkningsmall!$A19<>\"\",Uträkningsmall!F19,\"\")","v":""},{"$f":"IF(Uträkningsmall!$H19<>\"\",Uträkningsmall!H19,\"\")","v":""},{"$f":"IF(Uträkningsmall!$I19<>\"\",Uträkningsmall!I19,\"\")","v":""},{"$f":"IF(Uträkningsmall!$J19<>\"\",Uträkningsmall!J19,\"\")","v":""},{"$f":"IF(Uträkningsmall!$K19<>\"\",Uträkningsmall!K19,\"\")","v":""},{"$f":"IF(Uträkningsmall!L19<>\"\",Uträkningsmall!L19,\"\")","v":""}]
[null,{"$f":"IF(Uträkningsmall!$A20<>\"\",Uträkningsmall!B20&\", \"&Uträkningsmall!C20&\", \"&Uträkningsmall!D20&\", \"&Uträkningsmall!E20&\", \"&Uträkningsmall!G20&\" (Position \"&Uträkningsmall!A20&\")\",\"\")","v":""},null,null,{"$f":"IF(Uträkningsmall!$A20<>\"\",Uträkningsmall!F20,\"\")","v":""},{"$f":"IF(Uträkningsmall!$H20<>\"\",Uträkningsmall!H20,\"\")","v":""},{"$f":"IF(Uträkningsmall!$I20<>\"\",Uträkningsmall!I20,\"\")","v":""},{"$f":"IF(Uträkningsmall!$J20<>\"\",Uträkningsmall!J20,\"\")","v":""},{"$f":"IF(Uträkningsmall!$K20<>\"\",Uträkningsmall!K20,\"\")","v":""},{"$f":"IF(Uträkningsmall!L20<>\"\",Uträkningsmall!L20,\"\")","v":""}]
[null,{"$f":"IF(Uträkningsmall!$A21<>\"\",Uträkningsmall!B21&\", \"&Uträkningsmall!C21&\", \"&Uträkningsmall!D21&\", \"&Uträkningsmall!E21&\", \"&Uträkningsmall!G21&\" (Position \"&Uträkningsmall!A21&\")\",\"\")","v":""},null,null,{"$f":"IF(Uträkningsmall!$A21<>\"\",Uträkningsmall!F21,\"\")","v":""},{"$f":"IF(Uträkningsmall!$H21<>\"\",Uträkningsmall!H21,\"\")","v":""},{"$f":"IF(Uträkningsmall!$I21<>\"\",Uträkningsmall!I21,\"\")","v":""},{"$f":"IF(Uträkningsmall!$J21<>\"\",Uträkningsmall!J21,\"\")","v":""},{"$f":"IF(Uträkningsmall!$K21<>\"\",Uträkningsmall!K21,\"\")","v":""},{"$f":"IF(Uträkningsmall!L21<>\"\",Uträkningsmall!L21,\"\")","v":""}]
[null,{"$f":"IF(Uträkningsmall!$A22<>\"\",Uträkningsmall!B22&\", \"&Uträkningsmall!C22&\", \"&Uträkningsmall!D22&\", \"&Uträkningsmall!E22&\", \"&Uträkningsmall!G22&\" (Position \"&Uträkningsmall!A22&\")\",\"\")","v":""},null,null,{"$f":"IF(Uträkningsmall!$A22<>\"\",Uträkningsmall!F22,\"\")","v":""},{"$f":"IF(Uträkningsmall!$H22<>\"\",Uträkningsmall!H22,\"\")","v":""},{"$f":"IF(Uträkningsmall!$I22<>\"\",Uträkningsmall!I22,\"\")","v":""},{"$f":"IF(Uträkningsmall!$J22<>\"\",Uträkningsmall!J22,\"\")","v":""},{"$f":"IF(Uträkningsmall!$K22<>\"\",Uträkningsmall!K22,\"\")","v":""},{"$f":"IF(Uträkningsmall!L22<>\"\",Uträkningsmall!L22,\"\")","v":""}]
[null,{"$f":"IF(Uträkningsmall!$A23<>\"\",Uträkningsmall!B23&\", \"&Uträkningsmall!C23&\", \"&Uträkningsmall!D23&\", \"&Uträkningsmall!E23&\", \"&Uträkningsmall!G23&\" (Position \"&Uträkningsmall!A23&\")\",\"\")","v":""},null,null,{"$f":"IF(Uträkningsmall!$A23<>\"\",Uträkningsmall!F23,\"\")","v":""},{"$f":"IF(Uträkningsmall!$H23<>\"\",Uträkningsmall!H23,\"\")","v":""},{"$f":"IF(Uträkningsmall!$I23<>\"\",Uträkningsmall!I23,\"\")","v":""},{"$f":"IF(Uträkningsmall!$J23<>\"\",Uträkningsmall!J23,\"\")","v":""},{"$f":"IF(Uträkningsmall!$K23<>\"\",Uträkningsmall!K23,\"\")","v":""},{"$f":"IF(Uträkningsmall!L23<>\"\",Uträkningsmall!L23,\"\")","v":""}]
[null,{"$f":"IF(Uträkningsmall!$A24<>\"\",Uträkningsmall!B24&\", \"&Uträkningsmall!C24&\", \"&Uträkningsmall!D24&\", \"&Uträkningsmall!E24&\", \"&Uträkningsmall!G24&\" (Position \"&Uträkningsmall!A24&\")\",\"\")","v":""},null,null,{"$f":"IF(Uträkningsmall!$A24<>\"\",Uträkningsmall!F24,\"\")","v":""},{"$f":"IF(Uträkningsmall!$H24<>\"\",Uträkningsmall!H24,\"\")","v":""},{"$f":"IF(Uträkningsmall!$I24<>\"\",Uträkningsmall!I24,\"\")","v":""},{"$f":"IF(Uträkningsmall!$J24<>\"\",Uträkningsmall!J24,\"\")","v":""},{"$f":"IF(Uträkningsmall!$K24<>\"\",Uträkningsmall!K24,\"\")","v":""},{"$f":"IF(Uträkningsmall!L24<>\"\",Uträkningsmall!L24,\"\")","v":""}]
[null,{"$f":"IF(Uträkningsmall!$A25<>\"\",Uträkningsmall!B25&\", \"&Uträkningsmall!C25&\", \"&Uträkningsmall!D25&\", \"&Uträkningsmall!E25&\", \"&Uträkningsmall!G25&\" (Position \"&Uträkningsmall!A25&\")\",\"\")","v":""},null,null,{"$f":"IF(Uträkningsmall!$A25<>\"\",Uträkningsmall!F25,\"\")","v":""},{"$f":"IF(Uträkningsmall!$H25<>\"\",Uträkningsmall!H25,\"\")","v":""},{"$f":"IF(Uträkningsmall!$I25<>\"\",Uträkningsmall!I25,\"\")","v":""},{"$f":"IF(Uträkningsmall!$J25<>\"\",Uträkningsmall!J25,\"\")","v":""},{"$f":"IF(Uträkningsmall!$K25<>\"\",Uträkningsmall!K25,\"\")","v":""},{"$f":"IF(Uträkningsmall!L25<>\"\",Uträkningsmall!L25,\"\")","v":""}]
[null,{"$f":"IF(Uträkningsmall!$A26<>\"\",Uträkningsmall!B26&\", \"&Uträkningsmall!C26&\", \"&Uträkningsmall!D26&\", \"&Uträkningsmall!E26&\", \"&Uträkningsmall!G26&\" (Position \"&Uträkningsmall!A26&\")\",\"\")","v":""},null,null,{"$f":"IF(Uträkningsmall!$A26<>\"\",Uträkningsmall!F26,\"\")","v":""},{"$f":"IF(Uträkningsmall!$H26<>\"\",Uträkningsmall!H26,\"\")","v":""},{"$f":"IF(Uträkningsmall!$I26<>\"\",Uträkningsmall!I26,\"\")","v":""},{"$f":"IF(Uträkningsmall!$J26<>\"\",Uträkningsmall!J26,\"\")","v":""},{"$f":"IF(Uträkningsmall!$K26<>\"\",Uträkningsmall!K26,\"\")","v":""},{"$f":"IF(Uträkningsmall!L26<>\"\",Uträkningsmall!L26,\"\")","v":""}]
[null,{"$f":"IF(Uträkningsmall!$A27<>\"\",Uträkningsmall!B27&\", \"&Uträkningsmall!C27&\", \"&Uträkningsmall!D27&\", \"&Uträkningsmall!E27&\", \"&Uträkningsmall!G27&\" (Position \"&Uträkningsmall!A27&\")\",\"\")","v":""},null,null,{"$f":"IF(Uträkningsmall!$A27<>\"\",Uträkningsmall!F27,\"\")","v":""},{"$f":"IF(Uträkningsmall!$H27<>\"\",Uträkningsmall!H27,\"\")","v":""},{"$f":"IF(Uträkningsmall!$I27<>\"\",Uträkningsmall!I27,\"\")","v":""},{"$f":"IF(Uträkningsmall!$J27<>\"\",Uträkningsmall!J27,\"\")","v":""},{"$f":"IF(Uträkningsmall!$K27<>\"\",Uträkningsmall!K27,\"\")","v":""},{"$f":"IF(Uträkningsmall!L27<>\"\",Uträkningsmall!L27,\"\")","v":""}]
[null,{"$f":"IF(Uträkningsmall!$A28<>\"\",Uträkningsmall!B28&\", \"&Uträkningsmall!C28&\", \"&Uträkningsmall!D28&\", \"&Uträkningsmall!E28&\", \"&Uträkningsmall!G28&\" (Position \"&Uträkningsmall!A28&\")\",\"\")","v":""},null,null,{"$f":"IF(Uträkningsmall!$A28<>\"\",Uträkningsmall!F28,\"\")","v":""},{"$f":"IF(Uträkningsmall!$H28<>\"\",Uträkningsmall!H28,\"\")","v":""},{"$f":"IF(Uträkningsmall!$I28<>\"\",Uträkningsmall!I28,\"\")","v":""},{"$f":"IF(Uträkningsmall!$J28<>\"\",Uträkningsmall!J28,\"\")","v":""},{"$f":"IF(Uträkningsmall!$K28<>\"\",Uträkningsmall!K28,\"\")","v":""},{"$f":"IF(Uträkningsmall!L28<>\"\",Uträkningsmall!L28,\"\")","v":""}]
[null,{"$f":"IF(Uträkningsmall!$A29<>\"\",Uträkningsmall!B29&\", \"&Uträkningsmall!C29&\", \"&Uträkningsmall!D29&\", \"&Uträkningsmall!E29&\", \"&Uträkningsmall!G29&\" (Position \"&Uträkningsmall!A29&\")\",\"\")","v":""},null,null,{"$f":"IF(Uträkningsmall!$A29<>\"\",Uträkningsmall!F29,\"\")","v":""},{"$f":"IF(Uträkningsmall!$H29<>\"\",Uträkningsmall!H29,\"\")","v":""},{"$f":"IF(Uträkningsmall!$I29<>\"\",Uträkningsmall!I29,\"\")","v":""},{"$f":"IF(Uträkningsmall!$J29<>\"\",Uträkningsmall!J29,\"\")","v":""},{"$f":"IF(Uträkningsmall!$K29<>\"\",Uträkningsmall!K29,\"\")","v":""},{"$f":"IF(Uträkningsmall!L29<>\"\",Uträkningsmall!L29,\"\")","v":""}]
[null,{"$f":"IF(Uträkningsmall!$A30<>\"\",Uträkningsmall!B30&\", \"&Uträkningsmall!C30&\", \"&Uträkningsmall!D30&\", \"&Uträkningsmall!E30&\", \"&Uträkningsmall!G30&\" (Position \"&Uträkningsmall!A30&\")\",\"\")","v":""},null,null,{"$f":"IF(Uträkningsmall!$A30<>\"\",Uträkningsmall!F30,\"\")","v":""},{"$f":"IF(Uträkningsmall!$H30<>\"\",Uträkningsmall!H30,\"\")","v":""},{"$f":"IF(Uträkningsmall!$I30<>\"\",Uträkningsmall!I30,\"\")","v":""},{"$f":"IF(Uträkningsmall!$J30<>\"\",Uträkningsmall!J30,\"\")","v":""},{"$f":"IF(Uträkningsmall!$K30<>\"\",Uträkningsmall!K30,\"\")","v":""},{"$f":"IF(Uträkningsmall!L30<>\"\",Uträkningsmall!L30,\"\")","v":""}]
[null,{"$f":"IF(Uträkningsmall!$A31<>\"\",Uträkningsmall!B31&\", \"&Uträkningsmall!C31&\", \"&Uträkningsmall!D31&\", \"&Uträkningsmall!E31&\", \"&Uträkningsmall!G31&\" (Position \"&Uträkningsmall!A31&\")\",\"\")","v":""},null,null,{"$f":"IF(Uträkningsmall!$A31<>\"\",Uträkningsmall!F31,\"\")","v":""},{"$f":"IF(Uträkningsmall!$H31<>\"\",Uträkningsmall!H31,\"\")","v":""},{"$f":"IF(Uträkningsmall!$I31<>\"\",Uträkningsmall!I31,\"\")","v":""},{"$f":"IF(Uträkningsmall!$J31<>\"\",Uträkningsmall!J31,\"\")","v":""},{"$f":"IF(Uträkningsmall!$K31<>\"\",Uträkningsmall!K31,\"\")","v":""},{"$f":"IF(Uträkningsmall!L31<>\"\",Uträkningsmall!L31,\"\")","v":""}]
[null,{"$f":"IF(Uträkningsmall!$A32<>\"\",Uträkningsmall!B32&\", \"&Uträkningsmall!C32&\", \"&Uträkningsmall!D32&\", \"&Uträkningsmall!E32&\", \"&Uträkningsmall!G32&\" (Position \"&Uträkningsmall!A32&\")\",\"\")","v":""},null,null,{"$f":"IF(Uträkningsmall!$A32<>\"\",Uträkningsmall!F32,\"\")","v":""},{"$f":"IF(Uträkningsmall!$H32<>\"\",Uträkningsmall!H32,\"\")","v":""},{"$f":"IF(Uträkningsmall!$I32<>\"\",Uträkningsmall!I32,\"\")","v":""},{"$f":"IF(Uträkningsmall!$J32<>\"\",Uträkningsmall!J32,\"\")","v":""},{"$f":"IF(Uträkningsmall!$K32<>\"\",Uträkningsmall!K32,\"\")","v":""},{"$f":"IF(Uträkningsmall!L32<>\"\",Uträkningsmall!L32,\"\")","v":""}]

{"sheet":"Omfattning","index":3,"n_rows":21,"n_cols":65,"rows_kept":21,"cut":false,"hidden":false,"merged":[[0,55,0,64],[0,0,0,9],[0,11,0,20],[0,22,0,31],[0,33,0,42],[0,44,0,53]]}
[{"$f":"Kontaktuppgifter!B3","v":"Antalis Aktiebolag"},null,null,null,null,null,null,null,null,null,null,{"$f":"Kontaktuppgifter!C3","v":"Lyreco Sverige AB"},null,null,null,null,null,null,null,null,null,null,{"$f":"Kontaktuppgifter!D3","v":"Procurator AB"},null,null,null,null,null,null,null,"Office Depot",null,null,{"$f":"Kontaktuppgifter!E3","v":"Office Depot Svenska AB"},null,null,null,null,null,null,null,null,null,null,null,null,null,null,null,null,null,null,null,null,null,{"$f":"Kontaktuppgifter!G3","v":0}]
["Position","Benämning","Storlek","Ytvikt (g/m2)","Beskrivning","Hålning","Artikelnamn  ","Artikelnummer   ","Pris per kartong","Leveranstid (Arbetsdagar)",null,"Position","Benämning","Storlek","Ytvikt (g/m2)","Kvalitet","Hålning","Artikelnamn  ","Artikelnummer   ","Pris per kartong","Leveranstid (Arbetsdagar)",null,"Position","Benämning","Storlek","Ytvikt (g/m2)","Kvalitet","Hålning","Artikelnamn  ","Artikelnummer   ","Pris per kartong","Leveranstid (Arbetsdagar)",null,"Position","Benämning","Storlek","Ytvikt (g/m2)","Kvalitet","Hålning","Artikelnamn  ","Artikelnummer   ","Pris per kartong","Leveranstid (Arbetsdagar)",null,"Position","Benämning","Storlek","Ytvikt (g/m2)","Kvalitet","Hålning","Artikelnamn  ","Artikelnummer   ","Pris per kartong","Leveranstid (Arbetsdagar)",null,"Position","Benämning","Storlek","Ytvikt (g/m2)","Kvalitet","Hålning","Artikelnamn  ","Artikelnummer   ","Pris per kartong","Leveranstid (Arbetsdagar)"]
[1,"Vitt kopieringspapper","A4",80,"A-kvalitet, åldringsbeständigt, 500 ark per paket (2500 ark per kartong)","Ohålat","Image Business A4 ohålat 80g i  paket",1238355,185,2,null,1,"Vitt kopieringspapper","A4",80,"A-kvalitet, åldringsbeständigt, 500 ark per paket (2500 ark per kartong)","Ohålat","Kop.ppr LYRECO Standard A4 80g oh 500/FP",253059,232.74999999999997,3,null,1,"Vitt kopieringspapper","A4",80,"A-kvalitet, åldringsbeständigt, 500 ark per paket (2500 ark per kartong)","Ohålat","PlanoDynamic 80g 210x297 R",88032035,229.93,3,null,1,"Vitt kopieringspapper","A4",80,"A-kvalitet, åldringsbeständigt, 500 ark per paket (2500 ark per kartong)","Ohålat","Papper Multicopy A4 80g 500/pk",1157066,204,3]
[2,"Vitt kopieringspapper","A4",80,"A-kvalitet, åldringsbeständigt, 500 ark per paket (2500 ark per kartong)","Hålat","Image Business A4 hålat 80g i  paket",1237235,200,2,null,2,"Vitt kopieringspapper","A4",80,"A-kvalitet, åldringsbeständigt, 500 ark per paket (2500 ark per kartong)","Hålat","Kop.ppr LYRECO Standard A4 80g h 500/FP",3800915,249.5,3,null,2,"Vitt kopieringspapper","A4",80,"A-kvalitet, åldringsbeständigt, 500 ark per paket (2500 ark per kartong)","Hålat","PlanoDynamic 80g 210x297 R SP",88031855,236.14,3,null,2,"Vitt kopieringspapper","A4",80,"A-kvalitet, åldringsbeständigt, 500 ark per paket (2500 ark per kartong)","Hålat","Papper Multicopy A4H 80g 500/p",1157068,207,3]
[3,"Vitt kopieringspapper - storpack","A4",80,"A-kvalitet, åldringsbeständigt, Storpack (2500 lösa ark per kartong)","Ohålat","Image Business A4 ohålat 80g i NSB",1238366,200,2,null,3,"Vitt kopieringspapper - storpack","A4",80,"A-kvalitet, åldringsbeständigt, Storpack (2500 lösa ark per kartong)","Ohålat","Kop.ppr LYRECO Std. A4 80g oh 2500/FP",469167,234.56,3,null,3,"Vitt kopieringspapper - storpack","A4",80,"A-kvalitet, åldringsbeständigt, Storpack (2500 lösa ark per kartong)","Ohålat","PlanoDynamic 80g 210x297 xpressbox",88031854,232.57,3,null,3,"Vitt kopieringspapper - storpack","A4",80,"A-kvalitet, åldringsbeständigt, Storpack (2500 lösa ark per kartong)","Ohålat","Papper Multicopy A4 80g 2500/k",1157071,200,3]
[4,"Vitt kopieringspapper - storpack","A4",80,"A-kvalitet, åldringsbeständigt, Storpack (2500 lösa ark per kartong)","Hålat","Image Business A4 hålat 80g i  NSB",1237246,210,2,null,4,"Vitt kopieringspapper - storpack","A4",80,"A-kvalitet, åldringsbeständigt, Storpack (2500 lösa ark per kartong)","Hålat","Kop.ppr LYRECO Std. A4 80g h XP 2500/FP",3801007,251.26,3,null,4,"Vitt kopieringspapper - storpack","A4",80,"A-kvalitet, åldringsbeständigt, Storpack (2500 lösa ark per kartong)","Hålat","PlanoDynamic 80g 210x297 expressbox SP",88031856,217.07,3,null,4,"Vitt kopieringspapper - storpack","A4",80,"A-kvalitet, åldringsbeständigt, Storpack (2500 lösa ark per kartong)","Hålat","PapperMulticopy A4H 80g 2500/k",1157072,205,3]
[5,"Vitt kopieringspapper","A4",90,"A-kvalitet, åldringsbeständigt, 500 ark per paket (2500 ark per kartong)","Ohålat","Xerox Premier A4 ohålat 90g i paket",1236395,230,2,null,5,"Vitt kopieringspapper","A4",90,"A-kvalitet, åldringsbeständigt, 500 ark per paket (2500 ark per kartong)","Ohålat","Kop.ppr LYRECO Standard A4 90G oh 500/FP",1913683,261.8,3,null,5,"Vitt kopieringspapper","A4",90,"A-kvalitet, åldringsbeständigt, 500 ark per paket (2500 ark per kartong)","Ohålat","PlanoDynamic 90g 210x297 R",88039818,241.33,3,null,5,"Vitt kopieringspapper","A4",90,"A-kvalitet, åldringsbeständigt, 500 ark per paket (2500 ark per kartong)","Ohålat","Papper Multicopy A4 90g 500/fp",1157081,228,3]
[6,"Vitt kopieringspapper","A3",80,"A-kvalitet, åldringsbeständigt, 500 ark per paket (2500 ark per kartong)","Ohålat","Image Business A3 ohålat 80g i  paket",1238381,415,2,null,6,"Vitt kopieringspapper","A3",80,"A-kvalitet, åldringsbeständigt, 500 ark per paket (2500 ark per kartong)","Ohålat","Kop.ppr LYRECO Standard A3 80g oh 500/FP",253068,479.65000000000003,3,null,6,"Vitt kopieringspapper","A3",80,"A-kvalitet, åldringsbeständigt, 500 ark per paket (2500 ark per kartong)","Ohålat","PlanoDynamic 80g 420x297 R",88009905,442.4,3,null,6,"Vitt kopieringspapper","A3",80,"A-kvalitet, åldringsbeständigt, 500 ark per paket (2500 ark per kartong)","Ohålat","Papper Multicopy A3 80g 500/pk",1157073,412,3]
[7,"Vitt kopieringspapper","A3",90,"A-kvalitet, åldringsbeständigt, 500 ark per paket (2500 ark per kartong)","Ohålat","Xerox Premier A3 ohålat 90g i paket",1236384,458,2,null,7,"Vitt kopieringspapper","A3",90,"A-kvalitet, åldringsbeständigt, 500 ark per paket (2500 ark per kartong)","Ohålat","Kop.ppr MULTICOPY A3 90g oh 500/FP",101405,541.30000000000007,3,null,7,"Vitt kopieringspapper","A3",90,"A-kvalitet, åldringsbeständigt, 500 ark per paket (2500 ark per kartong)","Ohålat","PlanoDynamic 90g 420x297 R",88039819,533.87,3,null,7,"Vitt kopieringspapper","A3",90,"A-kvalitet, åldringsbeständigt, 500 ark per paket (2500 ark per kartong)","Ohålat","Papper Multicopy A3 90g 500/pk",1157085,459,3]
[8,"Papper för fyrfärgskopiering","A4",90,"För digitala färgutskrifter och kopiering, motsvarande \"4CC\", åldringsbeständigt, 500 ark per paket (2500 ark per kartong)","Ohålat","Xerox ColorPrint A4 ohålat 90g i paket",1236233,310,2,null,8,"Papper för fyrfärgskopiering","A4",90,"För digitala färgutskrifter och kopiering, motsvarande \"4CC\", åldringsbeständigt, 500 ark per paket (2500 ark per kartong)","Ohålat","Kop.ppr DCP 1833 A4 90g oh 500/FP",2526534,288.60000000000002,3,null,8,"Papper för fyrfärgskopiering","A4",90,"För digitala färgutskrifter och kopiering, motsvarande \"4CC\", åldringsbeständigt, 500 ark per paket (2500 ark per kartong)","Ohålat","Color Copy 90g 210x297 R",88008621,378.07,3,null,8,"Papper för fyrfärgskopiering","A4",90,"För digitala färgutskrifter och kopiering, motsvarande \"4CC\", åldringsbeständigt, 500 ark per paket (2500 ark per kartong)","Ohålat","Papper HP Color A4 90g 500/fp",1049200,295,3]
[9,"Färgat papper, gul nyans","A4",80,"A-kvalitet, färg: svag/mellansvag gul nyans, 500 ark per paket (2500 ark per kartong)","Ohålat","Image Coloraction, gul A4 ohålat 80g i paket",1619041,310,2,null,9,"Färgat papper, gul nyans","A4",80,"A-kvalitet, färg: svag/mellansvag gul nyans, 500 ark per paket (2500 ark per kartong)","Ohålat","Kop.ppr TROPHEÉ A4 80g oh gul 500/FP",224103,304.20000000000005,3,null,9,"Färgat papper, gul nyans","A4",80,"A-kvalitet, färg: svag/mellansvag gul nyans, 500 ark per paket (2500 ark per kartong)","Ohålat","Rainbow 80g 210x297 R light yellow/12",88042297,365.21,3,null,9,"Färgat papper, gul nyans","A4",80,"A-kvalitet, färg: svag/mellansvag gul nyans, 500 ark per paket (2500 ark per kartong)","Ohålat","Rey Adagio A4 80g canary 500/fp",1610449,255,3]
[10,"Färgat papper, blå nyans","A4",80,"A-kvalitet, färg: svag/mellansvag blå nyans, 500 ark per paket (2500 ark per kartong)","Ohålat ","Image Coloraction, blå A4 ohålat 80g i paket",1619100,310,2,null,10,"Färgat papper, blå nyans","A4",80,"A-kvalitet, färg: svag/mellansvag blå nyans, 500 ark per paket (2500 ark per kartong)","Ohålat ","Kop.ppr TROPHEÉ A4 80g oh aquablå 500/FP",224099,304.20000000000005,3,null,10,"Färgat papper, blå nyans","A4",80,"A-kvalitet, färg: svag/mellansvag blå nyans, 500 ark per paket (2500 ark per kartong)","Ohålat ","Rainbow 80g 210x297 R light blue/82",88042695,372.64,3,null,10,"Färgat papper, blå nyans","A4",80,"A-kvalitet, färg: svag/mellansvag blå nyans, 500 ark per paket (2500 ark per kartong)","Ohålat ","Rey Adagio A4 80g blue 500/fp",1610401,255,3]
[11,"Färgat papper, grön nyans","A4",80,"A-kvalitet, färg: svag/mellansvag grön nyans, 500 ark per paket (2500 ark per kartong)","Ohålat","Image Coloraction, grön A4 ohålat 80g i paket",1619096,310,2,null,11,"Färgat papper, grön nyans","A4",80,"A-kvalitet, färg: svag/mellansvag grön nyans, 500 ark per paket (2500 ark per kartong)","Ohålat","Kop.ppr TROPHEÉ A4 80g oh vårgrön 500/FP",224116,304.20000000000005,3,null,11,"Färgat papper, grön nyans","A4",80,"A-kvalitet, färg: svag/mellansvag grön nyans, 500 ark per paket (2500 ark per kartong)","Ohålat","Rainbow 80g 210x297 R light green/72",88042585,372.64,3,null,11,"Färgat papper, grön nyans","A4",80,"A-kvalitet, färg: svag/mellansvag grön nyans, 500 ark per paket (2500 ark per kartong)","Ohålat","Rey Adagio A4 80g pistachio 500/fp",1610485,255,3]
[12,"Färgat papper, rosa nyans","A4",80,"A-kvalitet, färg: svag/mellansvag rosa nyans, 500 ark per paket (2500 ark per kartong)","Ohålat","Image Coloraction, rosa A4 ohålat 80g i paket",1619063,310,2,null,12,"Färgat papper, rosa nyans","A4",80,"A-kvalitet, färg: svag/mellansvag rosa nyans, 500 ark per paket (2500 ark per kartong)","Ohålat","Kop.ppr TROPHEÉ A4 80g oh laxrosa 500/FP",224114,273.45,3,null,12,"Färgat papper, rosa nyans","A4",80,"A-kvalitet, färg: svag/mellansvag rosa nyans, 500 ark per paket (2500 ark per kartong)","Ohålat","Rainbow 80g 210x297 R light pink/54",88042519,365.21,3,null,12,"Färgat papper, rosa nyans","A4",80,"A-kvalitet, färg: svag/mellansvag rosa nyans, 500 ark per paket (2500 ark per kartong)","Ohålat","Rey Adagio A4 80g candy 500/fp",1610405,255,3]
[13,"Färgat papper, röd nyans","A4",80,"A-kvalitet, färg: röd nyans, 500 ark per paket (2500 ark per kartong)","Ohålat","Image Coloraction, röd A4 ohålat 80g i paket",1619181,310,2,null,13,"Färgat papper, röd nyans","A4",80,"A-kvalitet, färg: röd nyans, 500 ark per paket (2500 ark per kartong)","Ohålat","Kop.ppr TROPHEÉ A4 80g oh röd 500/FP",224113,304.20000000000005,3,null,13,"Färgat papper, röd nyans","A4",80,"A-kvalitet, färg: röd nyans, 500 ark per paket (2500 ark per kartong)","Ohålat","Rainbow 80g 210x297 R intens red/28",88042475,426.29,3,null,13,"Färgat papper, röd nyans","A4",80,"A-kvalitet, färg: röd nyans, 500 ark per paket (2500 ark per kartong)","Ohålat","Rey Adagio A4 80g red 500/fp",1610422,300,3]
[14,"Färgat papper, gul nyans","A3",80,"A-kvalitet, färg: svag/mellansvag gul nyans, 500 ark per paket (2500 ark per kartong)","Ohålat","Image Coloraction,gul A4 ohålat 80g i paket",1619343,620,2,null,14,"Färgat papper, gul nyans","A3",80,"A-kvalitet, färg: svag/mellansvag gul nyans, 500 ark per paket (2500 ark per kartong)","Ohålat","Kop.ppr TROPHEÉ A3 80g oh ljusgul 500/FP",224085,530.20000000000005,3,null,14,"Färgat papper, gul nyans","A3",80,"A-kvalitet, färg: svag/mellansvag gul nyans, 500 ark per paket (2500 ark per kartong)","Ohålat","Rainbow 80g 420x297 R light yellow/12",88042300,409.86,3,null,14,"Färgat papper, gul nyans","A3",80,"A-kvalitet, färg: svag/mellansvag gul nyans, 500 ark per paket (2500 ark per kartong)","Ohålat","Rey Adagio A3 80g canary 500/fp",1610349,545,3]
[15,"Färgat papper, blå nyans","A3",80,"A-kvalitet, färg: svag/mellansvag blå nyans, 500 ark per paket (2500 ark per kartong)","Ohålat ","Image Coloraction, blå A4 ohålat 80g i paket",1619376,620,2,null,15,"Färgat papper, blå nyans","A3",80,"A-kvalitet, färg: svag/mellansvag blå nyans, 500 ark per paket (2500 ark per kartong)","Ohålat ","Kop.ppr TROPHEÉ A3 80g oh ljusblå 500/FP",224084,546.45000000000005,3,null,15,"Färgat papper, blå nyans","A3",80,"A-kvalitet, färg: svag/mellansvag blå nyans, 500 ark per paket (2500 ark per kartong)","Ohålat ","Rainbow 80g 420x297 R light blue/82",88042698,409.86,3,null,15,"Färgat papper, blå nyans","A3",80,"A-kvalitet, färg: svag/mellansvag blå nyans, 500 ark per paket (2500 ark per kartong)","Ohålat ","Rey Adagio A3 80g blue 500/fp",1610301,545,3]
[16,"Färgat papper, grön nyans","A3",80,"A-kvalitet, färg: svag/mellansvag grön nyans, 500 ark per paket (2500 ark per kartong)","Ohålat","Image Coloraction, grön A3 ohålat 80g i paket",1619365,620,2,null,16,"Färgat papper, grön nyans","A3",80,"A-kvalitet, färg: svag/mellansvag grön nyans, 500 ark per paket (2500 ark per kartong)","Ohålat","Kop.ppr TROPHEÉ A3 80g oh mintgrö 500/FP",224086,530.20000000000005,3,null,16,"Färgat papper, grön nyans","A3",80,"A-kvalitet, färg: svag/mellansvag grön nyans, 500 ark per paket (2500 ark per kartong)","Ohålat","Rainbow 80g 420x297 R light green/72",88042588,786,3,null,16,"Färgat papper, grön nyans","A3",80,"A-kvalitet, färg: svag/mellansvag grön nyans, 500 ark per paket (2500 ark per kartong)","Ohålat","Rey Adagio A3 80g green 500/fp",1610309,545,3]
[17,"Färgat papper, röd nyans","A3",80,"A-kvalitet, färg: röd nyans, 500 ark per paket (2500 ark per kartong)","Ohålat","Image Coloraction, röd A3 ohålat 80g i paket",1619391,620,2,null,17,"Färgat papper, röd nyans","A3",80,"A-kvalitet, färg: röd nyans, 500 ark per paket (2500 ark per kartong)","Ohålat","Kop.ppr TROPHEÉ A3 80g oh röd 500/FP",224087,607.85,3,null,17,"Färgat papper, röd nyans","A3",80,"A-kvalitet, färg: röd nyans, 500 ark per paket (2500 ark per kartong)","Ohålat","Rainbow 80g 420x297 R intens red/28",88042478,750,3,null,17,"Färgat papper, röd nyans","A3",80,"A-kvalitet, färg: röd nyans, 500 ark per paket (2500 ark per kartong)","Ohålat","Rey Adagio A3 80g red 500/fp",1610322,600,3]
[18,"Arkivbeständigt papper","A4",80,"Arkivbeständigt, 500 ark per paket (2500 ark per kartong)","Ohålat","Prime Arcival A4 80g",1073870,670,2,null,18,"Arkivbeständigt papper","A4",80,"Arkivbeständigt, 500 ark per paket (2500 ark per kartong)","Ohålat","Arkivpapper PRIME A4 80g oh 500/FP",122639,1493.3000000000002,3,null,18,"Arkivbeständigt papper","A4",80,"Arkivbeständigt, 500 ark per paket (2500 ark per kartong)","Ohålat","Svenskt Arkiv 80g 210x297 R",88011310,750,3,null,18,"Arkivbeständigt papper","A4",80,"Arkivbeständigt, 500 ark per paket (2500 ark per kartong)","Ohålat","Prime Archival A4 80g 500/fp",1290705,1645,3]
[19,"Arkivbeständigt papper","A4",100,"Arkivbeständigt, 500 ark per paket (2500 ark per kartong)","Ohålat","Prime Arcival A4 100g",1071335,837,2,null,19,"Arkivbeständigt papper","A4",100,"Arkivbeständigt, 500 ark per paket (2500 ark per kartong)","Ohålat","Arkivpapper PRIME A4 100g oh 500/FP",122638,1855.65,3,null,19,"Arkivbeständigt papper","A4",100,"Arkivbeständigt, 500 ark per paket (2500 ark per kartong)","Ohålat","Svenskt Arkiv 100g 210x297 R",88011390,750,3,null,19,"Arkivbeständigt papper","A4",100,"Arkivbeständigt, 500 ark per paket (2500 ark per kartong)","Ohålat","Prime Archival A4 100g 500/fp",1290706,1995,3]

{"sheet":"Varukorg","index":4,"n_rows":24,"n_cols":9,"rows_kept":24,"cut":false,"hidden":true,"merged":[[0,0,0,1],[0,2,0,3],[1,0,1,1],[3,6,3,8]]}
["Kontorspapper",null,"Anbudsgivarens namn:"]
["Dnr: 23.2-10936-2021"]
[]
["Produktinformation Anbudsområde A, upp till en hel pall",null,null,null,null,null,"Kolumner G till I ska fyllas i av anbudsgivaren. Samtliga varor i varukorgen ska vara prissatta för att anbudet ska accepteras."]
["Position","Varubenämning","Storlek","Ytvikt (g/m2)","Varubeskrivning","Hålning","Artikelnamn\nI denna kolumn anges varans artikelnamn","Artikelnummer\nI denna kolumn anges varans artikelnummer","Offererat pris per kartong (SEK)"]
[1,"Vitt kopieringspapper","A4",80,"A-kvalitet, åldringsbeständigt, 500 ark per paket (5 paket, 2500 ark per kartong)","Ohålat"]
[2,"Vitt kopieringspapper","A4",80,"A-kvalitet, åldringsbeständigt, 500 ark per paket (5 paket, 2500 ark per kartong)","Hålat"]
[3,"Vitt kopieringspapper - storpack","A4",80,"A-kvalitet, åldringsbeständigt, Storpack (2500 lösa ark per kartong)","Ohålat"]
[4,"Vitt kopieringspapper - storpack","A4",80,"A-kvalitet, åldringsbeständigt, Storpack (2500 lösa ark per kartong)","Hålat"]
[5,"Vitt kopieringspapper","A4",90,"A-kvalitet, åldringsbeständigt, 500 ark per paket (5 paket, 2500 ark per kartong)","Ohålat"]
[6,"Vitt kopieringspapper","A3",80,"A-kvalitet, åldringsbeständigt, 500 ark per paket (5 paket, 2500 ark per kartong)","Ohålat"]
[7,"Vitt kopieringspapper","A3",90,"A-kvalitet, åldringsbeständigt, 500 ark per paket (5 paket, 2500 ark per kartong)","Ohålat"]
[8,"Papper för fyrfärgskopiering","A4",90,"För digitala färgutskrifter och kopiering, motsvarande \"4CC\", åldringsbeständigt, 500 ark per paket (5 paket, 2500 ark per kartong)","Ohålat"]
[9,"Färgat papper, gul nyans","A4",80,"A-kvalitet, färg: svag/mellansvag gul nyans, 500 ark per paket (5 paket, 2500 ark per kartong)","Ohålat"]
[10,"Färgat papper, blå nyans","A4",80,"A-kvalitet, färg: svag/mellansvag blå nyans, 500 ark per paket (5 paket, 2500 ark per kartong)","Ohålat "]
[11,"Färgat papper, grön nyans","A4",80,"A-kvalitet, färg: svag/mellansvag grön nyans, 500 ark per paket (5 paket, 2500 ark per kartong)","Ohålat"]
[12,"Färgat papper, rosa nyans","A4",80,"A-kvalitet, färg: svag/mellansvag rosa nyans, 500 ark per paket (5 paket, 2500 ark per kartong)","Ohålat"]
[13,"Färgat papper, röd nyans","A4",80,"A-kvalitet, färg: röd nyans, 500 ark per paket (5 paket, 2500 ark per kartong)","Ohålat"]
[14,"Färgat papper, gul nyans","A3",80,"A-kvalitet, färg: svag/mellansvag gul nyans, 500 ark per paket (5 paket, 2500 ark per kartong)","Ohålat"]
[15,"Färgat papper, blå nyans","A3",80,"A-kvalitet, färg: svag/mellansvag blå nyans, 500 ark per paket (5 paket, 2500 ark per kartong)","Ohålat "]
[16,"Färgat papper, grön nyans","A3",80,"A-kvalitet, färg: svag/mellansvag grön nyans, 500 ark per paket (5 paket, 2500 ark per kartong)","Ohålat"]
[17,"Färgat papper, röd nyans","A3",80,"A-kvalitet, färg: röd nyans, 500 ark per paket (5 paket, 2500 ark per kartong)","Ohålat"]
[18,"Arkivbeständigt papper","A4",80,"Arkivbeständigt, 500 ark per paket (5 paket, 2500 ark per kartong)","Ohålat"]
[19,"Arkivbeständigt papper","A4",100,"Arkivbeständigt, 500 ark per paket (5 paket, 2500 ark per kartong)","Ohålat"]

{"sheet":"Funktioner","index":5,"n_rows":164,"n_cols":79,"rows_kept":164,"cut":false,"hidden":true,"merged":[[0,68,0,78],[0,44,0,54],[0,56,0,66],[32,7,34,7],[32,20,34,20],[0,20,0,30],[0,8,0,18],[0,32,0,42]]}
[null,null,null,null,null,null,null,null,{"$f":"Omfattning!A1","v":"Antalis Aktiebolag"},null,null,null,null,null,null,null,null,null,null,null,{"$f":"Omfattning!L1","v":"Lyreco Sverige AB"},null,null,null,null,null,null,null,null,null,null,null,{"$f":"Omfattning!W1","v":"Procurator AB"},null,null,null,null,null,null,null,null,null,null,null,{"$f":"Omfattning!AH1","v":"Office Depot Svenska AB"},null,null,null,null,null,null,null,null,null,null,null,{"$f":"Omfattning!AS1","v":0},null,null,null,null,null,null,null,null,null,null,null,{"$f":"Omfattning!BD1","v":0}]
[null,null,"Varukorg","Uträkningsmall",null,null,null,"Position","Benämning","Storlek","Ytvikt (g/m2)","Kvalitet","Hålning","Artikelnamn  ","Artikelnummer   ","Pris per kartong","Leveranstid (Arbetsdagar)","Totalpris","Leveransstatus",null,"Benämning","Storlek","Ytvikt (g/m2)","Kvalitet","Hålning","Artikelnamn  ","Artikelnummer   ","Pris per kartong","Leveranstid (Arbetsdagar)","Totalpris","Leveransstatus",null,"Benämning","Storlek","Ytvikt (g/m2)","Kvalitet","Hålning","Artikelnamn  ","Artikelnummer   ","Pris per kartong","Leveranstid (Arbetsdagar)","Totalpris","Leveransstatus",null,"Benämning","Storlek","Ytvikt (g/m2)","Kvalitet","Hålning","Artikelnamn  ","Artikelnummer   ","Pris per kartong","Leveranstid (Arbetsdagar)","Totalpris","Leveransstatus",null,"Benämning","Storlek","Ytvikt (g/m2)","Kvalitet","Hålning","Artikelnamn  ","Artikelnummer   ","Pris per kartong","Leveranstid (Arbetsdagar)","Totalpris","Leveransstatus",null,"Benämning","Storlek","Ytvikt (g/m2)","Kvalitet","Hålning","Artikelnamn  ","Artikelnummer   ","Pris per kartong","Leveranstid (Arbetsdagar)","Totalpris","Leveransstatus"]
[{"$f":"\"Position\"&Uträkningsmall!$A13","v":"Position"},{"$f":"IF(Uträkningsmall!$F13=\"\",\"\",IF(AND(Uträkningsmall!$A13=15,OR(Uträkningsmall!$E13=\"\",Uträkningsmall!$F13=\"\")),1,IF(AND(Uträkningsmall!$A13=16,OR(Uträkningsmall!$E13=\"\",Uträkningsmall!$F13=\"\")),1,IF(AND(Uträkningsmall!$A13=17,OR(Uträkningsmall!$E13=\"\",Uträkningsmall!$F13=\"\")),1,IF(AND(Uträkningsmall!$A13=19,OR(Uträkningsmall!$E13=\"\",Uträkningsmall!$F13=\"\")),1,IF(AND(Uträkningsmall!$A13=20,OR(Uträkningsmall!$E13=\"\",Uträkningsmall!$F13=\"\")),1,IF(AND(Uträkningsmall!$A13=21,OR(Uträkningsmall!$E13=\"\",Uträkningsmall!$F13=\"\")),1,IF(AND(Uträkningsmall!$A13=22,OR(Uträkningsmall!$E13=\"\",Uträkningsmall!$F13=\"\")),1,IF(AND(Uträkningsmall!$A13=23,OR(Uträkningsmall!$E13=\"\",Uträkningsmall!$F13=\"\")),1,IF(AND(Uträkningsmall!$A13=24,OR(Uträkningsmall!$E13=\"\",Uträkningsmall!$F13=\"\")),1,IF(AND(Uträkningsmall!$A13=25,OR(Uträkningsmall!$E13=\"\",Uträkningsmall!$F13=\"\")),1,IF(AND(Uträkningsmall!$A13=26,OR(Uträkningsmall!$E13=\"\",Uträkningsmall!$F13=\"\")),1,IF(AND(Uträkningsmall!$A13=27,OR(Uträkningsmall!$E13=\"\",Uträkningsmall!$F13=\"\")),1,IF(AND(Uträkningsmall!$A13=28,OR(Uträkningsmall!$E13=\"\",Uträkningsmall!$F13=\"\")),1,IF(AND(Uträkningsmall!$A13=29,OR(Uträkningsmall!$E13=\"\",Uträkningsmall!$F13=\"\")),1,IF(AND(Uträkningsmall!$A13=30,OR(Uträkningsmall!$E13=\"\",Uträkningsmall!$F13=\"\")),1,IF(AND(Uträkningsmall!$A13=39,OR(Uträkningsmall!$E13=\"\",Uträkningsmall!$F13=\"\")),1,IF(AND(Uträkningsmall!$A13=40,OR(Uträkningsmall!$E13=\"\",Uträkningsmall!$F13=\"\")),1,IF(AND(Uträkningsmall!$A13=41,OR(Uträkningsmall!$E13=\"\",Uträkningsmall!$F13=\"\")),1,IF(AND(Uträkningsmall!$A13=42,OR(Uträkningsmall!$E13=\"\",Uträkningsmall!$F13=\"\")),1,0))))))))))))))))))))","v":""},{"$f":"Funktioner!B146&Funktioner!C146&\", \"&Funktioner!D146&\"g\"&Funktioner!E146&Funktioner!F146","v":"Vitt kopieringspapperA4, 80gA-kvalitet, åldringsbeständigtOhålat"},{"$f":"Uträkningsmall!B13&Uträkningsmall!C13&Uträkningsmall!D13&Uträkningsmall!E13","v":""},null,{"$f":"IF($C$40=$AKY$39,IF($AKY40=\"\",\"\",$AKY40),IF($C$40=$AKZ$39,IF($AKZ40=\"\",\"\",$AKZ40),IF($C$40=$ALA$39,IF($ALA40=\"\",\"\",$ALA40),IF($C$40=$ALB$39,IF($ALB40=\"\",\"\",$ALB40),IF($C$40=$ALC$39,IF($ALC40=\"\",\"\",$ALC40),IF($C$40=$ALD$39,IF($ALD40=\"\",\"\",$ALD40),IF($C$40=$ALE$39,IF($ALE40=\"\",\"\",$ALE40),IF($C$40=$ALF$39,IF($ALF40=\"\",\"\",$ALF40),IF($C$40=$ALG$39,IF($ALG40=\"\",\"\",$ALG40),IF($C$40=$ALH$39,IF($ALH40=\"\",\"\",$ALH40),IF($C$40=$ALI$39,IF($ALI40=\"\",\"\",$ALI40),IF($C$40=$ALJ$39,IF($ALJ40=\"\",\"\",$ALJ40),IF($C$40=$ALK$39,IF($ALK40=\"\",\"\",$ALK40),IF($C$40=$ALL$39,IF($ALL40=\"\",\"\",$ALL40),IF($C$40=$ALM$39,IF($ALM40=\"\",\"\",$ALM40),IF($C$40=$ALN$39,IF($ALN40=\"\",\"\",$ALN40),IF($C$40=$ALO$39,IF($ALO40=\"\",\"\",$ALO40),IF($C$40=$ALP$39,IF($ALP40=\"\",\"\",$ALP40),IF($C$40=$ALQ$39,IF($ALQ40=\"\",\"\",$ALQ40),IF($C$40=$ALR$39,IF($ALR40=\"\",\"\",$ALR40),IF($C$40=$ALS$39,IF($ALS40=\"\",\"\",$ALS40),IF($C$40=$ALT$39,IF($ALT40=\"\",\"\",$ALT40),IF($C$40=$ALU$39,IF($ALU40=\"\",\"\",$ALU40),IF($C$40=$ALV$39,IF($ALV40=\"\",\"\",$ALV40),IF($C$40=$ALW$39,IF($ALW40=\"\",\"\",$ALW40),IF($C$40=$ALX$39,IF($ALX40=\"\",\"\",$ALX40),IF($C$40=$ALY$39,IF($ALY40=\"\",\"\",$ALY40),IF($C$40=$ALZ$39,IF($ALZ40=\"\",\"\",$ALZ40),IF($C$40=$AMA$39,IF($AMA40=\"\",\"\",$AMA40),IF($C$40=$AMB$39,IF($AMB40=\"\",\"\",$AMB40),IF($C$40=$AMC$39,IF($AMC40=\"\",\"\",$AMC40),IF($C$40=$AMD$39,IF($AMD40=\"\",\"\",$AMD40),IF($C$40=$AME$39,IF($AME40=\"\",\"\",$AME40),IF($C$40=$AMF$39,IF($AMF40=\"\",\"\",$AMF40),IF($C$40=$AMG$39,IF($AMG40=\"\",\"\",$AMG40),IF($C$40=$AMH$39,IF($AMH40=\"\",\"\",$AMH40),IF($C$40=$AMI$39,IF($AMI40=\"\",\"\",$AMI40),IF($C$40=$AMJ$39,IF($AMJ40=\"\",\"\",$AMJ40),IF($C$40=$AMK$39,IF($AMK40=\"\",\"\",$AMK40),IF($C$40=$AML$39,IF($AML40=\"\",\"\",$AML40),IF($C$40=$AMM$39,IF($AMM40=\"\",\"\",$AMM40),IF($C$40=$AMN$39,IF($AMN40=\"\",\"\",$AMN40),IF($C$40=$AMO$39,IF($AMO40=\"\",\"\",$AMO40),IF($C$40=$AMP$39,IF($AMP40=\"\",\"\",$AMP40),IF($C$40=$AMQ$39,IF($AMQ40=\"\",\"\",$AMQ40),IF($C$40=$AMR$39,IF($AMR40=\"\",\"\",$AMR40),IF($C$40=$AMS$39,IF($AMS40=\"\",\"\",$AMS40),IF($C$40=$AMT$39,IF($AMT40=\"\",\"\",$AMT40),IF($C$40=$AMU$39,IF($AMU40=\"\",\"\",$AMU40),IF($C$40=$AMV$39,IF($AMV40=\"\",\"\",$AMV40),IF($C$40=$AMW$39,IF($AMW40=\"\",\"\",$AMW40),IF($C$40=$AMX$39,IF($AMX40=\"\",\"\",$AMX40),IF($C$40=$AMY$39,IF($AMY40=\"\",\"\",$AMY40),IF($C$40=$AMZ$39,IF($AMZ40=\"\",\"\",$AMZ40),IF($C$40=$ANA$39,IF($ANA40=\"\",\"\",$ANA40),IF($C$40=$ANB$39,IF($ANB40=\"\",\"\",$ANB40),IF($C$40=$ANC$39,IF($ANC40=\"\",\"\",$ANC40),IF($C$40=$AND$39,IF($AND40=\"\",\"\",$AND40),\"\"))))))))))))))))))))))))))))))))))))))))))))))))))))))))))","v":""},null,{"$f":"Uträkningsmall!$A13","v":""},{"$f":"IFERROR(INDEX(Omfattning!$B$3:$J$50,MATCH($H3,Funktioner!$A$30:$A$77,0),MATCH(I$2,Omfattning!$B$2:$J$2,0)),\"\")","v":0},{"$f":"IFERROR(INDEX(Omfattning!$B$3:$J$50,MATCH($H3,Funktioner!$A$30:$A$77,0),MATCH(J$2,Omfattning!$B$2:$J$2,0)),\"\")","v":0},{"$f":"IFERROR(INDEX(Omfattning!$B$3:$J$50,MATCH($H3,Funktioner!$A$30:$A$77,0),MATCH(K$2,Omfattning!$B$2:$J$2,0)),\"\")","v":0},{"$f":"IFERROR(INDEX(Omfattning!$B$3:$J$50,MATCH($H3,Funktioner!$A$30:$A$77,0),MATCH(L$2,Omfattning!$B$2:$J$2,0)),\"\")","v":""},{"$f":"IFERROR(INDEX(Omfattning!$B$3:$J$50,MATCH($H3,Funktioner!$A$30:$A$77,0),MATCH(M$2,Omfattning!$B$2:$J$2,0)),\"\")","v":0},{"$f":"IFERROR(INDEX(Omfattning!$B$3:$J$50,MATCH($H3,Funktioner!$A$30:$A$77,0),MATCH(N$2,Omfattning!$B$2:$J$2,0)),\"\")","v":0},{"$f":"IFERROR(INDEX(Omfattning!$B$3:$J$50,MATCH($H3,Funktioner!$A$30:$A$77,0),MATCH(O$2,Omfattning!$B$2:$J$2,0)),\"\")","v":0},{"$f":"IFERROR(INDEX(Omfattning!$B$3:$J$50,MATCH($H3,Funktioner!$A$30:$A$77,0),MATCH(P$2,Omfattning!$B$2:$J$2,0)),\"\")","v":0},{"$f":"IFERROR(INDEX(Omfattning!$B$3:$J$50,MATCH($H3,Funktioner!$A$30:$A$77,0),MATCH(Q$2,Omfattning!$B$2:$J$2,0)),\"\")","v":0},{"$f":"IF(Uträkningsmall!$F13=\"\",\"\",IF(S3=\"Kan ej leverera\",240000000,IF(ISNUMBER(P3),P3*Uträkningsmall!$F13,\"\")))","v":""},{"$f":"IF($H3=\"\",\"\",IF(OR(Q3=\"\",Q3=0),\"Kan ej leverera\",\"\"))","v":""},null,{"$f":"IFERROR(INDEX(Omfattning!$M$3:$U$50,MATCH($H3,Funktioner!$B$30:$B$77,0),MATCH(U$2,Omfattning!$M$2:$U$2,0)),\"\")","v":0},{"$f":"IFERROR(INDEX(Omfattning!$M$3:$U$50,MATCH($H3,Funktioner!$B$30:$B$77,0),MATCH(V$2,Omfattning!$M$2:$U$2,0)),\"\")","v":0},{"$f":"IFERROR(INDEX(Omfattning!$M$3:$U$50,MATCH($H3,Funktioner!$B$30:$B$77,0),MATCH(W$2,Omfattning!$M$2:$U$2,0)),\"\")","v":0},{"$f":"IFERROR(INDEX(Omfattning!$M$3:$U$50,MATCH($H3,Funktioner!$B$30:$B$77,0),MATCH(X$2,Omfattning!$M$2:$U$2,0)),\"\")","v":0},{"$f":"IFERROR(INDEX(Omfattning!$M$3:$U$50,MATCH($H3,Funktioner!$B$30:$B$77,0),MATCH(Y$2,Omfattning!$M$2:$U$2,0)),\"\")","v":0},{"$f":"IFERROR(INDEX(Omfattning!$M$3:$U$50,MATCH($H3,Funktioner!$B$30:$B$77,0),MATCH(Z$2,Omfattning!$M$2:$U$2,0)),\"\")","v":0},{"$f":"IFERROR(INDEX(Omfattning!$M$3:$U$50,MATCH($H3,Funktioner!$B$30:$B$77,0),MATCH(AA$2,Omfattning!$M$2:$U$2,0)),\"\")","v":0},{"$f":"IFERROR(INDEX(Omfattning!$M$3:$U$50,MATCH($H3,Funktioner!$B$30:$B$77,0),MATCH(AB$2,Omfattning!$M$2:$U$2,0)),\"\")","v":0},{"$f":"IFERROR(INDEX(Omfattning!$M$3:$U$50,MATCH($H3,Funktioner!$B$30:$B$77,0),MATCH(AC$2,Omfattning!$M$2:$U$2,0)),\"\")","v":0},{"$f":"IF(Uträkningsmall!$F13=\"\",\"\",IF(AE3=\"Kan ej leverera\",240000000,IF(ISNUMBER(AB3),AB3*Uträkningsmall!$F13,\"\")))","v":""},{"$f":"IF($H3=\"\",\"\",IF(OR(AC3=\"\",AC3=0),\"Kan ej leverera\",\"\"))","v":""},null,{"$f":"IFERROR(INDEX(Omfattning!$X$3:$AF$50,MATCH($H3,Funktioner!$C$30:$C$77,0),MATCH(AG$2,Omfattning!$X$2:$AF$2,0)),\"\")","v":0},{"$f":"IFERROR(INDEX(Omfattning!$X$3:$AF$50,MATCH($H3,Funktioner!$C$30:$C$77,0),MATCH(AH$2,Omfattning!$X$2:$AF$2,0)),\"\")","v":0},{"$f":"IFERROR(INDEX(Omfattning!$X$3:$AF$50,MATCH($H3,Funktioner!$C$30:$C$77,0),MATCH(AI$2,Omfattning!$X$2:$AF$2,0)),\"\")","v":0},{"$f":"IFERROR(INDEX(Omfattning!$X$3:$AF$50,MATCH($H3,Funktioner!$C$30:$C$77,0),MATCH(AJ$2,Omfattning!$X$2:$AF$2,0)),\"\")","v":0},{"$f":"IFERROR(INDEX(Omfattning!$X$3:$AF$50,MATCH($H3,Funktioner!$C$30:$C$77,0),MATCH(AK$2,Omfattning!$X$2:$AF$2,0)),\"\")","v":0},{"$f":"IFERROR(INDEX(Omfattning!$X$3:$AF$50,MATCH($H3,Funktioner!$C$30:$C$77,0),MATCH(AL$2,Omfattning!$X$2:$AF$2,0)),\"\")","v":0},{"$f":"IFERROR(INDEX(Omfattning!$X$3:$AF$50,MATCH($H3,Funktioner!$C$30:$C$77,0),MATCH(AM$2,Omfattning!$X$2:$AF$2,0)),\"\")","v":0},{"$f":"IFERROR(INDEX(Omfattning!$X$3:$AF$50,MATCH($H3,Funktioner!$C$30:$C$77,0),MATCH(AN$2,Omfattning!$X$2:$AF$2,0)),\"\")","v":0},{"$f":"IFERROR(INDEX(Omfattning!$X$3:$AF$50,MATCH($H3,Funktioner!$C$30:$C$77,0),MATCH(AO$2,Omfattning!$X$2:$AF$2,0)),\"\")","v":0},{"$f":"IF(Uträkningsmall!$F13=\"\",\"\",IF(AQ3=\"Kan ej leverera\",240000000,IF(ISNUMBER(AN3),AN3*Uträkningsmall!$F13,\"\")))","v":""},{"$f":"IF($H3=\"\",\"\",IF(OR(AO3=\"\",AO3=0),\"Kan ej leverera\",\"\"))","v":""},null,{"$f":"IFERROR(INDEX(Omfattning!$AI$3:$AQ$50,MATCH($H3,Funktioner!$D$30:$D$77,0),MATCH(AS$2,Omfattning!$AI$2:$AQ$2,0)),\"\")","v":0},{"$f":"IFERROR(INDEX(Omfattning!$AI$3:$AQ$50,MATCH($H3,Funktioner!$D$30:$D$77,0),MATCH(AT$2,Omfattning!$AI$2:$AQ$2,0)),\"\")","v":0},{"$f":"IFERROR(INDEX(Omfattning!$AI$3:$AQ$50,MATCH($H3,Funktioner!$D$30:$D$77,0),MATCH(AU$2,Omfattning!$AI$2:$AQ$2,0)),\"\")","v":0},{"$f":"IFERROR(INDEX(Omfattning!$AI$3:$AQ$50,MATCH($H3,Funktioner!$D$30:$D$77,0),MATCH(AV$2,Omfattning!$AI$2:$AQ$2,0)),\"\")","v":0},{"$f":"IFERROR(INDEX(Omfattning!$AI$3:$AQ$50,MATCH($H3,Funktioner!$D$30:$D$77,0),MATCH(AW$2,Omfattning!$AI$2:$AQ$2,0)),\"\")","v":0},{"$f":"IFERROR(INDEX(Omfattning!$AI$3:$AQ$50,MATCH($H3,Funktioner!$D$30:$D$77,0),MATCH(AX$2,Omfattning!$AI$2:$AQ$2,0)),\"\")","v":0},{"$f":"IFERROR(INDEX(Omfattning!$AI$3:$AQ$50,MATCH($H3,Funktioner!$D$30:$D$77,0),MATCH(AY$2,Omfattning!$AI$2:$AQ$2,0)),\"\")","v":0},{"$f":"IFERROR(INDEX(Omfattning!$AI$3:$AQ$50,MATCH($H3,Funktioner!$D$30:$D$77,0),MATCH(AZ$2,Omfattning!$AI$2:$AQ$2,0)),\"\")","v":0},{"$f":"IFERROR(INDEX(Omfattning!$AI$3:$AQ$50,MATCH($H3,Funktioner!$D$30:$D$77,0),MATCH(BA$2,Omfattning!$AI$2:$AQ$2,0)),\"\")","v":0},{"$f":"IF(Uträkningsmall!$F13=\"\",\"\",IF(BC3=\"Kan ej leverera\",240000000,IF(ISNUMBER(AZ3),AZ3*Uträkningsmall!$F13,\"\")))","v":""},{"$f":"IF($H3=\"\",\"\",IF(OR(BA3=\"\",BA3=0),\"Kan ej leverera\",\"\"))","v":""},null,{"$f":"IFERROR(INDEX(Omfattning!$AT$3:$BB$50,MATCH($H3,Funktioner!$E$30:$E$77,0),MATCH(BE$2,Omfattning!$AT$2:$BB$2,0)),\"\")","v":0},{"$f":"IFERROR(INDEX(Omfattning!$AT$3:$BB$50,MATCH($H3,Funktioner!$E$30:$E$77,0),MATCH(BF$2,Omfattning!$AT$2:$BB$2,0)),\"\")","v":0},{"$f":"IFERROR(INDEX(Omfattning!$AT$3:$BB$50,MATCH($H3,Funktioner!$E$30:$E$77,0),MATCH(BG$2,Omfattning!$AT$2:$BB$2,0)),\"\")","v":0},{"$f":"IFERROR(INDEX(Omfattning!$AT$3:$BB$50,MATCH($H3,Funktioner!$E$30:$E$77,0),MATCH(BH$2,Omfattning!$AT$2:$BB$2,0)),\"\")","v":0},{"$f":"IFERROR(INDEX(Omfattning!$AT$3:$BB$50,MATCH($H3,Funktioner!$E$30:$E$77,0),MATCH(BI$2,Omfattning!$AT$2:$BB$2,0)),\"\")","v":0},{"$f":"IFERROR(INDEX(Omfattning!$AT$3:$BB$50,MATCH($H3,Funktioner!$E$30:$E$77,0),MATCH(BJ$2,Omfattning!$AT$2:$BB$2,0)),\"\")","v":0},{"$f":"IFERROR(INDEX(Omfattning!$AT$3:$BB$50,MATCH($H3,Funktioner!$E$30:$E$77,0),MATCH(BK$2,Omfattning!$AT$2:$BB$2,0)),\"\")","v":0},{"$f":"IFERROR(INDEX(Omfattning!$AT$3:$BB$50,MATCH($H3,Funktioner!$E$30:$E$77,0),MATCH(BL$2,Omfattning!$AT$2:$BB$2,0)),\"\")","v":0},{"$f":"IFERROR(INDEX(Omfattning!$AT$3:$BB$50,MATCH($H3,Funktioner!$E$30:$E$77,0),MATCH(BM$2,Omfattning!$AT$2:$BB$2,0)),\"\")","v":0},{"$f":"IF(Uträkningsmall!$F13=\"\",\"\",IF(BO3=\"Kan ej leverera\",240000000,IF(ISNUMBER(BL3),BL3*Uträkningsmall!$F13,\"\")))","v":""},{"$f":"IF($H3=\"\",\"\",IF(OR(BM3=\"\",BM3=0),\"Kan ej leverera\",\"\"))","v":""},null,{"$f":"IFERROR(INDEX(Omfattning!$BE$3:$BM$50,MATCH($H3,Funktioner!$F$30:$F$77,0),MATCH(BQ$2,Omfattning!$BE$2:$BM$2,0)),\"\")","v":0},{"$f":"IFERROR(INDEX(Omfattning!$BE$3:$BM$50,MATCH($H3,Funktioner!$F$30:$F$77,0),MATCH(BR$2,Omfattning!$BE$2:$BM$2,0)),\"\")","v":0},{"$f":"IFERROR(INDEX(Omfattning!$BE$3:$BM$50,MATCH($H3,Funktioner!$F$30:$F$77,0),MATCH(BS$2,Omfattning!$BE$2:$BM$2,0)),\"\")","v":0},{"$f":"IFERROR(INDEX(Omfattning!$BE$3:$BM$50,MATCH($H3,Funktioner!$F$30:$F$77,0),MATCH(BT$2,Omfattning!$BE$2:$BM$2,0)),\"\")","v":0},{"$f":"IFERROR(INDEX(Omfattning!$BE$3:$BM$50,MATCH($H3,Funktioner!$F$30:$F$77,0),MATCH(BU$2,Omfattning!$BE$2:$BM$2,0)),\"\")","v":0},{"$f":"IFERROR(INDEX(Omfattning!$BE$3:$BM$50,MATCH($H3,Funktioner!$F$30:$F$77,0),MATCH(BV$2,Omfattning!$BE$2:$BM$2,0)),\"\")","v":0},{"$f":"IFERROR(INDEX(Omfattning!$BE$3:$BM$50,MATCH($H3,Funktioner!$F$30:$F$77,0),MATCH(BW$2,Omfattning!$BE$2:$BM$2,0)),\"\")","v":0},{"$f":"IFERROR(INDEX(Omfattning!$BE$3:$BM$50,MATCH($H3,Funktioner!$F$30:$F$77,0),MATCH(BX$2,Omfattning!$BE$2:$BM$2,0)),\"\")","v":0},{"$f":"IFERROR(INDEX(Omfattning!$BE$3:$BM$50,MATCH($H3,Funktioner!$F$30:$F$77,0),MATCH(BY$2,Omfattning!$BE$2:$BM$2,0)),\"\")","v":0},{"$f":"IF(Uträkningsmall!$F13=\"\",\"\",IF(CA3=\"Kan ej leverera\",240000000,IF(ISNUMBER(BX3),BX3*Uträkningsmall!$F13,\"\")))","v":""},{"$f":"IF($H3=\"\",\"\",IF(OR(BY3=\"\",BY3=0),\"Kan ej leverera\",\"\"))","v":""}]
[{"$f":"\"Position\"&Uträkningsmall!$A14","v":"Position"},{"$f":"IF(Uträkningsmall!$F14=\"\",\"\",IF(AND(Uträkningsmall!$A14=15,OR(Uträkningsmall!$E14=\"\",Uträkningsmall!$F14=\"\")),1,IF(AND(Uträkningsmall!$A14=16,OR(Uträkningsmall!$E14=\"\",Uträkningsmall!$F14=\"\")),1,IF(AND(Uträkningsmall!$A14=17,OR(Uträkningsmall!$E14=\"\",Uträkningsmall!$F14=\"\")),1,IF(AND(Uträkningsmall!$A14=19,OR(Uträkningsmall!$E14=\"\",Uträkningsmall!$F14=\"\")),1,IF(AND(Uträkningsmall!$A14=20,OR(Uträkningsmall!$E14=\"\",Uträkningsmall!$F14=\"\")),1,IF(AND(Uträkningsmall!$A14=21,OR(Uträkningsmall!$E14=\"\",Uträkningsmall!$F14=\"\")),1,IF(AND(Uträkningsmall!$A14=22,OR(Uträkningsmall!$E14=\"\",Uträkningsmall!$F14=\"\")),1,IF(AND(Uträkningsmall!$A14=23,OR(Uträkningsmall!$E14=\"\",Uträkningsmall!$F14=\"\")),1,IF(AND(Uträkningsmall!$A14=24,OR(Uträkningsmall!$E14=\"\",Uträkningsmall!$F14=\"\")),1,IF(AND(Uträkningsmall!$A14=25,OR(Uträkningsmall!$E14=\"\",Uträkningsmall!$F14=\"\")),1,IF(AND(Uträkningsmall!$A14=26,OR(Uträkningsmall!$E14=\"\",Uträkningsmall!$F14=\"\")),1,IF(AND(Uträkningsmall!$A14=27,OR(Uträkningsmall!$E14=\"\",Uträkningsmall!$F14=\"\")),1,IF(AND(Uträkningsmall!$A14=28,OR(Uträkningsmall!$E14=\"\",Uträkningsmall!$F14=\"\")),1,IF(AND(Uträkningsmall!$A14=29,OR(Uträkningsmall!$E14=\"\",Uträkningsmall!$F14=\"\")),1,IF(AND(Uträkningsmall!$A14=30,OR(Uträkningsmall!$E14=\"\",Uträkningsmall!$F14=\"\")),1,IF(AND(Uträkningsmall!$A14=39,OR(Uträkningsmall!$E14=\"\",Uträkningsmall!$F14=\"\")),1,IF(AND(Uträkningsmall!$A14=40,OR(Uträkningsmall!$E14=\"\",Uträkningsmall!$F14=\"\")),1,IF(AND(Uträkningsmall!$A14=41,OR(Uträkningsmall!$E14=\"\",Uträkningsmall!$F14=\"\")),1,IF(AND(Uträkningsmall!$A14=42,OR(Uträkningsmall!$E14=\"\",Uträkningsmall!$F14=\"\")),1,0))))))))))))))))))))","v":""},{"$f":"Funktioner!B147&Funktioner!C147&\", \"&Funktioner!D147&\"g\"&Funktioner!E147&Funktioner!F147","v":"Vitt kopieringspapperA4, 80gA-kvalitet, åldringsbeständigtHålat"},{"$f":"Uträkningsmall!B14&Uträkningsmall!C14&Uträkningsmall!D14&Uträkningsmall!E14","v":""},null,"",null,{"$f":"Uträkningsmall!$A14","v":""},{"$f":"IFERROR(INDEX(Omfattning!$B$3:$J$50,MATCH($H4,Funktioner!$A$30:$A$77,0),MATCH(I$2,Omfattning!$B$2:$J$2,0)),\"\")","v":0},{"$f":"IFERROR(INDEX(Omfattning!$B$3:$J$50,MATCH($H4,Funktioner!$A$30:$A$77,0),MATCH(J$2,Omfattning!$B$2:$J$2,0)),\"\")","v":0},{"$f":"IFERROR(INDEX(Omfattning!$B$3:$J$50,MATCH($H4,Funktioner!$A$30:$A$77,0),MATCH(K$2,Omfattning!$B$2:$J$2,0)),\"\")","v":0},{"$f":"IFERROR(INDEX(Omfattning!$B$3:$J$50,MATCH($H4,Funktioner!$A$30:$A$77,0),MATCH(L$2,Omfattning!$B$2:$J$2,0)),\"\")","v":""},{"$f":"IFERROR(INDEX(Omfattning!$B$3:$J$50,MATCH($H4,Funktioner!$A$30:$A$77,0),MATCH(M$2,Omfattning!$B$2:$J$2,0)),\"\")","v":0},{"$f":"IFERROR(INDEX(Omfattning!$B$3:$J$50,MATCH($H4,Funktioner!$A$30:$A$77,0),MATCH(N$2,Omfattning!$B$2:$J$2,0)),\"\")","v":0},{"$f":"IFERROR(INDEX(Omfattning!$B$3:$J$50,MATCH($H4,Funktioner!$A$30:$A$77,0),MATCH(O$2,Omfattning!$B$2:$J$2,0)),\"\")","v":0},{"$f":"IFERROR(INDEX(Omfattning!$B$3:$J$50,MATCH($H4,Funktioner!$A$30:$A$77,0),MATCH(P$2,Omfattning!$B$2:$J$2,0)),\"\")","v":0},{"$f":"IFERROR(INDEX(Omfattning!$B$3:$J$50,MATCH($H4,Funktioner!$A$30:$A$77,0),MATCH(Q$2,Omfattning!$B$2:$J$2,0)),\"\")","v":0},{"$f":"IF(Uträkningsmall!$F14=\"\",\"\",IF(S4=\"Kan ej leverera\",240000000,IF(ISNUMBER(P4),P4*Uträkningsmall!$F14,\"\")))","v":""},{"$f":"IF($H4=\"\",\"\",IF(OR(Q4=\"\",Q4=0),\"Kan ej leverera\",\"\"))","v":""},null,{"$f":"IFERROR(INDEX(Omfattning!$M$3:$U$50,MATCH($H4,Funktioner!$B$30:$B$77,0),MATCH(U$2,Omfattning!$M$2:$U$2,0)),\"\")","v":0},{"$f":"IFERROR(INDEX(Omfattning!$M$3:$U$50,MATCH($H4,Funktioner!$B$30:$B$77,0),MATCH(V$2,Omfattning!$M$2:$U$2,0)),\"\")","v":0},{"$f":"IFERROR(INDEX(Omfattning!$M$3:$U$50,MATCH($H4,Funktioner!$B$30:$B$77,0),MATCH(W$2,Omfattning!$M$2:$U$2,0)),\"\")","v":0},{"$f":"IFERROR(INDEX(Omfattning!$M$3:$U$50,MATCH($H4,Funktioner!$B$30:$B$77,0),MATCH(X$2,Omfattning!$M$2:$U$2,0)),\"\")","v":0},{"$f":"IFERROR(INDEX(Omfattning!$M$3:$U$50,MATCH($H4,Funktioner!$B$30:$B$77,0),MATCH(Y$2,Omfattning!$M$2:$U$2,0)),\"\")","v":0},{"$f":"IFERROR(INDEX(Omfattning!$M$3:$U$50,MATCH($H4,Funktioner!$B$30:$B$77,0),MATCH(Z$2,Omfattning!$M$2:$U$2,0)),\"\")","v":0},{"$f":"IFERROR(INDEX(Omfattning!$M$3:$U$50,MATCH($H4,Funktioner!$B$30:$B$77,0),MATCH(AA$2,Omfattning!$M$2:$U$2,0)),\"\")","v":0},{"$f":"IFERROR(INDEX(Omfattning!$M$3:$U$50,MATCH($H4,Funktioner!$B$30:$B$77,0),MATCH(AB$2,Omfattning!$M$2:$U$2,0)),\"\")","v":0},{"$f":"IFERROR(INDEX(Omfattning!$M$3:$U$50,MATCH($H4,Funktioner!$B$30:$B$77,0),MATCH(AC$2,Omfattning!$M$2:$U$2,0)),\"\")","v":0},{"$f":"IF(Uträkningsmall!$F14=\"\",\"\",IF(AE4=\"Kan ej leverera\",240000000,IF(ISNUMBER(AB4),AB4*Uträkningsmall!$F14,\"\")))","v":""},{"$f":"IF($H4=\"\",\"\",IF(OR(AC4=\"\",AC4=0),\"Kan ej leverera\",\"\"))","v":""},null,{"$f":"IFERROR(INDEX(Omfattning!$X$3:$AF$50,MATCH($H4,Funktioner!$C$30:$C$77,0),MATCH(AG$2,Omfattning!$X$2:$AF$2,0)),\"\")","v":0},{"$f":"IFERROR(INDEX(Omfattning!$X$3:$AF$50,MATCH($H4,Funktioner!$C$30:$C$77,0),MATCH(AH$2,Omfattning!$X$2:$AF$2,0)),\"\")","v":0},{"$f":"IFERROR(INDEX(Omfattning!$X$3:$AF$50,MATCH($H4,Funktioner!$C$30:$C$77,0),MATCH(AI$2,Omfattning!$X$2:$AF$2,0)),\"\")","v":0},{"$f":"IFERROR(INDEX(Omfattning!$X$3:$AF$50,MATCH($H4,Funktioner!$C$30:$C$77,0),MATCH(AJ$2,Omfattning!$X$2:$AF$2,0)),\"\")","v":0},{"$f":"IFERROR(INDEX(Omfattning!$X$3:$AF$50,MATCH($H4,Funktioner!$C$30:$C$77,0),MATCH(AK$2,Omfattning!$X$2:$AF$2,0)),\"\")","v":0},{"$f":"IFERROR(INDEX(Omfattning!$X$3:$AF$50,MATCH($H4,Funktioner!$C$30:$C$77,0),MATCH(AL$2,Omfattning!$X$2:$AF$2,0)),\"\")","v":0},{"$f":"IFERROR(INDEX(Omfattning!$X$3:$AF$50,MATCH($H4,Funktioner!$C$30:$C$77,0),MATCH(AM$2,Omfattning!$X$2:$AF$2,0)),\"\")","v":0},{"$f":"IFERROR(INDEX(Omfattning!$X$3:$AF$50,MATCH($H4,Funktioner!$C$30:$C$77,0),MATCH(AN$2,Omfattning!$X$2:$AF$2,0)),\"\")","v":0},{"$f":"IFERROR(INDEX(Omfattning!$X$3:$AF$50,MATCH($H4,Funktioner!$C$30:$C$77,0),MATCH(AO$2,Omfattning!$X$2:$AF$2,0)),\"\")","v":0},{"$f":"IF(Uträkningsmall!$F14=\"\",\"\",IF(AQ4=\"Kan ej leverera\",240000000,IF(ISNUMBER(AN4),AN4*Uträkningsmall!$F14,\"\")))","v":""},{"$f":"IF($H4=\"\",\"\",IF(OR(AO4=\"\",AO4=0),\"Kan ej leverera\",\"\"))","v":""},null,{"$f":"IFERROR(INDEX(Omfattning!$AI$3:$AQ$50,MATCH($H4,Funktioner!$D$30:$D$77,0),MATCH(AS$2,Omfattning!$AI$2:$AQ$2,0)),\"\")","v":0},{"$f":"IFERROR(INDEX(Omfattning!$AI$3:$AQ$50,MATCH($H4,Funktioner!$D$30:$D$77,0),MATCH(AT$2,Omfattning!$AI$2:$AQ$2,0)),\"\")","v":0},{"$f":"IFERROR(INDEX(Omfattning!$AI$3:$AQ$50,MATCH($H4,Funktioner!$D$30:$D$77,0),MATCH(AU$2,Omfattning!$AI$2:$AQ$2,0)),\"\")","v":0},{"$f":"IFERROR(INDEX(Omfattning!$AI$3:$AQ$50,MATCH($H4,Funktioner!$D$30:$D$77,0),MATCH(AV$2,Omfattning!$AI$2:$AQ$2,0)),\"\")","v":0},{"$f":"IFERROR(INDEX(Omfattning!$AI$3:$AQ$50,MATCH($H4,Funktioner!$D$30:$D$77,0),MATCH(AW$2,Omfattning!$AI$2:$AQ$2,0)),\"\")","v":0},{"$f":"IFERROR(INDEX(Omfattning!$AI$3:$AQ$50,MATCH($H4,Funktioner!$D$30:$D$77,0),MATCH(AX$2,Omfattning!$AI$2:$AQ$2,0)),\"\")","v":0},{"$f":"IFERROR(INDEX(Omfattning!$AI$3:$AQ$50,MATCH($H4,Funktioner!$D$30:$D$77,0),MATCH(AY$2,Omfattning!$AI$2:$AQ$2,0)),\"\")","v":0},{"$f":"IFERROR(INDEX(Omfattning!$AI$3:$AQ$50,MATCH($H4,Funktioner!$D$30:$D$77,0),MATCH(AZ$2,Omfattning!$AI$2:$AQ$2,0)),\"\")","v":0},{"$f":"IFERROR(INDEX(Omfattning!$AI$3:$AQ$50,MATCH($H4,Funktioner!$D$30:$D$77,0),MATCH(BA$2,Omfattning!$AI$2:$AQ$2,0)),\"\")","v":0},{"$f":"IF(Uträkningsmall!$F14=\"\",\"\",IF(BC4=\"Kan ej leverera\",240000000,IF(ISNUMBER(AZ4),AZ4*Uträkningsmall!$F14,\"\")))","v":""},{"$f":"IF($H4=\"\",\"\",IF(OR(BA4=\"\",BA4=0),\"Kan ej leverera\",\"\"))","v":""},null,{"$f":"IFERROR(INDEX(Omfattning!$AT$3:$BB$50,MATCH($H4,Funktioner!$E$30:$E$77,0),MATCH(BE$2,Omfattning!$AT$2:$BB$2,0)),\"\")","v":0},{"$f":"IFERROR(INDEX(Omfattning!$AT$3:$BB$50,MATCH($H4,Funktioner!$E$30:$E$77,0),MATCH(BF$2,Omfattning!$AT$2:$BB$2,0)),\"\")","v":0},{"$f":"IFERROR(INDEX(Omfattning!$AT$3:$BB$50,MATCH($H4,Funktioner!$E$30:$E$77,0),MATCH(BG$2,Omfattning!$AT$2:$BB$2,0)),\"\")","v":0},{"$f":"IFERROR(INDEX(Omfattning!$AT$3:$BB$50,MATCH($H4,Funktioner!$E$30:$E$77,0),MATCH(BH$2,Omfattning!$AT$2:$BB$2,0)),\"\")","v":0},{"$f":"IFERROR(INDEX(Omfattning!$AT$3:$BB$50,MATCH($H4,Funktioner!$E$30:$E$77,0),MATCH(BI$2,Omfattning!$AT$2:$BB$2,0)),\"\")","v":0},{"$f":"IFERROR(INDEX(Omfattning!$AT$3:$BB$50,MATCH($H4,Funktioner!$E$30:$E$77,0),MATCH(BJ$2,Omfattning!$AT$2:$BB$2,0)),\"\")","v":0},{"$f":"IFERROR(INDEX(Omfattning!$AT$3:$BB$50,MATCH($H4,Funktioner!$E$30:$E$77,0),MATCH(BK$2,Omfattning!$AT$2:$BB$2,0)),\"\")","v":0},{"$f":"IFERROR(INDEX(Omfattning!$AT$3:$BB$50,MATCH($H4,Funktioner!$E$30:$E$77,0),MATCH(BL$2,Omfattning!$AT$2:$BB$2,0)),\"\")","v":0},{"$f":"IFERROR(INDEX(Omfattning!$AT$3:$BB$50,MATCH($H4,Funktioner!$E$30:$E$77,0),MATCH(BM$2,Omfattning!$AT$2:$BB$2,0)),\"\")","v":0},{"$f":"IF(Uträkningsmall!$F14=\"\",\"\",IF(BO4=\"Kan ej leverera\",240000000,IF(ISNUMBER(BL4),BL4*Uträkningsmall!$F14,\"\")))","v":""},{"$f":"IF($H4=\"\",\"\",IF(OR(BM4=\"\",BM4=0),\"Kan ej leverera\",\"\"))","v":""},null,{"$f":"IFERROR(INDEX(Omfattning!$BE$3:$BM$50,MATCH($H4,Funktioner!$F$30:$F$77,0),MATCH(BQ$2,Omfattning!$BE$2:$BM$2,0)),\"\")","v":0},{"$f":"IFERROR(INDEX(Omfattning!$BE$3:$BM$50,MATCH($H4,Funktioner!$F$30:$F$77,0),MATCH(BR$2,Omfattning!$BE$2:$BM$2,0)),\"\")","v":0},{"$f":"IFERROR(INDEX(Omfattning!$BE$3:$BM$50,MATCH($H4,Funktioner!$F$30:$F$77,0),MATCH(BS$2,Omfattning!$BE$2:$BM$2,0)),\"\")","v":0},{"$f":"IFERROR(INDEX(Omfattning!$BE$3:$BM$50,MATCH($H4,Funktioner!$F$30:$F$77,0),MATCH(BT$2,Omfattning!$BE$2:$BM$2,0)),\"\")","v":0},{"$f":"IFERROR(INDEX(Omfattning!$BE$3:$BM$50,MATCH($H4,Funktioner!$F$30:$F$77,0),MATCH(BU$2,Omfattning!$BE$2:$BM$2,0)),\"\")","v":0},{"$f":"IFERROR(INDEX(Omfattning!$BE$3:$BM$50,MATCH($H4,Funktioner!$F$30:$F$77,0),MATCH(BV$2,Omfattning!$BE$2:$BM$2,0)),\"\")","v":0},{"$f":"IFERROR(INDEX(Omfattning!$BE$3:$BM$50,MATCH($H4,Funktioner!$F$30:$F$77,0),MATCH(BW$2,Omfattning!$BE$2:$BM$2,0)),\"\")","v":0},{"$f":"IFERROR(INDEX(Omfattning!$BE$3:$BM$50,MATCH($H4,Funktioner!$F$30:$F$77,0),MATCH(BX$2,Omfattning!$BE$2:$BM$2,0)),\"\")","v":0},{"$f":"IFERROR(INDEX(Omfattning!$BE$3:$BM$50,MATCH($H4,Funktioner!$F$30:$F$77,0),MATCH(BY$2,Omfattning!$BE$2:$BM$2,0)),\"\")","v":0},{"$f":"IF(Uträkningsmall!$F14=\"\",\"\",IF(CA4=\"Kan ej leverera\",240000000,IF(ISNUMBER(BX4),BX4*Uträkningsmall!$F14,\"\")))","v":""},{"$f":"IF($H4=\"\",\"\",IF(OR(BY4=\"\",BY4=0),\"Kan ej leverera\",\"\"))","v":""}]
[{"$f":"\"Position\"&Uträkningsmall!$A15","v":"Position"},{"$f":"IF(Uträkningsmall!$F15=\"\",\"\",IF(AND(Uträkningsmall!$A15=15,OR(Uträkningsmall!$E15=\"\",Uträkningsmall!$F15=\"\")),1,IF(AND(Uträkningsmall!$A15=16,OR(Uträkningsmall!$E15=\"\",Uträkningsmall!$F15=\"\")),1,IF(AND(Uträkningsmall!$A15=17,OR(Uträkningsmall!$E15=\"\",Uträkningsmall!$F15=\"\")),1,IF(AND(Uträkningsmall!$A15=19,OR(Uträkningsmall!$E15=\"\",Uträkningsmall!$F15=\"\")),1,IF(AND(Uträkningsmall!$A15=20,OR(Uträkningsmall!$E15=\"\",Uträkningsmall!$F15=\"\")),1,IF(AND(Uträkningsmall!$A15=21,OR(Uträkningsmall!$E15=\"\",Uträkningsmall!$F15=\"\")),1,IF(AND(Uträkningsmall!$A15=22,OR(Uträkningsmall!$E15=\"\",Uträkningsmall!$F15=\"\")),1,IF(AND(Uträkningsmall!$A15=23,OR(Uträkningsmall!$E15=\"\",Uträkningsmall!$F15=\"\")),1,IF(AND(Uträkningsmall!$A15=24,OR(Uträkningsmall!$E15=\"\",Uträkningsmall!$F15=\"\")),1,IF(AND(Uträkningsmall!$A15=25,OR(Uträkningsmall!$E15=\"\",Uträkningsmall!$F15=\"\")),1,IF(AND(Uträkningsmall!$A15=26,OR(Uträkningsmall!$E15=\"\",Uträkningsmall!$F15=\"\")),1,IF(AND(Uträkningsmall!$A15=27,OR(Uträkningsmall!$E15=\"\",Uträkningsmall!$F15=\"\")),1,IF(AND(Uträkningsmall!$A15=28,OR(Uträkningsmall!$E15=\"\",Uträkningsmall!$F15=\"\")),1,IF(AND(Uträkningsmall!$A15=29,OR(Uträkningsmall!$E15=\"\",Uträkningsmall!$F15=\"\")),1,IF(AND(Uträkningsmall!$A15=30,OR(Uträkningsmall!$E15=\"\",Uträkningsmall!$F15=\"\")),1,IF(AND(Uträkningsmall!$A15=39,OR(Uträkningsmall!$E15=\"\",Uträkningsmall!$F15=\"\")),1,IF(AND(Uträkningsmall!$A15=40,OR(Uträkningsmall!$E15=\"\",Uträkningsmall!$F15=\"\")),1,IF(AND(Uträkningsmall!$A15=41,OR(Uträkningsmall!$E15=\"\",Uträkningsmall!$F15=\"\")),1,IF(AND(Uträkningsmall!$A15=42,OR(Uträkningsmall!$E15=\"\",Uträkningsmall!$F15=\"\")),1,0))))))))))))))))))))","v":""},{"$f":"Funktioner!B148&Funktioner!C148&\", \"&Funktioner!D148&\"g\"&Funktioner!E148&Funktioner!F148","v":"Vitt kopieringspapper - storpackA4, 80gA-kvalitet, åldringsbeständigtOhålat"},{"$f":"Uträkningsmall!B15&Uträkningsmall!C15&Uträkningsmall!D15&Uträkningsmall!E15","v":""},null,"",null,{"$f":"Uträkningsmall!$A15","v":""},{"$f":"IFERROR(INDEX(Omfattning!$B$3:$J$50,MATCH($H5,Funktioner!$A$30:$A$77,0),MATCH(I$2,Omfattning!$B$2:$J$2,0)),\"\")","v":0},{"$f":"IFERROR(INDEX(Omfattning!$B$3:$J$50,MATCH($H5,Funktioner!$A$30:$A$77,0),MATCH(J$2,Omfattning!$B$2:$J$2,0)),\"\")","v":0},{"$f":"IFERROR(INDEX(Omfattning!$B$3:$J$50,MATCH($H5,Funktioner!$A$30:$A$77,0),MATCH(K$2,Omfattning!$B$2:$J$2,0)),\"\")","v":0},{"$f":"IFERROR(INDEX(Omfattning!$B$3:$J$50,MATCH($H5,Funktioner!$A$30:$A$77,0),MATCH(L$2,Omfattning!$B$2:$J$2,0)),\"\")","v":""},{"$f":"IFERROR(INDEX(Omfattning!$B$3:$J$50,MATCH($H5,Funktioner!$A$30:$A$77,0),MATCH(M$2,Omfattning!$B$2:$J$2,0)),\"\")","v":0},{"$f":"IFERROR(INDEX(Omfattning!$B$3:$J$50,MATCH($H5,Funktioner!$A$30:$A$77,0),MATCH(N$2,Omfattning!$B$2:$J$2,0)),\"\")","v":0},{"$f":"IFERROR(INDEX(Omfattning!$B$3:$J$50,MATCH($H5,Funktioner!$A$30:$A$77,0),MATCH(O$2,Omfattning!$B$2:$J$2,0)),\"\")","v":0},{"$f":"IFERROR(INDEX(Omfattning!$B$3:$J$50,MATCH($H5,Funktioner!$A$30:$A$77,0),MATCH(P$2,Omfattning!$B$2:$J$2,0)),\"\")","v":0},{"$f":"IFERROR(INDEX(Omfattning!$B$3:$J$50,MATCH($H5,Funktioner!$A$30:$A$77,0),MATCH(Q$2,Omfattning!$B$2:$J$2,0)),\"\")","v":0},{"$f":"IF(Uträkningsmall!$F15=\"\",\"\",IF(S5=\"Kan ej leverera\",240000000,IF(ISNUMBER(P5),P5*Uträkningsmall!$F15,\"\")))","v":""},"",null,{"$f":"IFERROR(INDEX(Omfattning!$M$3:$U$50,MATCH($H5,Funktioner!$B$30:$B$77,0),MATCH(U$2,Omfattning!$M$2:$U$2,0)),\"\")","v":0},{"$f":"IFERROR(INDEX(Omfattning!$M$3:$U$50,MATCH($H5,Funktioner!$B$30:$B$77,0),MATCH(V$2,Omfattning!$M$2:$U$2,0)),\"\")","v":0},{"$f":"IFERROR(INDEX(Omfattning!$M$3:$U$50,MATCH($H5,Funktioner!$B$30:$B$77,0),MATCH(W$2,Omfattning!$M$2:$U$2,0)),\"\")","v":0},{"$f":"IFERROR(INDEX(Omfattning!$M$3:$U$50,MATCH($H5,Funktioner!$B$30:$B$77,0),MATCH(X$2,Omfattning!$M$2:$U$2,0)),\"\")","v":0},{"$f":"IFERROR(INDEX(Omfattning!$M$3:$U$50,MATCH($H5,Funktioner!$B$30:$B$77,0),MATCH(Y$2,Omfattning!$M$2:$U$2,0)),\"\")","v":0},{"$f":"IFERROR(INDEX(Omfattning!$M$3:$U$50,MATCH($H5,Funktioner!$B$30:$B$77,0),MATCH(Z$2,Omfattning!$M$2:$U$2,0)),\"\")","v":0},{"$f":"IFERROR(INDEX(Omfattning!$M$3:$U$50,MATCH($H5,Funktioner!$B$30:$B$77,0),MATCH(AA$2,Omfattning!$M$2:$U$2,0)),\"\")","v":0},{"$f":"IFERROR(INDEX(Omfattning!$M$3:$U$50,MATCH($H5,Funktioner!$B$30:$B$77,0),MATCH(AB$2,Omfattning!$M$2:$U$2,0)),\"\")","v":0},{"$f":"IFERROR(INDEX(Omfattning!$M$3:$U$50,MATCH($H5,Funktioner!$B$30:$B$77,0),MATCH(AC$2,Omfattning!$M$2:$U$2,0)),\"\")","v":0},{"$f":"IF(Uträkningsmall!$F15=\"\",\"\",IF(AE5=\"Kan ej leverera\",240000000,IF(ISNUMBER(AB5),AB5*Uträkningsmall!$F15,\"\")))","v":""},"",null,{"$f":"IFERROR(INDEX(Omfattning!$X$3:$AF$50,MATCH($H5,Funktioner!$C$30:$C$77,0),MATCH(AG$2,Omfattning!$X$2:$AF$2,0)),\"\")","v":0},{"$f":"IFERROR(INDEX(Omfattning!$X$3:$AF$50,MATCH($H5,Funktioner!$C$30:$C$77,0),MATCH(AH$2,Omfattning!$X$2:$AF$2,0)),\"\")","v":0},{"$f":"IFERROR(INDEX(Omfattning!$X$3:$AF$50,MATCH($H5,Funktioner!$C$30:$C$77,0),MATCH(AI$2,Omfattning!$X$2:$AF$2,0)),\"\")","v":0},{"$f":"IFERROR(INDEX(Omfattning!$X$3:$AF$50,MATCH($H5,Funktioner!$C$30:$C$77,0),MATCH(AJ$2,Omfattning!$X$2:$AF$2,0)),\"\")","v":0},{"$f":"IFERROR(INDEX(Omfattning!$X$3:$AF$50,MATCH($H5,Funktioner!$C$30:$C$77,0),MATCH(AK$2,Omfattning!$X$2:$AF$2,0)),\"\")","v":0},{"$f":"IFERROR(INDEX(Omfattning!$X$3:$AF$50,MATCH($H5,Funktioner!$C$30:$C$77,0),MATCH(AL$2,Omfattning!$X$2:$AF$2,0)),\"\")","v":0},{"$f":"IFERROR(INDEX(Omfattning!$X$3:$AF$50,MATCH($H5,Funktioner!$C$30:$C$77,0),MATCH(AM$2,Omfattning!$X$2:$AF$2,0)),\"\")","v":0},{"$f":"IFERROR(INDEX(Omfattning!$X$3:$AF$50,MATCH($H5,Funktioner!$C$30:$C$77,0),MATCH(AN$2,Omfattning!$X$2:$AF$2,0)),\"\")","v":0},{"$f":"IFERROR(INDEX(Omfattning!$X$3:$AF$50,MATCH($H5,Funktioner!$C$30:$C$77,0),MATCH(AO$2,Omfattning!$X$2:$AF$2,0)),\"\")","v":0},{"$f":"IF(Uträkningsmall!$F15=\"\",\"\",IF(AQ5=\"Kan ej leverera\",240000000,IF(ISNUMBER(AN5),AN5*Uträkningsmall!$F15,\"\")))","v":""},"",null,{"$f":"IFERROR(INDEX(Omfattning!$AI$3:$AQ$50,MATCH($H5,Funktioner!$D$30:$D$77,0),MATCH(AS$2,Omfattning!$AI$2:$AQ$2,0)),\"\")","v":0},{"$f":"IFERROR(INDEX(Omfattning!$AI$3:$AQ$50,MATCH($H5,Funktioner!$D$30:$D$77,0),MATCH(AT$2,Omfattning!$AI$2:$AQ$2,0)),\"\")","v":0},{"$f":"IFERROR(INDEX(Omfattning!$AI$3:$AQ$50,MATCH($H5,Funktioner!$D$30:$D$77,0),MATCH(AU$2,Omfattning!$AI$2:$AQ$2,0)),\"\")","v":0},{"$f":"IFERROR(INDEX(Omfattning!$AI$3:$AQ$50,MATCH($H5,Funktioner!$D$30:$D$77,0),MATCH(AV$2,Omfattning!$AI$2:$AQ$2,0)),\"\")","v":0},{"$f":"IFERROR(INDEX(Omfattning!$AI$3:$AQ$50,MATCH($H5,Funktioner!$D$30:$D$77,0),MATCH(AW$2,Omfattning!$AI$2:$AQ$2,0)),\"\")","v":0},{"$f":"IFERROR(INDEX(Omfattning!$AI$3:$AQ$50,MATCH($H5,Funktioner!$D$30:$D$77,0),MATCH(AX$2,Omfattning!$AI$2:$AQ$2,0)),\"\")","v":0},{"$f":"IFERROR(INDEX(Omfattning!$AI$3:$AQ$50,MATCH($H5,Funktioner!$D$30:$D$77,0),MATCH(AY$2,Omfattning!$AI$2:$AQ$2,0)),\"\")","v":0},{"$f":"IFERROR(INDEX(Omfattning!$AI$3:$AQ$50,MATCH($H5,Funktioner!$D$30:$D$77,0),MATCH(AZ$2,Omfattning!$AI$2:$AQ$2,0)),\"\")","v":0},{"$f":"IFERROR(INDEX(Omfattning!$AI$3:$AQ$50,MATCH($H5,Funktioner!$D$30:$D$77,0),MATCH(BA$2,Omfattning!$AI$2:$AQ$2,0)),\"\")","v":0},{"$f":"IF(Uträkningsmall!$F15=\"\",\"\",IF(BC5=\"Kan ej leverera\",240000000,IF(ISNUMBER(AZ5),AZ5*Uträkningsmall!$F15,\"\")))","v":""},"",null,{"$f":"IFERROR(INDEX(Omfattning!$AT$3:$BB$50,MATCH($H5,Funktioner!$E$30:$E$77,0),MATCH(BE$2,Omfattning!$AT$2:$BB$2,0)),\"\")","v":0},{"$f":"IFERROR(INDEX(Omfattning!$AT$3:$BB$50,MATCH($H5,Funktioner!$E$30:$E$77,0),MATCH(BF$2,Omfattning!$AT$2:$BB$2,0)),\"\")","v":0},{"$f":"IFERROR(INDEX(Omfattning!$AT$3:$BB$50,MATCH($H5,Funktioner!$E$30:$E$77,0),MATCH(BG$2,Omfattning!$AT$2:$BB$2,0)),\"\")","v":0},{"$f":"IFERROR(INDEX(Omfattning!$AT$3:$BB$50,MATCH($H5,Funktioner!$E$30:$E$77,0),MATCH(BH$2,Omfattning!$AT$2:$BB$2,0)),\"\")","v":0},{"$f":"IFERROR(INDEX(Omfattning!$AT$3:$BB$50,MATCH($H5,Funktioner!$E$30:$E$77,0),MATCH(BI$2,Omfattning!$AT$2:$BB$2,0)),\"\")","v":0},{"$f":"IFERROR(INDEX(Omfattning!$AT$3:$BB$50,MATCH($H5,Funktioner!$E$30:$E$77,0),MATCH(BJ$2,Omfattning!$AT$2:$BB$2,0)),\"\")","v":0},{"$f":"IFERROR(INDEX(Omfattning!$AT$3:$BB$50,MATCH($H5,Funktioner!$E$30:$E$77,0),MATCH(BK$2,Omfattning!$AT$2:$BB$2,0)),\"\")","v":0},{"$f":"IFERROR(INDEX(Omfattning!$AT$3:$BB$50,MATCH($H5,Funktioner!$E$30:$E$77,0),MATCH(BL$2,Omfattning!$AT$2:$BB$2,0)),\"\")","v":0},{"$f":"IFERROR(INDEX(Omfattning!$AT$3:$BB$50,MATCH($H5,Funktioner!$E$30:$E$77,0),MATCH(BM$2,Omfattning!$AT$2:$BB$2,0)),\"\")","v":0},{"$f":"IF(Uträkningsmall!$F15=\"\",\"\",IF(BO5=\"Kan ej leverera\",240000000,IF(ISNUMBER(BL5),BL5*Uträkningsmall!$F15,\"\")))","v":""},"",null,{"$f":"IFERROR(INDEX(Omfattning!$BE$3:$BM$50,MATCH($H5,Funktioner!$F$30:$F$77,0),MATCH(BQ$2,Omfattning!$BE$2:$BM$2,0)),\"\")","v":0},{"$f":"IFERROR(INDEX(Omfattning!$BE$3:$BM$50,MATCH($H5,Funktioner!$F$30:$F$77,0),MATCH(BR$2,Omfattning!$BE$2:$BM$2,0)),\"\")","v":0},{"$f":"IFERROR(INDEX(Omfattning!$BE$3:$BM$50,MATCH($H5,Funktioner!$F$30:$F$77,0),MATCH(BS$2,Omfattning!$BE$2:$BM$2,0)),\"\")","v":0},{"$f":"IFERROR(INDEX(Omfattning!$BE$3:$BM$50,MATCH($H5,Funktioner!$F$30:$F$77,0),MATCH(BT$2,Omfattning!$BE$2:$BM$2,0)),\"\")","v":0},{"$f":"IFERROR(INDEX(Omfattning!$BE$3:$BM$50,MATCH($H5,Funktioner!$F$30:$F$77,0),MATCH(BU$2,Omfattning!$BE$2:$BM$2,0)),\"\")","v":0},{"$f":"IFERROR(INDEX(Omfattning!$BE$3:$BM$50,MATCH($H5,Funktioner!$F$30:$F$77,0),MATCH(BV$2,Omfattning!$BE$2:$BM$2,0)),\"\")","v":0},{"$f":"IFERROR(INDEX(Omfattning!$BE$3:$BM$50,MATCH($H5,Funktioner!$F$30:$F$77,0),MATCH(BW$2,Omfattning!$BE$2:$BM$2,0)),\"\")","v":0},{"$f":"IFERROR(INDEX(Omfattning!$BE$3:$BM$50,MATCH($H5,Funktioner!$F$30:$F$77,0),MATCH(BX$2,Omfattning!$BE$2:$BM$2,0)),\"\")","v":0},{"$f":"IFERROR(INDEX(Omfattning!$BE$3:$BM$50,MATCH($H5,Funktioner!$F$30:$F$77,0),MATCH(BY$2,Omfattning!$BE$2:$BM$2,0)),\"\")","v":0},{"$f":"IF(Uträkningsmall!$F15=\"\",\"\",IF(CA5=\"Kan ej leverera\",240000000,IF(ISNUMBER(BX5),BX5*Uträkningsmall!$F15,\"\")))","v":""},""]
[{"$f":"\"Position\"&Uträkningsmall!$A16","v":"Position"},{"$f":"IF(Uträkningsmall!$F16=\"\",\"\",IF(AND(Uträkningsmall!$A16=15,OR(Uträkningsmall!$E16=\"\",Uträkningsmall!$F16=\"\")),1,IF(AND(Uträkningsmall!$A16=16,OR(Uträkningsmall!$E16=\"\",Uträkningsmall!$F16=\"\")),1,IF(AND(Uträkningsmall!$A16=17,OR(Uträkningsmall!$E16=\"\",Uträkningsmall!$F16=\"\")),1,IF(AND(Uträkningsmall!$A16=19,OR(Uträkningsmall!$E16=\"\",Uträkningsmall!$F16=\"\")),1,IF(AND(Uträkningsmall!$A16=20,OR(Uträkningsmall!$E16=\"\",Uträkningsmall!$F16=\"\")),1,IF(AND(Uträkningsmall!$A16=21,OR(Uträkningsmall!$E16=\"\",Uträkningsmall!$F16=\"\")),1,IF(AND(Uträkningsmall!$A16=22,OR(Uträkningsmall!$E16=\"\",Uträkningsmall!$F16=\"\")),1,IF(AND(Uträkningsmall!$A16=23,OR(Uträkningsmall!$E16=\"\",Uträkningsmall!$F16=\"\")),1,IF(AND(Uträkningsmall!$A16=24,OR(Uträkningsmall!$E16=\"\",Uträkningsmall!$F16=\"\")),1,IF(AND(Uträkningsmall!$A16=25,OR(Uträkningsmall!$E16=\"\",Uträkningsmall!$F16=\"\")),1,IF(AND(Uträkningsmall!$A16=26,OR(Uträkningsmall!$E16=\"\",Uträkningsmall!$F16=\"\")),1,IF(AND(Uträkningsmall!$A16=27,OR(Uträkningsmall!$E16=\"\",Uträkningsmall!$F16=\"\")),1,IF(AND(Uträkningsmall!$A16=28,OR(Uträkningsmall!$E16=\"\",Uträkningsmall!$F16=\"\")),1,IF(AND(Uträkningsmall!$A16=29,OR(Uträkningsmall!$E16=\"\",Uträkningsmall!$F16=\"\")),1,IF(AND(Uträkningsmall!$A16=30,OR(Uträkningsmall!$E16=\"\",Uträkningsmall!$F16=\"\")),1,IF(AND(Uträkningsmall!$A16=39,OR(Uträkningsmall!$E16=\"\",Uträkningsmall!$F16=\"\")),1,IF(AND(Uträkningsmall!$A16=40,OR(Uträkningsmall!$E16=\"\",Uträkningsmall!$F16=\"\")),1,IF(AND(Uträkningsmall!$A16=41,OR(Uträkningsmall!$E16=\"\",Uträkningsmall!$F16=\"\")),1,IF(AND(Uträkningsmall!$A16=42,OR(Uträkningsmall!$E16=\"\",Uträkningsmall!$F16=\"\")),1,0))))))))))))))))))))","v":""},{"$f":"Funktioner!B149&Funktioner!C149&\", \"&Funktioner!D149&\"g\"&Funktioner!E149&Funktioner!F149","v":"Vitt kopieringspapper - storpackA4, 80gA-kvalitet, åldringsbeständigtHålat"},{"$f":"Uträkningsmall!B16&Uträkningsmall!C16&Uträkningsmall!D16&Uträkningsmall!E16","v":""},null,"",null,{"$f":"Uträkningsmall!$A16","v":""},{"$f":"IFERROR(INDEX(Omfattning!$B$3:$J$50,MATCH($H6,Funktioner!$A$30:$A$77,0),MATCH(I$2,Omfattning!$B$2:$J$2,0)),\"\")","v":0},{"$f":"IFERROR(INDEX(Omfattning!$B$3:$J$50,MATCH($H6,Funktioner!$A$30:$A$77,0),MATCH(J$2,Omfattning!$B$2:$J$2,0)),\"\")","v":0},{"$f":"IFERROR(INDEX(Omfattning!$B$3:$J$50,MATCH($H6,Funktioner!$A$30:$A$77,0),MATCH(K$2,Omfattning!$B$2:$J$2,0)),\"\")","v":0},{"$f":"IFERROR(INDEX(Omfattning!$B$3:$J$50,MATCH($H6,Funktioner!$A$30:$A$77,0),MATCH(L$2,Omfattning!$B$2:$J$2,0)),\"\")","v":""},{"$f":"IFERROR(INDEX(Omfattning!$B$3:$J$50,MATCH($H6,Funktioner!$A$30:$A$77,0),MATCH(M$2,Omfattning!$B$2:$J$2,0)),\"\")","v":0},{"$f":"IFERROR(INDEX(Omfattning!$B$3:$J$50,MATCH($H6,Funktioner!$A$30:$A$77,0),MATCH(N$2,Omfattning!$B$2:$J$2,0)),\"\")","v":0},{"$f":"IFERROR(INDEX(Omfattning!$B$3:$J$50,MATCH($H6,Funktioner!$A$30:$A$77,0),MATCH(O$2,Omfattning!$B$2:$J$2,0)),\"\")","v":0},{"$f":"IFERROR(INDEX(Omfattning!$B$3:$J$50,MATCH($H6,Funktioner!$A$30:$A$77,0),MATCH(P$2,Omfattning!$B$2:$J$2,0)),\"\")","v":0},{"$f":"IFERROR(INDEX(Omfattning!$B$3:$J$50,MATCH($H6,Funktioner!$A$30:$A$77,0),MATCH(Q$2,Omfattning!$B$2:$J$2,0)),\"\")","v":0},{"$f":"IF(Uträkningsmall!$F16=\"\",\"\",IF(S6=\"Kan ej leverera\",240000000,IF(ISNUMBER(P6),P6*Uträkningsmall!$F16,\"\")))","v":""},"",null,{"$f":"IFERROR(INDEX(Omfattning!$M$3:$U$50,MATCH($H6,Funktioner!$B$30:$B$77,0),MATCH(U$2,Omfattning!$M$2:$U$2,0)),\"\")","v":0},{"$f":"IFERROR(INDEX(Omfattning!$M$3:$U$50,MATCH($H6,Funktioner!$B$30:$B$77,0),MATCH(V$2,Omfattning!$M$2:$U$2,0)),\"\")","v":0},{"$f":"IFERROR(INDEX(Omfattning!$M$3:$U$50,MATCH($H6,Funktioner!$B$30:$B$77,0),MATCH(W$2,Omfattning!$M$2:$U$2,0)),\"\")","v":0},{"$f":"IFERROR(INDEX(Omfattning!$M$3:$U$50,MATCH($H6,Funktioner!$B$30:$B$77,0),MATCH(X$2,Omfattning!$M$2:$U$2,0)),\"\")","v":0},{"$f":"IFERROR(INDEX(Omfattning!$M$3:$U$50,MATCH($H6,Funktioner!$B$30:$B$77,0),MATCH(Y$2,Omfattning!$M$2:$U$2,0)),\"\")","v":0},{"$f":"IFERROR(INDEX(Omfattning!$M$3:$U$50,MATCH($H6,Funktioner!$B$30:$B$77,0),MATCH(Z$2,Omfattning!$M$2:$U$2,0)),\"\")","v":0},{"$f":"IFERROR(INDEX(Omfattning!$M$3:$U$50,MATCH($H6,Funktioner!$B$30:$B$77,0),MATCH(AA$2,Omfattning!$M$2:$U$2,0)),\"\")","v":0},{"$f":"IFERROR(INDEX(Omfattning!$M$3:$U$50,MATCH($H6,Funktioner!$B$30:$B$77,0),MATCH(AB$2,Omfattning!$M$2:$U$2,0)),\"\")","v":0},{"$f":"IFERROR(INDEX(Omfattning!$M$3:$U$50,MATCH($H6,Funktioner!$B$30:$B$77,0),MATCH(AC$2,Omfattning!$M$2:$U$2,0)),\"\")","v":0},{"$f":"IF(Uträkningsmall!$F16=\"\",\"\",IF(AE6=\"Kan ej leverera\",240000000,IF(ISNUMBER(AB6),AB6*Uträkningsmall!$F16,\"\")))","v":""},"",null,{"$f":"IFERROR(INDEX(Omfattning!$X$3:$AF$50,MATCH($H6,Funktioner!$C$30:$C$77,0),MATCH(AG$2,Omfattning!$X$2:$AF$2,0)),\"\")","v":0},{"$f":"IFERROR(INDEX(Omfattning!$X$3:$AF$50,MATCH($H6,Funktioner!$C$30:$C$77,0),MATCH(AH$2,Omfattning!$X$2:$AF$2,0)),\"\")","v":0},{"$f":"IFERROR(INDEX(Omfattning!$X$3:$AF$50,MATCH($H6,Funktioner!$C$30:$C$77,0),MATCH(AI$2,Omfattning!$X$2:$AF$2,0)),\"\")","v":0},{"$f":"IFERROR(INDEX(Omfattning!$X$3:$AF$50,MATCH($H6,Funktioner!$C$30:$C$77,0),MATCH(AJ$2,Omfattning!$X$2:$AF$2,0)),\"\")","v":0},{"$f":"IFERROR(INDEX(Omfattning!$X$3:$AF$50,MATCH($H6,Funktioner!$C$30:$C$77,0),MATCH(AK$2,Omfattning!$X$2:$AF$2,0)),\"\")","v":0},{"$f":"IFERROR(INDEX(Omfattning!$X$3:$AF$50,MATCH($H6,Funktioner!$C$30:$C$77,0),MATCH(AL$2,Omfattning!$X$2:$AF$2,0)),\"\")","v":0},{"$f":"IFERROR(INDEX(Omfattning!$X$3:$AF$50,MATCH($H6,Funktioner!$C$30:$C$77,0),MATCH(AM$2,Omfattning!$X$2:$AF$2,0)),\"\")","v":0},{"$f":"IFERROR(INDEX(Omfattning!$X$3:$AF$50,MATCH($H6,Funktioner!$C$30:$C$77,0),MATCH(AN$2,Omfattning!$X$2:$AF$2,0)),\"\")","v":0},{"$f":"IFERROR(INDEX(Omfattning!$X$3:$AF$50,MATCH($H6,Funktioner!$C$30:$C$77,0),MATCH(AO$2,Omfattning!$X$2:$AF$2,0)),\"\")","v":0},{"$f":"IF(Uträkningsmall!$F16=\"\",\"\",IF(AQ6=\"Kan ej leverera\",240000000,IF(ISNUMBER(AN6),AN6*Uträkningsmall!$F16,\"\")))","v":""},"",null,{"$f":"IFERROR(INDEX(Omfattning!$AI$3:$AQ$50,MATCH($H6,Funktioner!$D$30:$D$77,0),MATCH(AS$2,Omfattning!$AI$2:$AQ$2,0)),\"\")","v":0},{"$f":"IFERROR(INDEX(Omfattning!$AI$3:$AQ$50,MATCH($H6,Funktioner!$D$30:$D$77,0),MATCH(AT$2,Omfattning!$AI$2:$AQ$2,0)),\"\")","v":0},{"$f":"IFERROR(INDEX(Omfattning!$AI$3:$AQ$50,MATCH($H6,Funktioner!$D$30:$D$77,0),MATCH(AU$2,Omfattning!$AI$2:$AQ$2,0)),\"\")","v":0},{"$f":"IFERROR(INDEX(Omfattning!$AI$3:$AQ$50,MATCH($H6,Funktioner!$D$30:$D$77,0),MATCH(AV$2,Omfattning!$AI$2:$AQ$2,0)),\"\")","v":0},{"$f":"IFERROR(INDEX(Omfattning!$AI$3:$AQ$50,MATCH($H6,Funktioner!$D$30:$D$77,0),MATCH(AW$2,Omfattning!$AI$2:$AQ$2,0)),\"\")","v":0},{"$f":"IFERROR(INDEX(Omfattning!$AI$3:$AQ$50,MATCH($H6,Funktioner!$D$30:$D$77,0),MATCH(AX$2,Omfattning!$AI$2:$AQ$2,0)),\"\")","v":0},{"$f":"IFERROR(INDEX(Omfattning!$AI$3:$AQ$50,MATCH($H6,Funktioner!$D$30:$D$77,0),MATCH(AY$2,Omfattning!$AI$2:$AQ$2,0)),\"\")","v":0},{"$f":"IFERROR(INDEX(Omfattning!$AI$3:$AQ$50,MATCH($H6,Funktioner!$D$30:$D$77,0),MATCH(AZ$2,Omfattning!$AI$2:$AQ$2,0)),\"\")","v":0},{"$f":"IFERROR(INDEX(Omfattning!$AI$3:$AQ$50,MATCH($H6,Funktioner!$D$30:$D$77,0),MATCH(BA$2,Omfattning!$AI$2:$AQ$2,0)),\"\")","v":0},{"$f":"IF(Uträkningsmall!$F16=\"\",\"\",IF(BC6=\"Kan ej leverera\",240000000,IF(ISNUMBER(AZ6),AZ6*Uträkningsmall!$F16,\"\")))","v":""},"",null,{"$f":"IFERROR(INDEX(Omfattning!$AT$3:$BB$50,MATCH($H6,Funktioner!$E$30:$E$77,0),MATCH(BE$2,Omfattning!$AT$2:$BB$2,0)),\"\")","v":0},{"$f":"IFERROR(INDEX(Omfattning!$AT$3:$BB$50,MATCH($H6,Funktioner!$E$30:$E$77,0),MATCH(BF$2,Omfattning!$AT$2:$BB$2,0)),\"\")","v":0},{"$f":"IFERROR(INDEX(Omfattning!$AT$3:$BB$50,MATCH($H6,Funktioner!$E$30:$E$77,0),MATCH(BG$2,Omfattning!$AT$2:$BB$2,0)),\"\")","v":0},{"$f":"IFERROR(INDEX(Omfattning!$AT$3:$BB$50,MATCH($H6,Funktioner!$E$30:$E$77,0),MATCH(BH$2,Omfattning!$AT$2:$BB$2,0)),\"\")","v":0},{"$f":"IFERROR(INDEX(Omfattning!$AT$3:$BB$50,MATCH($H6,Funktioner!$E$30:$E$77,0),MATCH(BI$2,Omfattning!$AT$2:$BB$2,0)),\"\")","v":0},{"$f":"IFERROR(INDEX(Omfattning!$AT$3:$BB$50,MATCH($H6,Funktioner!$E$30:$E$77,0),MATCH(BJ$2,Omfattning!$AT$2:$BB$2,0)),\"\")","v":0},{"$f":"IFERROR(INDEX(Omfattning!$AT$3:$BB$50,MATCH($H6,Funktioner!$E$30:$E$77,0),MATCH(BK$2,Omfattning!$AT$2:$BB$2,0)),\"\")","v":0},{"$f":"IFERROR(INDEX(Omfattning!$AT$3:$BB$50,MATCH($H6,Funktioner!$E$30:$E$77,0),MATCH(BL$2,Omfattning!$AT$2:$BB$2,0)),\"\")","v":0},{"$f":"IFERROR(INDEX(Omfattning!$AT$3:$BB$50,MATCH($H6,Funktioner!$E$30:$E$77,0),MATCH(BM$2,Omfattning!$AT$2:$BB$2,0)),\"\")","v":0},{"$f":"IF(Uträkningsmall!$F16=\"\",\"\",IF(BO6=\"Kan ej leverera\",240000000,IF(ISNUMBER(BL6),BL6*Uträkningsmall!$F16,\"\")))","v":""},"",null,{"$f":"IFERROR(INDEX(Omfattning!$BE$3:$BM$50,MATCH($H6,Funktioner!$F$30:$F$77,0),MATCH(BQ$2,Omfattning!$BE$2:$BM$2,0)),\"\")","v":0},{"$f":"IFERROR(INDEX(Omfattning!$BE$3:$BM$50,MATCH($H6,Funktioner!$F$30:$F$77,0),MATCH(BR$2,Omfattning!$BE$2:$BM$2,0)),\"\")","v":0},{"$f":"IFERROR(INDEX(Omfattning!$BE$3:$BM$50,MATCH($H6,Funktioner!$F$30:$F$77,0),MATCH(BS$2,Omfattning!$BE$2:$BM$2,0)),\"\")","v":0},{"$f":"IFERROR(INDEX(Omfattning!$BE$3:$BM$50,MATCH($H6,Funktioner!$F$30:$F$77,0),MATCH(BT$2,Omfattning!$BE$2:$BM$2,0)),\"\")","v":0},{"$f":"IFERROR(INDEX(Omfattning!$BE$3:$BM$50,MATCH($H6,Funktioner!$F$30:$F$77,0),MATCH(BU$2,Omfattning!$BE$2:$BM$2,0)),\"\")","v":0},{"$f":"IFERROR(INDEX(Omfattning!$BE$3:$BM$50,MATCH($H6,Funktioner!$F$30:$F$77,0),MATCH(BV$2,Omfattning!$BE$2:$BM$2,0)),\"\")","v":0},{"$f":"IFERROR(INDEX(Omfattning!$BE$3:$BM$50,MATCH($H6,Funktioner!$F$30:$F$77,0),MATCH(BW$2,Omfattning!$BE$2:$BM$2,0)),\"\")","v":0},{"$f":"IFERROR(INDEX(Omfattning!$BE$3:$BM$50,MATCH($H6,Funktioner!$F$30:$F$77,0),MATCH(BX$2,Omfattning!$BE$2:$BM$2,0)),\"\")","v":0},{"$f":"IFERROR(INDEX(Omfattning!$BE$3:$BM$50,MATCH($H6,Funktioner!$F$30:$F$77,0),MATCH(BY$2,Omfattning!$BE$2:$BM$2,0)),\"\")","v":0},{"$f":"IF(Uträkningsmall!$F16=\"\",\"\",IF(CA6=\"Kan ej leverera\",240000000,IF(ISNUMBER(BX6),BX6*Uträkningsmall!$F16,\"\")))","v":""},""]
[{"$f":"\"Position\"&Uträkningsmall!$A17","v":"Position"},{"$f":"IF(Uträkningsmall!$F17=\"\",\"\",IF(AND(Uträkningsmall!$A17=15,OR(Uträkningsmall!$E17=\"\",Uträkningsmall!$F17=\"\")),1,IF(AND(Uträkningsmall!$A17=16,OR(Uträkningsmall!$E17=\"\",Uträkningsmall!$F17=\"\")),1,IF(AND(Uträkningsmall!$A17=17,OR(Uträkningsmall!$E17=\"\",Uträkningsmall!$F17=\"\")),1,IF(AND(Uträkningsmall!$A17=19,OR(Uträkningsmall!$E17=\"\",Uträkningsmall!$F17=\"\")),1,IF(AND(Uträkningsmall!$A17=20,OR(Uträkningsmall!$E17=\"\",Uträkningsmall!$F17=\"\")),1,IF(AND(Uträkningsmall!$A17=21,OR(Uträkningsmall!$E17=\"\",Uträkningsmall!$F17=\"\")),1,IF(AND(Uträkningsmall!$A17=22,OR(Uträkningsmall!$E17=\"\",Uträkningsmall!$F17=\"\")),1,IF(AND(Uträkningsmall!$A17=23,OR(Uträkningsmall!$E17=\"\",Uträkningsmall!$F17=\"\")),1,IF(AND(Uträkningsmall!$A17=24,OR(Uträkningsmall!$E17=\"\",Uträkningsmall!$F17=\"\")),1,IF(AND(Uträkningsmall!$A17=25,OR(Uträkningsmall!$E17=\"\",Uträkningsmall!$F17=\"\")),1,IF(AND(Uträkningsmall!$A17=26,OR(Uträkningsmall!$E17=\"\",Uträkningsmall!$F17=\"\")),1,IF(AND(Uträkningsmall!$A17=27,OR(Uträkningsmall!$E17=\"\",Uträkningsmall!$F17=\"\")),1,IF(AND(Uträkningsmall!$A17=28,OR(Uträkningsmall!$E17=\"\",Uträkningsmall!$F17=\"\")),1,IF(AND(Uträkningsmall!$A17=29,OR(Uträkningsmall!$E17=\"\",Uträkningsmall!$F17=\"\")),1,IF(AND(Uträkningsmall!$A17=30,OR(Uträkningsmall!$E17=\"\",Uträkningsmall!$F17=\"\")),1,IF(AND(Uträkningsmall!$A17=39,OR(Uträkningsmall!$E17=\"\",Uträkningsmall!$F17=\"\")),1,IF(AND(Uträkningsmall!$A17=40,OR(Uträkningsmall!$E17=\"\",Uträkningsmall!$F17=\"\")),1,IF(AND(Uträkningsmall!$A17=41,OR(Uträkningsmall!$E17=\"\",Uträkningsmall!$F17=\"\")),1,IF(AND(Uträkningsmall!$A17=42,OR(Uträkningsmall!$E17=\"\",Uträkningsmall!$F17=\"\")),1,0))))))))))))))))))))","v":""},{"$f":"Funktioner!B150&Funktioner!C150&\", \"&Funktioner!D150&\"g\"&Funktioner!E150&Funktioner!F150","v":"Vitt kopieringspapperA4, 90gA-kvalitet, åldringsbeständigtOhålat"},{"$f":"Uträkningsmall!B17&Uträkningsmall!C17&Uträkningsmall!D17&Uträkningsmall!E17","v":""},null,"",null,{"$f":"Uträkningsmall!$A17","v":""},{"$f":"IFERROR(INDEX(Omfattning!$B$3:$J$50,MATCH($H7,Funktioner!$A$30:$A$77,0),MATCH(I$2,Omfattning!$B$2:$J$2,0)),\"\")","v":0},{"$f":"IFERROR(INDEX(Omfattning!$B$3:$J$50,MATCH($H7,Funktioner!$A$30:$A$77,0),MATCH(J$2,Omfattning!$B$2:$J$2,0)),\"\")","v":0},{"$f":"IFERROR(INDEX(Omfattning!$B$3:$J$50,MATCH($H7,Funktioner!$A$30:$A$77,0),MATCH(K$2,Omfattning!$B$2:$J$2,0)),\"\")","v":0},{"$f":"IFERROR(INDEX(Omfattning!$B$3:$J$50,MATCH($H7,Funktioner!$A$30:$A$77,0),MATCH(L$2,Omfattning!$B$2:$J$2,0)),\"\")","v":""},{"$f":"IFERROR(INDEX(Omfattning!$B$3:$J$50,MATCH($H7,Funktioner!$A$30:$A$77,0),MATCH(M$2,Omfattning!$B$2:$J$2,0)),\"\")","v":0},{"$f":"IFERROR(INDEX(Omfattning!$B$3:$J$50,MATCH($H7,Funktioner!$A$30:$A$77,0),MATCH(N$2,Omfattning!$B$2:$J$2,0)),\"\")","v":0},{"$f":"IFERROR(INDEX(Omfattning!$B$3:$J$50,MATCH($H7,Funktioner!$A$30:$A$77,0),MATCH(O$2,Omfattning!$B$2:$J$2,0)),\"\")","v":0},{"$f":"IFERROR(INDEX(Omfattning!$B$3:$J$50,MATCH($H7,Funktioner!$A$30:$A$77,0),MATCH(P$2,Omfattning!$B$2:$J$2,0)),\"\")","v":0},{"$f":"IFERROR(INDEX(Omfattning!$B$3:$J$50,MATCH($H7,Funktioner!$A$30:$A$77,0),MATCH(Q$2,Omfattning!$B$2:$J$2,0)),\"\")","v":0},{"$f":"IF(Uträkningsmall!$F17=\"\",\"\",IF(S7=\"Kan ej leverera\",240000000,IF(ISNUMBER(P7),P7*Uträkningsmall!$F17,\"\")))","v":""},"",null,{"$f":"IFERROR(INDEX(Omfattning!$M$3:$U$50,MATCH($H7,Funktioner!$B$30:$B$77,0),MATCH(U$2,Omfattning!$M$2:$U$2,0)),\"\")","v":0},{"$f":"IFERROR(INDEX(Omfattning!$M$3:$U$50,MATCH($H7,Funktioner!$B$30:$B$77,0),MATCH(V$2,Omfattning!$M$2:$U$2,0)),\"\")","v":0},{"$f":"IFERROR(INDEX(Omfattning!$M$3:$U$50,MATCH($H7,Funktioner!$B$30:$B$77,0),MATCH(W$2,Omfattning!$M$2:$U$2,0)),\"\")","v":0},{"$f":"IFERROR(INDEX(Omfattning!$M$3:$U$50,MATCH($H7,Funktioner!$B$30:$B$77,0),MATCH(X$2,Omfattning!$M$2:$U$2,0)),\"\")","v":0},{"$f":"IFERROR(INDEX(Omfattning!$M$3:$U$50,MATCH($H7,Funktioner!$B$30:$B$77,0),MATCH(Y$2,Omfattning!$M$2:$U$2,0)),\"\")","v":0},{"$f":"IFERROR(INDEX(Omfattning!$M$3:$U$50,MATCH($H7,Funktioner!$B$30:$B$77,0),MATCH(Z$2,Omfattning!$M$2:$U$2,0)),\"\")","v":0},{"$f":"IFERROR(INDEX(Omfattning!$M$3:$U$50,MATCH($H7,Funktioner!$B$30:$B$77,0),MATCH(AA$2,Omfattning!$M$2:$U$2,0)),\"\")","v":0},{"$f":"IFERROR(INDEX(Omfattning!$M$3:$U$50,MATCH($H7,Funktioner!$B$30:$B$77,0),MATCH(AB$2,Omfattning!$M$2:$U$2,0)),\"\")","v":0},{"$f":"IFERROR(INDEX(Omfattning!$M$3:$U$50,MATCH($H7,Funktioner!$B$30:$B$77,0),MATCH(AC$2,Omfattning!$M$2:$U$2,0)),\"\")","v":0},{"$f":"IF(Uträkningsmall!$F17=\"\",\"\",IF(AE7=\"Kan ej leverera\",240000000,IF(ISNUMBER(AB7),AB7*Uträkningsmall!$F17,\"\")))","v":""},"",null,{"$f":"IFERROR(INDEX(Omfattning!$X$3:$AF$50,MATCH($H7,Funktioner!$C$30:$C$77,0),MATCH(AG$2,Omfattning!$X$2:$AF$2,0)),\"\")","v":0},{"$f":"IFERROR(INDEX(Omfattning!$X$3:$AF$50,MATCH($H7,Funktioner!$C$30:$C$77,0),MATCH(AH$2,Omfattning!$X$2:$AF$2,0)),\"\")","v":0},{"$f":"IFERROR(INDEX(Omfattning!$X$3:$AF$50,MATCH($H7,Funktioner!$C$30:$C$77,0),MATCH(AI$2,Omfattning!$X$2:$AF$2,0)),\"\")","v":0},{"$f":"IFERROR(INDEX(Omfattning!$X$3:$AF$50,MATCH($H7,Funktioner!$C$30:$C$77,0),MATCH(AJ$2,Omfattning!$X$2:$AF$2,0)),\"\")","v":0},{"$f":"IFERROR(INDEX(Omfattning!$X$3:$AF$50,MATCH($H7,Funktioner!$C$30:$C$77,0),MATCH(AK$2,Omfattning!$X$2:$AF$2,0)),\"\")","v":0},{"$f":"IFERROR(INDEX(Omfattning!$X$3:$AF$50,MATCH($H7,Funktioner!$C$30:$C$77,0),MATCH(AL$2,Omfattning!$X$2:$AF$2,0)),\"\")","v":0},{"$f":"IFERROR(INDEX(Omfattning!$X$3:$AF$50,MATCH($H7,Funktioner!$C$30:$C$77,0),MATCH(AM$2,Omfattning!$X$2:$AF$2,0)),\"\")","v":0},{"$f":"IFERROR(INDEX(Omfattning!$X$3:$AF$50,MATCH($H7,Funktioner!$C$30:$C$77,0),MATCH(AN$2,Omfattning!$X$2:$AF$2,0)),\"\")","v":0},{"$f":"IFERROR(INDEX(Omfattning!$X$3:$AF$50,MATCH($H7,Funktioner!$C$30:$C$77,0),MATCH(AO$2,Omfattning!$X$2:$AF$2,0)),\"\")","v":0},{"$f":"IF(Uträkningsmall!$F17=\"\",\"\",IF(AQ7=\"Kan ej leverera\",240000000,IF(ISNUMBER(AN7),AN7*Uträkningsmall!$F17,\"\")))","v":""},"",null,{"$f":"IFERROR(INDEX(Omfattning!$AI$3:$AQ$50,MATCH($H7,Funktioner!$D$30:$D$77,0),MATCH(AS$2,Omfattning!$AI$2:$AQ$2,0)),\"\")","v":0},{"$f":"IFERROR(INDEX(Omfattning!$AI$3:$AQ$50,MATCH($H7,Funktioner!$D$30:$D$77,0),MATCH(AT$2,Omfattning!$AI$2:$AQ$2,0)),\"\")","v":0},{"$f":"IFERROR(INDEX(Omfattning!$AI$3:$AQ$50,MATCH($H7,Funktioner!$D$30:$D$77,0),MATCH(AU$2,Omfattning!$AI$2:$AQ$2,0)),\"\")","v":0},{"$f":"IFERROR(INDEX(Omfattning!$AI$3:$AQ$50,MATCH($H7,Funktioner!$D$30:$D$77,0),MATCH(AV$2,Omfattning!$AI$2:$AQ$2,0)),\"\")","v":0},{"$f":"IFERROR(INDEX(Omfattning!$AI$3:$AQ$50,MATCH($H7,Funktioner!$D$30:$D$77,0),MATCH(AW$2,Omfattning!$AI$2:$AQ$2,0)),\"\")","v":0},{"$f":"IFERROR(INDEX(Omfattning!$AI$3:$AQ$50,MATCH($H7,Funktioner!$D$30:$D$77,0),MATCH(AX$2,Omfattning!$AI$2:$AQ$2,0)),\"\")","v":0},{"$f":"IFERROR(INDEX(Omfattning!$AI$3:$AQ$50,MATCH($H7,Funktioner!$D$30:$D$77,0),MATCH(AY$2,Omfattning!$AI$2:$AQ$2,0)),\"\")","v":0},{"$f":"IFERROR(INDEX(Omfattning!$AI$3:$AQ$50,MATCH($H7,Funktioner!$D$30:$D$77,0),MATCH(AZ$2,Omfattning!$AI$2:$AQ$2,0)),\"\")","v":0},{"$f":"IFERROR(INDEX(Omfattning!$AI$3:$AQ$50,MATCH($H7,Funktioner!$D$30:$D$77,0),MATCH(BA$2,Omfattning!$AI$2:$AQ$2,0)),\"\")","v":0},{"$f":"IF(Uträkningsmall!$F17=\"\",\"\",IF(BC7=\"Kan ej leverera\",240000000,IF(ISNUMBER(AZ7),AZ7*Uträkningsmall!$F17,\"\")))","v":""},"",null,{"$f":"IFERROR(INDEX(Omfattning!$AT$3:$BB$50,MATCH($H7,Funktioner!$E$30:$E$77,0),MATCH(BE$2,Omfattning!$AT$2:$BB$2,0)),\"\")","v":0},{"$f":"IFERROR(INDEX(Omfattning!$AT$3:$BB$50,MATCH($H7,Funktioner!$E$30:$E$77,0),MATCH(BF$2,Omfattning!$AT$2:$BB$2,0)),\"\")","v":0},{"$f":"IFERROR(INDEX(Omfattning!$AT$3:$BB$50,MATCH($H7,Funktioner!$E$30:$E$77,0),MATCH(BG$2,Omfattning!$AT$2:$BB$2,0)),\"\")","v":0},{"$f":"IFERROR(INDEX(Omfattning!$AT$3:$BB$50,MATCH($H7,Funktioner!$E$30:$E$77,0),MATCH(BH$2,Omfattning!$AT$2:$BB$2,0)),\"\")","v":0},{"$f":"IFERROR(INDEX(Omfattning!$AT$3:$BB$50,MATCH($H7,Funktioner!$E$30:$E$77,0),MATCH(BI$2,Omfattning!$AT$2:$BB$2,0)),\"\")","v":0},{"$f":"IFERROR(INDEX(Omfattning!$AT$3:$BB$50,MATCH($H7,Funktioner!$E$30:$E$77,0),MATCH(BJ$2,Omfattning!$AT$2:$BB$2,0)),\"\")","v":0},{"$f":"IFERROR(INDEX(Omfattning!$AT$3:$BB$50,MATCH($H7,Funktioner!$E$30:$E$77,0),MATCH(BK$2,Omfattning!$AT$2:$BB$2,0)),\"\")","v":0},{"$f":"IFERROR(INDEX(Omfattning!$AT$3:$BB$50,MATCH($H7,Funktioner!$E$30:$E$77,0),MATCH(BL$2,Omfattning!$AT$2:$BB$2,0)),\"\")","v":0},{"$f":"IFERROR(INDEX(Omfattning!$AT$3:$BB$50,MATCH($H7,Funktioner!$E$30:$E$77,0),MATCH(BM$2,Omfattning!$AT$2:$BB$2,0)),\"\")","v":0},{"$f":"IF(Uträkningsmall!$F17=\"\",\"\",IF(BO7=\"Kan ej leverera\",240000000,IF(ISNUMBER(BL7),BL7*Uträkningsmall!$F17,\"\")))","v":""},"",null,{"$f":"IFERROR(INDEX(Omfattning!$BE$3:$BM$50,MATCH($H7,Funktioner!$F$30:$F$77,0),MATCH(BQ$2,Omfattning!$BE$2:$BM$2,0)),\"\")","v":0},{"$f":"IFERROR(INDEX(Omfattning!$BE$3:$BM$50,MATCH($H7,Funktioner!$F$30:$F$77,0),MATCH(BR$2,Omfattning!$BE$2:$BM$2,0)),\"\")","v":0},{"$f":"IFERROR(INDEX(Omfattning!$BE$3:$BM$50,MATCH($H7,Funktioner!$F$30:$F$77,0),MATCH(BS$2,Omfattning!$BE$2:$BM$2,0)),\"\")","v":0},{"$f":"IFERROR(INDEX(Omfattning!$BE$3:$BM$50,MATCH($H7,Funktioner!$F$30:$F$77,0),MATCH(BT$2,Omfattning!$BE$2:$BM$2,0)),\"\")","v":0},{"$f":"IFERROR(INDEX(Omfattning!$BE$3:$BM$50,MATCH($H7,Funktioner!$F$30:$F$77,0),MATCH(BU$2,Omfattning!$BE$2:$BM$2,0)),\"\")","v":0},{"$f":"IFERROR(INDEX(Omfattning!$BE$3:$BM$50,MATCH($H7,Funktioner!$F$30:$F$77,0),MATCH(BV$2,Omfattning!$BE$2:$BM$2,0)),\"\")","v":0},{"$f":"IFERROR(INDEX(Omfattning!$BE$3:$BM$50,MATCH($H7,Funktioner!$F$30:$F$77,0),MATCH(BW$2,Omfattning!$BE$2:$BM$2,0)),\"\")","v":0},{"$f":"IFERROR(INDEX(Omfattning!$BE$3:$BM$50,MATCH($H7,Funktioner!$F$30:$F$77,0),MATCH(BX$2,Omfattning!$BE$2:$BM$2,0)),\"\")","v":0},{"$f":"IFERROR(INDEX(Omfattning!$BE$3:$BM$50,MATCH($H7,Funktioner!$F$30:$F$77,0),MATCH(BY$2,Omfattning!$BE$2:$BM$2,0)),\"\")","v":0},{"$f":"IF(Uträkningsmall!$F17=\"\",\"\",IF(CA7=\"Kan ej leverera\",240000000,IF(ISNUMBER(BX7),BX7*Uträkningsmall!$F17,\"\")))","v":""},""]
[{"$f":"\"Position\"&Uträkningsmall!$A18","v":"Position"},{"$f":"IF(Uträkningsmall!$F18=\"\",\"\",IF(AND(Uträkningsmall!$A18=15,OR(Uträkningsmall!$E18=\"\",Uträkningsmall!$F18=\"\")),1,IF(AND(Uträkningsmall!$A18=16,OR(Uträkningsmall!$E18=\"\",Uträkningsmall!$F18=\"\")),1,IF(AND(Uträkningsmall!$A18=17,OR(Uträkningsmall!$E18=\"\",Uträkningsmall!$F18=\"\")),1,IF(AND(Uträkningsmall!$A18=19,OR(Uträkningsmall!$E18=\"\",Uträkningsmall!$F18=\"\")),1,IF(AND(Uträkningsmall!$A18=20,OR(Uträkningsmall!$E18=\"\",Uträkningsmall!$F18=\"\")),1,IF(AND(Uträkningsmall!$A18=21,OR(Uträkningsmall!$E18=\"\",Uträkningsmall!$F18=\"\")),1,IF(AND(Uträkningsmall!$A18=22,OR(Uträkningsmall!$E18=\"\",Uträkningsmall!$F18=\"\")),1,IF(AND(Uträkningsmall!$A18=23,OR(Uträkningsmall!$E18=\"\",Uträkningsmall!$F18=\"\")),1,IF(AND(Uträkningsmall!$A18=24,OR(Uträkningsmall!$E18=\"\",Uträkningsmall!$F18=\"\")),1,IF(AND(Uträkningsmall!$A18=25,OR(Uträkningsmall!$E18=\"\",Uträkningsmall!$F18=\"\")),1,IF(AND(Uträkningsmall!$A18=26,OR(Uträkningsmall!$E18=\"\",Uträkningsmall!$F18=\"\")),1,IF(AND(Uträkningsmall!$A18=27,OR(Uträkningsmall!$E18=\"\",Uträkningsmall!$F18=\"\")),1,IF(AND(Uträkningsmall!$A18=28,OR(Uträkningsmall!$E18=\"\",Uträkningsmall!$F18=\"\")),1,IF(AND(Uträkningsmall!$A18=29,OR(Uträkningsmall!$E18=\"\",Uträkningsmall!$F18=\"\")),1,IF(AND(Uträkningsmall!$A18=30,OR(Uträkningsmall!$E18=\"\",Uträkningsmall!$F18=\"\")),1,IF(AND(Uträkningsmall!$A18=39,OR(Uträkningsmall!$E18=\"\",Uträkningsmall!$F18=\"\")),1,IF(AND(Uträkningsmall!$A18=40,OR(Uträkningsmall!$E18=\"\",Uträkningsmall!$F18=\"\")),1,IF(AND(Uträkningsmall!$A18=41,OR(Uträkningsmall!$E18=\"\",Uträkningsmall!$F18=\"\")),1,IF(AND(Uträkningsmall!$A18=42,OR(Uträkningsmall!$E18=\"\",Uträkningsmall!$F18=\"\")),1,0))))))))))))))))))))","v":""},{"$f":"Funktioner!B151&Funktioner!C151&\", \"&Funktioner!D151&\"g\"&Funktioner!E151&Funktioner!F151","v":"Vitt kopieringspapperA3, 80gA-kvalitet, åldringsbeständigtOhålat"},{"$f":"Uträkningsmall!B18&Uträkningsmall!C18&Uträkningsmall!D18&Uträkningsmall!E18","v":""},null,"",null,{"$f":"Uträkningsmall!$A18","v":""},{"$f":"IFERROR(INDEX(Omfattning!$B$3:$J$50,MATCH($H8,Funktioner!$A$30:$A$77,0),MATCH(I$2,Omfattning!$B$2:$J$2,0)),\"\")","v":0},{"$f":"IFERROR(INDEX(Omfattning!$B$3:$J$50,MATCH($H8,Funktioner!$A$30:$A$77,0),MATCH(J$2,Omfattning!$B$2:$J$2,0)),\"\")","v":0},{"$f":"IFERROR(INDEX(Omfattning!$B$3:$J$50,MATCH($H8,Funktioner!$A$30:$A$77,0),MATCH(K$2,Omfattning!$B$2:$J$2,0)),\"\")","v":0},{"$f":"IFERROR(INDEX(Omfattning!$B$3:$J$50,MATCH($H8,Funktioner!$A$30:$A$77,0),MATCH(L$2,Omfattning!$B$2:$J$2,0)),\"\")","v":""},{"$f":"IFERROR(INDEX(Omfattning!$B$3:$J$50,MATCH($H8,Funktioner!$A$30:$A$77,0),MATCH(M$2,Omfattning!$B$2:$J$2,0)),\"\")","v":0},{"$f":"IFERROR(INDEX(Omfattning!$B$3:$J$50,MATCH($H8,Funktioner!$A$30:$A$77,0),MATCH(N$2,Omfattning!$B$2:$J$2,0)),\"\")","v":0},{"$f":"IFERROR(INDEX(Omfattning!$B$3:$J$50,MATCH($H8,Funktioner!$A$30:$A$77,0),MATCH(O$2,Omfattning!$B$2:$J$2,0)),\"\")","v":0},{"$f":"IFERROR(INDEX(Omfattning!$B$3:$J$50,MATCH($H8,Funktioner!$A$30:$A$77,0),MATCH(P$2,Omfattning!$B$2:$J$2,0)),\"\")","v":0},{"$f":"IFERROR(INDEX(Omfattning!$B$3:$J$50,MATCH($H8,Funktioner!$A$30:$A$77,0),MATCH(Q$2,Omfattning!$B$2:$J$2,0)),\"\")","v":0},{"$f":"IF(Uträkningsmall!$F18=\"\",\"\",IF(S8=\"Kan ej leverera\",240000000,IF(ISNUMBER(P8),P8*Uträkningsmall!$F18,\"\")))","v":""},"",null,{"$f":"IFERROR(INDEX(Omfattning!$M$3:$U$50,MATCH($H8,Funktioner!$B$30:$B$77,0),MATCH(U$2,Omfattning!$M$2:$U$2,0)),\"\")","v":0},{"$f":"IFERROR(INDEX(Omfattning!$M$3:$U$50,MATCH($H8,Funktioner!$B$30:$B$77,0),MATCH(V$2,Omfattning!$M$2:$U$2,0)),\"\")","v":0},{"$f":"IFERROR(INDEX(Omfattning!$M$3:$U$50,MATCH($H8,Funktioner!$B$30:$B$77,0),MATCH(W$2,Omfattning!$M$2:$U$2,0)),\"\")","v":0},{"$f":"IFERROR(INDEX(Omfattning!$M$3:$U$50,MATCH($H8,Funktioner!$B$30:$B$77,0),MATCH(X$2,Omfattning!$M$2:$U$2,0)),\"\")","v":0},{"$f":"IFERROR(INDEX(Omfattning!$M$3:$U$50,MATCH($H8,Funktioner!$B$30:$B$77,0),MATCH(Y$2,Omfattning!$M$2:$U$2,0)),\"\")","v":0},{"$f":"IFERROR(INDEX(Omfattning!$M$3:$U$50,MATCH($H8,Funktioner!$B$30:$B$77,0),MATCH(Z$2,Omfattning!$M$2:$U$2,0)),\"\")","v":0},{"$f":"IFERROR(INDEX(Omfattning!$M$3:$U$50,MATCH($H8,Funktioner!$B$30:$B$77,0),MATCH(AA$2,Omfattning!$M$2:$U$2,0)),\"\")","v":0},{"$f":"IFERROR(INDEX(Omfattning!$M$3:$U$50,MATCH($H8,Funktioner!$B$30:$B$77,0),MATCH(AB$2,Omfattning!$M$2:$U$2,0)),\"\")","v":0},{"$f":"IFERROR(INDEX(Omfattning!$M$3:$U$50,MATCH($H8,Funktioner!$B$30:$B$77,0),MATCH(AC$2,Omfattning!$M$2:$U$2,0)),\"\")","v":0},{"$f":"IF(Uträkningsmall!$F18=\"\",\"\",IF(AE8=\"Kan ej leverera\",240000000,IF(ISNUMBER(AB8),AB8*Uträkningsmall!$F18,\"\")))","v":""},"",null,{"$f":"IFERROR(INDEX(Omfattning!$X$3:$AF$50,MATCH($H8,Funktioner!$C$30:$C$77,0),MATCH(AG$2,Omfattning!$X$2:$AF$2,0)),\"\")","v":0},{"$f":"IFERROR(INDEX(Omfattning!$X$3:$AF$50,MATCH($H8,Funktioner!$C$30:$C$77,0),MATCH(AH$2,Omfattning!$X$2:$AF$2,0)),\"\")","v":0},{"$f":"IFERROR(INDEX(Omfattning!$X$3:$AF$50,MATCH($H8,Funktioner!$C$30:$C$77,0),MATCH(AI$2,Omfattning!$X$2:$AF$2,0)),\"\")","v":0},{"$f":"IFERROR(INDEX(Omfattning!$X$3:$AF$50,MATCH($H8,Funktioner!$C$30:$C$77,0),MATCH(AJ$2,Omfattning!$X$2:$AF$2,0)),\"\")","v":0},{"$f":"IFERROR(INDEX(Omfattning!$X$3:$AF$50,MATCH($H8,Funktioner!$C$30:$C$77,0),MATCH(AK$2,Omfattning!$X$2:$AF$2,0)),\"\")","v":0},{"$f":"IFERROR(INDEX(Omfattning!$X$3:$AF$50,MATCH($H8,Funktioner!$C$30:$C$77,0),MATCH(AL$2,Omfattning!$X$2:$AF$2,0)),\"\")","v":0},{"$f":"IFERROR(INDEX(Omfattning!$X$3:$AF$50,MATCH($H8,Funktioner!$C$30:$C$77,0),MATCH(AM$2,Omfattning!$X$2:$AF$2,0)),\"\")","v":0},{"$f":"IFERROR(INDEX(Omfattning!$X$3:$AF$50,MATCH($H8,Funktioner!$C$30:$C$77,0),MATCH(AN$2,Omfattning!$X$2:$AF$2,0)),\"\")","v":0},{"$f":"IFERROR(INDEX(Omfattning!$X$3:$AF$50,MATCH($H8,Funktioner!$C$30:$C$77,0),MATCH(AO$2,Omfattning!$X$2:$AF$2,0)),\"\")","v":0},{"$f":"IF(Uträkningsmall!$F18=\"\",\"\",IF(AQ8=\"Kan ej leverera\",240000000,IF(ISNUMBER(AN8),AN8*Uträkningsmall!$F18,\"\")))","v":""},"",null,{"$f":"IFERROR(INDEX(Omfattning!$AI$3:$AQ$50,MATCH($H8,Funktioner!$D$30:$D$77,0),MATCH(AS$2,Omfattning!$AI$2:$AQ$2,0)),\"\")","v":0},{"$f":"IFERROR(INDEX(Omfattning!$AI$3:$AQ$50,MATCH($H8,Funktioner!$D$30:$D$77,0),MATCH(AT$2,Omfattning!$AI$2:$AQ$2,0)),\"\")","v":0},{"$f":"IFERROR(INDEX(Omfattning!$AI$3:$AQ$50,MATCH($H8,Funktioner!$D$30:$D$77,0),MATCH(AU$2,Omfattning!$AI$2:$AQ$2,0)),\"\")","v":0},{"$f":"IFERROR(INDEX(Omfattning!$AI$3:$AQ$50,MATCH($H8,Funktioner!$D$30:$D$77,0),MATCH(AV$2,Omfattning!$AI$2:$AQ$2,0)),\"\")","v":0},{"$f":"IFERROR(INDEX(Omfattning!$AI$3:$AQ$50,MATCH($H8,Funktioner!$D$30:$D$77,0),MATCH(AW$2,Omfattning!$AI$2:$AQ$2,0)),\"\")","v":0},{"$f":"IFERROR(INDEX(Omfattning!$AI$3:$AQ$50,MATCH($H8,Funktioner!$D$30:$D$77,0),MATCH(AX$2,Omfattning!$AI$2:$AQ$2,0)),\"\")","v":0},{"$f":"IFERROR(INDEX(Omfattning!$AI$3:$AQ$50,MATCH($H8,Funktioner!$D$30:$D$77,0),MATCH(AY$2,Omfattning!$AI$2:$AQ$2,0)),\"\")","v":0},{"$f":"IFERROR(INDEX(Omfattning!$AI$3:$AQ$50,MATCH($H8,Funktioner!$D$30:$D$77,0),MATCH(AZ$2,Omfattning!$AI$2:$AQ$2,0)),\"\")","v":0},{"$f":"IFERROR(INDEX(Omfattning!$AI$3:$AQ$50,MATCH($H8,Funktioner!$D$30:$D$77,0),MATCH(BA$2,Omfattning!$AI$2:$AQ$2,0)),\"\")","v":0},{"$f":"IF(Uträkningsmall!$F18=\"\",\"\",IF(BC8=\"Kan ej leverera\",240000000,IF(ISNUMBER(AZ8),AZ8*Uträkningsmall!$F18,\"\")))","v":""},"",null,{"$f":"IFERROR(INDEX(Omfattning!$AT$3:$BB$50,MATCH($H8,Funktioner!$E$30:$E$77,0),MATCH(BE$2,Omfattning!$AT$2:$BB$2,0)),\"\")","v":0},{"$f":"IFERROR(INDEX(Omfattning!$AT$3:$BB$50,MATCH($H8,Funktioner!$E$30:$E$77,0),MATCH(BF$2,Omfattning!$AT$2:$BB$2,0)),\"\")","v":0},{"$f":"IFERROR(INDEX(Omfattning!$AT$3:$BB$50,MATCH($H8,Funktioner!$E$30:$E$77,0),MATCH(BG$2,Omfattning!$AT$2:$BB$2,0)),\"\")","v":0},{"$f":"IFERROR(INDEX(Omfattning!$AT$3:$BB$50,MATCH($H8,Funktioner!$E$30:$E$77,0),MATCH(BH$2,Omfattning!$AT$2:$BB$2,0)),\"\")","v":0},{"$f":"IFERROR(INDEX(Omfattning!$AT$3:$BB$50,MATCH($H8,Funktioner!$E$30:$E$77,0),MATCH(BI$2,Omfattning!$AT$2:$BB$2,0)),\"\")","v":0},{"$f":"IFERROR(INDEX(Omfattning!$AT$3:$BB$50,MATCH($H8,Funktioner!$E$30:$E$77,0),MATCH(BJ$2,Omfattning!$AT$2:$BB$2,0)),\"\")","v":0},{"$f":"IFERROR(INDEX(Omfattning!$AT$3:$BB$50,MATCH($H8,Funktioner!$E$30:$E$77,0),MATCH(BK$2,Omfattning!$AT$2:$BB$2,0)),\"\")","v":0},{"$f":"IFERROR(INDEX(Omfattning!$AT$3:$BB$50,MATCH($H8,Funktioner!$E$30:$E$77,0),MATCH(BL$2,Omfattning!$AT$2:$BB$2,0)),\"\")","v":0},{"$f":"IFERROR(INDEX(Omfattning!$AT$3:$BB$50,MATCH($H8,Funktioner!$E$30:$E$77,0),MATCH(BM$2,Omfattning!$AT$2:$BB$2,0)),\"\")","v":0},{"$f":"IF(Uträkningsmall!$F18=\"\",\"\",IF(BO8=\"Kan ej leverera\",240000000,IF(ISNUMBER(BL8),BL8*Uträkningsmall!$F18,\"\")))","v":""},"",null,{"$f":"IFERROR(INDEX(Omfattning!$BE$3:$BM$50,MATCH($H8,Funktioner!$F$30:$F$77,0),MATCH(BQ$2,Omfattning!$BE$2:$BM$2,0)),\"\")","v":0},{"$f":"IFERROR(INDEX(Omfattning!$BE$3:$BM$50,MATCH($H8,Funktioner!$F$30:$F$77,0),MATCH(BR$2,Omfattning!$BE$2:$BM$2,0)),\"\")","v":0},{"$f":"IFERROR(INDEX(Omfattning!$BE$3:$BM$50,MATCH($H8,Funktioner!$F$30:$F$77,0),MATCH(BS$2,Omfattning!$BE$2:$BM$2,0)),\"\")","v":0},{"$f":"IFERROR(INDEX(Omfattning!$BE$3:$BM$50,MATCH($H8,Funktioner!$F$30:$F$77,0),MATCH(BT$2,Omfattning!$BE$2:$BM$2,0)),\"\")","v":0},{"$f":"IFERROR(INDEX(Omfattning!$BE$3:$BM$50,MATCH($H8,Funktioner!$F$30:$F$77,0),MATCH(BU$2,Omfattning!$BE$2:$BM$2,0)),\"\")","v":0},{"$f":"IFERROR(INDEX(Omfattning!$BE$3:$BM$50,MATCH($H8,Funktioner!$F$30:$F$77,0),MATCH(BV$2,Omfattning!$BE$2:$BM$2,0)),\"\")","v":0},{"$f":"IFERROR(INDEX(Omfattning!$BE$3:$BM$50,MATCH($H8,Funktioner!$F$30:$F$77,0),MATCH(BW$2,Omfattning!$BE$2:$BM$2,0)),\"\")","v":0},{"$f":"IFERROR(INDEX(Omfattning!$BE$3:$BM$50,MATCH($H8,Funktioner!$F$30:$F$77,0),MATCH(BX$2,Omfattning!$BE$2:$BM$2,0)),\"\")","v":0},{"$f":"IFERROR(INDEX(Omfattning!$BE$3:$BM$50,MATCH($H8,Funktioner!$F$30:$F$77,0),MATCH(BY$2,Omfattning!$BE$2:$BM$2,0)),\"\")","v":0},{"$f":"IF(Uträkningsmall!$F18=\"\",\"\",IF(CA8=\"Kan ej leverera\",240000000,IF(ISNUMBER(BX8),BX8*Uträkningsmall!$F18,\"\")))","v":""},""]
[{"$f":"\"Position\"&Uträkningsmall!$A19","v":"Position"},{"$f":"IF(Uträkningsmall!$F19=\"\",\"\",IF(AND(Uträkningsmall!$A19=15,OR(Uträkningsmall!$E19=\"\",Uträkningsmall!$F19=\"\")),1,IF(AND(Uträkningsmall!$A19=16,OR(Uträkningsmall!$E19=\"\",Uträkningsmall!$F19=\"\")),1,IF(AND(Uträkningsmall!$A19=17,OR(Uträkningsmall!$E19=\"\",Uträkningsmall!$F19=\"\")),1,IF(AND(Uträkningsmall!$A19=19,OR(Uträkningsmall!$E19=\"\",Uträkningsmall!$F19=\"\")),1,IF(AND(Uträkningsmall!$A19=20,OR(Uträkningsmall!$E19=\"\",Uträkningsmall!$F19=\"\")),1,IF(AND(Uträkningsmall!$A19=21,OR(Uträkningsmall!$E19=\"\",Uträkningsmall!$F19=\"\")),1,IF(AND(Uträkningsmall!$A19=22,OR(Uträkningsmall!$E19=\"\",Uträkningsmall!$F19=\"\")),1,IF(AND(Uträkningsmall!$A19=23,OR(Uträkningsmall!$E19=\"\",Uträkningsmall!$F19=\"\")),1,IF(AND(Uträkningsmall!$A19=24,OR(Uträkningsmall!$E19=\"\",Uträkningsmall!$F19=\"\")),1,IF(AND(Uträkningsmall!$A19=25,OR(Uträkningsmall!$E19=\"\",Uträkningsmall!$F19=\"\")),1,IF(AND(Uträkningsmall!$A19=26,OR(Uträkningsmall!$E19=\"\",Uträkningsmall!$F19=\"\")),1,IF(AND(Uträkningsmall!$A19=27,OR(Uträkningsmall!$E19=\"\",Uträkningsmall!$F19=\"\")),1,IF(AND(Uträkningsmall!$A19=28,OR(Uträkningsmall!$E19=\"\",Uträkningsmall!$F19=\"\")),1,IF(AND(Uträkningsmall!$A19=29,OR(Uträkningsmall!$E19=\"\",Uträkningsmall!$F19=\"\")),1,IF(AND(Uträkningsmall!$A19=30,OR(Uträkningsmall!$E19=\"\",Uträkningsmall!$F19=\"\")),1,IF(AND(Uträkningsmall!$A19=39,OR(Uträkningsmall!$E19=\"\",Uträkningsmall!$F19=\"\")),1,IF(AND(Uträkningsmall!$A19=40,OR(Uträkningsmall!$E19=\"\",Uträkningsmall!$F19=\"\")),1,IF(AND(Uträkningsmall!$A19=41,OR(Uträkningsmall!$E19=\"\",Uträkningsmall!$F19=\"\")),1,IF(AND(Uträkningsmall!$A19=42,OR(Uträkningsmall!$E19=\"\",Uträkningsmall!$F19=\"\")),1,0))))))))))))))))))))","v":""},{"$f":"Funktioner!B152&Funktioner!C152&\", \"&Funktioner!D152&\"g\"&Funktioner!E152&Funktioner!F152","v":"Vitt kopieringspapperA3, 90gA-kvalitet, åldringsbeständigtOhålat"},{"$f":"Uträkningsmall!B19&Uträkningsmall!C19&Uträkningsmall!D19&Uträkningsmall!E19","v":""},null,"",null,{"$f":"Uträkningsmall!$A19","v":""},{"$f":"IFERROR(INDEX(Omfattning!$B$3:$J$50,MATCH($H9,Funktioner!$A$30:$A$77,0),MATCH(I$2,Omfattning!$B$2:$J$2,0)),\"\")","v":0},{"$f":"IFERROR(INDEX(Omfattning!$B$3:$J$50,MATCH($H9,Funktioner!$A$30:$A$77,0),MATCH(J$2,Omfattning!$B$2:$J$2,0)),\"\")","v":0},{"$f":"IFERROR(INDEX(Omfattning!$B$3:$J$50,MATCH($H9,Funktioner!$A$30:$A$77,0),MATCH(K$2,Omfattning!$B$2:$J$2,0)),\"\")","v":0},{"$f":"IFERROR(INDEX(Omfattning!$B$3:$J$50,MATCH($H9,Funktioner!$A$30:$A$77,0),MATCH(L$2,Omfattning!$B$2:$J$2,0)),\"\")","v":""},{"$f":"IFERROR(INDEX(Omfattning!$B$3:$J$50,MATCH($H9,Funktioner!$A$30:$A$77,0),MATCH(M$2,Omfattning!$B$2:$J$2,0)),\"\")","v":0},{"$f":"IFERROR(INDEX(Omfattning!$B$3:$J$50,MATCH($H9,Funktioner!$A$30:$A$77,0),MATCH(N$2,Omfattning!$B$2:$J$2,0)),\"\")","v":0},{"$f":"IFERROR(INDEX(Omfattning!$B$3:$J$50,MATCH($H9,Funktioner!$A$30:$A$77,0),MATCH(O$2,Omfattning!$B$2:$J$2,0)),\"\")","v":0},{"$f":"IFERROR(INDEX(Omfattning!$B$3:$J$50,MATCH($H9,Funktioner!$A$30:$A$77,0),MATCH(P$2,Omfattning!$B$2:$J$2,0)),\"\")","v":0},{"$f":"IFERROR(INDEX(Omfattning!$B$3:$J$50,MATCH($H9,Funktioner!$A$30:$A$77,0),MATCH(Q$2,Omfattning!$B$2:$J$2,0)),\"\")","v":0},{"$f":"IF(Uträkningsmall!$F19=\"\",\"\",IF(S9=\"Kan ej leverera\",240000000,IF(ISNUMBER(P9),P9*Uträkningsmall!$F19,\"\")))","v":""},"",null,{"$f":"IFERROR(INDEX(Omfattning!$M$3:$U$50,MATCH($H9,Funktioner!$B$30:$B$77,0),MATCH(U$2,Omfattning!$M$2:$U$2,0)),\"\")","v":0},{"$f":"IFERROR(INDEX(Omfattning!$M$3:$U$50,MATCH($H9,Funktioner!$B$30:$B$77,0),MATCH(V$2,Omfattning!$M$2:$U$2,0)),\"\")","v":0},{"$f":"IFERROR(INDEX(Omfattning!$M$3:$U$50,MATCH($H9,Funktioner!$B$30:$B$77,0),MATCH(W$2,Omfattning!$M$2:$U$2,0)),\"\")","v":0},{"$f":"IFERROR(INDEX(Omfattning!$M$3:$U$50,MATCH($H9,Funktioner!$B$30:$B$77,0),MATCH(X$2,Omfattning!$M$2:$U$2,0)),\"\")","v":0},{"$f":"IFERROR(INDEX(Omfattning!$M$3:$U$50,MATCH($H9,Funktioner!$B$30:$B$77,0),MATCH(Y$2,Omfattning!$M$2:$U$2,0)),\"\")","v":0},{"$f":"IFERROR(INDEX(Omfattning!$M$3:$U$50,MATCH($H9,Funktioner!$B$30:$B$77,0),MATCH(Z$2,Omfattning!$M$2:$U$2,0)),\"\")","v":0},{"$f":"IFERROR(INDEX(Omfattning!$M$3:$U$50,MATCH($H9,Funktioner!$B$30:$B$77,0),MATCH(AA$2,Omfattning!$M$2:$U$2,0)),\"\")","v":0},{"$f":"IFERROR(INDEX(Omfattning!$M$3:$U$50,MATCH($H9,Funktioner!$B$30:$B$77,0),MATCH(AB$2,Omfattning!$M$2:$U$2,0)),\"\")","v":0},{"$f":"IFERROR(INDEX(Omfattning!$M$3:$U$50,MATCH($H9,Funktioner!$B$30:$B$77,0),MATCH(AC$2,Omfattning!$M$2:$U$2,0)),\"\")","v":0},{"$f":"IF(Uträkningsmall!$F19=\"\",\"\",IF(AE9=\"Kan ej leverera\",240000000,IF(ISNUMBER(AB9),AB9*Uträkningsmall!$F19,\"\")))","v":""},"",null,{"$f":"IFERROR(INDEX(Omfattning!$X$3:$AF$50,MATCH($H9,Funktioner!$C$30:$C$77,0),MATCH(AG$2,Omfattning!$X$2:$AF$2,0)),\"\")","v":0},{"$f":"IFERROR(INDEX(Omfattning!$X$3:$AF$50,MATCH($H9,Funktioner!$C$30:$C$77,0),MATCH(AH$2,Omfattning!$X$2:$AF$2,0)),\"\")","v":0},{"$f":"IFERROR(INDEX(Omfattning!$X$3:$AF$50,MATCH($H9,Funktioner!$C$30:$C$77,0),MATCH(AI$2,Omfattning!$X$2:$AF$2,0)),\"\")","v":0},{"$f":"IFERROR(INDEX(Omfattning!$X$3:$AF$50,MATCH($H9,Funktioner!$C$30:$C$77,0),MATCH(AJ$2,Omfattning!$X$2:$AF$2,0)),\"\")","v":0},{"$f":"IFERROR(INDEX(Omfattning!$X$3:$AF$50,MATCH($H9,Funktioner!$C$30:$C$77,0),MATCH(AK$2,Omfattning!$X$2:$AF$2,0)),\"\")","v":0},{"$f":"IFERROR(INDEX(Omfattning!$X$3:$AF$50,MATCH($H9,Funktioner!$C$30:$C$77,0),MATCH(AL$2,Omfattning!$X$2:$AF$2,0)),\"\")","v":0},{"$f":"IFERROR(INDEX(Omfattning!$X$3:$AF$50,MATCH($H9,Funktioner!$C$30:$C$77,0),MATCH(AM$2,Omfattning!$X$2:$AF$2,0)),\"\")","v":0},{"$f":"IFERROR(INDEX(Omfattning!$X$3:$AF$50,MATCH($H9,Funktioner!$C$30:$C$77,0),MATCH(AN$2,Omfattning!$X$2:$AF$2,0)),\"\")","v":0},{"$f":"IFERROR(INDEX(Omfattning!$X$3:$AF$50,MATCH($H9,Funktioner!$C$30:$C$77,0),MATCH(AO$2,Omfattning!$X$2:$AF$2,0)),\"\")","v":0},{"$f":"IF(Uträkningsmall!$F19=\"\",\"\",IF(AQ9=\"Kan ej leverera\",240000000,IF(ISNUMBER(AN9),AN9*Uträkningsmall!$F19,\"\")))","v":""},"",null,{"$f":"IFERROR(INDEX(Omfattning!$AI$3:$AQ$50,MATCH($H9,Funktioner!$D$30:$D$77,0),MATCH(AS$2,Omfattning!$AI$2:$AQ$2,0)),\"\")","v":0},{"$f":"IFERROR(INDEX(Omfattning!$AI$3:$AQ$50,MATCH($H9,Funktioner!$D$30:$D$77,0),MATCH(AT$2,Omfattning!$AI$2:$AQ$2,0)),\"\")","v":0},{"$f":"IFERROR(INDEX(Omfattning!$AI$3:$AQ$50,MATCH($H9,Funktioner!$D$30:$D$77,0),MATCH(AU$2,Omfattning!$AI$2:$AQ$2,0)),\"\")","v":0},{"$f":"IFERROR(INDEX(Omfattning!$AI$3:$AQ$50,MATCH($H9,Funktioner!$D$30:$D$77,0),MATCH(AV$2,Omfattning!$AI$2:$AQ$2,0)),\"\")","v":0},{"$f":"IFERROR(INDEX(Omfattning!$AI$3:$AQ$50,MATCH($H9,Funktioner!$D$30:$D$77,0),MATCH(AW$2,Omfattning!$AI$2:$AQ$2,0)),\"\")","v":0},{"$f":"IFERROR(INDEX(Omfattning!$AI$3:$AQ$50,MATCH($H9,Funktioner!$D$30:$D$77,0),MATCH(AX$2,Omfattning!$AI$2:$AQ$2,0)),\"\")","v":0},{"$f":"IFERROR(INDEX(Omfattning!$AI$3:$AQ$50,MATCH($H9,Funktioner!$D$30:$D$77,0),MATCH(AY$2,Omfattning!$AI$2:$AQ$2,0)),\"\")","v":0},{"$f":"IFERROR(INDEX(Omfattning!$AI$3:$AQ$50,MATCH($H9,Funktioner!$D$30:$D$77,0),MATCH(AZ$2,Omfattning!$AI$2:$AQ$2,0)),\"\")","v":0},{"$f":"IFERROR(INDEX(Omfattning!$AI$3:$AQ$50,MATCH($H9,Funktioner!$D$30:$D$77,0),MATCH(BA$2,Omfattning!$AI$2:$AQ$2,0)),\"\")","v":0},{"$f":"IF(Uträkningsmall!$F19=\"\",\"\",IF(BC9=\"Kan ej leverera\",240000000,IF(ISNUMBER(AZ9),AZ9*Uträkningsmall!$F19,\"\")))","v":""},"",null,{"$f":"IFERROR(INDEX(Omfattning!$AT$3:$BB$50,MATCH($H9,Funktioner!$E$30:$E$77,0),MATCH(BE$2,Omfattning!$AT$2:$BB$2,0)),\"\")","v":0},{"$f":"IFERROR(INDEX(Omfattning!$AT$3:$BB$50,MATCH($H9,Funktioner!$E$30:$E$77,0),MATCH(BF$2,Omfattning!$AT$2:$BB$2,0)),\"\")","v":0},{"$f":"IFERROR(INDEX(Omfattning!$AT$3:$BB$50,MATCH($H9,Funktioner!$E$30:$E$77,0),MATCH(BG$2,Omfattning!$AT$2:$BB$2,0)),\"\")","v":0},{"$f":"IFERROR(INDEX(Omfattning!$AT$3:$BB$50,MATCH($H9,Funktioner!$E$30:$E$77,0),MATCH(BH$2,Omfattning!$AT$2:$BB$2,0)),\"\")","v":0},{"$f":"IFERROR(INDEX(Omfattning!$AT$3:$BB$50,MATCH($H9,Funktioner!$E$30:$E$77,0),MATCH(BI$2,Omfattning!$AT$2:$BB$2,0)),\"\")","v":0},{"$f":"IFERROR(INDEX(Omfattning!$AT$3:$BB$50,MATCH($H9,Funktioner!$E$30:$E$77,0),MATCH(BJ$2,Omfattning!$AT$2:$BB$2,0)),\"\")","v":0},{"$f":"IFERROR(INDEX(Omfattning!$AT$3:$BB$50,MATCH($H9,Funktioner!$E$30:$E$77,0),MATCH(BK$2,Omfattning!$AT$2:$BB$2,0)),\"\")","v":0},{"$f":"IFERROR(INDEX(Omfattning!$AT$3:$BB$50,MATCH($H9,Funktioner!$E$30:$E$77,0),MATCH(BL$2,Omfattning!$AT$2:$BB$2,0)),\"\")","v":0},{"$f":"IFERROR(INDEX(Omfattning!$AT$3:$BB$50,MATCH($H9,Funktioner!$E$30:$E$77,0),MATCH(BM$2,Omfattning!$AT$2:$BB$2,0)),\"\")","v":0},{"$f":"IF(Uträkningsmall!$F19=\"\",\"\",IF(BO9=\"Kan ej leverera\",240000000,IF(ISNUMBER(BL9),BL9*Uträkningsmall!$F19,\"\")))","v":""},"",null,{"$f":"IFERROR(INDEX(Omfattning!$BE$3:$BM$50,MATCH($H9,Funktioner!$F$30:$F$77,0),MATCH(BQ$2,Omfattning!$BE$2:$BM$2,0)),\"\")","v":0},{"$f":"IFERROR(INDEX(Omfattning!$BE$3:$BM$50,MATCH($H9,Funktioner!$F$30:$F$77,0),MATCH(BR$2,Omfattning!$BE$2:$BM$2,0)),\"\")","v":0},{"$f":"IFERROR(INDEX(Omfattning!$BE$3:$BM$50,MATCH($H9,Funktioner!$F$30:$F$77,0),MATCH(BS$2,Omfattning!$BE$2:$BM$2,0)),\"\")","v":0},{"$f":"IFERROR(INDEX(Omfattning!$BE$3:$BM$50,MATCH($H9,Funktioner!$F$30:$F$77,0),MATCH(BT$2,Omfattning!$BE$2:$BM$2,0)),\"\")","v":0},{"$f":"IFERROR(INDEX(Omfattning!$BE$3:$BM$50,MATCH($H9,Funktioner!$F$30:$F$77,0),MATCH(BU$2,Omfattning!$BE$2:$BM$2,0)),\"\")","v":0},{"$f":"IFERROR(INDEX(Omfattning!$BE$3:$BM$50,MATCH($H9,Funktioner!$F$30:$F$77,0),MATCH(BV$2,Omfattning!$BE$2:$BM$2,0)),\"\")","v":0},{"$f":"IFERROR(INDEX(Omfattning!$BE$3:$BM$50,MATCH($H9,Funktioner!$F$30:$F$77,0),MATCH(BW$2,Omfattning!$BE$2:$BM$2,0)),\"\")","v":0},{"$f":"IFERROR(INDEX(Omfattning!$BE$3:$BM$50,MATCH($H9,Funktioner!$F$30:$F$77,0),MATCH(BX$2,Omfattning!$BE$2:$BM$2,0)),\"\")","v":0},{"$f":"IFERROR(INDEX(Omfattning!$BE$3:$BM$50,MATCH($H9,Funktioner!$F$30:$F$77,0),MATCH(BY$2,Omfattning!$BE$2:$BM$2,0)),\"\")","v":0},{"$f":"IF(Uträkningsmall!$F19=\"\",\"\",IF(CA9=\"Kan ej leverera\",240000000,IF(ISNUMBER(BX9),BX9*Uträkningsmall!$F19,\"\")))","v":""},""]
[{"$f":"\"Position\"&Uträkningsmall!$A20","v":"Position"},{"$f":"IF(Uträkningsmall!$F20=\"\",\"\",IF(AND(Uträkningsmall!$A20=15,OR(Uträkningsmall!$E20=\"\",Uträkningsmall!$F20=\"\")),1,IF(AND(Uträkningsmall!$A20=16,OR(Uträkningsmall!$E20=\"\",Uträkningsmall!$F20=\"\")),1,IF(AND(Uträkningsmall!$A20=17,OR(Uträkningsmall!$E20=\"\",Uträkningsmall!$F20=\"\")),1,IF(AND(Uträkningsmall!$A20=19,OR(Uträkningsmall!$E20=\"\",Uträkningsmall!$F20=\"\")),1,IF(AND(Uträkningsmall!$A20=20,OR(Uträkningsmall!$E20=\"\",Uträkningsmall!$F20=\"\")),1,IF(AND(Uträkningsmall!$A20=21,OR(Uträkningsmall!$E20=\"\",Uträkningsmall!$F20=\"\")),1,IF(AND(Uträkningsmall!$A20=22,OR(Uträkningsmall!$E20=\"\",Uträkningsmall!$F20=\"\")),1,IF(AND(Uträkningsmall!$A20=23,OR(Uträkningsmall!$E20=\"\",Uträkningsmall!$F20=\"\")),1,IF(AND(Uträkningsmall!$A20=24,OR(Uträkningsmall!$E20=\"\",Uträkningsmall!$F20=\"\")),1,IF(AND(Uträkningsmall!$A20=25,OR(Uträkningsmall!$E20=\"\",Uträkningsmall!$F20=\"\")),1,IF(AND(Uträkningsmall!$A20=26,OR(Uträkningsmall!$E20=\"\",Uträkningsmall!$F20=\"\")),1,IF(AND(Uträkningsmall!$A20=27,OR(Uträkningsmall!$E20=\"\",Uträkningsmall!$F20=\"\")),1,IF(AND(Uträkningsmall!$A20=28,OR(Uträkningsmall!$E20=\"\",Uträkningsmall!$F20=\"\")),1,IF(AND(Uträkningsmall!$A20=29,OR(Uträkningsmall!$E20=\"\",Uträkningsmall!$F20=\"\")),1,IF(AND(Uträkningsmall!$A20=30,OR(Uträkningsmall!$E20=\"\",Uträkningsmall!$F20=\"\")),1,IF(AND(Uträkningsmall!$A20=39,OR(Uträkningsmall!$E20=\"\",Uträkningsmall!$F20=\"\")),1,IF(AND(Uträkningsmall!$A20=40,OR(Uträkningsmall!$E20=\"\",Uträkningsmall!$F20=\"\")),1,IF(AND(Uträkningsmall!$A20=41,OR(Uträkningsmall!$E20=\"\",Uträkningsmall!$F20=\"\")),1,IF(AND(Uträkningsmall!$A20=42,OR(Uträkningsmall!$E20=\"\",Uträkningsmall!$F20=\"\")),1,0))))))))))))))))))))","v":""},{"$f":"Funktioner!B153&Funktioner!C153&\", \"&Funktioner!D153&\"g\"&Funktioner!E153&Funktioner!F153","v":"Papper för fyrfärgskopieringA4, 90gFör digitala färgutskrifter och kopiering, motsvarande \"4CC\", åldringsbeständigtOhålat"},{"$f":"Uträkningsmall!B20&Uträkningsmall!C20&Uträkningsmall!D20&Uträkningsmall!E20","v":""},null,"",null,{"$f":"Uträkningsmall!$A20","v":""},{"$f":"IFERROR(INDEX(Omfattning!$B$3:$J$50,MATCH($H10,Funktioner!$A$30:$A$77,0),MATCH(I$2,Omfattning!$B$2:$J$2,0)),\"\")","v":0},{"$f":"IFERROR(INDEX(Omfattning!$B$3:$J$50,MATCH($H10,Funktioner!$A$30:$A$77,0),MATCH(J$2,Omfattning!$B$2:$J$2,0)),\"\")","v":0},{"$f":"IFERROR(INDEX(Omfattning!$B$3:$J$50,MATCH($H10,Funktioner!$A$30:$A$77,0),MATCH(K$2,Omfattning!$B$2:$J$2,0)),\"\")","v":0},{"$f":"IFERROR(INDEX(Omfattning!$B$3:$J$50,MATCH($H10,Funktioner!$A$30:$A$77,0),MATCH(L$2,Omfattning!$B$2:$J$2,0)),\"\")","v":""},{"$f":"IFERROR(INDEX(Omfattning!$B$3:$J$50,MATCH($H10,Funktioner!$A$30:$A$77,0),MATCH(M$2,Omfattning!$B$2:$J$2,0)),\"\")","v":0},{"$f":"IFERROR(INDEX(Omfattning!$B$3:$J$50,MATCH($H10,Funktioner!$A$30:$A$77,0),MATCH(N$2,Omfattning!$B$2:$J$2,0)),\"\")","v":0},{"$f":"IFERROR(INDEX(Omfattning!$B$3:$J$50,MATCH($H10,Funktioner!$A$30:$A$77,0),MATCH(O$2,Omfattning!$B$2:$J$2,0)),\"\")","v":0},{"$f":"IFERROR(INDEX(Omfattning!$B$3:$J$50,MATCH($H10,Funktioner!$A$30:$A$77,0),MATCH(P$2,Omfattning!$B$2:$J$2,0)),\"\")","v":0},{"$f":"IFERROR(INDEX(Omfattning!$B$3:$J$50,MATCH($H10,Funktioner!$A$30:$A$77,0),MATCH(Q$2,Omfattning!$B$2:$J$2,0)),\"\")","v":0},{"$f":"IF(Uträkningsmall!$F20=\"\",\"\",IF(S10=\"Kan ej leverera\",240000000,IF(ISNUMBER(P10),P10*Uträkningsmall!$F20,\"\")))","v":""},"",null,{"$f":"IFERROR(INDEX(Omfattning!$M$3:$U$50,MATCH($H10,Funktioner!$B$30:$B$77,0),MATCH(U$2,Omfattning!$M$2:$U$2,0)),\"\")","v":0},{"$f":"IFERROR(INDEX(Omfattning!$M$3:$U$50,MATCH($H10,Funktioner!$B$30:$B$77,0),MATCH(V$2,Omfattning!$M$2:$U$2,0)),\"\")","v":0},{"$f":"IFERROR(INDEX(Omfattning!$M$3:$U$50,MATCH($H10,Funktioner!$B$30:$B$77,0),MATCH(W$2,Omfattning!$M$2:$U$2,0)),\"\")","v":0},{"$f":"IFERROR(INDEX(Omfattning!$M$3:$U$50,MATCH($H10,Funktioner!$B$30:$B$77,0),MATCH(X$2,Omfattning!$M$2:$U$2,0)),\"\")","v":0},{"$f":"IFERROR(INDEX(Omfattning!$M$3:$U$50,MATCH($H10,Funktioner!$B$30:$B$77,0),MATCH(Y$2,Omfattning!$M$2:$U$2,0)),\"\")","v":0},{"$f":"IFERROR(INDEX(Omfattning!$M$3:$U$50,MATCH($H10,Funktioner!$B$30:$B$77,0),MATCH(Z$2,Omfattning!$M$2:$U$2,0)),\"\")","v":0},{"$f":"IFERROR(INDEX(Omfattning!$M$3:$U$50,MATCH($H10,Funktioner!$B$30:$B$77,0),MATCH(AA$2,Omfattning!$M$2:$U$2,0)),\"\")","v":0},{"$f":"IFERROR(INDEX(Omfattning!$M$3:$U$50,MATCH($H10,Funktioner!$B$30:$B$77,0),MATCH(AB$2,Omfattning!$M$2:$U$2,0)),\"\")","v":0},{"$f":"IFERROR(INDEX(Omfattning!$M$3:$U$50,MATCH($H10,Funktioner!$B$30:$B$77,0),MATCH(AC$2,Omfattning!$M$2:$U$2,0)),\"\")","v":0},{"$f":"IF(Uträkningsmall!$F20=\"\",\"\",IF(AE10=\"Kan ej leverera\",240000000,IF(ISNUMBER(AB10),AB10*Uträkningsmall!$F20,\"\")))","v":""},"",null,{"$f":"IFERROR(INDEX(Omfattning!$X$3:$AF$50,MATCH($H10,Funktioner!$C$30:$C$77,0),MATCH(AG$2,Omfattning!$X$2:$AF$2,0)),\"\")","v":0},{"$f":"IFERROR(INDEX(Omfattning!$X$3:$AF$50,MATCH($H10,Funktioner!$C$30:$C$77,0),MATCH(AH$2,Omfattning!$X$2:$AF$2,0)),\"\")","v":0},{"$f":"IFERROR(INDEX(Omfattning!$X$3:$AF$50,MATCH($H10,Funktioner!$C$30:$C$77,0),MATCH(AI$2,Omfattning!$X$2:$AF$2,0)),\"\")","v":0},{"$f":"IFERROR(INDEX(Omfattning!$X$3:$AF$50,MATCH($H10,Funktioner!$C$30:$C$77,0),MATCH(AJ$2,Omfattning!$X$2:$AF$2,0)),\"\")","v":0},{"$f":"IFERROR(INDEX(Omfattning!$X$3:$AF$50,MATCH($H10,Funktioner!$C$30:$C$77,0),MATCH(AK$2,Omfattning!$X$2:$AF$2,0)),\"\")","v":0},{"$f":"IFERROR(INDEX(Omfattning!$X$3:$AF$50,MATCH($H10,Funktioner!$C$30:$C$77,0),MATCH(AL$2,Omfattning!$X$2:$AF$2,0)),\"\")","v":0},{"$f":"IFERROR(INDEX(Omfattning!$X$3:$AF$50,MATCH($H10,Funktioner!$C$30:$C$77,0),MATCH(AM$2,Omfattning!$X$2:$AF$2,0)),\"\")","v":0},{"$f":"IFERROR(INDEX(Omfattning!$X$3:$AF$50,MATCH($H10,Funktioner!$C$30:$C$77,0),MATCH(AN$2,Omfattning!$X$2:$AF$2,0)),\"\")","v":0},{"$f":"IFERROR(INDEX(Omfattning!$X$3:$AF$50,MATCH($H10,Funktioner!$C$30:$C$77,0),MATCH(AO$2,Omfattning!$X$2:$AF$2,0)),\"\")","v":0},{"$f":"IF(Uträkningsmall!$F20=\"\",\"\",IF(AQ10=\"Kan ej leverera\",240000000,IF(ISNUMBER(AN10),AN10*Uträkningsmall!$F20,\"\")))","v":""},"",null,{"$f":"IFERROR(INDEX(Omfattning!$AI$3:$AQ$50,MATCH($H10,Funktioner!$D$30:$D$77,0),MATCH(AS$2,Omfattning!$AI$2:$AQ$2,0)),\"\")","v":0},{"$f":"IFERROR(INDEX(Omfattning!$AI$3:$AQ$50,MATCH($H10,Funktioner!$D$30:$D$77,0),MATCH(AT$2,Omfattning!$AI$2:$AQ$2,0)),\"\")","v":0},{"$f":"IFERROR(INDEX(Omfattning!$AI$3:$AQ$50,MATCH($H10,Funktioner!$D$30:$D$77,0),MATCH(AU$2,Omfattning!$AI$2:$AQ$2,0)),\"\")","v":0},{"$f":"IFERROR(INDEX(Omfattning!$AI$3:$AQ$50,MATCH($H10,Funktioner!$D$30:$D$77,0),MATCH(AV$2,Omfattning!$AI$2:$AQ$2,0)),\"\")","v":0},{"$f":"IFERROR(INDEX(Omfattning!$AI$3:$AQ$50,MATCH($H10,Funktioner!$D$30:$D$77,0),MATCH(AW$2,Omfattning!$AI$2:$AQ$2,0)),\"\")","v":0},{"$f":"IFERROR(INDEX(Omfattning!$AI$3:$AQ$50,MATCH($H10,Funktioner!$D$30:$D$77,0),MATCH(AX$2,Omfattning!$AI$2:$AQ$2,0)),\"\")","v":0},{"$f":"IFERROR(INDEX(Omfattning!$AI$3:$AQ$50,MATCH($H10,Funktioner!$D$30:$D$77,0),MATCH(AY$2,Omfattning!$AI$2:$AQ$2,0)),\"\")","v":0},{"$f":"IFERROR(INDEX(Omfattning!$AI$3:$AQ$50,MATCH($H10,Funktioner!$D$30:$D$77,0),MATCH(AZ$2,Omfattning!$AI$2:$AQ$2,0)),\"\")","v":0},{"$f":"IFERROR(INDEX(Omfattning!$AI$3:$AQ$50,MATCH($H10,Funktioner!$D$30:$D$77,0),MATCH(BA$2,Omfattning!$AI$2:$AQ$2,0)),\"\")","v":0},{"$f":"IF(Uträkningsmall!$F20=\"\",\"\",IF(BC10=\"Kan ej leverera\",240000000,IF(ISNUMBER(AZ10),AZ10*Uträkningsmall!$F20,\"\")))","v":""},"",null,{"$f":"IFERROR(INDEX(Omfattning!$AT$3:$BB$50,MATCH($H10,Funktioner!$E$30:$E$77,0),MATCH(BE$2,Omfattning!$AT$2:$BB$2,0)),\"\")","v":0},{"$f":"IFERROR(INDEX(Omfattning!$AT$3:$BB$50,MATCH($H10,Funktioner!$E$30:$E$77,0),MATCH(BF$2,Omfattning!$AT$2:$BB$2,0)),\"\")","v":0},{"$f":"IFERROR(INDEX(Omfattning!$AT$3:$BB$50,MATCH($H10,Funktioner!$E$30:$E$77,0),MATCH(BG$2,Omfattning!$AT$2:$BB$2,0)),\"\")","v":0},{"$f":"IFERROR(INDEX(Omfattning!$AT$3:$BB$50,MATCH($H10,Funktioner!$E$30:$E$77,0),MATCH(BH$2,Omfattning!$AT$2:$BB$2,0)),\"\")","v":0},{"$f":"IFERROR(INDEX(Omfattning!$AT$3:$BB$50,MATCH($H10,Funktioner!$E$30:$E$77,0),MATCH(BI$2,Omfattning!$AT$2:$BB$2,0)),\"\")","v":0},{"$f":"IFERROR(INDEX(Omfattning!$AT$3:$BB$50,MATCH($H10,Funktioner!$E$30:$E$77,0),MATCH(BJ$2,Omfattning!$AT$2:$BB$2,0)),\"\")","v":0},{"$f":"IFERROR(INDEX(Omfattning!$AT$3:$BB$50,MATCH($H10,Funktioner!$E$30:$E$77,0),MATCH(BK$2,Omfattning!$AT$2:$BB$2,0)),\"\")","v":0},{"$f":"IFERROR(INDEX(Omfattning!$AT$3:$BB$50,MATCH($H10,Funktioner!$E$30:$E$77,0),MATCH(BL$2,Omfattning!$AT$2:$BB$2,0)),\"\")","v":0},{"$f":"IFERROR(INDEX(Omfattning!$AT$3:$BB$50,MATCH($H10,Funktioner!$E$30:$E$77,0),MATCH(BM$2,Omfattning!$AT$2:$BB$2,0)),\"\")","v":0},{"$f":"IF(Uträkningsmall!$F20=\"\",\"\",IF(BO10=\"Kan ej leverera\",240000000,IF(ISNUMBER(BL10),BL10*Uträkningsmall!$F20,\"\")))","v":""},"",null,{"$f":"IFERROR(INDEX(Omfattning!$BE$3:$BM$50,MATCH($H10,Funktioner!$F$30:$F$77,0),MATCH(BQ$2,Omfattning!$BE$2:$BM$2,0)),\"\")","v":0},{"$f":"IFERROR(INDEX(Omfattning!$BE$3:$BM$50,MATCH($H10,Funktioner!$F$30:$F$77,0),MATCH(BR$2,Omfattning!$BE$2:$BM$2,0)),\"\")","v":0},{"$f":"IFERROR(INDEX(Omfattning!$BE$3:$BM$50,MATCH($H10,Funktioner!$F$30:$F$77,0),MATCH(BS$2,Omfattning!$BE$2:$BM$2,0)),\"\")","v":0},{"$f":"IFERROR(INDEX(Omfattning!$BE$3:$BM$50,MATCH($H10,Funktioner!$F$30:$F$77,0),MATCH(BT$2,Omfattning!$BE$2:$BM$2,0)),\"\")","v":0},{"$f":"IFERROR(INDEX(Omfattning!$BE$3:$BM$50,MATCH($H10,Funktioner!$F$30:$F$77,0),MATCH(BU$2,Omfattning!$BE$2:$BM$2,0)),\"\")","v":0},{"$f":"IFERROR(INDEX(Omfattning!$BE$3:$BM$50,MATCH($H10,Funktioner!$F$30:$F$77,0),MATCH(BV$2,Omfattning!$BE$2:$BM$2,0)),\"\")","v":0},{"$f":"IFERROR(INDEX(Omfattning!$BE$3:$BM$50,MATCH($H10,Funktioner!$F$30:$F$77,0),MATCH(BW$2,Omfattning!$BE$2:$BM$2,0)),\"\")","v":0},{"$f":"IFERROR(INDEX(Omfattning!$BE$3:$BM$50,MATCH($H10,Funktioner!$F$30:$F$77,0),MATCH(BX$2,Omfattning!$BE$2:$BM$2,0)),\"\")","v":0},{"$f":"IFERROR(INDEX(Omfattning!$BE$3:$BM$50,MATCH($H10,Funktioner!$F$30:$F$77,0),MATCH(BY$2,Omfattning!$BE$2:$BM$2,0)),\"\")","v":0},{"$f":"IF(Uträkningsmall!$F20=\"\",\"\",IF(CA10=\"Kan ej leverera\",240000000,IF(ISNUMBER(BX10),BX10*Uträkningsmall!$F20,\"\")))","v":""},""]
[{"$f":"\"Position\"&Uträkningsmall!$A21","v":"Position"},{"$f":"IF(Uträkningsmall!$F21=\"\",\"\",IF(AND(Uträkningsmall!$A21=15,OR(Uträkningsmall!$E21=\"\",Uträkningsmall!$F21=\"\")),1,IF(AND(Uträkningsmall!$A21=16,OR(Uträkningsmall!$E21=\"\",Uträkningsmall!$F21=\"\")),1,IF(AND(Uträkningsmall!$A21=17,OR(Uträkningsmall!$E21=\"\",Uträkningsmall!$F21=\"\")),1,IF(AND(Uträkningsmall!$A21=19,OR(Uträkningsmall!$E21=\"\",Uträkningsmall!$F21=\"\")),1,IF(AND(Uträkningsmall!$A21=20,OR(Uträkningsmall!$E21=\"\",Uträkningsmall!$F21=\"\")),1,IF(AND(Uträkningsmall!$A21=21,OR(Uträkningsmall!$E21=\"\",Uträkningsmall!$F21=\"\")),1,IF(AND(Uträkningsmall!$A21=22,OR(Uträkningsmall!$E21=\"\",Uträkningsmall!$F21=\"\")),1,IF(AND(Uträkningsmall!$A21=23,OR(Uträkningsmall!$E21=\"\",Uträkningsmall!$F21=\"\")),1,IF(AND(Uträkningsmall!$A21=24,OR(Uträkningsmall!$E21=\"\",Uträkningsmall!$F21=\"\")),1,IF(AND(Uträkningsmall!$A21=25,OR(Uträkningsmall!$E21=\"\",Uträkningsmall!$F21=\"\")),1,IF(AND(Uträkningsmall!$A21=26,OR(Uträkningsmall!$E21=\"\",Uträkningsmall!$F21=\"\")),1,IF(AND(Uträkningsmall!$A21=27,OR(Uträkningsmall!$E21=\"\",Uträkningsmall!$F21=\"\")),1,IF(AND(Uträkningsmall!$A21=28,OR(Uträkningsmall!$E21=\"\",Uträkningsmall!$F21=\"\")),1,IF(AND(Uträkningsmall!$A21=29,OR(Uträkningsmall!$E21=\"\",Uträkningsmall!$F21=\"\")),1,IF(AND(Uträkningsmall!$A21=30,OR(Uträkningsmall!$E21=\"\",Uträkningsmall!$F21=\"\")),1,IF(AND(Uträkningsmall!$A21=39,OR(Uträkningsmall!$E21=\"\",Uträkningsmall!$F21=\"\")),1,IF(AND(Uträkningsmall!$A21=40,OR(Uträkningsmall!$E21=\"\",Uträkningsmall!$F21=\"\")),1,IF(AND(Uträkningsmall!$A21=41,OR(Uträkningsmall!$E21=\"\",Uträkningsmall!$F21=\"\")),1,IF(AND(Uträkningsmall!$A21=42,OR(Uträkningsmall!$E21=\"\",Uträkningsmall!$F21=\"\")),1,0))))))))))))))))))))","v":""},{"$f":"Funktioner!B154&Funktioner!C154&\", \"&Funktioner!D154&\"g\"&Funktioner!E154&Funktioner!F154","v":"Färgat papperA4, 80gA-kvalitet, färg: svag/mellansvag gul nyansOhålat"},{"$f":"Uträkningsmall!B21&Uträkningsmall!C21&Uträkningsmall!D21&Uträkningsmall!E21","v":""},null,"",null,{"$f":"Uträkningsmall!$A21","v":""},{"$f":"IFERROR(INDEX(Omfattning!$B$3:$J$50,MATCH($H11,Funktioner!$A$30:$A$77,0),MATCH(I$2,Omfattning!$B$2:$J$2,0)),\"\")","v":0},{"$f":"IFERROR(INDEX(Omfattning!$B$3:$J$50,MATCH($H11,Funktioner!$A$30:$A$77,0),MATCH(J$2,Omfattning!$B$2:$J$2,0)),\"\")","v":0},{"$f":"IFERROR(INDEX(Omfattning!$B$3:$J$50,MATCH($H11,Funktioner!$A$30:$A$77,0),MATCH(K$2,Omfattning!$B$2:$J$2,0)),\"\")","v":0},{"$f":"IFERROR(INDEX(Omfattning!$B$3:$J$50,MATCH($H11,Funktioner!$A$30:$A$77,0),MATCH(L$2,Omfattning!$B$2:$J$2,0)),\"\")","v":""},{"$f":"IFERROR(INDEX(Omfattning!$B$3:$J$50,MATCH($H11,Funktioner!$A$30:$A$77,0),MATCH(M$2,Omfattning!$B$2:$J$2,0)),\"\")","v":0},{"$f":"IFERROR(INDEX(Omfattning!$B$3:$J$50,MATCH($H11,Funktioner!$A$30:$A$77,0),MATCH(N$2,Omfattning!$B$2:$J$2,0)),\"\")","v":0},{"$f":"IFERROR(INDEX(Omfattning!$B$3:$J$50,MATCH($H11,Funktioner!$A$30:$A$77,0),MATCH(O$2,Omfattning!$B$2:$J$2,0)),\"\")","v":0},{"$f":"IFERROR(INDEX(Omfattning!$B$3:$J$50,MATCH($H11,Funktioner!$A$30:$A$77,0),MATCH(P$2,Omfattning!$B$2:$J$2,0)),\"\")","v":0},{"$f":"IFERROR(INDEX(Omfattning!$B$3:$J$50,MATCH($H11,Funktioner!$A$30:$A$77,0),MATCH(Q$2,Omfattning!$B$2:$J$2,0)),\"\")","v":0},{"$f":"IF(Uträkningsmall!$F21=\"\",\"\",IF(S11=\"Kan ej leverera\",240000000,IF(ISNUMBER(P11),P11*Uträkningsmall!$F21,\"\")))","v":""},"",null,{"$f":"IFERROR(INDEX(Omfattning!$M$3:$U$50,MATCH($H11,Funktioner!$B$30:$B$77,0),MATCH(U$2,Omfattning!$M$2:$U$2,0)),\"\")","v":0},{"$f":"IFERROR(INDEX(Omfattning!$M$3:$U$50,MATCH($H11,Funktioner!$B$30:$B$77,0),MATCH(V$2,Omfattning!$M$2:$U$2,0)),\"\")","v":0},{"$f":"IFERROR(INDEX(Omfattning!$M$3:$U$50,MATCH($H11,Funktioner!$B$30:$B$77,0),MATCH(W$2,Omfattning!$M$2:$U$2,0)),\"\")","v":0},{"$f":"IFERROR(INDEX(Omfattning!$M$3:$U$50,MATCH($H11,Funktioner!$B$30:$B$77,0),MATCH(X$2,Omfattning!$M$2:$U$2,0)),\"\")","v":0},{"$f":"IFERROR(INDEX(Omfattning!$M$3:$U$50,MATCH($H11,Funktioner!$B$30:$B$77,0),MATCH(Y$2,Omfattning!$M$2:$U$2,0)),\"\")","v":0},{"$f":"IFERROR(INDEX(Omfattning!$M$3:$U$50,MATCH($H11,Funktioner!$B$30:$B$77,0),MATCH(Z$2,Omfattning!$M$2:$U$2,0)),\"\")","v":0},{"$f":"IFERROR(INDEX(Omfattning!$M$3:$U$50,MATCH($H11,Funktioner!$B$30:$B$77,0),MATCH(AA$2,Omfattning!$M$2:$U$2,0)),\"\")","v":0},{"$f":"IFERROR(INDEX(Omfattning!$M$3:$U$50,MATCH($H11,Funktioner!$B$30:$B$77,0),MATCH(AB$2,Omfattning!$M$2:$U$2,0)),\"\")","v":0},{"$f":"IFERROR(INDEX(Omfattning!$M$3:$U$50,MATCH($H11,Funktioner!$B$30:$B$77,0),MATCH(AC$2,Omfattning!$M$2:$U$2,0)),\"\")","v":0},{"$f":"IF(Uträkningsmall!$F21=\"\",\"\",IF(AE11=\"Kan ej leverera\",240000000,IF(ISNUMBER(AB11),AB11*Uträkningsmall!$F21,\"\")))","v":""},"",null,{"$f":"IFERROR(INDEX(Omfattning!$X$3:$AF$50,MATCH($H11,Funktioner!$C$30:$C$77,0),MATCH(AG$2,Omfattning!$X$2:$AF$2,0)),\"\")","v":0},{"$f":"IFERROR(INDEX(Omfattning!$X$3:$AF$50,MATCH($H11,Funktioner!$C$30:$C$77,0),MATCH(AH$2,Omfattning!$X$2:$AF$2,0)),\"\")","v":0},{"$f":"IFERROR(INDEX(Omfattning!$X$3:$AF$50,MATCH($H11,Funktioner!$C$30:$C$77,0),MATCH(AI$2,Omfattning!$X$2:$AF$2,0)),\"\")","v":0},{"$f":"IFERROR(INDEX(Omfattning!$X$3:$AF$50,MATCH($H11,Funktioner!$C$30:$C$77,0),MATCH(AJ$2,Omfattning!$X$2:$AF$2,0)),\"\")","v":0},{"$f":"IFERROR(INDEX(Omfattning!$X$3:$AF$50,MATCH($H11,Funktioner!$C$30:$C$77,0),MATCH(AK$2,Omfattning!$X$2:$AF$2,0)),\"\")","v":0},{"$f":"IFERROR(INDEX(Omfattning!$X$3:$AF$50,MATCH($H11,Funktioner!$C$30:$C$77,0),MATCH(AL$2,Omfattning!$X$2:$AF$2,0)),\"\")","v":0},{"$f":"IFERROR(INDEX(Omfattning!$X$3:$AF$50,MATCH($H11,Funktioner!$C$30:$C$77,0),MATCH(AM$2,Omfattning!$X$2:$AF$2,0)),\"\")","v":0},{"$f":"IFERROR(INDEX(Omfattning!$X$3:$AF$50,MATCH($H11,Funktioner!$C$30:$C$77,0),MATCH(AN$2,Omfattning!$X$2:$AF$2,0)),\"\")","v":0},{"$f":"IFERROR(INDEX(Omfattning!$X$3:$AF$50,MATCH($H11,Funktioner!$C$30:$C$77,0),MATCH(AO$2,Omfattning!$X$2:$AF$2,0)),\"\")","v":0},{"$f":"IF(Uträkningsmall!$F21=\"\",\"\",IF(AQ11=\"Kan ej leverera\",240000000,IF(ISNUMBER(AN11),AN11*Uträkningsmall!$F21,\"\")))","v":""},"",null,{"$f":"IFERROR(INDEX(Omfattning!$AI$3:$AQ$50,MATCH($H11,Funktioner!$D$30:$D$77,0),MATCH(AS$2,Omfattning!$AI$2:$AQ$2,0)),\"\")","v":0},{"$f":"IFERROR(INDEX(Omfattning!$AI$3:$AQ$50,MATCH($H11,Funktioner!$D$30:$D$77,0),MATCH(AT$2,Omfattning!$AI$2:$AQ$2,0)),\"\")","v":0},{"$f":"IFERROR(INDEX(Omfattning!$AI$3:$AQ$50,MATCH($H11,Funktioner!$D$30:$D$77,0),MATCH(AU$2,Omfattning!$AI$2:$AQ$2,0)),\"\")","v":0},{"$f":"IFERROR(INDEX(Omfattning!$AI$3:$AQ$50,MATCH($H11,Funktioner!$D$30:$D$77,0),MATCH(AV$2,Omfattning!$AI$2:$AQ$2,0)),\"\")","v":0},{"$f":"IFERROR(INDEX(Omfattning!$AI$3:$AQ$50,MATCH($H11,Funktioner!$D$30:$D$77,0),MATCH(AW$2,Omfattning!$AI$2:$AQ$2,0)),\"\")","v":0},{"$f":"IFERROR(INDEX(Omfattning!$AI$3:$AQ$50,MATCH($H11,Funktioner!$D$30:$D$77,0),MATCH(AX$2,Omfattning!$AI$2:$AQ$2,0)),\"\")","v":0},{"$f":"IFERROR(INDEX(Omfattning!$AI$3:$AQ$50,MATCH($H11,Funktioner!$D$30:$D$77,0),MATCH(AY$2,Omfattning!$AI$2:$AQ$2,0)),\"\")","v":0},{"$f":"IFERROR(INDEX(Omfattning!$AI$3:$AQ$50,MATCH($H11,Funktioner!$D$30:$D$77,0),MATCH(AZ$2,Omfattning!$AI$2:$AQ$2,0)),\"\")","v":0},{"$f":"IFERROR(INDEX(Omfattning!$AI$3:$AQ$50,MATCH($H11,Funktioner!$D$30:$D$77,0),MATCH(BA$2,Omfattning!$AI$2:$AQ$2,0)),\"\")","v":0},{"$f":"IF(Uträkningsmall!$F21=\"\",\"\",IF(BC11=\"Kan ej leverera\",240000000,IF(ISNUMBER(AZ11),AZ11*Uträkningsmall!$F21,\"\")))","v":""},"",null,{"$f":"IFERROR(INDEX(Omfattning!$AT$3:$BB$50,MATCH($H11,Funktioner!$E$30:$E$77,0),MATCH(BE$2,Omfattning!$AT$2:$BB$2,0)),\"\")","v":0},{"$f":"IFERROR(INDEX(Omfattning!$AT$3:$BB$50,MATCH($H11,Funktioner!$E$30:$E$77,0),MATCH(BF$2,Omfattning!$AT$2:$BB$2,0)),\"\")","v":0},{"$f":"IFERROR(INDEX(Omfattning!$AT$3:$BB$50,MATCH($H11,Funktioner!$E$30:$E$77,0),MATCH(BG$2,Omfattning!$AT$2:$BB$2,0)),\"\")","v":0},{"$f":"IFERROR(INDEX(Omfattning!$AT$3:$BB$50,MATCH($H11,Funktioner!$E$30:$E$77,0),MATCH(BH$2,Omfattning!$AT$2:$BB$2,0)),\"\")","v":0},{"$f":"IFERROR(INDEX(Omfattning!$AT$3:$BB$50,MATCH($H11,Funktioner!$E$30:$E$77,0),MATCH(BI$2,Omfattning!$AT$2:$BB$2,0)),\"\")","v":0},{"$f":"IFERROR(INDEX(Omfattning!$AT$3:$BB$50,MATCH($H11,Funktioner!$E$30:$E$77,0),MATCH(BJ$2,Omfattning!$AT$2:$BB$2,0)),\"\")","v":0},{"$f":"IFERROR(INDEX(Omfattning!$AT$3:$BB$50,MATCH($H11,Funktioner!$E$30:$E$77,0),MATCH(BK$2,Omfattning!$AT$2:$BB$2,0)),\"\")","v":0},{"$f":"IFERROR(INDEX(Omfattning!$AT$3:$BB$50,MATCH($H11,Funktioner!$E$30:$E$77,0),MATCH(BL$2,Omfattning!$AT$2:$BB$2,0)),\"\")","v":0},{"$f":"IFERROR(INDEX(Omfattning!$AT$3:$BB$50,MATCH($H11,Funktioner!$E$30:$E$77,0),MATCH(BM$2,Omfattning!$AT$2:$BB$2,0)),\"\")","v":0},{"$f":"IF(Uträkningsmall!$F21=\"\",\"\",IF(BO11=\"Kan ej leverera\",240000000,IF(ISNUMBER(BL11),BL11*Uträkningsmall!$F21,\"\")))","v":""},"",null,{"$f":"IFERROR(INDEX(Omfattning!$BE$3:$BM$50,MATCH($H11,Funktioner!$F$30:$F$77,0),MATCH(BQ$2,Omfattning!$BE$2:$BM$2,0)),\"\")","v":0},{"$f":"IFERROR(INDEX(Omfattning!$BE$3:$BM$50,MATCH($H11,Funktioner!$F$30:$F$77,0),MATCH(BR$2,Omfattning!$BE$2:$BM$2,0)),\"\")","v":0},{"$f":"IFERROR(INDEX(Omfattning!$BE$3:$BM$50,MATCH($H11,Funktioner!$F$30:$F$77,0),MATCH(BS$2,Omfattning!$BE$2:$BM$2,0)),\"\")","v":0},{"$f":"IFERROR(INDEX(Omfattning!$BE$3:$BM$50,MATCH($H11,Funktioner!$F$30:$F$77,0),MATCH(BT$2,Omfattning!$BE$2:$BM$2,0)),\"\")","v":0},{"$f":"IFERROR(INDEX(Omfattning!$BE$3:$BM$50,MATCH($H11,Funktioner!$F$30:$F$77,0),MATCH(BU$2,Omfattning!$BE$2:$BM$2,0)),\"\")","v":0},{"$f":"IFERROR(INDEX(Omfattning!$BE$3:$BM$50,MATCH($H11,Funktioner!$F$30:$F$77,0),MATCH(BV$2,Omfattning!$BE$2:$BM$2,0)),\"\")","v":0},{"$f":"IFERROR(INDEX(Omfattning!$BE$3:$BM$50,MATCH($H11,Funktioner!$F$30:$F$77,0),MATCH(BW$2,Omfattning!$BE$2:$BM$2,0)),\"\")","v":0},{"$f":"IFERROR(INDEX(Omfattning!$BE$3:$BM$50,MATCH($H11,Funktioner!$F$30:$F$77,0),MATCH(BX$2,Omfattning!$BE$2:$BM$2,0)),\"\")","v":0},{"$f":"IFERROR(INDEX(Omfattning!$BE$3:$BM$50,MATCH($H11,Funktioner!$F$30:$F$77,0),MATCH(BY$2,Omfattning!$BE$2:$BM$2,0)),\"\")","v":0},{"$f":"IF(Uträkningsmall!$F21=\"\",\"\",IF(CA11=\"Kan ej leverera\",240000000,IF(ISNUMBER(BX11),BX11*Uträkningsmall!$F21,\"\")))","v":""},""]
[{"$f":"\"Position\"&Uträkningsmall!$A22","v":"Position"},{"$f":"IF(Uträkningsmall!$F22=\"\",\"\",IF(AND(Uträkningsmall!$A22=15,OR(Uträkningsmall!$E22=\"\",Uträkningsmall!$F22=\"\")),1,IF(AND(Uträkningsmall!$A22=16,OR(Uträkningsmall!$E22=\"\",Uträkningsmall!$F22=\"\")),1,IF(AND(Uträkningsmall!$A22=17,OR(Uträkningsmall!$E22=\"\",Uträkningsmall!$F22=\"\")),1,IF(AND(Uträkningsmall!$A22=19,OR(Uträkningsmall!$E22=\"\",Uträkningsmall!$F22=\"\")),1,IF(AND(Uträkningsmall!$A22=20,OR(Uträkningsmall!$E22=\"\",Uträkningsmall!$F22=\"\")),1,IF(AND(Uträkningsmall!$A22=21,OR(Uträkningsmall!$E22=\"\",Uträkningsmall!$F22=\"\")),1,IF(AND(Uträkningsmall!$A22=22,OR(Uträkningsmall!$E22=\"\",Uträkningsmall!$F22=\"\")),1,IF(AND(Uträkningsmall!$A22=23,OR(Uträkningsmall!$E22=\"\",Uträkningsmall!$F22=\"\")),1,IF(AND(Uträkningsmall!$A22=24,OR(Uträkningsmall!$E22=\"\",Uträkningsmall!$F22=\"\")),1,IF(AND(Uträkningsmall!$A22=25,OR(Uträkningsmall!$E22=\"\",Uträkningsmall!$F22=\"\")),1,IF(AND(Uträkningsmall!$A22=26,OR(Uträkningsmall!$E22=\"\",Uträkningsmall!$F22=\"\")),1,IF(AND(Uträkningsmall!$A22=27,OR(Uträkningsmall!$E22=\"\",Uträkningsmall!$F22=\"\")),1,IF(AND(Uträkningsmall!$A22=28,OR(Uträkningsmall!$E22=\"\",Uträkningsmall!$F22=\"\")),1,IF(AND(Uträkningsmall!$A22=29,OR(Uträkningsmall!$E22=\"\",Uträkningsmall!$F22=\"\")),1,IF(AND(Uträkningsmall!$A22=30,OR(Uträkningsmall!$E22=\"\",Uträkningsmall!$F22=\"\")),1,IF(AND(Uträkningsmall!$A22=39,OR(Uträkningsmall!$E22=\"\",Uträkningsmall!$F22=\"\")),1,IF(AND(Uträkningsmall!$A22=40,OR(Uträkningsmall!$E22=\"\",Uträkningsmall!$F22=\"\")),1,IF(AND(Uträkningsmall!$A22=41,OR(Uträkningsmall!$E22=\"\",Uträkningsmall!$F22=\"\")),1,IF(AND(Uträkningsmall!$A22=42,OR(Uträkningsmall!$E22=\"\",Uträkningsmall!$F22=\"\")),1,0))))))))))))))))))))","v":""},{"$f":"Funktioner!B155&Funktioner!C155&\", \"&Funktioner!D155&\"g\"&Funktioner!E155&Funktioner!F155","v":"Färgat papperA4, 80gA-kvalitet, färg: svag/mellansvag blå nyansOhålat"},{"$f":"Uträkningsmall!B22&Uträkningsmall!C22&Uträkningsmall!D22&Uträkningsmall!E22","v":""},null,"",null,{"$f":"Uträkningsmall!$A22","v":""},{"$f":"IFERROR(INDEX(Omfattning!$B$3:$J$50,MATCH($H12,Funktioner!$A$30:$A$77,0),MATCH(I$2,Omfattning!$B$2:$J$2,0)),\"\")","v":0},{"$f":"IFERROR(INDEX(Omfattning!$B$3:$J$50,MATCH($H12,Funktioner!$A$30:$A$77,0),MATCH(J$2,Omfattning!$B$2:$J$2,0)),\"\")","v":0},{"$f":"IFERROR(INDEX(Omfattning!$B$3:$J$50,MATCH($H12,Funktioner!$A$30:$A$77,0),MATCH(K$2,Omfattning!$B$2:$J$2,0)),\"\")","v":0},{"$f":"IFERROR(INDEX(Omfattning!$B$3:$J$50,MATCH($H12,Funktioner!$A$30:$A$77,0),MATCH(L$2,Omfattning!$B$2:$J$2,0)),\"\")","v":""},{"$f":"IFERROR(INDEX(Omfattning!$B$3:$J$50,MATCH($H12,Funktioner!$A$30:$A$77,0),MATCH(M$2,Omfattning!$B$2:$J$2,0)),\"\")","v":0},{"$f":"IFERROR(INDEX(Omfattning!$B$3:$J$50,MATCH($H12,Funktioner!$A$30:$A$77,0),MATCH(N$2,Omfattning!$B$2:$J$2,0)),\"\")","v":0},{"$f":"IFERROR(INDEX(Omfattning!$B$3:$J$50,MATCH($H12,Funktioner!$A$30:$A$77,0),MATCH(O$2,Omfattning!$B$2:$J$2,0)),\"\")","v":0},{"$f":"IFERROR(INDEX(Omfattning!$B$3:$J$50,MATCH($H12,Funktioner!$A$30:$A$77,0),MATCH(P$2,Omfattning!$B$2:$J$2,0)),\"\")","v":0},{"$f":"IFERROR(INDEX(Omfattning!$B$3:$J$50,MATCH($H12,Funktioner!$A$30:$A$77,0),MATCH(Q$2,Omfattning!$B$2:$J$2,0)),\"\")","v":0},{"$f":"IF(Uträkningsmall!$F22=\"\",\"\",IF(S12=\"Kan ej leverera\",240000000,IF(ISNUMBER(P12),P12*Uträkningsmall!$F22,\"\")))","v":""},"",null,{"$f":"IFERROR(INDEX(Omfattning!$M$3:$U$50,MATCH($H12,Funktioner!$B$30:$B$77,0),MATCH(U$2,Omfattning!$M$2:$U$2,0)),\"\")","v":0},{"$f":"IFERROR(INDEX(Omfattning!$M$3:$U$50,MATCH($H12,Funktioner!$B$30:$B$77,0),MATCH(V$2,Omfattning!$M$2:$U$2,0)),\"\")","v":0},{"$f":"IFERROR(INDEX(Omfattning!$M$3:$U$50,MATCH($H12,Funktioner!$B$30:$B$77,0),MATCH(W$2,Omfattning!$M$2:$U$2,0)),\"\")","v":0},{"$f":"IFERROR(INDEX(Omfattning!$M$3:$U$50,MATCH($H12,Funktioner!$B$30:$B$77,0),MATCH(X$2,Omfattning!$M$2:$U$2,0)),\"\")","v":0},{"$f":"IFERROR(INDEX(Omfattning!$M$3:$U$50,MATCH($H12,Funktioner!$B$30:$B$77,0),MATCH(Y$2,Omfattning!$M$2:$U$2,0)),\"\")","v":0},{"$f":"IFERROR(INDEX(Omfattning!$M$3:$U$50,MATCH($H12,Funktioner!$B$30:$B$77,0),MATCH(Z$2,Omfattning!$M$2:$U$2,0)),\"\")","v":0},{"$f":"IFERROR(INDEX(Omfattning!$M$3:$U$50,MATCH($H12,Funktioner!$B$30:$B$77,0),MATCH(AA$2,Omfattning!$M$2:$U$2,0)),\"\")","v":0},{"$f":"IFERROR(INDEX(Omfattning!$M$3:$U$50,MATCH($H12,Funktioner!$B$30:$B$77,0),MATCH(AB$2,Omfattning!$M$2:$U$2,0)),\"\")","v":0},{"$f":"IFERROR(INDEX(Omfattning!$M$3:$U$50,MATCH($H12,Funktioner!$B$30:$B$77,0),MATCH(AC$2,Omfattning!$M$2:$U$2,0)),\"\")","v":0},{"$f":"IF(Uträkningsmall!$F22=\"\",\"\",IF(AE12=\"Kan ej leverera\",240000000,IF(ISNUMBER(AB12),AB12*Uträkningsmall!$F22,\"\")))","v":""},"",null,{"$f":"IFERROR(INDEX(Omfattning!$X$3:$AF$50,MATCH($H12,Funktioner!$C$30:$C$77,0),MATCH(AG$2,Omfattning!$X$2:$AF$2,0)),\"\")","v":0},{"$f":"IFERROR(INDEX(Omfattning!$X$3:$AF$50,MATCH($H12,Funktioner!$C$30:$C$77,0),MATCH(AH$2,Omfattning!$X$2:$AF$2,0)),\"\")","v":0},{"$f":"IFERROR(INDEX(Omfattning!$X$3:$AF$50,MATCH($H12,Funktioner!$C$30:$C$77,0),MATCH(AI$2,Omfattning!$X$2:$AF$2,0)),\"\")","v":0},{"$f":"IFERROR(INDEX(Omfattning!$X$3:$AF$50,MATCH($H12,Funktioner!$C$30:$C$77,0),MATCH(AJ$2,Omfattning!$X$2:$AF$2,0)),\"\")","v":0},{"$f":"IFERROR(INDEX(Omfattning!$X$3:$AF$50,MATCH($H12,Funktioner!$C$30:$C$77,0),MATCH(AK$2,Omfattning!$X$2:$AF$2,0)),\"\")","v":0},{"$f":"IFERROR(INDEX(Omfattning!$X$3:$AF$50,MATCH($H12,Funktioner!$C$30:$C$77,0),MATCH(AL$2,Omfattning!$X$2:$AF$2,0)),\"\")","v":0},{"$f":"IFERROR(INDEX(Omfattning!$X$3:$AF$50,MATCH($H12,Funktioner!$C$30:$C$77,0),MATCH(AM$2,Omfattning!$X$2:$AF$2,0)),\"\")","v":0},{"$f":"IFERROR(INDEX(Omfattning!$X$3:$AF$50,MATCH($H12,Funktioner!$C$30:$C$77,0),MATCH(AN$2,Omfattning!$X$2:$AF$2,0)),\"\")","v":0},{"$f":"IFERROR(INDEX(Omfattning!$X$3:$AF$50,MATCH($H12,Funktioner!$C$30:$C$77,0),MATCH(AO$2,Omfattning!$X$2:$AF$2,0)),\"\")","v":0},{"$f":"IF(Uträkningsmall!$F22=\"\",\"\",IF(AQ12=\"Kan ej leverera\",240000000,IF(ISNUMBER(AN12),AN12*Uträkningsmall!$F22,\"\")))","v":""},"",null,{"$f":"IFERROR(INDEX(Omfattning!$AI$3:$AQ$50,MATCH($H12,Funktioner!$D$30:$D$77,0),MATCH(AS$2,Omfattning!$AI$2:$AQ$2,0)),\"\")","v":0},{"$f":"IFERROR(INDEX(Omfattning!$AI$3:$AQ$50,MATCH($H12,Funktioner!$D$30:$D$77,0),MATCH(AT$2,Omfattning!$AI$2:$AQ$2,0)),\"\")","v":0},{"$f":"IFERROR(INDEX(Omfattning!$AI$3:$AQ$50,MATCH($H12,Funktioner!$D$30:$D$77,0),MATCH(AU$2,Omfattning!$AI$2:$AQ$2,0)),\"\")","v":0},{"$f":"IFERROR(INDEX(Omfattning!$AI$3:$AQ$50,MATCH($H12,Funktioner!$D$30:$D$77,0),MATCH(AV$2,Omfattning!$AI$2:$AQ$2,0)),\"\")","v":0},{"$f":"IFERROR(INDEX(Omfattning!$AI$3:$AQ$50,MATCH($H12,Funktioner!$D$30:$D$77,0),MATCH(AW$2,Omfattning!$AI$2:$AQ$2,0)),\"\")","v":0},{"$f":"IFERROR(INDEX(Omfattning!$AI$3:$AQ$50,MATCH($H12,Funktioner!$D$30:$D$77,0),MATCH(AX$2,Omfattning!$AI$2:$AQ$2,0)),\"\")","v":0},{"$f":"IFERROR(INDEX(Omfattning!$AI$3:$AQ$50,MATCH($H12,Funktioner!$D$30:$D$77,0),MATCH(AY$2,Omfattning!$AI$2:$AQ$2,0)),\"\")","v":0},{"$f":"IFERROR(INDEX(Omfattning!$AI$3:$AQ$50,MATCH($H12,Funktioner!$D$30:$D$77,0),MATCH(AZ$2,Omfattning!$AI$2:$AQ$2,0)),\"\")","v":0},{"$f":"IFERROR(INDEX(Omfattning!$AI$3:$AQ$50,MATCH($H12,Funktioner!$D$30:$D$77,0),MATCH(BA$2,Omfattning!$AI$2:$AQ$2,0)),\"\")","v":0},{"$f":"IF(Uträkningsmall!$F22=\"\",\"\",IF(BC12=\"Kan ej leverera\",240000000,IF(ISNUMBER(AZ12),AZ12*Uträkningsmall!$F22,\"\")))","v":""},"",null,{"$f":"IFERROR(INDEX(Omfattning!$AT$3:$BB$50,MATCH($H12,Funktioner!$E$30:$E$77,0),MATCH(BE$2,Omfattning!$AT$2:$BB$2,0)),\"\")","v":0},{"$f":"IFERROR(INDEX(Omfattning!$AT$3:$BB$50,MATCH($H12,Funktioner!$E$30:$E$77,0),MATCH(BF$2,Omfattning!$AT$2:$BB$2,0)),\"\")","v":0},{"$f":"IFERROR(INDEX(Omfattning!$AT$3:$BB$50,MATCH($H12,Funktioner!$E$30:$E$77,0),MATCH(BG$2,Omfattning!$AT$2:$BB$2,0)),\"\")","v":0},{"$f":"IFERROR(INDEX(Omfattning!$AT$3:$BB$50,MATCH($H12,Funktioner!$E$30:$E$77,0),MATCH(BH$2,Omfattning!$AT$2:$BB$2,0)),\"\")","v":0},{"$f":"IFERROR(INDEX(Omfattning!$AT$3:$BB$50,MATCH($H12,Funktioner!$E$30:$E$77,0),MATCH(BI$2,Omfattning!$AT$2:$BB$2,0)),\"\")","v":0},{"$f":"IFERROR(INDEX(Omfattning!$AT$3:$BB$50,MATCH($H12,Funktioner!$E$30:$E$77,0),MATCH(BJ$2,Omfattning!$AT$2:$BB$2,0)),\"\")","v":0},{"$f":"IFERROR(INDEX(Omfattning!$AT$3:$BB$50,MATCH($H12,Funktioner!$E$30:$E$77,0),MATCH(BK$2,Omfattning!$AT$2:$BB$2,0)),\"\")","v":0},{"$f":"IFERROR(INDEX(Omfattning!$AT$3:$BB$50,MATCH($H12,Funktioner!$E$30:$E$77,0),MATCH(BL$2,Omfattning!$AT$2:$BB$2,0)),\"\")","v":0},{"$f":"IFERROR(INDEX(Omfattning!$AT$3:$BB$50,MATCH($H12,Funktioner!$E$30:$E$77,0),MATCH(BM$2,Omfattning!$AT$2:$BB$2,0)),\"\")","v":0},{"$f":"IF(Uträkningsmall!$F22=\"\",\"\",IF(BO12=\"Kan ej leverera\",240000000,IF(ISNUMBER(BL12),BL12*Uträkningsmall!$F22,\"\")))","v":""},"",null,{"$f":"IFERROR(INDEX(Omfattning!$BE$3:$BM$50,MATCH($H12,Funktioner!$F$30:$F$77,0),MATCH(BQ$2,Omfattning!$BE$2:$BM$2,0)),\"\")","v":0},{"$f":"IFERROR(INDEX(Omfattning!$BE$3:$BM$50,MATCH($H12,Funktioner!$F$30:$F$77,0),MATCH(BR$2,Omfattning!$BE$2:$BM$2,0)),\"\")","v":0},{"$f":"IFERROR(INDEX(Omfattning!$BE$3:$BM$50,MATCH($H12,Funktioner!$F$30:$F$77,0),MATCH(BS$2,Omfattning!$BE$2:$BM$2,0)),\"\")","v":0},{"$f":"IFERROR(INDEX(Omfattning!$BE$3:$BM$50,MATCH($H12,Funktioner!$F$30:$F$77,0),MATCH(BT$2,Omfattning!$BE$2:$BM$2,0)),\"\")","v":0},{"$f":"IFERROR(INDEX(Omfattning!$BE$3:$BM$50,MATCH($H12,Funktioner!$F$30:$F$77,0),MATCH(BU$2,Omfattning!$BE$2:$BM$2,0)),\"\")","v":0},{"$f":"IFERROR(INDEX(Omfattning!$BE$3:$BM$50,MATCH($H12,Funktioner!$F$30:$F$77,0),MATCH(BV$2,Omfattning!$BE$2:$BM$2,0)),\"\")","v":0},{"$f":"IFERROR(INDEX(Omfattning!$BE$3:$BM$50,MATCH($H12,Funktioner!$F$30:$F$77,0),MATCH(BW$2,Omfattning!$BE$2:$BM$2,0)),\"\")","v":0},{"$f":"IFERROR(INDEX(Omfattning!$BE$3:$BM$50,MATCH($H12,Funktioner!$F$30:$F$77,0),MATCH(BX$2,Omfattning!$BE$2:$BM$2,0)),\"\")","v":0},{"$f":"IFERROR(INDEX(Omfattning!$BE$3:$BM$50,MATCH($H12,Funktioner!$F$30:$F$77,0),MATCH(BY$2,Omfattning!$BE$2:$BM$2,0)),\"\")","v":0},{"$f":"IF(Uträkningsmall!$F22=\"\",\"\",IF(CA12=\"Kan ej leverera\",240000000,IF(ISNUMBER(BX12),BX12*Uträkningsmall!$F22,\"\")))","v":""},""]
[{"$f":"\"Position\"&Uträkningsmall!$A23","v":"Position"},{"$f":"IF(Uträkningsmall!$F23=\"\",\"\",IF(AND(Uträkningsmall!$A23=15,OR(Uträkningsmall!$E23=\"\",Uträkningsmall!$F23=\"\")),1,IF(AND(Uträkningsmall!$A23=16,OR(Uträkningsmall!$E23=\"\",Uträkningsmall!$F23=\"\")),1,IF(AND(Uträkningsmall!$A23=17,OR(Uträkningsmall!$E23=\"\",Uträkningsmall!$F23=\"\")),1,IF(AND(Uträkningsmall!$A23=19,OR(Uträkningsmall!$E23=\"\",Uträkningsmall!$F23=\"\")),1,IF(AND(Uträkningsmall!$A23=20,OR(Uträkningsmall!$E23=\"\",Uträkningsmall!$F23=\"\")),1,IF(AND(Uträkningsmall!$A23=21,OR(Uträkningsmall!$E23=\"\",Uträkningsmall!$F23=\"\")),1,IF(AND(Uträkningsmall!$A23=22,OR(Uträkningsmall!$E23=\"\",Uträkningsmall!$F23=\"\")),1,IF(AND(Uträkningsmall!$A23=23,OR(Uträkningsmall!$E23=\"\",Uträkningsmall!$F23=\"\")),1,IF(AND(Uträkningsmall!$A23=24,OR(Uträkningsmall!$E23=\"\",Uträkningsmall!$F23=\"\")),1,IF(AND(Uträkningsmall!$A23=25,OR(Uträkningsmall!$E23=\"\",Uträkningsmall!$F23=\"\")),1,IF(AND(Uträkningsmall!$A23=26,OR(Uträkningsmall!$E23=\"\",Uträkningsmall!$F23=\"\")),1,IF(AND(Uträkningsmall!$A23=27,OR(Uträkningsmall!$E23=\"\",Uträkningsmall!$F23=\"\")),1,IF(AND(Uträkningsmall!$A23=28,OR(Uträkningsmall!$E23=\"\",Uträkningsmall!$F23=\"\")),1,IF(AND(Uträkningsmall!$A23=29,OR(Uträkningsmall!$E23=\"\",Uträkningsmall!$F23=\"\")),1,IF(AND(Uträkningsmall!$A23=30,OR(Uträkningsmall!$E23=\"\",Uträkningsmall!$F23=\"\")),1,IF(AND(Uträkningsmall!$A23=39,OR(Uträkningsmall!$E23=\"\",Uträkningsmall!$F23=\"\")),1,IF(AND(Uträkningsmall!$A23=40,OR(Uträkningsmall!$E23=\"\",Uträkningsmall!$F23=\"\")),1,IF(AND(Uträkningsmall!$A23=41,OR(Uträkningsmall!$E23=\"\",Uträkningsmall!$F23=\"\")),1,IF(AND(Uträkningsmall!$A23=42,OR(Uträkningsmall!$E23=\"\",Uträkningsmall!$F23=\"\")),1,0))))))))))))))))))))","v":""},{"$f":"Funktioner!B156&Funktioner!C156&\", \"&Funktioner!D156&\"g\"&Funktioner!E156&Funktioner!F156","v":"Färgat papperA4, 80gA-kvalitet, färg: svag/mellansvag grön nyansOhålat"},{"$f":"Uträkningsmall!B23&Uträkningsmall!C23&Uträkningsmall!D23&Uträkningsmall!E23","v":""},null,"",null,{"$f":"Uträkningsmall!$A23","v":""},{"$f":"IFERROR(INDEX(Omfattning!$B$3:$J$50,MATCH($H13,Funktioner!$A$30:$A$77,0),MATCH(I$2,Omfattning!$B$2:$J$2,0)),\"\")","v":0},{"$f":"IFERROR(INDEX(Omfattning!$B$3:$J$50,MATCH($H13,Funktioner!$A$30:$A$77,0),MATCH(J$2,Omfattning!$B$2:$J$2,0)),\"\")","v":0},{"$f":"IFERROR(INDEX(Omfattning!$B$3:$J$50,MATCH($H13,Funktioner!$A$30:$A$77,0),MATCH(K$2,Omfattning!$B$2:$J$2,0)),\"\")","v":0},{"$f":"IFERROR(INDEX(Omfattning!$B$3:$J$50,MATCH($H13,Funktioner!$A$30:$A$77,0),MATCH(L$2,Omfattning!$B$2:$J$2,0)),\"\")","v":""},{"$f":"IFERROR(INDEX(Omfattning!$B$3:$J$50,MATCH($H13,Funktioner!$A$30:$A$77,0),MATCH(M$2,Omfattning!$B$2:$J$2,0)),\"\")","v":0},{"$f":"IFERROR(INDEX(Omfattning!$B$3:$J$50,MATCH($H13,Funktioner!$A$30:$A$77,0),MATCH(N$2,Omfattning!$B$2:$J$2,0)),\"\")","v":0},{"$f":"IFERROR(INDEX(Omfattning!$B$3:$J$50,MATCH($H13,Funktioner!$A$30:$A$77,0),MATCH(O$2,Omfattning!$B$2:$J$2,0)),\"\")","v":0},{"$f":"IFERROR(INDEX(Omfattning!$B$3:$J$50,MATCH($H13,Funktioner!$A$30:$A$77,0),MATCH(P$2,Omfattning!$B$2:$J$2,0)),\"\")","v":0},{"$f":"IFERROR(INDEX(Omfattning!$B$3:$J$50,MATCH($H13,Funktioner!$A$30:$A$77,0),MATCH(Q$2,Omfattning!$B$2:$J$2,0)),\"\")","v":0},{"$f":"IF(Uträkningsmall!$F23=\"\",\"\",IF(S13=\"Kan ej leverera\",240000000,IF(ISNUMBER(P13),P13*Uträkningsmall!$F23,\"\")))","v":""},"",null,{"$f":"IFERROR(INDEX(Omfattning!$M$3:$U$50,MATCH($H13,Funktioner!$B$30:$B$77,0),MATCH(U$2,Omfattning!$M$2:$U$2,0)),\"\")","v":0},{"$f":"IFERROR(INDEX(Omfattning!$M$3:$U$50,MATCH($H13,Funktioner!$B$30:$B$77,0),MATCH(V$2,Omfattning!$M$2:$U$2,0)),\"\")","v":0},{"$f":"IFERROR(INDEX(Omfattning!$M$3:$U$50,MATCH($H13,Funktioner!$B$30:$B$77,0),MATCH(W$2,Omfattning!$M$2:$U$2,0)),\"\")","v":0},{"$f":"IFERROR(INDEX(Omfattning!$M$3:$U$50,MATCH($H13,Funktioner!$B$30:$B$77,0),MATCH(X$2,Omfattning!$M$2:$U$2,0)),\"\")","v":0},{"$f":"IFERROR(INDEX(Omfattning!$M$3:$U$50,MATCH($H13,Funktioner!$B$30:$B$77,0),MATCH(Y$2,Omfattning!$M$2:$U$2,0)),\"\")","v":0},{"$f":"IFERROR(INDEX(Omfattning!$M$3:$U$50,MATCH($H13,Funktioner!$B$30:$B$77,0),MATCH(Z$2,Omfattning!$M$2:$U$2,0)),\"\")","v":0},{"$f":"IFERROR(INDEX(Omfattning!$M$3:$U$50,MATCH($H13,Funktioner!$B$30:$B$77,0),MATCH(AA$2,Omfattning!$M$2:$U$2,0)),\"\")","v":0},{"$f":"IFERROR(INDEX(Omfattning!$M$3:$U$50,MATCH($H13,Funktioner!$B$30:$B$77,0),MATCH(AB$2,Omfattning!$M$2:$U$2,0)),\"\")","v":0},{"$f":"IFERROR(INDEX(Omfattning!$M$3:$U$50,MATCH($H13,Funktioner!$B$30:$B$77,0),MATCH(AC$2,Omfattning!$M$2:$U$2,0)),\"\")","v":0},{"$f":"IF(Uträkningsmall!$F23=\"\",\"\",IF(AE13=\"Kan ej leverera\",240000000,IF(ISNUMBER(AB13),AB13*Uträkningsmall!$F23,\"\")))","v":""},"",null,{"$f":"IFERROR(INDEX(Omfattning!$X$3:$AF$50,MATCH($H13,Funktioner!$C$30:$C$77,0),MATCH(AG$2,Omfattning!$X$2:$AF$2,0)),\"\")","v":0},{"$f":"IFERROR(INDEX(Omfattning!$X$3:$AF$50,MATCH($H13,Funktioner!$C$30:$C$77,0),MATCH(AH$2,Omfattning!$X$2:$AF$2,0)),\"\")","v":0},{"$f":"IFERROR(INDEX(Omfattning!$X$3:$AF$50,MATCH($H13,Funktioner!$C$30:$C$77,0),MATCH(AI$2,Omfattning!$X$2:$AF$2,0)),\"\")","v":0},{"$f":"IFERROR(INDEX(Omfattning!$X$3:$AF$50,MATCH($H13,Funktioner!$C$30:$C$77,0),MATCH(AJ$2,Omfattning!$X$2:$AF$2,0)),\"\")","v":0},{"$f":"IFERROR(INDEX(Omfattning!$X$3:$AF$50,MATCH($H13,Funktioner!$C$30:$C$77,0),MATCH(AK$2,Omfattning!$X$2:$AF$2,0)),\"\")","v":0},{"$f":"IFERROR(INDEX(Omfattning!$X$3:$AF$50,MATCH($H13,Funktioner!$C$30:$C$77,0),MATCH(AL$2,Omfattning!$X$2:$AF$2,0)),\"\")","v":0},{"$f":"IFERROR(INDEX(Omfattning!$X$3:$AF$50,MATCH($H13,Funktioner!$C$30:$C$77,0),MATCH(AM$2,Omfattning!$X$2:$AF$2,0)),\"\")","v":0},{"$f":"IFERROR(INDEX(Omfattning!$X$3:$AF$50,MATCH($H13,Funktioner!$C$30:$C$77,0),MATCH(AN$2,Omfattning!$X$2:$AF$2,0)),\"\")","v":0},{"$f":"IFERROR(INDEX(Omfattning!$X$3:$AF$50,MATCH($H13,Funktioner!$C$30:$C$77,0),MATCH(AO$2,Omfattning!$X$2:$AF$2,0)),\"\")","v":0},{"$f":"IF(Uträkningsmall!$F23=\"\",\"\",IF(AQ13=\"Kan ej leverera\",240000000,IF(ISNUMBER(AN13),AN13*Uträkningsmall!$F23,\"\")))","v":""},"",null,{"$f":"IFERROR(INDEX(Omfattning!$AI$3:$AQ$50,MATCH($H13,Funktioner!$D$30:$D$77,0),MATCH(AS$2,Omfattning!$AI$2:$AQ$2,0)),\"\")","v":0},{"$f":"IFERROR(INDEX(Omfattning!$AI$3:$AQ$50,MATCH($H13,Funktioner!$D$30:$D$77,0),MATCH(AT$2,Omfattning!$AI$2:$AQ$2,0)),\"\")","v":0},{"$f":"IFERROR(INDEX(Omfattning!$AI$3:$AQ$50,MATCH($H13,Funktioner!$D$30:$D$77,0),MATCH(AU$2,Omfattning!$AI$2:$AQ$2,0)),\"\")","v":0},{"$f":"IFERROR(INDEX(Omfattning!$AI$3:$AQ$50,MATCH($H13,Funktioner!$D$30:$D$77,0),MATCH(AV$2,Omfattning!$AI$2:$AQ$2,0)),\"\")","v":0},{"$f":"IFERROR(INDEX(Omfattning!$AI$3:$AQ$50,MATCH($H13,Funktioner!$D$30:$D$77,0),MATCH(AW$2,Omfattning!$AI$2:$AQ$2,0)),\"\")","v":0},{"$f":"IFERROR(INDEX(Omfattning!$AI$3:$AQ$50,MATCH($H13,Funktioner!$D$30:$D$77,0),MATCH(AX$2,Omfattning!$AI$2:$AQ$2,0)),\"\")","v":0},{"$f":"IFERROR(INDEX(Omfattning!$AI$3:$AQ$50,MATCH($H13,Funktioner!$D$30:$D$77,0),MATCH(AY$2,Omfattning!$AI$2:$AQ$2,0)),\"\")","v":0},{"$f":"IFERROR(INDEX(Omfattning!$AI$3:$AQ$50,MATCH($H13,Funktioner!$D$30:$D$77,0),MATCH(AZ$2,Omfattning!$AI$2:$AQ$2,0)),\"\")","v":0},{"$f":"IFERROR(INDEX(Omfattning!$AI$3:$AQ$50,MATCH($H13,Funktioner!$D$30:$D$77,0),MATCH(BA$2,Omfattning!$AI$2:$AQ$2,0)),\"\")","v":0},{"$f":"IF(Uträkningsmall!$F23=\"\",\"\",IF(BC13=\"Kan ej leverera\",240000000,IF(ISNUMBER(AZ13),AZ13*Uträkningsmall!$F23,\"\")))","v":""},"",null,{"$f":"IFERROR(INDEX(Omfattning!$AT$3:$BB$50,MATCH($H13,Funktioner!$E$30:$E$77,0),MATCH(BE$2,Omfattning!$AT$2:$BB$2,0)),\"\")","v":0},{"$f":"IFERROR(INDEX(Omfattning!$AT$3:$BB$50,MATCH($H13,Funktioner!$E$30:$E$77,0),MATCH(BF$2,Omfattning!$AT$2:$BB$2,0)),\"\")","v":0},{"$f":"IFERROR(INDEX(Omfattning!$AT$3:$BB$50,MATCH($H13,Funktioner!$E$30:$E$77,0),MATCH(BG$2,Omfattning!$AT$2:$BB$2,0)),\"\")","v":0},{"$f":"IFERROR(INDEX(Omfattning!$AT$3:$BB$50,MATCH($H13,Funktioner!$E$30:$E$77,0),MATCH(BH$2,Omfattning!$AT$2:$BB$2,0)),\"\")","v":0},{"$f":"IFERROR(INDEX(Omfattning!$AT$3:$BB$50,MATCH($H13,Funktioner!$E$30:$E$77,0),MATCH(BI$2,Omfattning!$AT$2:$BB$2,0)),\"\")","v":0},{"$f":"IFERROR(INDEX(Omfattning!$AT$3:$BB$50,MATCH($H13,Funktioner!$E$30:$E$77,0),MATCH(BJ$2,Omfattning!$AT$2:$BB$2,0)),\"\")","v":0},{"$f":"IFERROR(INDEX(Omfattning!$AT$3:$BB$50,MATCH($H13,Funktioner!$E$30:$E$77,0),MATCH(BK$2,Omfattning!$AT$2:$BB$2,0)),\"\")","v":0},{"$f":"IFERROR(INDEX(Omfattning!$AT$3:$BB$50,MATCH($H13,Funktioner!$E$30:$E$77,0),MATCH(BL$2,Omfattning!$AT$2:$BB$2,0)),\"\")","v":0},{"$f":"IFERROR(INDEX(Omfattning!$AT$3:$BB$50,MATCH($H13,Funktioner!$E$30:$E$77,0),MATCH(BM$2,Omfattning!$AT$2:$BB$2,0)),\"\")","v":0},{"$f":"IF(Uträkningsmall!$F23=\"\",\"\",IF(BO13=\"Kan ej leverera\",240000000,IF(ISNUMBER(BL13),BL13*Uträkningsmall!$F23,\"\")))","v":""},"",null,{"$f":"IFERROR(INDEX(Omfattning!$BE$3:$BM$50,MATCH($H13,Funktioner!$F$30:$F$77,0),MATCH(BQ$2,Omfattning!$BE$2:$BM$2,0)),\"\")","v":0},{"$f":"IFERROR(INDEX(Omfattning!$BE$3:$BM$50,MATCH($H13,Funktioner!$F$30:$F$77,0),MATCH(BR$2,Omfattning!$BE$2:$BM$2,0)),\"\")","v":0},{"$f":"IFERROR(INDEX(Omfattning!$BE$3:$BM$50,MATCH($H13,Funktioner!$F$30:$F$77,0),MATCH(BS$2,Omfattning!$BE$2:$BM$2,0)),\"\")","v":0},{"$f":"IFERROR(INDEX(Omfattning!$BE$3:$BM$50,MATCH($H13,Funktioner!$F$30:$F$77,0),MATCH(BT$2,Omfattning!$BE$2:$BM$2,0)),\"\")","v":0},{"$f":"IFERROR(INDEX(Omfattning!$BE$3:$BM$50,MATCH($H13,Funktioner!$F$30:$F$77,0),MATCH(BU$2,Omfattning!$BE$2:$BM$2,0)),\"\")","v":0},{"$f":"IFERROR(INDEX(Omfattning!$BE$3:$BM$50,MATCH($H13,Funktioner!$F$30:$F$77,0),MATCH(BV$2,Omfattning!$BE$2:$BM$2,0)),\"\")","v":0},{"$f":"IFERROR(INDEX(Omfattning!$BE$3:$BM$50,MATCH($H13,Funktioner!$F$30:$F$77,0),MATCH(BW$2,Omfattning!$BE$2:$BM$2,0)),\"\")","v":0},{"$f":"IFERROR(INDEX(Omfattning!$BE$3:$BM$50,MATCH($H13,Funktioner!$F$30:$F$77,0),MATCH(BX$2,Omfattning!$BE$2:$BM$2,0)),\"\")","v":0},{"$f":"IFERROR(INDEX(Omfattning!$BE$3:$BM$50,MATCH($H13,Funktioner!$F$30:$F$77,0),MATCH(BY$2,Omfattning!$BE$2:$BM$2,0)),\"\")","v":0},{"$f":"IF(Uträkningsmall!$F23=\"\",\"\",IF(CA13=\"Kan ej leverera\",240000000,IF(ISNUMBER(BX13),BX13*Uträkningsmall!$F23,\"\")))","v":""},""]
[{"$f":"\"Position\"&Uträkningsmall!$A24","v":"Position"},{"$f":"IF(Uträkningsmall!$F24=\"\",\"\",IF(AND(Uträkningsmall!$A24=15,OR(Uträkningsmall!$E24=\"\",Uträkningsmall!$F24=\"\")),1,IF(AND(Uträkningsmall!$A24=16,OR(Uträkningsmall!$E24=\"\",Uträkningsmall!$F24=\"\")),1,IF(AND(Uträkningsmall!$A24=17,OR(Uträkningsmall!$E24=\"\",Uträkningsmall!$F24=\"\")),1,IF(AND(Uträkningsmall!$A24=19,OR(Uträkningsmall!$E24=\"\",Uträkningsmall!$F24=\"\")),1,IF(AND(Uträkningsmall!$A24=20,OR(Uträkningsmall!$E24=\"\",Uträkningsmall!$F24=\"\")),1,IF(AND(Uträkningsmall!$A24=21,OR(Uträkningsmall!$E24=\"\",Uträkningsmall!$F24=\"\")),1,IF(AND(Uträkningsmall!$A24=22,OR(Uträkningsmall!$E24=\"\",Uträkningsmall!$F24=\"\")),1,IF(AND(Uträkningsmall!$A24=23,OR(Uträkningsmall!$E24=\"\",Uträkningsmall!$F24=\"\")),1,IF(AND(Uträkningsmall!$A24=24,OR(Uträkningsmall!$E24=\"\",Uträkningsmall!$F24=\"\")),1,IF(AND(Uträkningsmall!$A24=25,OR(Uträkningsmall!$E24=\"\",Uträkningsmall!$F24=\"\")),1,IF(AND(Uträkningsmall!$A24=26,OR(Uträkningsmall!$E24=\"\",Uträkningsmall!$F24=\"\")),1,IF(AND(Uträkningsmall!$A24=27,OR(Uträkningsmall!$E24=\"\",Uträkningsmall!$F24=\"\")),1,IF(AND(Uträkningsmall!$A24=28,OR(Uträkningsmall!$E24=\"\",Uträkningsmall!$F24=\"\")),1,IF(AND(Uträkningsmall!$A24=29,OR(Uträkningsmall!$E24=\"\",Uträkningsmall!$F24=\"\")),1,IF(AND(Uträkningsmall!$A24=30,OR(Uträkningsmall!$E24=\"\",Uträkningsmall!$F24=\"\")),1,IF(AND(Uträkningsmall!$A24=39,OR(Uträkningsmall!$E24=\"\",Uträkningsmall!$F24=\"\")),1,IF(AND(Uträkningsmall!$A24=40,OR(Uträkningsmall!$E24=\"\",Uträkningsmall!$F24=\"\")),1,IF(AND(Uträkningsmall!$A24=41,OR(Uträkningsmall!$E24=\"\",Uträkningsmall!$F24=\"\")),1,IF(AND(Uträkningsmall!$A24=42,OR(Uträkningsmall!$E24=\"\",Uträkningsmall!$F24=\"\")),1,0))))))))))))))))))))","v":""},{"$f":"Funktioner!B157&Funktioner!C157&\", \"&Funktioner!D157&\"g\"&Funktioner!E157&Funktioner!F157","v":"Färgat papperA4, 80gA-kvalitet, färg: svag/mellansvag rosa nyansOhålat"},{"$f":"Uträkningsmall!B24&Uträkningsmall!C24&Uträkningsmall!D24&Uträkningsmall!E24","v":""},null,"",null,{"$f":"Uträkningsmall!$A24","v":""},{"$f":"IFERROR(INDEX(Omfattning!$B$3:$J$50,MATCH($H14,Funktioner!$A$30:$A$77,0),MATCH(I$2,Omfattning!$B$2:$J$2,0)),\"\")","v":0},{"$f":"IFERROR(INDEX(Omfattning!$B$3:$J$50,MATCH($H14,Funktioner!$A$30:$A$77,0),MATCH(J$2,Omfattning!$B$2:$J$2,0)),\"\")","v":0},{"$f":"IFERROR(INDEX(Omfattning!$B$3:$J$50,MATCH($H14,Funktioner!$A$30:$A$77,0),MATCH(K$2,Omfattning!$B$2:$J$2,0)),\"\")","v":0},{"$f":"IFERROR(INDEX(Omfattning!$B$3:$J$50,MATCH($H14,Funktioner!$A$30:$A$77,0),MATCH(L$2,Omfattning!$B$2:$J$2,0)),\"\")","v":""},{"$f":"IFERROR(INDEX(Omfattning!$B$3:$J$50,MATCH($H14,Funktioner!$A$30:$A$77,0),MATCH(M$2,Omfattning!$B$2:$J$2,0)),\"\")","v":0},{"$f":"IFERROR(INDEX(Omfattning!$B$3:$J$50,MATCH($H14,Funktioner!$A$30:$A$77,0),MATCH(N$2,Omfattning!$B$2:$J$2,0)),\"\")","v":0},{"$f":"IFERROR(INDEX(Omfattning!$B$3:$J$50,MATCH($H14,Funktioner!$A$30:$A$77,0),MATCH(O$2,Omfattning!$B$2:$J$2,0)),\"\")","v":0},{"$f":"IFERROR(INDEX(Omfattning!$B$3:$J$50,MATCH($H14,Funktioner!$A$30:$A$77,0),MATCH(P$2,Omfattning!$B$2:$J$2,0)),\"\")","v":0},{"$f":"IFERROR(INDEX(Omfattning!$B$3:$J$50,MATCH($H14,Funktioner!$A$30:$A$77,0),MATCH(Q$2,Omfattning!$B$2:$J$2,0)),\"\")","v":0},{"$f":"IF(Uträkningsmall!$F24=\"\",\"\",IF(S14=\"Kan ej leverera\",240000000,IF(ISNUMBER(P14),P14*Uträkningsmall!$F24,\"\")))","v":""},"",null,{"$f":"IFERROR(INDEX(Omfattning!$M$3:$U$50,MATCH($H14,Funktioner!$B$30:$B$77,0),MATCH(U$2,Omfattning!$M$2:$U$2,0)),\"\")","v":0},{"$f":"IFERROR(INDEX(Omfattning!$M$3:$U$50,MATCH($H14,Funktioner!$B$30:$B$77,0),MATCH(V$2,Omfattning!$M$2:$U$2,0)),\"\")","v":0},{"$f":"IFERROR(INDEX(Omfattning!$M$3:$U$50,MATCH($H14,Funktioner!$B$30:$B$77,0),MATCH(W$2,Omfattning!$M$2:$U$2,0)),\"\")","v":0},{"$f":"IFERROR(INDEX(Omfattning!$M$3:$U$50,MATCH($H14,Funktioner!$B$30:$B$77,0),MATCH(X$2,Omfattning!$M$2:$U$2,0)),\"\")","v":0},{"$f":"IFERROR(INDEX(Omfattning!$M$3:$U$50,MATCH($H14,Funktioner!$B$30:$B$77,0),MATCH(Y$2,Omfattning!$M$2:$U$2,0)),\"\")","v":0},{"$f":"IFERROR(INDEX(Omfattning!$M$3:$U$50,MATCH($H14,Funktioner!$B$30:$B$77,0),MATCH(Z$2,Omfattning!$M$2:$U$2,0)),\"\")","v":0},{"$f":"IFERROR(INDEX(Omfattning!$M$3:$U$50,MATCH($H14,Funktioner!$B$30:$B$77,0),MATCH(AA$2,Omfattning!$M$2:$U$2,0)),\"\")","v":0},{"$f":"IFERROR(INDEX(Omfattning!$M$3:$U$50,MATCH($H14,Funktioner!$B$30:$B$77,0),MATCH(AB$2,Omfattning!$M$2:$U$2,0)),\"\")","v":0},{"$f":"IFERROR(INDEX(Omfattning!$M$3:$U$50,MATCH($H14,Funktioner!$B$30:$B$77,0),MATCH(AC$2,Omfattning!$M$2:$U$2,0)),\"\")","v":0},{"$f":"IF(Uträkningsmall!$F24=\"\",\"\",IF(AE14=\"Kan ej leverera\",240000000,IF(ISNUMBER(AB14),AB14*Uträkningsmall!$F24,\"\")))","v":""},"",null,{"$f":"IFERROR(INDEX(Omfattning!$X$3:$AF$50,MATCH($H14,Funktioner!$C$30:$C$77,0),MATCH(AG$2,Omfattning!$X$2:$AF$2,0)),\"\")","v":0},{"$f":"IFERROR(INDEX(Omfattning!$X$3:$AF$50,MATCH($H14,Funktioner!$C$30:$C$77,0),MATCH(AH$2,Omfattning!$X$2:$AF$2,0)),\"\")","v":0},{"$f":"IFERROR(INDEX(Omfattning!$X$3:$AF$50,MATCH($H14,Funktioner!$C$30:$C$77,0),MATCH(AI$2,Omfattning!$X$2:$AF$2,0)),\"\")","v":0},{"$f":"IFERROR(INDEX(Omfattning!$X$3:$AF$50,MATCH($H14,Funktioner!$C$30:$C$77,0),MATCH(AJ$2,Omfattning!$X$2:$AF$2,0)),\"\")","v":0},{"$f":"IFERROR(INDEX(Omfattning!$X$3:$AF$50,MATCH($H14,Funktioner!$C$30:$C$77,0),MATCH(AK$2,Omfattning!$X$2:$AF$2,0)),\"\")","v":0},{"$f":"IFERROR(INDEX(Omfattning!$X$3:$AF$50,MATCH($H14,Funktioner!$C$30:$C$77,0),MATCH(AL$2,Omfattning!$X$2:$AF$2,0)),\"\")","v":0},{"$f":"IFERROR(INDEX(Omfattning!$X$3:$AF$50,MATCH($H14,Funktioner!$C$30:$C$77,0),MATCH(AM$2,Omfattning!$X$2:$AF$2,0)),\"\")","v":0},{"$f":"IFERROR(INDEX(Omfattning!$X$3:$AF$50,MATCH($H14,Funktioner!$C$30:$C$77,0),MATCH(AN$2,Omfattning!$X$2:$AF$2,0)),\"\")","v":0},{"$f":"IFERROR(INDEX(Omfattning!$X$3:$AF$50,MATCH($H14,Funktioner!$C$30:$C$77,0),MATCH(AO$2,Omfattning!$X$2:$AF$2,0)),\"\")","v":0},{"$f":"IF(Uträkningsmall!$F24=\"\",\"\",IF(AQ14=\"Kan ej leverera\",240000000,IF(ISNUMBER(AN14),AN14*Uträkningsmall!$F24,\"\")))","v":""},"",null,{"$f":"IFERROR(INDEX(Omfattning!$AI$3:$AQ$50,MATCH($H14,Funktioner!$D$30:$D$77,0),MATCH(AS$2,Omfattning!$AI$2:$AQ$2,0)),\"\")","v":0},{"$f":"IFERROR(INDEX(Omfattning!$AI$3:$AQ$50,MATCH($H14,Funktioner!$D$30:$D$77,0),MATCH(AT$2,Omfattning!$AI$2:$AQ$2,0)),\"\")","v":0},{"$f":"IFERROR(INDEX(Omfattning!$AI$3:$AQ$50,MATCH($H14,Funktioner!$D$30:$D$77,0),MATCH(AU$2,Omfattning!$AI$2:$AQ$2,0)),\"\")","v":0},{"$f":"IFERROR(INDEX(Omfattning!$AI$3:$AQ$50,MATCH($H14,Funktioner!$D$30:$D$77,0),MATCH(AV$2,Omfattning!$AI$2:$AQ$2,0)),\"\")","v":0},{"$f":"IFERROR(INDEX(Omfattning!$AI$3:$AQ$50,MATCH($H14,Funktioner!$D$30:$D$77,0),MATCH(AW$2,Omfattning!$AI$2:$AQ$2,0)),\"\")","v":0},{"$f":"IFERROR(INDEX(Omfattning!$AI$3:$AQ$50,MATCH($H14,Funktioner!$D$30:$D$77,0),MATCH(AX$2,Omfattning!$AI$2:$AQ$2,0)),\"\")","v":0},{"$f":"IFERROR(INDEX(Omfattning!$AI$3:$AQ$50,MATCH($H14,Funktioner!$D$30:$D$77,0),MATCH(AY$2,Omfattning!$AI$2:$AQ$2,0)),\"\")","v":0},{"$f":"IFERROR(INDEX(Omfattning!$AI$3:$AQ$50,MATCH($H14,Funktioner!$D$30:$D$77,0),MATCH(AZ$2,Omfattning!$AI$2:$AQ$2,0)),\"\")","v":0},{"$f":"IFERROR(INDEX(Omfattning!$AI$3:$AQ$50,MATCH($H14,Funktioner!$D$30:$D$77,0),MATCH(BA$2,Omfattning!$AI$2:$AQ$2,0)),\"\")","v":0},{"$f":"IF(Uträkningsmall!$F24=\"\",\"\",IF(BC14=\"Kan ej leverera\",240000000,IF(ISNUMBER(AZ14),AZ14*Uträkningsmall!$F24,\"\")))","v":""},"",null,{"$f":"IFERROR(INDEX(Omfattning!$AT$3:$BB$50,MATCH($H14,Funktioner!$E$30:$E$77,0),MATCH(BE$2,Omfattning!$AT$2:$BB$2,0)),\"\")","v":0},{"$f":"IFERROR(INDEX(Omfattning!$AT$3:$BB$50,MATCH($H14,Funktioner!$E$30:$E$77,0),MATCH(BF$2,Omfattning!$AT$2:$BB$2,0)),\"\")","v":0},{"$f":"IFERROR(INDEX(Omfattning!$AT$3:$BB$50,MATCH($H14,Funktioner!$E$30:$E$77,0),MATCH(BG$2,Omfattning!$AT$2:$BB$2,0)),\"\")","v":0},{"$f":"IFERROR(INDEX(Omfattning!$AT$3:$BB$50,MATCH($H14,Funktioner!$E$30:$E$77,0),MATCH(BH$2,Omfattning!$AT$2:$BB$2,0)),\"\")","v":0},{"$f":"IFERROR(INDEX(Omfattning!$AT$3:$BB$50,MATCH($H14,Funktioner!$E$30:$E$77,0),MATCH(BI$2,Omfattning!$AT$2:$BB$2,0)),\"\")","v":0},{"$f":"IFERROR(INDEX(Omfattning!$AT$3:$BB$50,MATCH($H14,Funktioner!$E$30:$E$77,0),MATCH(BJ$2,Omfattning!$AT$2:$BB$2,0)),\"\")","v":0},{"$f":"IFERROR(INDEX(Omfattning!$AT$3:$BB$50,MATCH($H14,Funktioner!$E$30:$E$77,0),MATCH(BK$2,Omfattning!$AT$2:$BB$2,0)),\"\")","v":0},{"$f":"IFERROR(INDEX(Omfattning!$AT$3:$BB$50,MATCH($H14,Funktioner!$E$30:$E$77,0),MATCH(BL$2,Omfattning!$AT$2:$BB$2,0)),\"\")","v":0},{"$f":"IFERROR(INDEX(Omfattning!$AT$3:$BB$50,MATCH($H14,Funktioner!$E$30:$E$77,0),MATCH(BM$2,Omfattning!$AT$2:$BB$2,0)),\"\")","v":0},{"$f":"IF(Uträkningsmall!$F24=\"\",\"\",IF(BO14=\"Kan ej leverera\",240000000,IF(ISNUMBER(BL14),BL14*Uträkningsmall!$F24,\"\")))","v":""},"",null,{"$f":"IFERROR(INDEX(Omfattning!$BE$3:$BM$50,MATCH($H14,Funktioner!$F$30:$F$77,0),MATCH(BQ$2,Omfattning!$BE$2:$BM$2,0)),\"\")","v":0},{"$f":"IFERROR(INDEX(Omfattning!$BE$3:$BM$50,MATCH($H14,Funktioner!$F$30:$F$77,0),MATCH(BR$2,Omfattning!$BE$2:$BM$2,0)),\"\")","v":0},{"$f":"IFERROR(INDEX(Omfattning!$BE$3:$BM$50,MATCH($H14,Funktioner!$F$30:$F$77,0),MATCH(BS$2,Omfattning!$BE$2:$BM$2,0)),\"\")","v":0},{"$f":"IFERROR(INDEX(Omfattning!$BE$3:$BM$50,MATCH($H14,Funktioner!$F$30:$F$77,0),MATCH(BT$2,Omfattning!$BE$2:$BM$2,0)),\"\")","v":0},{"$f":"IFERROR(INDEX(Omfattning!$BE$3:$BM$50,MATCH($H14,Funktioner!$F$30:$F$77,0),MATCH(BU$2,Omfattning!$BE$2:$BM$2,0)),\"\")","v":0},{"$f":"IFERROR(INDEX(Omfattning!$BE$3:$BM$50,MATCH($H14,Funktioner!$F$30:$F$77,0),MATCH(BV$2,Omfattning!$BE$2:$BM$2,0)),\"\")","v":0},{"$f":"IFERROR(INDEX(Omfattning!$BE$3:$BM$50,MATCH($H14,Funktioner!$F$30:$F$77,0),MATCH(BW$2,Omfattning!$BE$2:$BM$2,0)),\"\")","v":0},{"$f":"IFERROR(INDEX(Omfattning!$BE$3:$BM$50,MATCH($H14,Funktioner!$F$30:$F$77,0),MATCH(BX$2,Omfattning!$BE$2:$BM$2,0)),\"\")","v":0},{"$f":"IFERROR(INDEX(Omfattning!$BE$3:$BM$50,MATCH($H14,Funktioner!$F$30:$F$77,0),MATCH(BY$2,Omfattning!$BE$2:$BM$2,0)),\"\")","v":0},{"$f":"IF(Uträkningsmall!$F24=\"\",\"\",IF(CA14=\"Kan ej leverera\",240000000,IF(ISNUMBER(BX14),BX14*Uträkningsmall!$F24,\"\")))","v":""},""]
[{"$f":"\"Position\"&Uträkningsmall!$A25","v":"Position"},{"$f":"IF(Uträkningsmall!$F25=\"\",\"\",IF(AND(Uträkningsmall!$A25=15,OR(Uträkningsmall!$E25=\"\",Uträkningsmall!$F25=\"\")),1,IF(AND(Uträkningsmall!$A25=16,OR(Uträkningsmall!$E25=\"\",Uträkningsmall!$F25=\"\")),1,IF(AND(Uträkningsmall!$A25=17,OR(Uträkningsmall!$E25=\"\",Uträkningsmall!$F25=\"\")),1,IF(AND(Uträkningsmall!$A25=19,OR(Uträkningsmall!$E25=\"\",Uträkningsmall!$F25=\"\")),1,IF(AND(Uträkningsmall!$A25=20,OR(Uträkningsmall!$E25=\"\",Uträkningsmall!$F25=\"\")),1,IF(AND(Uträkningsmall!$A25=21,OR(Uträkningsmall!$E25=\"\",Uträkningsmall!$F25=\"\")),1,IF(AND(Uträkningsmall!$A25=22,OR(Uträkningsmall!$E25=\"\",Uträkningsmall!$F25=\"\")),1,IF(AND(Uträkningsmall!$A25=23,OR(Uträkningsmall!$E25=\"\",Uträkningsmall!$F25=\"\")),1,IF(AND(Uträkningsmall!$A25=24,OR(Uträkningsmall!$E25=\"\",Uträkningsmall!$F25=\"\")),1,IF(AND(Uträkningsmall!$A25=25,OR(Uträkningsmall!$E25=\"\",Uträkningsmall!$F25=\"\")),1,IF(AND(Uträkningsmall!$A25=26,OR(Uträkningsmall!$E25=\"\",Uträkningsmall!$F25=\"\")),1,IF(AND(Uträkningsmall!$A25=27,OR(Uträkningsmall!$E25=\"\",Uträkningsmall!$F25=\"\")),1,IF(AND(Uträkningsmall!$A25=28,OR(Uträkningsmall!$E25=\"\",Uträkningsmall!$F25=\"\")),1,IF(AND(Uträkningsmall!$A25=29,OR(Uträkningsmall!$E25=\"\",Uträkningsmall!$F25=\"\")),1,IF(AND(Uträkningsmall!$A25=30,OR(Uträkningsmall!$E25=\"\",Uträkningsmall!$F25=\"\")),1,IF(AND(Uträkningsmall!$A25=39,OR(Uträkningsmall!$E25=\"\",Uträkningsmall!$F25=\"\")),1,IF(AND(Uträkningsmall!$A25=40,OR(Uträkningsmall!$E25=\"\",Uträkningsmall!$F25=\"\")),1,IF(AND(Uträkningsmall!$A25=41,OR(Uträkningsmall!$E25=\"\",Uträkningsmall!$F25=\"\")),1,IF(AND(Uträkningsmall!$A25=42,OR(Uträkningsmall!$E25=\"\",Uträkningsmall!$F25=\"\")),1,0))))))))))))))))))))","v":""},{"$f":"Funktioner!B158&Funktioner!C158&\", \"&Funktioner!D158&\"g\"&Funktioner!E158&Funktioner!F158","v":"Färgat papperA4, 80gA-kvalitet, färg: röd nyansOhålat"},{"$f":"Uträkningsmall!B25&Uträkningsmall!C25&Uträkningsmall!D25&Uträkningsmall!E25","v":""},null,"",null,{"$f":"Uträkningsmall!$A25","v":""},{"$f":"IFERROR(INDEX(Omfattning!$B$3:$J$50,MATCH($H15,Funktioner!$A$30:$A$77,0),MATCH(I$2,Omfattning!$B$2:$J$2,0)),\"\")","v":0},{"$f":"IFERROR(INDEX(Omfattning!$B$3:$J$50,MATCH($H15,Funktioner!$A$30:$A$77,0),MATCH(J$2,Omfattning!$B$2:$J$2,0)),\"\")","v":0},{"$f":"IFERROR(INDEX(Omfattning!$B$3:$J$50,MATCH($H15,Funktioner!$A$30:$A$77,0),MATCH(K$2,Omfattning!$B$2:$J$2,0)),\"\")","v":0},{"$f":"IFERROR(INDEX(Omfattning!$B$3:$J$50,MATCH($H15,Funktioner!$A$30:$A$77,0),MATCH(L$2,Omfattning!$B$2:$J$2,0)),\"\")","v":""},{"$f":"IFERROR(INDEX(Omfattning!$B$3:$J$50,MATCH($H15,Funktioner!$A$30:$A$77,0),MATCH(M$2,Omfattning!$B$2:$J$2,0)),\"\")","v":0},{"$f":"IFERROR(INDEX(Omfattning!$B$3:$J$50,MATCH($H15,Funktioner!$A$30:$A$77,0),MATCH(N$2,Omfattning!$B$2:$J$2,0)),\"\")","v":0},{"$f":"IFERROR(INDEX(Omfattning!$B$3:$J$50,MATCH($H15,Funktioner!$A$30:$A$77,0),MATCH(O$2,Omfattning!$B$2:$J$2,0)),\"\")","v":0},{"$f":"IFERROR(INDEX(Omfattning!$B$3:$J$50,MATCH($H15,Funktioner!$A$30:$A$77,0),MATCH(P$2,Omfattning!$B$2:$J$2,0)),\"\")","v":0},{"$f":"IFERROR(INDEX(Omfattning!$B$3:$J$50,MATCH($H15,Funktioner!$A$30:$A$77,0),MATCH(Q$2,Omfattning!$B$2:$J$2,0)),\"\")","v":0},{"$f":"IF(Uträkningsmall!$F25=\"\",\"\",IF(S15=\"Kan ej leverera\",240000000,IF(ISNUMBER(P15),P15*Uträkningsmall!$F25,\"\")))","v":""},"",null,{"$f":"IFERROR(INDEX(Omfattning!$M$3:$U$50,MATCH($H15,Funktioner!$B$30:$B$77,0),MATCH(U$2,Omfattning!$M$2:$U$2,0)),\"\")","v":0},{"$f":"IFERROR(INDEX(Omfattning!$M$3:$U$50,MATCH($H15,Funktioner!$B$30:$B$77,0),MATCH(V$2,Omfattning!$M$2:$U$2,0)),\"\")","v":0},{"$f":"IFERROR(INDEX(Omfattning!$M$3:$U$50,MATCH($H15,Funktioner!$B$30:$B$77,0),MATCH(W$2,Omfattning!$M$2:$U$2,0)),\"\")","v":0},{"$f":"IFERROR(INDEX(Omfattning!$M$3:$U$50,MATCH($H15,Funktioner!$B$30:$B$77,0),MATCH(X$2,Omfattning!$M$2:$U$2,0)),\"\")","v":0},{"$f":"IFERROR(INDEX(Omfattning!$M$3:$U$50,MATCH($H15,Funktioner!$B$30:$B$77,0),MATCH(Y$2,Omfattning!$M$2:$U$2,0)),\"\")","v":0},{"$f":"IFERROR(INDEX(Omfattning!$M$3:$U$50,MATCH($H15,Funktioner!$B$30:$B$77,0),MATCH(Z$2,Omfattning!$M$2:$U$2,0)),\"\")","v":0},{"$f":"IFERROR(INDEX(Omfattning!$M$3:$U$50,MATCH($H15,Funktioner!$B$30:$B$77,0),MATCH(AA$2,Omfattning!$M$2:$U$2,0)),\"\")","v":0},{"$f":"IFERROR(INDEX(Omfattning!$M$3:$U$50,MATCH($H15,Funktioner!$B$30:$B$77,0),MATCH(AB$2,Omfattning!$M$2:$U$2,0)),\"\")","v":0},{"$f":"IFERROR(INDEX(Omfattning!$M$3:$U$50,MATCH($H15,Funktioner!$B$30:$B$77,0),MATCH(AC$2,Omfattning!$M$2:$U$2,0)),\"\")","v":0},{"$f":"IF(Uträkningsmall!$F25=\"\",\"\",IF(AE15=\"Kan ej leverera\",240000000,IF(ISNUMBER(AB15),AB15*Uträkningsmall!$F25,\"\")))","v":""},"",null,{"$f":"IFERROR(INDEX(Omfattning!$X$3:$AF$50,MATCH($H15,Funktioner!$C$30:$C$77,0),MATCH(AG$2,Omfattning!$X$2:$AF$2,0)),\"\")","v":0},{"$f":"IFERROR(INDEX(Omfattning!$X$3:$AF$50,MATCH($H15,Funktioner!$C$30:$C$77,0),MATCH(AH$2,Omfattning!$X$2:$AF$2,0)),\"\")","v":0},{"$f":"IFERROR(INDEX(Omfattning!$X$3:$AF$50,MATCH($H15,Funktioner!$C$30:$C$77,0),MATCH(AI$2,Omfattning!$X$2:$AF$2,0)),\"\")","v":0},{"$f":"IFERROR(INDEX(Omfattning!$X$3:$AF$50,MATCH($H15,Funktioner!$C$30:$C$77,0),MATCH(AJ$2,Omfattning!$X$2:$AF$2,0)),\"\")","v":0},{"$f":"IFERROR(INDEX(Omfattning!$X$3:$AF$50,MATCH($H15,Funktioner!$C$30:$C$77,0),MATCH(AK$2,Omfattning!$X$2:$AF$2,0)),\"\")","v":0},{"$f":"IFERROR(INDEX(Omfattning!$X$3:$AF$50,MATCH($H15,Funktioner!$C$30:$C$77,0),MATCH(AL$2,Omfattning!$X$2:$AF$2,0)),\"\")","v":0},{"$f":"IFERROR(INDEX(Omfattning!$X$3:$AF$50,MATCH($H15,Funktioner!$C$30:$C$77,0),MATCH(AM$2,Omfattning!$X$2:$AF$2,0)),\"\")","v":0},{"$f":"IFERROR(INDEX(Omfattning!$X$3:$AF$50,MATCH($H15,Funktioner!$C$30:$C$77,0),MATCH(AN$2,Omfattning!$X$2:$AF$2,0)),\"\")","v":0},{"$f":"IFERROR(INDEX(Omfattning!$X$3:$AF$50,MATCH($H15,Funktioner!$C$30:$C$77,0),MATCH(AO$2,Omfattning!$X$2:$AF$2,0)),\"\")","v":0},{"$f":"IF(Uträkningsmall!$F25=\"\",\"\",IF(AQ15=\"Kan ej leverera\",240000000,IF(ISNUMBER(AN15),AN15*Uträkningsmall!$F25,\"\")))","v":""},"",null,{"$f":"IFERROR(INDEX(Omfattning!$AI$3:$AQ$50,MATCH($H15,Funktioner!$D$30:$D$77,0),MATCH(AS$2,Omfattning!$AI$2:$AQ$2,0)),\"\")","v":0},{"$f":"IFERROR(INDEX(Omfattning!$AI$3:$AQ$50,MATCH($H15,Funktioner!$D$30:$D$77,0),MATCH(AT$2,Omfattning!$AI$2:$AQ$2,0)),\"\")","v":0},{"$f":"IFERROR(INDEX(Omfattning!$AI$3:$AQ$50,MATCH($H15,Funktioner!$D$30:$D$77,0),MATCH(AU$2,Omfattning!$AI$2:$AQ$2,0)),\"\")","v":0},{"$f":"IFERROR(INDEX(Omfattning!$AI$3:$AQ$50,MATCH($H15,Funktioner!$D$30:$D$77,0),MATCH(AV$2,Omfattning!$AI$2:$AQ$2,0)),\"\")","v":0},{"$f":"IFERROR(INDEX(Omfattning!$AI$3:$AQ$50,MATCH($H15,Funktioner!$D$30:$D$77,0),MATCH(AW$2,Omfattning!$AI$2:$AQ$2,0)),\"\")","v":0},{"$f":"IFERROR(INDEX(Omfattning!$AI$3:$AQ$50,MATCH($H15,Funktioner!$D$30:$D$77,0),MATCH(AX$2,Omfattning!$AI$2:$AQ$2,0)),\"\")","v":0},{"$f":"IFERROR(INDEX(Omfattning!$AI$3:$AQ$50,MATCH($H15,Funktioner!$D$30:$D$77,0),MATCH(AY$2,Omfattning!$AI$2:$AQ$2,0)),\"\")","v":0},{"$f":"IFERROR(INDEX(Omfattning!$AI$3:$AQ$50,MATCH($H15,Funktioner!$D$30:$D$77,0),MATCH(AZ$2,Omfattning!$AI$2:$AQ$2,0)),\"\")","v":0},{"$f":"IFERROR(INDEX(Omfattning!$AI$3:$AQ$50,MATCH($H15,Funktioner!$D$30:$D$77,0),MATCH(BA$2,Omfattning!$AI$2:$AQ$2,0)),\"\")","v":0},{"$f":"IF(Uträkningsmall!$F25=\"\",\"\",IF(BC15=\"Kan ej leverera\",240000000,IF(ISNUMBER(AZ15),AZ15*Uträkningsmall!$F25,\"\")))","v":""},"",null,{"$f":"IFERROR(INDEX(Omfattning!$AT$3:$BB$50,MATCH($H15,Funktioner!$E$30:$E$77,0),MATCH(BE$2,Omfattning!$AT$2:$BB$2,0)),\"\")","v":0},{"$f":"IFERROR(INDEX(Omfattning!$AT$3:$BB$50,MATCH($H15,Funktioner!$E$30:$E$77,0),MATCH(BF$2,Omfattning!$AT$2:$BB$2,0)),\"\")","v":0},{"$f":"IFERROR(INDEX(Omfattning!$AT$3:$BB$50,MATCH($H15,Funktioner!$E$30:$E$77,0),MATCH(BG$2,Omfattning!$AT$2:$BB$2,0)),\"\")","v":0},{"$f":"IFERROR(INDEX(Omfattning!$AT$3:$BB$50,MATCH($H15,Funktioner!$E$30:$E$77,0),MATCH(BH$2,Omfattning!$AT$2:$BB$2,0)),\"\")","v":0},{"$f":"IFERROR(INDEX(Omfattning!$AT$3:$BB$50,MATCH($H15,Funktioner!$E$30:$E$77,0),MATCH(BI$2,Omfattning!$AT$2:$BB$2,0)),\"\")","v":0},{"$f":"IFERROR(INDEX(Omfattning!$AT$3:$BB$50,MATCH($H15,Funktioner!$E$30:$E$77,0),MATCH(BJ$2,Omfattning!$AT$2:$BB$2,0)),\"\")","v":0},{"$f":"IFERROR(INDEX(Omfattning!$AT$3:$BB$50,MATCH($H15,Funktioner!$E$30:$E$77,0),MATCH(BK$2,Omfattning!$AT$2:$BB$2,0)),\"\")","v":0},{"$f":"IFERROR(INDEX(Omfattning!$AT$3:$BB$50,MATCH($H15,Funktioner!$E$30:$E$77,0),MATCH(BL$2,Omfattning!$AT$2:$BB$2,0)),\"\")","v":0},{"$f":"IFERROR(INDEX(Omfattning!$AT$3:$BB$50,MATCH($H15,Funktioner!$E$30:$E$77,0),MATCH(BM$2,Omfattning!$AT$2:$BB$2,0)),\"\")","v":0},{"$f":"IF(Uträkningsmall!$F25=\"\",\"\",IF(BO15=\"Kan ej leverera\",240000000,IF(ISNUMBER(BL15),BL15*Uträkningsmall!$F25,\"\")))","v":""},"",null,{"$f":"IFERROR(INDEX(Omfattning!$BE$3:$BM$50,MATCH($H15,Funktioner!$F$30:$F$77,0),MATCH(BQ$2,Omfattning!$BE$2:$BM$2,0)),\"\")","v":0},{"$f":"IFERROR(INDEX(Omfattning!$BE$3:$BM$50,MATCH($H15,Funktioner!$F$30:$F$77,0),MATCH(BR$2,Omfattning!$BE$2:$BM$2,0)),\"\")","v":0},{"$f":"IFERROR(INDEX(Omfattning!$BE$3:$BM$50,MATCH($H15,Funktioner!$F$30:$F$77,0),MATCH(BS$2,Omfattning!$BE$2:$BM$2,0)),\"\")","v":0},{"$f":"IFERROR(INDEX(Omfattning!$BE$3:$BM$50,MATCH($H15,Funktioner!$F$30:$F$77,0),MATCH(BT$2,Omfattning!$BE$2:$BM$2,0)),\"\")","v":0},{"$f":"IFERROR(INDEX(Omfattning!$BE$3:$BM$50,MATCH($H15,Funktioner!$F$30:$F$77,0),MATCH(BU$2,Omfattning!$BE$2:$BM$2,0)),\"\")","v":0},{"$f":"IFERROR(INDEX(Omfattning!$BE$3:$BM$50,MATCH($H15,Funktioner!$F$30:$F$77,0),MATCH(BV$2,Omfattning!$BE$2:$BM$2,0)),\"\")","v":0},{"$f":"IFERROR(INDEX(Omfattning!$BE$3:$BM$50,MATCH($H15,Funktioner!$F$30:$F$77,0),MATCH(BW$2,Omfattning!$BE$2:$BM$2,0)),\"\")","v":0},{"$f":"IFERROR(INDEX(Omfattning!$BE$3:$BM$50,MATCH($H15,Funktioner!$F$30:$F$77,0),MATCH(BX$2,Omfattning!$BE$2:$BM$2,0)),\"\")","v":0},{"$f":"IFERROR(INDEX(Omfattning!$BE$3:$BM$50,MATCH($H15,Funktioner!$F$30:$F$77,0),MATCH(BY$2,Omfattning!$BE$2:$BM$2,0)),\"\")","v":0},{"$f":"IF(Uträkningsmall!$F25=\"\",\"\",IF(CA15=\"Kan ej leverera\",240000000,IF(ISNUMBER(BX15),BX15*Uträkningsmall!$F25,\"\")))","v":""},""]
[{"$f":"\"Position\"&Uträkningsmall!$A26","v":"Position"},{"$f":"IF(Uträkningsmall!$F26=\"\",\"\",IF(AND(Uträkningsmall!$A26=15,OR(Uträkningsmall!$E26=\"\",Uträkningsmall!$F26=\"\")),1,IF(AND(Uträkningsmall!$A26=16,OR(Uträkningsmall!$E26=\"\",Uträkningsmall!$F26=\"\")),1,IF(AND(Uträkningsmall!$A26=17,OR(Uträkningsmall!$E26=\"\",Uträkningsmall!$F26=\"\")),1,IF(AND(Uträkningsmall!$A26=19,OR(Uträkningsmall!$E26=\"\",Uträkningsmall!$F26=\"\")),1,IF(AND(Uträkningsmall!$A26=20,OR(Uträkningsmall!$E26=\"\",Uträkningsmall!$F26=\"\")),1,IF(AND(Uträkningsmall!$A26=21,OR(Uträkningsmall!$E26=\"\",Uträkningsmall!$F26=\"\")),1,IF(AND(Uträkningsmall!$A26=22,OR(Uträkningsmall!$E26=\"\",Uträkningsmall!$F26=\"\")),1,IF(AND(Uträkningsmall!$A26=23,OR(Uträkningsmall!$E26=\"\",Uträkningsmall!$F26=\"\")),1,IF(AND(Uträkningsmall!$A26=24,OR(Uträkningsmall!$E26=\"\",Uträkningsmall!$F26=\"\")),1,IF(AND(Uträkningsmall!$A26=25,OR(Uträkningsmall!$E26=\"\",Uträkningsmall!$F26=\"\")),1,IF(AND(Uträkningsmall!$A26=26,OR(Uträkningsmall!$E26=\"\",Uträkningsmall!$F26=\"\")),1,IF(AND(Uträkningsmall!$A26=27,OR(Uträkningsmall!$E26=\"\",Uträkningsmall!$F26=\"\")),1,IF(AND(Uträkningsmall!$A26=28,OR(Uträkningsmall!$E26=\"\",Uträkningsmall!$F26=\"\")),1,IF(AND(Uträkningsmall!$A26=29,OR(Uträkningsmall!$E26=\"\",Uträkningsmall!$F26=\"\")),1,IF(AND(Uträkningsmall!$A26=30,OR(Uträkningsmall!$E26=\"\",Uträkningsmall!$F26=\"\")),1,IF(AND(Uträkningsmall!$A26=39,OR(Uträkningsmall!$E26=\"\",Uträkningsmall!$F26=\"\")),1,IF(AND(Uträkningsmall!$A26=40,OR(Uträkningsmall!$E26=\"\",Uträkningsmall!$F26=\"\")),1,IF(AND(Uträkningsmall!$A26=41,OR(Uträkningsmall!$E26=\"\",Uträkningsmall!$F26=\"\")),1,IF(AND(Uträkningsmall!$A26=42,OR(Uträkningsmall!$E26=\"\",Uträkningsmall!$F26=\"\")),1,0))))))))))))))))))))","v":""},{"$f":"Funktioner!B159&Funktioner!C159&\", \"&Funktioner!D159&\"g\"&Funktioner!E159&Funktioner!F159","v":"Färgat papperA3, 80gA-kvalitet, färg: svag/mellansvag gul nyansOhålat"},{"$f":"Uträkningsmall!B26&Uträkningsmall!C26&Uträkningsmall!D26&Uträkningsmall!E26","v":""},null,"",null,{"$f":"Uträkningsmall!$A26","v":""},{"$f":"IFERROR(INDEX(Omfattning!$B$3:$J$50,MATCH($H16,Funktioner!$A$30:$A$77,0),MATCH(I$2,Omfattning!$B$2:$J$2,0)),\"\")","v":0},{"$f":"IFERROR(INDEX(Omfattning!$B$3:$J$50,MATCH($H16,Funktioner!$A$30:$A$77,0),MATCH(J$2,Omfattning!$B$2:$J$2,0)),\"\")","v":0},{"$f":"IFERROR(INDEX(Omfattning!$B$3:$J$50,MATCH($H16,Funktioner!$A$30:$A$77,0),MATCH(K$2,Omfattning!$B$2:$J$2,0)),\"\")","v":0},{"$f":"IFERROR(INDEX(Omfattning!$B$3:$J$50,MATCH($H16,Funktioner!$A$30:$A$77,0),MATCH(L$2,Omfattning!$B$2:$J$2,0)),\"\")","v":""},{"$f":"IFERROR(INDEX(Omfattning!$B$3:$J$50,MATCH($H16,Funktioner!$A$30:$A$77,0),MATCH(M$2,Omfattning!$B$2:$J$2,0)),\"\")","v":0},{"$f":"IFERROR(INDEX(Omfattning!$B$3:$J$50,MATCH($H16,Funktioner!$A$30:$A$77,0),MATCH(N$2,Omfattning!$B$2:$J$2,0)),\"\")","v":0},{"$f":"IFERROR(INDEX(Omfattning!$B$3:$J$50,MATCH($H16,Funktioner!$A$30:$A$77,0),MATCH(O$2,Omfattning!$B$2:$J$2,0)),\"\")","v":0},{"$f":"IFERROR(INDEX(Omfattning!$B$3:$J$50,MATCH($H16,Funktioner!$A$30:$A$77,0),MATCH(P$2,Omfattning!$B$2:$J$2,0)),\"\")","v":0},{"$f":"IFERROR(INDEX(Omfattning!$B$3:$J$50,MATCH($H16,Funktioner!$A$30:$A$77,0),MATCH(Q$2,Omfattning!$B$2:$J$2,0)),\"\")","v":0},{"$f":"IF(Uträkningsmall!$F26=\"\",\"\",IF(S16=\"Kan ej leverera\",240000000,IF(ISNUMBER(P16),P16*Uträkningsmall!$F26,\"\")))","v":""},"",null,{"$f":"IFERROR(INDEX(Omfattning!$M$3:$U$50,MATCH($H16,Funktioner!$B$30:$B$77,0),MATCH(U$2,Omfattning!$M$2:$U$2,0)),\"\")","v":0},{"$f":"IFERROR(INDEX(Omfattning!$M$3:$U$50,MATCH($H16,Funktioner!$B$30:$B$77,0),MATCH(V$2,Omfattning!$M$2:$U$2,0)),\"\")","v":0},{"$f":"IFERROR(INDEX(Omfattning!$M$3:$U$50,MATCH($H16,Funktioner!$B$30:$B$77,0),MATCH(W$2,Omfattning!$M$2:$U$2,0)),\"\")","v":0},{"$f":"IFERROR(INDEX(Omfattning!$M$3:$U$50,MATCH($H16,Funktioner!$B$30:$B$77,0),MATCH(X$2,Omfattning!$M$2:$U$2,0)),\"\")","v":0},{"$f":"IFERROR(INDEX(Omfattning!$M$3:$U$50,MATCH($H16,Funktioner!$B$30:$B$77,0),MATCH(Y$2,Omfattning!$M$2:$U$2,0)),\"\")","v":0},{"$f":"IFERROR(INDEX(Omfattning!$M$3:$U$50,MATCH($H16,Funktioner!$B$30:$B$77,0),MATCH(Z$2,Omfattning!$M$2:$U$2,0)),\"\")","v":0},{"$f":"IFERROR(INDEX(Omfattning!$M$3:$U$50,MATCH($H16,Funktioner!$B$30:$B$77,0),MATCH(AA$2,Omfattning!$M$2:$U$2,0)),\"\")","v":0},{"$f":"IFERROR(INDEX(Omfattning!$M$3:$U$50,MATCH($H16,Funktioner!$B$30:$B$77,0),MATCH(AB$2,Omfattning!$M$2:$U$2,0)),\"\")","v":0},{"$f":"IFERROR(INDEX(Omfattning!$M$3:$U$50,MATCH($H16,Funktioner!$B$30:$B$77,0),MATCH(AC$2,Omfattning!$M$2:$U$2,0)),\"\")","v":0},{"$f":"IF(Uträkningsmall!$F26=\"\",\"\",IF(AE16=\"Kan ej leverera\",240000000,IF(ISNUMBER(AB16),AB16*Uträkningsmall!$F26,\"\")))","v":""},"",null,{"$f":"IFERROR(INDEX(Omfattning!$X$3:$AF$50,MATCH($H16,Funktioner!$C$30:$C$77,0),MATCH(AG$2,Omfattning!$X$2:$AF$2,0)),\"\")","v":0},{"$f":"IFERROR(INDEX(Omfattning!$X$3:$AF$50,MATCH($H16,Funktioner!$C$30:$C$77,0),MATCH(AH$2,Omfattning!$X$2:$AF$2,0)),\"\")","v":0},{"$f":"IFERROR(INDEX(Omfattning!$X$3:$AF$50,MATCH($H16,Funktioner!$C$30:$C$77,0),MATCH(AI$2,Omfattning!$X$2:$AF$2,0)),\"\")","v":0},{"$f":"IFERROR(INDEX(Omfattning!$X$3:$AF$50,MATCH($H16,Funktioner!$C$30:$C$77,0),MATCH(AJ$2,Omfattning!$X$2:$AF$2,0)),\"\")","v":0},{"$f":"IFERROR(INDEX(Omfattning!$X$3:$AF$50,MATCH($H16,Funktioner!$C$30:$C$77,0),MATCH(AK$2,Omfattning!$X$2:$AF$2,0)),\"\")","v":0},{"$f":"IFERROR(INDEX(Omfattning!$X$3:$AF$50,MATCH($H16,Funktioner!$C$30:$C$77,0),MATCH(AL$2,Omfattning!$X$2:$AF$2,0)),\"\")","v":0},{"$f":"IFERROR(INDEX(Omfattning!$X$3:$AF$50,MATCH($H16,Funktioner!$C$30:$C$77,0),MATCH(AM$2,Omfattning!$X$2:$AF$2,0)),\"\")","v":0},{"$f":"IFERROR(INDEX(Omfattning!$X$3:$AF$50,MATCH($H16,Funktioner!$C$30:$C$77,0),MATCH(AN$2,Omfattning!$X$2:$AF$2,0)),\"\")","v":0},{"$f":"IFERROR(INDEX(Omfattning!$X$3:$AF$50,MATCH($H16,Funktioner!$C$30:$C$77,0),MATCH(AO$2,Omfattning!$X$2:$AF$2,0)),\"\")","v":0},{"$f":"IF(Uträkningsmall!$F26=\"\",\"\",IF(AQ16=\"Kan ej leverera\",240000000,IF(ISNUMBER(AN16),AN16*Uträkningsmall!$F26,\"\")))","v":""},"",null,{"$f":"IFERROR(INDEX(Omfattning!$AI$3:$AQ$50,MATCH($H16,Funktioner!$D$30:$D$77,0),MATCH(AS$2,Omfattning!$AI$2:$AQ$2,0)),\"\")","v":0},{"$f":"IFERROR(INDEX(Omfattning!$AI$3:$AQ$50,MATCH($H16,Funktioner!$D$30:$D$77,0),MATCH(AT$2,Omfattning!$AI$2:$AQ$2,0)),\"\")","v":0},{"$f":"IFERROR(INDEX(Omfattning!$AI$3:$AQ$50,MATCH($H16,Funktioner!$D$30:$D$77,0),MATCH(AU$2,Omfattning!$AI$2:$AQ$2,0)),\"\")","v":0},{"$f":"IFERROR(INDEX(Omfattning!$AI$3:$AQ$50,MATCH($H16,Funktioner!$D$30:$D$77,0),MATCH(AV$2,Omfattning!$AI$2:$AQ$2,0)),\"\")","v":0},{"$f":"IFERROR(INDEX(Omfattning!$AI$3:$AQ$50,MATCH($H16,Funktioner!$D$30:$D$77,0),MATCH(AW$2,Omfattning!$AI$2:$AQ$2,0)),\"\")","v":0},{"$f":"IFERROR(INDEX(Omfattning!$AI$3:$AQ$50,MATCH($H16,Funktioner!$D$30:$D$77,0),MATCH(AX$2,Omfattning!$AI$2:$AQ$2,0)),\"\")","v":0},{"$f":"IFERROR(INDEX(Omfattning!$AI$3:$AQ$50,MATCH($H16,Funktioner!$D$30:$D$77,0),MATCH(AY$2,Omfattning!$AI$2:$AQ$2,0)),\"\")","v":0},{"$f":"IFERROR(INDEX(Omfattning!$AI$3:$AQ$50,MATCH($H16,Funktioner!$D$30:$D$77,0),MATCH(AZ$2,Omfattning!$AI$2:$AQ$2,0)),\"\")","v":0},{"$f":"IFERROR(INDEX(Omfattning!$AI$3:$AQ$50,MATCH($H16,Funktioner!$D$30:$D$77,0),MATCH(BA$2,Omfattning!$AI$2:$AQ$2,0)),\"\")","v":0},{"$f":"IF(Uträkningsmall!$F26=\"\",\"\",IF(BC16=\"Kan ej leverera\",240000000,IF(ISNUMBER(AZ16),AZ16*Uträkningsmall!$F26,\"\")))","v":""},"",null,{"$f":"IFERROR(INDEX(Omfattning!$AT$3:$BB$50,MATCH($H16,Funktioner!$E$30:$E$77,0),MATCH(BE$2,Omfattning!$AT$2:$BB$2,0)),\"\")","v":0},{"$f":"IFERROR(INDEX(Omfattning!$AT$3:$BB$50,MATCH($H16,Funktioner!$E$30:$E$77,0),MATCH(BF$2,Omfattning!$AT$2:$BB$2,0)),\"\")","v":0},{"$f":"IFERROR(INDEX(Omfattning!$AT$3:$BB$50,MATCH($H16,Funktioner!$E$30:$E$77,0),MATCH(BG$2,Omfattning!$AT$2:$BB$2,0)),\"\")","v":0},{"$f":"IFERROR(INDEX(Omfattning!$AT$3:$BB$50,MATCH($H16,Funktioner!$E$30:$E$77,0),MATCH(BH$2,Omfattning!$AT$2:$BB$2,0)),\"\")","v":0},{"$f":"IFERROR(INDEX(Omfattning!$AT$3:$BB$50,MATCH($H16,Funktioner!$E$30:$E$77,0),MATCH(BI$2,Omfattning!$AT$2:$BB$2,0)),\"\")","v":0},{"$f":"IFERROR(INDEX(Omfattning!$AT$3:$BB$50,MATCH($H16,Funktioner!$E$30:$E$77,0),MATCH(BJ$2,Omfattning!$AT$2:$BB$2,0)),\"\")","v":0},{"$f":"IFERROR(INDEX(Omfattning!$AT$3:$BB$50,MATCH($H16,Funktioner!$E$30:$E$77,0),MATCH(BK$2,Omfattning!$AT$2:$BB$2,0)),\"\")","v":0},{"$f":"IFERROR(INDEX(Omfattning!$AT$3:$BB$50,MATCH($H16,Funktioner!$E$30:$E$77,0),MATCH(BL$2,Omfattning!$AT$2:$BB$2,0)),\"\")","v":0},{"$f":"IFERROR(INDEX(Omfattning!$AT$3:$BB$50,MATCH($H16,Funktioner!$E$30:$E$77,0),MATCH(BM$2,Omfattning!$AT$2:$BB$2,0)),\"\")","v":0},{"$f":"IF(Uträkningsmall!$F26=\"\",\"\",IF(BO16=\"Kan ej leverera\",240000000,IF(ISNUMBER(BL16),BL16*Uträkningsmall!$F26,\"\")))","v":""},"",null,{"$f":"IFERROR(INDEX(Omfattning!$BE$3:$BM$50,MATCH($H16,Funktioner!$F$30:$F$77,0),MATCH(BQ$2,Omfattning!$BE$2:$BM$2,0)),\"\")","v":0},{"$f":"IFERROR(INDEX(Omfattning!$BE$3:$BM$50,MATCH($H16,Funktioner!$F$30:$F$77,0),MATCH(BR$2,Omfattning!$BE$2:$BM$2,0)),\"\")","v":0},{"$f":"IFERROR(INDEX(Omfattning!$BE$3:$BM$50,MATCH($H16,Funktioner!$F$30:$F$77,0),MATCH(BS$2,Omfattning!$BE$2:$BM$2,0)),\"\")","v":0},{"$f":"IFERROR(INDEX(Omfattning!$BE$3:$BM$50,MATCH($H16,Funktioner!$F$30:$F$77,0),MATCH(BT$2,Omfattning!$BE$2:$BM$2,0)),\"\")","v":0},{"$f":"IFERROR(INDEX(Omfattning!$BE$3:$BM$50,MATCH($H16,Funktioner!$F$30:$F$77,0),MATCH(BU$2,Omfattning!$BE$2:$BM$2,0)),\"\")","v":0},{"$f":"IFERROR(INDEX(Omfattning!$BE$3:$BM$50,MATCH($H16,Funktioner!$F$30:$F$77,0),MATCH(BV$2,Omfattning!$BE$2:$BM$2,0)),\"\")","v":0},{"$f":"IFERROR(INDEX(Omfattning!$BE$3:$BM$50,MATCH($H16,Funktioner!$F$30:$F$77,0),MATCH(BW$2,Omfattning!$BE$2:$BM$2,0)),\"\")","v":0},{"$f":"IFERROR(INDEX(Omfattning!$BE$3:$BM$50,MATCH($H16,Funktioner!$F$30:$F$77,0),MATCH(BX$2,Omfattning!$BE$2:$BM$2,0)),\"\")","v":0},{"$f":"IFERROR(INDEX(Omfattning!$BE$3:$BM$50,MATCH($H16,Funktioner!$F$30:$F$77,0),MATCH(BY$2,Omfattning!$BE$2:$BM$2,0)),\"\")","v":0},{"$f":"IF(Uträkningsmall!$F26=\"\",\"\",IF(CA16=\"Kan ej leverera\",240000000,IF(ISNUMBER(BX16),BX16*Uträkningsmall!$F26,\"\")))","v":""},""]
[{"$f":"\"Position\"&Uträkningsmall!$A27","v":"Position"},{"$f":"IF(Uträkningsmall!$F27=\"\",\"\",IF(AND(Uträkningsmall!$A27=15,OR(Uträkningsmall!$E27=\"\",Uträkningsmall!$F27=\"\")),1,IF(AND(Uträkningsmall!$A27=16,OR(Uträkningsmall!$E27=\"\",Uträkningsmall!$F27=\"\")),1,IF(AND(Uträkningsmall!$A27=17,OR(Uträkningsmall!$E27=\"\",Uträkningsmall!$F27=\"\")),1,IF(AND(Uträkningsmall!$A27=19,OR(Uträkningsmall!$E27=\"\",Uträkningsmall!$F27=\"\")),1,IF(AND(Uträkningsmall!$A27=20,OR(Uträkningsmall!$E27=\"\",Uträkningsmall!$F27=\"\")),1,IF(AND(Uträkningsmall!$A27=21,OR(Uträkningsmall!$E27=\"\",Uträkningsmall!$F27=\"\")),1,IF(AND(Uträkningsmall!$A27=22,OR(Uträkningsmall!$E27=\"\",Uträkningsmall!$F27=\"\")),1,IF(AND(Uträkningsmall!$A27=23,OR(Uträkningsmall!$E27=\"\",Uträkningsmall!$F27=\"\")),1,IF(AND(Uträkningsmall!$A27=24,OR(Uträkningsmall!$E27=\"\",Uträkningsmall!$F27=\"\")),1,IF(AND(Uträkningsmall!$A27=25,OR(Uträkningsmall!$E27=\"\",Uträkningsmall!$F27=\"\")),1,IF(AND(Uträkningsmall!$A27=26,OR(Uträkningsmall!$E27=\"\",Uträkningsmall!$F27=\"\")),1,IF(AND(Uträkningsmall!$A27=27,OR(Uträkningsmall!$E27=\"\",Uträkningsmall!$F27=\"\")),1,IF(AND(Uträkningsmall!$A27=28,OR(Uträkningsmall!$E27=\"\",Uträkningsmall!$F27=\"\")),1,IF(AND(Uträkningsmall!$A27=29,OR(Uträkningsmall!$E27=\"\",Uträkningsmall!$F27=\"\")),1,IF(AND(Uträkningsmall!$A27=30,OR(Uträkningsmall!$E27=\"\",Uträkningsmall!$F27=\"\")),1,IF(AND(Uträkningsmall!$A27=39,OR(Uträkningsmall!$E27=\"\",Uträkningsmall!$F27=\"\")),1,IF(AND(Uträkningsmall!$A27=40,OR(Uträkningsmall!$E27=\"\",Uträkningsmall!$F27=\"\")),1,IF(AND(Uträkningsmall!$A27=41,OR(Uträkningsmall!$E27=\"\",Uträkningsmall!$F27=\"\")),1,IF(AND(Uträkningsmall!$A27=42,OR(Uträkningsmall!$E27=\"\",Uträkningsmall!$F27=\"\")),1,0))))))))))))))))))))","v":""},{"$f":"Funktioner!B160&Funktioner!C160&\", \"&Funktioner!D160&\"g\"&Funktioner!E160&Funktioner!F160","v":"Färgat papperA3, 80gA-kvalitet, färg: svag/mellansvag blå nyansOhålat"},{"$f":"Uträkningsmall!B27&Uträkningsmall!C27&Uträkningsmall!D27&Uträkningsmall!E27","v":""},null,"",null,{"$f":"Uträkningsmall!$A27","v":""},{"$f":"IFERROR(INDEX(Omfattning!$B$3:$J$50,MATCH($H17,Funktioner!$A$30:$A$77,0),MATCH(I$2,Omfattning!$B$2:$J$2,0)),\"\")","v":0},{"$f":"IFERROR(INDEX(Omfattning!$B$3:$J$50,MATCH($H17,Funktioner!$A$30:$A$77,0),MATCH(J$2,Omfattning!$B$2:$J$2,0)),\"\")","v":0},{"$f":"IFERROR(INDEX(Omfattning!$B$3:$J$50,MATCH($H17,Funktioner!$A$30:$A$77,0),MATCH(K$2,Omfattning!$B$2:$J$2,0)),\"\")","v":0},{"$f":"IFERROR(INDEX(Omfattning!$B$3:$J$50,MATCH($H17,Funktioner!$A$30:$A$77,0),MATCH(L$2,Omfattning!$B$2:$J$2,0)),\"\")","v":""},{"$f":"IFERROR(INDEX(Omfattning!$B$3:$J$50,MATCH($H17,Funktioner!$A$30:$A$77,0),MATCH(M$2,Omfattning!$B$2:$J$2,0)),\"\")","v":0},{"$f":"IFERROR(INDEX(Omfattning!$B$3:$J$50,MATCH($H17,Funktioner!$A$30:$A$77,0),MATCH(N$2,Omfattning!$B$2:$J$2,0)),\"\")","v":0},{"$f":"IFERROR(INDEX(Omfattning!$B$3:$J$50,MATCH($H17,Funktioner!$A$30:$A$77,0),MATCH(O$2,Omfattning!$B$2:$J$2,0)),\"\")","v":0},{"$f":"IFERROR(INDEX(Omfattning!$B$3:$J$50,MATCH($H17,Funktioner!$A$30:$A$77,0),MATCH(P$2,Omfattning!$B$2:$J$2,0)),\"\")","v":0},{"$f":"IFERROR(INDEX(Omfattning!$B$3:$J$50,MATCH($H17,Funktioner!$A$30:$A$77,0),MATCH(Q$2,Omfattning!$B$2:$J$2,0)),\"\")","v":0},{"$f":"IF(Uträkningsmall!$F27=\"\",\"\",IF(S17=\"Kan ej leverera\",240000000,IF(ISNUMBER(P17),P17*Uträkningsmall!$F27,\"\")))","v":""},"",null,{"$f":"IFERROR(INDEX(Omfattning!$M$3:$U$50,MATCH($H17,Funktioner!$B$30:$B$77,0),MATCH(U$2,Omfattning!$M$2:$U$2,0)),\"\")","v":0},{"$f":"IFERROR(INDEX(Omfattning!$M$3:$U$50,MATCH($H17,Funktioner!$B$30:$B$77,0),MATCH(V$2,Omfattning!$M$2:$U$2,0)),\"\")","v":0},{"$f":"IFERROR(INDEX(Omfattning!$M$3:$U$50,MATCH($H17,Funktioner!$B$30:$B$77,0),MATCH(W$2,Omfattning!$M$2:$U$2,0)),\"\")","v":0},{"$f":"IFERROR(INDEX(Omfattning!$M$3:$U$50,MATCH($H17,Funktioner!$B$30:$B$77,0),MATCH(X$2,Omfattning!$M$2:$U$2,0)),\"\")","v":0},{"$f":"IFERROR(INDEX(Omfattning!$M$3:$U$50,MATCH($H17,Funktioner!$B$30:$B$77,0),MATCH(Y$2,Omfattning!$M$2:$U$2,0)),\"\")","v":0},{"$f":"IFERROR(INDEX(Omfattning!$M$3:$U$50,MATCH($H17,Funktioner!$B$30:$B$77,0),MATCH(Z$2,Omfattning!$M$2:$U$2,0)),\"\")","v":0},{"$f":"IFERROR(INDEX(Omfattning!$M$3:$U$50,MATCH($H17,Funktioner!$B$30:$B$77,0),MATCH(AA$2,Omfattning!$M$2:$U$2,0)),\"\")","v":0},{"$f":"IFERROR(INDEX(Omfattning!$M$3:$U$50,MATCH($H17,Funktioner!$B$30:$B$77,0),MATCH(AB$2,Omfattning!$M$2:$U$2,0)),\"\")","v":0},{"$f":"IFERROR(INDEX(Omfattning!$M$3:$U$50,MATCH($H17,Funktioner!$B$30:$B$77,0),MATCH(AC$2,Omfattning!$M$2:$U$2,0)),\"\")","v":0},{"$f":"IF(Uträkningsmall!$F27=\"\",\"\",IF(AE17=\"Kan ej leverera\",240000000,IF(ISNUMBER(AB17),AB17*Uträkningsmall!$F27,\"\")))","v":""},"",null,{"$f":"IFERROR(INDEX(Omfattning!$X$3:$AF$50,MATCH($H17,Funktioner!$C$30:$C$77,0),MATCH(AG$2,Omfattning!$X$2:$AF$2,0)),\"\")","v":0},{"$f":"IFERROR(INDEX(Omfattning!$X$3:$AF$50,MATCH($H17,Funktioner!$C$30:$C$77,0),MATCH(AH$2,Omfattning!$X$2:$AF$2,0)),\"\")","v":0},{"$f":"IFERROR(INDEX(Omfattning!$X$3:$AF$50,MATCH($H17,Funktioner!$C$30:$C$77,0),MATCH(AI$2,Omfattning!$X$2:$AF$2,0)),\"\")","v":0},{"$f":"IFERROR(INDEX(Omfattning!$X$3:$AF$50,MATCH($H17,Funktioner!$C$30:$C$77,0),MATCH(AJ$2,Omfattning!$X$2:$AF$2,0)),\"\")","v":0},{"$f":"IFERROR(INDEX(Omfattning!$X$3:$AF$50,MATCH($H17,Funktioner!$C$30:$C$77,0),MATCH(AK$2,Omfattning!$X$2:$AF$2,0)),\"\")","v":0},{"$f":"IFERROR(INDEX(Omfattning!$X$3:$AF$50,MATCH($H17,Funktioner!$C$30:$C$77,0),MATCH(AL$2,Omfattning!$X$2:$AF$2,0)),\"\")","v":0},{"$f":"IFERROR(INDEX(Omfattning!$X$3:$AF$50,MATCH($H17,Funktioner!$C$30:$C$77,0),MATCH(AM$2,Omfattning!$X$2:$AF$2,0)),\"\")","v":0},{"$f":"IFERROR(INDEX(Omfattning!$X$3:$AF$50,MATCH($H17,Funktioner!$C$30:$C$77,0),MATCH(AN$2,Omfattning!$X$2:$AF$2,0)),\"\")","v":0},{"$f":"IFERROR(INDEX(Omfattning!$X$3:$AF$50,MATCH($H17,Funktioner!$C$30:$C$77,0),MATCH(AO$2,Omfattning!$X$2:$AF$2,0)),\"\")","v":0},{"$f":"IF(Uträkningsmall!$F27=\"\",\"\",IF(AQ17=\"Kan ej leverera\",240000000,IF(ISNUMBER(AN17),AN17*Uträkningsmall!$F27,\"\")))","v":""},"",null,{"$f":"IFERROR(INDEX(Omfattning!$AI$3:$AQ$50,MATCH($H17,Funktioner!$D$30:$D$77,0),MATCH(AS$2,Omfattning!$AI$2:$AQ$2,0)),\"\")","v":0},{"$f":"IFERROR(INDEX(Omfattning!$AI$3:$AQ$50,MATCH($H17,Funktioner!$D$30:$D$77,0),MATCH(AT$2,Omfattning!$AI$2:$AQ$2,0)),\"\")","v":0},{"$f":"IFERROR(INDEX(Omfattning!$AI$3:$AQ$50,MATCH($H17,Funktioner!$D$30:$D$77,0),MATCH(AU$2,Omfattning!$AI$2:$AQ$2,0)),\"\")","v":0},{"$f":"IFERROR(INDEX(Omfattning!$AI$3:$AQ$50,MATCH($H17,Funktioner!$D$30:$D$77,0),MATCH(AV$2,Omfattning!$AI$2:$AQ$2,0)),\"\")","v":0},{"$f":"IFERROR(INDEX(Omfattning!$AI$3:$AQ$50,MATCH($H17,Funktioner!$D$30:$D$77,0),MATCH(AW$2,Omfattning!$AI$2:$AQ$2,0)),\"\")","v":0},{"$f":"IFERROR(INDEX(Omfattning!$AI$3:$AQ$50,MATCH($H17,Funktioner!$D$30:$D$77,0),MATCH(AX$2,Omfattning!$AI$2:$AQ$2,0)),\"\")","v":0},{"$f":"IFERROR(INDEX(Omfattning!$AI$3:$AQ$50,MATCH($H17,Funktioner!$D$30:$D$77,0),MATCH(AY$2,Omfattning!$AI$2:$AQ$2,0)),\"\")","v":0},{"$f":"IFERROR(INDEX(Omfattning!$AI$3:$AQ$50,MATCH($H17,Funktioner!$D$30:$D$77,0),MATCH(AZ$2,Omfattning!$AI$2:$AQ$2,0)),\"\")","v":0},{"$f":"IFERROR(INDEX(Omfattning!$AI$3:$AQ$50,MATCH($H17,Funktioner!$D$30:$D$77,0),MATCH(BA$2,Omfattning!$AI$2:$AQ$2,0)),\"\")","v":0},{"$f":"IF(Uträkningsmall!$F27=\"\",\"\",IF(BC17=\"Kan ej leverera\",240000000,IF(ISNUMBER(AZ17),AZ17*Uträkningsmall!$F27,\"\")))","v":""},"",null,{"$f":"IFERROR(INDEX(Omfattning!$AT$3:$BB$50,MATCH($H17,Funktioner!$E$30:$E$77,0),MATCH(BE$2,Omfattning!$AT$2:$BB$2,0)),\"\")","v":0},{"$f":"IFERROR(INDEX(Omfattning!$AT$3:$BB$50,MATCH($H17,Funktioner!$E$30:$E$77,0),MATCH(BF$2,Omfattning!$AT$2:$BB$2,0)),\"\")","v":0},{"$f":"IFERROR(INDEX(Omfattning!$AT$3:$BB$50,MATCH($H17,Funktioner!$E$30:$E$77,0),MATCH(BG$2,Omfattning!$AT$2:$BB$2,0)),\"\")","v":0},{"$f":"IFERROR(INDEX(Omfattning!$AT$3:$BB$50,MATCH($H17,Funktioner!$E$30:$E$77,0),MATCH(BH$2,Omfattning!$AT$2:$BB$2,0)),\"\")","v":0},{"$f":"IFERROR(INDEX(Omfattning!$AT$3:$BB$50,MATCH($H17,Funktioner!$E$30:$E$77,0),MATCH(BI$2,Omfattning!$AT$2:$BB$2,0)),\"\")","v":0},{"$f":"IFERROR(INDEX(Omfattning!$AT$3:$BB$50,MATCH($H17,Funktioner!$E$30:$E$77,0),MATCH(BJ$2,Omfattning!$AT$2:$BB$2,0)),\"\")","v":0},{"$f":"IFERROR(INDEX(Omfattning!$AT$3:$BB$50,MATCH($H17,Funktioner!$E$30:$E$77,0),MATCH(BK$2,Omfattning!$AT$2:$BB$2,0)),\"\")","v":0},{"$f":"IFERROR(INDEX(Omfattning!$AT$3:$BB$50,MATCH($H17,Funktioner!$E$30:$E$77,0),MATCH(BL$2,Omfattning!$AT$2:$BB$2,0)),\"\")","v":0},{"$f":"IFERROR(INDEX(Omfattning!$AT$3:$BB$50,MATCH($H17,Funktioner!$E$30:$E$77,0),MATCH(BM$2,Omfattning!$AT$2:$BB$2,0)),\"\")","v":0},{"$f":"IF(Uträkningsmall!$F27=\"\",\"\",IF(BO17=\"Kan ej leverera\",240000000,IF(ISNUMBER(BL17),BL17*Uträkningsmall!$F27,\"\")))","v":""},"",null,{"$f":"IFERROR(INDEX(Omfattning!$BE$3:$BM$50,MATCH($H17,Funktioner!$F$30:$F$77,0),MATCH(BQ$2,Omfattning!$BE$2:$BM$2,0)),\"\")","v":0},{"$f":"IFERROR(INDEX(Omfattning!$BE$3:$BM$50,MATCH($H17,Funktioner!$F$30:$F$77,0),MATCH(BR$2,Omfattning!$BE$2:$BM$2,0)),\"\")","v":0},{"$f":"IFERROR(INDEX(Omfattning!$BE$3:$BM$50,MATCH($H17,Funktioner!$F$30:$F$77,0),MATCH(BS$2,Omfattning!$BE$2:$BM$2,0)),\"\")","v":0},{"$f":"IFERROR(INDEX(Omfattning!$BE$3:$BM$50,MATCH($H17,Funktioner!$F$30:$F$77,0),MATCH(BT$2,Omfattning!$BE$2:$BM$2,0)),\"\")","v":0},{"$f":"IFERROR(INDEX(Omfattning!$BE$3:$BM$50,MATCH($H17,Funktioner!$F$30:$F$77,0),MATCH(BU$2,Omfattning!$BE$2:$BM$2,0)),\"\")","v":0},{"$f":"IFERROR(INDEX(Omfattning!$BE$3:$BM$50,MATCH($H17,Funktioner!$F$30:$F$77,0),MATCH(BV$2,Omfattning!$BE$2:$BM$2,0)),\"\")","v":0},{"$f":"IFERROR(INDEX(Omfattning!$BE$3:$BM$50,MATCH($H17,Funktioner!$F$30:$F$77,0),MATCH(BW$2,Omfattning!$BE$2:$BM$2,0)),\"\")","v":0},{"$f":"IFERROR(INDEX(Omfattning!$BE$3:$BM$50,MATCH($H17,Funktioner!$F$30:$F$77,0),MATCH(BX$2,Omfattning!$BE$2:$BM$2,0)),\"\")","v":0},{"$f":"IFERROR(INDEX(Omfattning!$BE$3:$BM$50,MATCH($H17,Funktioner!$F$30:$F$77,0),MATCH(BY$2,Omfattning!$BE$2:$BM$2,0)),\"\")","v":0},{"$f":"IF(Uträkningsmall!$F27=\"\",\"\",IF(CA17=\"Kan ej leverera\",240000000,IF(ISNUMBER(BX17),BX17*Uträkningsmall!$F27,\"\")))","v":""},""]
[{"$f":"\"Position\"&Uträkningsmall!$A28","v":"Position"},{"$f":"IF(Uträkningsmall!$F28=\"\",\"\",IF(AND(Uträkningsmall!$A28=15,OR(Uträkningsmall!$E28=\"\",Uträkningsmall!$F28=\"\")),1,IF(AND(Uträkningsmall!$A28=16,OR(Uträkningsmall!$E28=\"\",Uträkningsmall!$F28=\"\")),1,IF(AND(Uträkningsmall!$A28=17,OR(Uträkningsmall!$E28=\"\",Uträkningsmall!$F28=\"\")),1,IF(AND(Uträkningsmall!$A28=19,OR(Uträkningsmall!$E28=\"\",Uträkningsmall!$F28=\"\")),1,IF(AND(Uträkningsmall!$A28=20,OR(Uträkningsmall!$E28=\"\",Uträkningsmall!$F28=\"\")),1,IF(AND(Uträkningsmall!$A28=21,OR(Uträkningsmall!$E28=\"\",Uträkningsmall!$F28=\"\")),1,IF(AND(Uträkningsmall!$A28=22,OR(Uträkningsmall!$E28=\"\",Uträkningsmall!$F28=\"\")),1,IF(AND(Uträkningsmall!$A28=23,OR(Uträkningsmall!$E28=\"\",Uträkningsmall!$F28=\"\")),1,IF(AND(Uträkningsmall!$A28=24,OR(Uträkningsmall!$E28=\"\",Uträkningsmall!$F28=\"\")),1,IF(AND(Uträkningsmall!$A28=25,OR(Uträkningsmall!$E28=\"\",Uträkningsmall!$F28=\"\")),1,IF(AND(Uträkningsmall!$A28=26,OR(Uträkningsmall!$E28=\"\",Uträkningsmall!$F28=\"\")),1,IF(AND(Uträkningsmall!$A28=27,OR(Uträkningsmall!$E28=\"\",Uträkningsmall!$F28=\"\")),1,IF(AND(Uträkningsmall!$A28=28,OR(Uträkningsmall!$E28=\"\",Uträkningsmall!$F28=\"\")),1,IF(AND(Uträkningsmall!$A28=29,OR(Uträkningsmall!$E28=\"\",Uträkningsmall!$F28=\"\")),1,IF(AND(Uträkningsmall!$A28=30,OR(Uträkningsmall!$E28=\"\",Uträkningsmall!$F28=\"\")),1,IF(AND(Uträkningsmall!$A28=39,OR(Uträkningsmall!$E28=\"\",Uträkningsmall!$F28=\"\")),1,IF(AND(Uträkningsmall!$A28=40,OR(Uträkningsmall!$E28=\"\",Uträkningsmall!$F28=\"\")),1,IF(AND(Uträkningsmall!$A28=41,OR(Uträkningsmall!$E28=\"\",Uträkningsmall!$F28=\"\")),1,IF(AND(Uträkningsmall!$A28=42,OR(Uträkningsmall!$E28=\"\",Uträkningsmall!$F28=\"\")),1,0))))))))))))))))))))","v":""},{"$f":"Funktioner!B161&Funktioner!C161&\", \"&Funktioner!D161&\"g\"&Funktioner!E161&Funktioner!F161","v":"Färgat papperA3, 80gA-kvalitet, färg: svag/mellansvag grön nyansOhålat"},{"$f":"Uträkningsmall!B28&Uträkningsmall!C28&Uträkningsmall!D28&Uträkningsmall!E28","v":""},null,"",null,{"$f":"Uträkningsmall!$A28","v":""},{"$f":"IFERROR(INDEX(Omfattning!$B$3:$J$50,MATCH($H18,Funktioner!$A$30:$A$77,0),MATCH(I$2,Omfattning!$B$2:$J$2,0)),\"\")","v":0},{"$f":"IFERROR(INDEX(Omfattning!$B$3:$J$50,MATCH($H18,Funktioner!$A$30:$A$77,0),MATCH(J$2,Omfattning!$B$2:$J$2,0)),\"\")","v":0},{"$f":"IFERROR(INDEX(Omfattning!$B$3:$J$50,MATCH($H18,Funktioner!$A$30:$A$77,0),MATCH(K$2,Omfattning!$B$2:$J$2,0)),\"\")","v":0},{"$f":"IFERROR(INDEX(Omfattning!$B$3:$J$50,MATCH($H18,Funktioner!$A$30:$A$77,0),MATCH(L$2,Omfattning!$B$2:$J$2,0)),\"\")","v":""},{"$f":"IFERROR(INDEX(Omfattning!$B$3:$J$50,MATCH($H18,Funktioner!$A$30:$A$77,0),MATCH(M$2,Omfattning!$B$2:$J$2,0)),\"\")","v":0},{"$f":"IFERROR(INDEX(Omfattning!$B$3:$J$50,MATCH($H18,Funktioner!$A$30:$A$77,0),MATCH(N$2,Omfattning!$B$2:$J$2,0)),\"\")","v":0},{"$f":"IFERROR(INDEX(Omfattning!$B$3:$J$50,MATCH($H18,Funktioner!$A$30:$A$77,0),MATCH(O$2,Omfattning!$B$2:$J$2,0)),\"\")","v":0},{"$f":"IFERROR(INDEX(Omfattning!$B$3:$J$50,MATCH($H18,Funktioner!$A$30:$A$77,0),MATCH(P$2,Omfattning!$B$2:$J$2,0)),\"\")","v":0},{"$f":"IFERROR(INDEX(Omfattning!$B$3:$J$50,MATCH($H18,Funktioner!$A$30:$A$77,0),MATCH(Q$2,Omfattning!$B$2:$J$2,0)),\"\")","v":0},{"$f":"IF(Uträkningsmall!$F28=\"\",\"\",IF(S18=\"Kan ej leverera\",240000000,IF(ISNUMBER(P18),P18*Uträkningsmall!$F28,\"\")))","v":""},"",null,{"$f":"IFERROR(INDEX(Omfattning!$M$3:$U$50,MATCH($H18,Funktioner!$B$30:$B$77,0),MATCH(U$2,Omfattning!$M$2:$U$2,0)),\"\")","v":0},{"$f":"IFERROR(INDEX(Omfattning!$M$3:$U$50,MATCH($H18,Funktioner!$B$30:$B$77,0),MATCH(V$2,Omfattning!$M$2:$U$2,0)),\"\")","v":0},{"$f":"IFERROR(INDEX(Omfattning!$M$3:$U$50,MATCH($H18,Funktioner!$B$30:$B$77,0),MATCH(W$2,Omfattning!$M$2:$U$2,0)),\"\")","v":0},{"$f":"IFERROR(INDEX(Omfattning!$M$3:$U$50,MATCH($H18,Funktioner!$B$30:$B$77,0),MATCH(X$2,Omfattning!$M$2:$U$2,0)),\"\")","v":0},{"$f":"IFERROR(INDEX(Omfattning!$M$3:$U$50,MATCH($H18,Funktioner!$B$30:$B$77,0),MATCH(Y$2,Omfattning!$M$2:$U$2,0)),\"\")","v":0},{"$f":"IFERROR(INDEX(Omfattning!$M$3:$U$50,MATCH($H18,Funktioner!$B$30:$B$77,0),MATCH(Z$2,Omfattning!$M$2:$U$2,0)),\"\")","v":0},{"$f":"IFERROR(INDEX(Omfattning!$M$3:$U$50,MATCH($H18,Funktioner!$B$30:$B$77,0),MATCH(AA$2,Omfattning!$M$2:$U$2,0)),\"\")","v":0},{"$f":"IFERROR(INDEX(Omfattning!$M$3:$U$50,MATCH($H18,Funktioner!$B$30:$B$77,0),MATCH(AB$2,Omfattning!$M$2:$U$2,0)),\"\")","v":0},{"$f":"IFERROR(INDEX(Omfattning!$M$3:$U$50,MATCH($H18,Funktioner!$B$30:$B$77,0),MATCH(AC$2,Omfattning!$M$2:$U$2,0)),\"\")","v":0},{"$f":"IF(Uträkningsmall!$F28=\"\",\"\",IF(AE18=\"Kan ej leverera\",240000000,IF(ISNUMBER(AB18),AB18*Uträkningsmall!$F28,\"\")))","v":""},"",null,{"$f":"IFERROR(INDEX(Omfattning!$X$3:$AF$50,MATCH($H18,Funktioner!$C$30:$C$77,0),MATCH(AG$2,Omfattning!$X$2:$AF$2,0)),\"\")","v":0},{"$f":"IFERROR(INDEX(Omfattning!$X$3:$AF$50,MATCH($H18,Funktioner!$C$30:$C$77,0),MATCH(AH$2,Omfattning!$X$2:$AF$2,0)),\"\")","v":0},{"$f":"IFERROR(INDEX(Omfattning!$X$3:$AF$50,MATCH($H18,Funktioner!$C$30:$C$77,0),MATCH(AI$2,Omfattning!$X$2:$AF$2,0)),\"\")","v":0},{"$f":"IFERROR(INDEX(Omfattning!$X$3:$AF$50,MATCH($H18,Funktioner!$C$30:$C$77,0),MATCH(AJ$2,Omfattning!$X$2:$AF$2,0)),\"\")","v":0},{"$f":"IFERROR(INDEX(Omfattning!$X$3:$AF$50,MATCH($H18,Funktioner!$C$30:$C$77,0),MATCH(AK$2,Omfattning!$X$2:$AF$2,0)),\"\")","v":0},{"$f":"IFERROR(INDEX(Omfattning!$X$3:$AF$50,MATCH($H18,Funktioner!$C$30:$C$77,0),MATCH(AL$2,Omfattning!$X$2:$AF$2,0)),\"\")","v":0},{"$f":"IFERROR(INDEX(Omfattning!$X$3:$AF$50,MATCH($H18,Funktioner!$C$30:$C$77,0),MATCH(AM$2,Omfattning!$X$2:$AF$2,0)),\"\")","v":0},{"$f":"IFERROR(INDEX(Omfattning!$X$3:$AF$50,MATCH($H18,Funktioner!$C$30:$C$77,0),MATCH(AN$2,Omfattning!$X$2:$AF$2,0)),\"\")","v":0},{"$f":"IFERROR(INDEX(Omfattning!$X$3:$AF$50,MATCH($H18,Funktioner!$C$30:$C$77,0),MATCH(AO$2,Omfattning!$X$2:$AF$2,0)),\"\")","v":0},{"$f":"IF(Uträkningsmall!$F28=\"\",\"\",IF(AQ18=\"Kan ej leverera\",240000000,IF(ISNUMBER(AN18),AN18*Uträkningsmall!$F28,\"\")))","v":""},"",null,{"$f":"IFERROR(INDEX(Omfattning!$AI$3:$AQ$50,MATCH($H18,Funktioner!$D$30:$D$77,0),MATCH(AS$2,Omfattning!$AI$2:$AQ$2,0)),\"\")","v":0},{"$f":"IFERROR(INDEX(Omfattning!$AI$3:$AQ$50,MATCH($H18,Funktioner!$D$30:$D$77,0),MATCH(AT$2,Omfattning!$AI$2:$AQ$2,0)),\"\")","v":0},{"$f":"IFERROR(INDEX(Omfattning!$AI$3:$AQ$50,MATCH($H18,Funktioner!$D$30:$D$77,0),MATCH(AU$2,Omfattning!$AI$2:$AQ$2,0)),\"\")","v":0},{"$f":"IFERROR(INDEX(Omfattning!$AI$3:$AQ$50,MATCH($H18,Funktioner!$D$30:$D$77,0),MATCH(AV$2,Omfattning!$AI$2:$AQ$2,0)),\"\")","v":0},{"$f":"IFERROR(INDEX(Omfattning!$AI$3:$AQ$50,MATCH($H18,Funktioner!$D$30:$D$77,0),MATCH(AW$2,Omfattning!$AI$2:$AQ$2,0)),\"\")","v":0},{"$f":"IFERROR(INDEX(Omfattning!$AI$3:$AQ$50,MATCH($H18,Funktioner!$D$30:$D$77,0),MATCH(AX$2,Omfattning!$AI$2:$AQ$2,0)),\"\")","v":0},{"$f":"IFERROR(INDEX(Omfattning!$AI$3:$AQ$50,MATCH($H18,Funktioner!$D$30:$D$77,0),MATCH(AY$2,Omfattning!$AI$2:$AQ$2,0)),\"\")","v":0},{"$f":"IFERROR(INDEX(Omfattning!$AI$3:$AQ$50,MATCH($H18,Funktioner!$D$30:$D$77,0),MATCH(AZ$2,Omfattning!$AI$2:$AQ$2,0)),\"\")","v":0},{"$f":"IFERROR(INDEX(Omfattning!$AI$3:$AQ$50,MATCH($H18,Funktioner!$D$30:$D$77,0),MATCH(BA$2,Omfattning!$AI$2:$AQ$2,0)),\"\")","v":0},{"$f":"IF(Uträkningsmall!$F28=\"\",\"\",IF(BC18=\"Kan ej leverera\",240000000,IF(ISNUMBER(AZ18),AZ18*Uträkningsmall!$F28,\"\")))","v":""},"",null,{"$f":"IFERROR(INDEX(Omfattning!$AT$3:$BB$50,MATCH($H18,Funktioner!$E$30:$E$77,0),MATCH(BE$2,Omfattning!$AT$2:$BB$2,0)),\"\")","v":0},{"$f":"IFERROR(INDEX(Omfattning!$AT$3:$BB$50,MATCH($H18,Funktioner!$E$30:$E$77,0),MATCH(BF$2,Omfattning!$AT$2:$BB$2,0)),\"\")","v":0},{"$f":"IFERROR(INDEX(Omfattning!$AT$3:$BB$50,MATCH($H18,Funktioner!$E$30:$E$77,0),MATCH(BG$2,Omfattning!$AT$2:$BB$2,0)),\"\")","v":0},{"$f":"IFERROR(INDEX(Omfattning!$AT$3:$BB$50,MATCH($H18,Funktioner!$E$30:$E$77,0),MATCH(BH$2,Omfattning!$AT$2:$BB$2,0)),\"\")","v":0},{"$f":"IFERROR(INDEX(Omfattning!$AT$3:$BB$50,MATCH($H18,Funktioner!$E$30:$E$77,0),MATCH(BI$2,Omfattning!$AT$2:$BB$2,0)),\"\")","v":0},{"$f":"IFERROR(INDEX(Omfattning!$AT$3:$BB$50,MATCH($H18,Funktioner!$E$30:$E$77,0),MATCH(BJ$2,Omfattning!$AT$2:$BB$2,0)),\"\")","v":0},{"$f":"IFERROR(INDEX(Omfattning!$AT$3:$BB$50,MATCH($H18,Funktioner!$E$30:$E$77,0),MATCH(BK$2,Omfattning!$AT$2:$BB$2,0)),\"\")","v":0},{"$f":"IFERROR(INDEX(Omfattning!$AT$3:$BB$50,MATCH($H18,Funktioner!$E$30:$E$77,0),MATCH(BL$2,Omfattning!$AT$2:$BB$2,0)),\"\")","v":0},{"$f":"IFERROR(INDEX(Omfattning!$AT$3:$BB$50,MATCH($H18,Funktioner!$E$30:$E$77,0),MATCH(BM$2,Omfattning!$AT$2:$BB$2,0)),\"\")","v":0},{"$f":"IF(Uträkningsmall!$F28=\"\",\"\",IF(BO18=\"Kan ej leverera\",240000000,IF(ISNUMBER(BL18),BL18*Uträkningsmall!$F28,\"\")))","v":""},"",null,{"$f":"IFERROR(INDEX(Omfattning!$BE$3:$BM$50,MATCH($H18,Funktioner!$F$30:$F$77,0),MATCH(BQ$2,Omfattning!$BE$2:$BM$2,0)),\"\")","v":0},{"$f":"IFERROR(INDEX(Omfattning!$BE$3:$BM$50,MATCH($H18,Funktioner!$F$30:$F$77,0),MATCH(BR$2,Omfattning!$BE$2:$BM$2,0)),\"\")","v":0},{"$f":"IFERROR(INDEX(Omfattning!$BE$3:$BM$50,MATCH($H18,Funktioner!$F$30:$F$77,0),MATCH(BS$2,Omfattning!$BE$2:$BM$2,0)),\"\")","v":0},{"$f":"IFERROR(INDEX(Omfattning!$BE$3:$BM$50,MATCH($H18,Funktioner!$F$30:$F$77,0),MATCH(BT$2,Omfattning!$BE$2:$BM$2,0)),\"\")","v":0},{"$f":"IFERROR(INDEX(Omfattning!$BE$3:$BM$50,MATCH($H18,Funktioner!$F$30:$F$77,0),MATCH(BU$2,Omfattning!$BE$2:$BM$2,0)),\"\")","v":0},{"$f":"IFERROR(INDEX(Omfattning!$BE$3:$BM$50,MATCH($H18,Funktioner!$F$30:$F$77,0),MATCH(BV$2,Omfattning!$BE$2:$BM$2,0)),\"\")","v":0},{"$f":"IFERROR(INDEX(Omfattning!$BE$3:$BM$50,MATCH($H18,Funktioner!$F$30:$F$77,0),MATCH(BW$2,Omfattning!$BE$2:$BM$2,0)),\"\")","v":0},{"$f":"IFERROR(INDEX(Omfattning!$BE$3:$BM$50,MATCH($H18,Funktioner!$F$30:$F$77,0),MATCH(BX$2,Omfattning!$BE$2:$BM$2,0)),\"\")","v":0},{"$f":"IFERROR(INDEX(Omfattning!$BE$3:$BM$50,MATCH($H18,Funktioner!$F$30:$F$77,0),MATCH(BY$2,Omfattning!$BE$2:$BM$2,0)),\"\")","v":0},{"$f":"IF(Uträkningsmall!$F28=\"\",\"\",IF(CA18=\"Kan ej leverera\",240000000,IF(ISNUMBER(BX18),BX18*Uträkningsmall!$F28,\"\")))","v":""},""]
[{"$f":"\"Position\"&Uträkningsmall!$A29","v":"Position"},{"$f":"IF(Uträkningsmall!$F29=\"\",\"\",IF(AND(Uträkningsmall!$A29=15,OR(Uträkningsmall!$E29=\"\",Uträkningsmall!$F29=\"\")),1,IF(AND(Uträkningsmall!$A29=16,OR(Uträkningsmall!$E29=\"\",Uträkningsmall!$F29=\"\")),1,IF(AND(Uträkningsmall!$A29=17,OR(Uträkningsmall!$E29=\"\",Uträkningsmall!$F29=\"\")),1,IF(AND(Uträkningsmall!$A29=19,OR(Uträkningsmall!$E29=\"\",Uträkningsmall!$F29=\"\")),1,IF(AND(Uträkningsmall!$A29=20,OR(Uträkningsmall!$E29=\"\",Uträkningsmall!$F29=\"\")),1,IF(AND(Uträkningsmall!$A29=21,OR(Uträkningsmall!$E29=\"\",Uträkningsmall!$F29=\"\")),1,IF(AND(Uträkningsmall!$A29=22,OR(Uträkningsmall!$E29=\"\",Uträkningsmall!$F29=\"\")),1,IF(AND(Uträkningsmall!$A29=23,OR(Uträkningsmall!$E29=\"\",Uträkningsmall!$F29=\"\")),1,IF(AND(Uträkningsmall!$A29=24,OR(Uträkningsmall!$E29=\"\",Uträkningsmall!$F29=\"\")),1,IF(AND(Uträkningsmall!$A29=25,OR(Uträkningsmall!$E29=\"\",Uträkningsmall!$F29=\"\")),1,IF(AND(Uträkningsmall!$A29=26,OR(Uträkningsmall!$E29=\"\",Uträkningsmall!$F29=\"\")),1,IF(AND(Uträkningsmall!$A29=27,OR(Uträkningsmall!$E29=\"\",Uträkningsmall!$F29=\"\")),1,IF(AND(Uträkningsmall!$A29=28,OR(Uträkningsmall!$E29=\"\",Uträkningsmall!$F29=\"\")),1,IF(AND(Uträkningsmall!$A29=29,OR(Uträkningsmall!$E29=\"\",Uträkningsmall!$F29=\"\")),1,IF(AND(Uträkningsmall!$A29=30,OR(Uträkningsmall!$E29=\"\",Uträkningsmall!$F29=\"\")),1,IF(AND(Uträkningsmall!$A29=39,OR(Uträkningsmall!$E29=\"\",Uträkningsmall!$F29=\"\")),1,IF(AND(Uträkningsmall!$A29=40,OR(Uträkningsmall!$E29=\"\",Uträkningsmall!$F29=\"\")),1,IF(AND(Uträkningsmall!$A29=41,OR(Uträkningsmall!$E29=\"\",Uträkningsmall!$F29=\"\")),1,IF(AND(Uträkningsmall!$A29=42,OR(Uträkningsmall!$E29=\"\",Uträkningsmall!$F29=\"\")),1,0))))))))))))))))))))","v":""},{"$f":"Funktioner!B162&Funktioner!C162&\", \"&Funktioner!D162&\"g\"&Funktioner!E162&Funktioner!F162","v":"Färgat papperA3, 80gA-kvalitet, färg: röd nyansOhålat"},{"$f":"Uträkningsmall!B29&Uträkningsmall!C29&Uträkningsmall!D29&Uträkningsmall!E29","v":""},null,"",null,{"$f":"Uträkningsmall!$A29","v":""},{"$f":"IFERROR(INDEX(Omfattning!$B$3:$J$50,MATCH($H19,Funktioner!$A$30:$A$77,0),MATCH(I$2,Omfattning!$B$2:$J$2,0)),\"\")","v":0},{"$f":"IFERROR(INDEX(Omfattning!$B$3:$J$50,MATCH($H19,Funktioner!$A$30:$A$77,0),MATCH(J$2,Omfattning!$B$2:$J$2,0)),\"\")","v":0},{"$f":"IFERROR(INDEX(Omfattning!$B$3:$J$50,MATCH($H19,Funktioner!$A$30:$A$77,0),MATCH(K$2,Omfattning!$B$2:$J$2,0)),\"\")","v":0},{"$f":"IFERROR(INDEX(Omfattning!$B$3:$J$50,MATCH($H19,Funktioner!$A$30:$A$77,0),MATCH(L$2,Omfattning!$B$2:$J$2,0)),\"\")","v":""},{"$f":"IFERROR(INDEX(Omfattning!$B$3:$J$50,MATCH($H19,Funktioner!$A$30:$A$77,0),MATCH(M$2,Omfattning!$B$2:$J$2,0)),\"\")","v":0},{"$f":"IFERROR(INDEX(Omfattning!$B$3:$J$50,MATCH($H19,Funktioner!$A$30:$A$77,0),MATCH(N$2,Omfattning!$B$2:$J$2,0)),\"\")","v":0},{"$f":"IFERROR(INDEX(Omfattning!$B$3:$J$50,MATCH($H19,Funktioner!$A$30:$A$77,0),MATCH(O$2,Omfattning!$B$2:$J$2,0)),\"\")","v":0},{"$f":"IFERROR(INDEX(Omfattning!$B$3:$J$50,MATCH($H19,Funktioner!$A$30:$A$77,0),MATCH(P$2,Omfattning!$B$2:$J$2,0)),\"\")","v":0},{"$f":"IFERROR(INDEX(Omfattning!$B$3:$J$50,MATCH($H19,Funktioner!$A$30:$A$77,0),MATCH(Q$2,Omfattning!$B$2:$J$2,0)),\"\")","v":0},{"$f":"IF(Uträkningsmall!$F29=\"\",\"\",IF(S19=\"Kan ej leverera\",240000000,IF(ISNUMBER(P19),P19*Uträkningsmall!$F29,\"\")))","v":""},"",null,{"$f":"IFERROR(INDEX(Omfattning!$M$3:$U$50,MATCH($H19,Funktioner!$B$30:$B$77,0),MATCH(U$2,Omfattning!$M$2:$U$2,0)),\"\")","v":0},{"$f":"IFERROR(INDEX(Omfattning!$M$3:$U$50,MATCH($H19,Funktioner!$B$30:$B$77,0),MATCH(V$2,Omfattning!$M$2:$U$2,0)),\"\")","v":0},{"$f":"IFERROR(INDEX(Omfattning!$M$3:$U$50,MATCH($H19,Funktioner!$B$30:$B$77,0),MATCH(W$2,Omfattning!$M$2:$U$2,0)),\"\")","v":0},{"$f":"IFERROR(INDEX(Omfattning!$M$3:$U$50,MATCH($H19,Funktioner!$B$30:$B$77,0),MATCH(X$2,Omfattning!$M$2:$U$2,0)),\"\")","v":0},{"$f":"IFERROR(INDEX(Omfattning!$M$3:$U$50,MATCH($H19,Funktioner!$B$30:$B$77,0),MATCH(Y$2,Omfattning!$M$2:$U$2,0)),\"\")","v":0},{"$f":"IFERROR(INDEX(Omfattning!$M$3:$U$50,MATCH($H19,Funktioner!$B$30:$B$77,0),MATCH(Z$2,Omfattning!$M$2:$U$2,0)),\"\")","v":0},{"$f":"IFERROR(INDEX(Omfattning!$M$3:$U$50,MATCH($H19,Funktioner!$B$30:$B$77,0),MATCH(AA$2,Omfattning!$M$2:$U$2,0)),\"\")","v":0},{"$f":"IFERROR(INDEX(Omfattning!$M$3:$U$50,MATCH($H19,Funktioner!$B$30:$B$77,0),MATCH(AB$2,Omfattning!$M$2:$U$2,0)),\"\")","v":0},{"$f":"IFERROR(INDEX(Omfattning!$M$3:$U$50,MATCH($H19,Funktioner!$B$30:$B$77,0),MATCH(AC$2,Omfattning!$M$2:$U$2,0)),\"\")","v":0},{"$f":"IF(Uträkningsmall!$F29=\"\",\"\",IF(AE19=\"Kan ej leverera\",240000000,IF(ISNUMBER(AB19),AB19*Uträkningsmall!$F29,\"\")))","v":""},"",null,{"$f":"IFERROR(INDEX(Omfattning!$X$3:$AF$50,MATCH($H19,Funktioner!$C$30:$C$77,0),MATCH(AG$2,Omfattning!$X$2:$AF$2,0)),\"\")","v":0},{"$f":"IFERROR(INDEX(Omfattning!$X$3:$AF$50,MATCH($H19,Funktioner!$C$30:$C$77,0),MATCH(AH$2,Omfattning!$X$2:$AF$2,0)),\"\")","v":0},{"$f":"IFERROR(INDEX(Omfattning!$X$3:$AF$50,MATCH($H19,Funktioner!$C$30:$C$77,0),MATCH(AI$2,Omfattning!$X$2:$AF$2,0)),\"\")","v":0},{"$f":"IFERROR(INDEX(Omfattning!$X$3:$AF$50,MATCH($H19,Funktioner!$C$30:$C$77,0),MATCH(AJ$2,Omfattning!$X$2:$AF$2,0)),\"\")","v":0},{"$f":"IFERROR(INDEX(Omfattning!$X$3:$AF$50,MATCH($H19,Funktioner!$C$30:$C$77,0),MATCH(AK$2,Omfattning!$X$2:$AF$2,0)),\"\")","v":0},{"$f":"IFERROR(INDEX(Omfattning!$X$3:$AF$50,MATCH($H19,Funktioner!$C$30:$C$77,0),MATCH(AL$2,Omfattning!$X$2:$AF$2,0)),\"\")","v":0},{"$f":"IFERROR(INDEX(Omfattning!$X$3:$AF$50,MATCH($H19,Funktioner!$C$30:$C$77,0),MATCH(AM$2,Omfattning!$X$2:$AF$2,0)),\"\")","v":0},{"$f":"IFERROR(INDEX(Omfattning!$X$3:$AF$50,MATCH($H19,Funktioner!$C$30:$C$77,0),MATCH(AN$2,Omfattning!$X$2:$AF$2,0)),\"\")","v":0},{"$f":"IFERROR(INDEX(Omfattning!$X$3:$AF$50,MATCH($H19,Funktioner!$C$30:$C$77,0),MATCH(AO$2,Omfattning!$X$2:$AF$2,0)),\"\")","v":0},{"$f":"IF(Uträkningsmall!$F29=\"\",\"\",IF(AQ19=\"Kan ej leverera\",240000000,IF(ISNUMBER(AN19),AN19*Uträkningsmall!$F29,\"\")))","v":""},"",null,{"$f":"IFERROR(INDEX(Omfattning!$AI$3:$AQ$50,MATCH($H19,Funktioner!$D$30:$D$77,0),MATCH(AS$2,Omfattning!$AI$2:$AQ$2,0)),\"\")","v":0},{"$f":"IFERROR(INDEX(Omfattning!$AI$3:$AQ$50,MATCH($H19,Funktioner!$D$30:$D$77,0),MATCH(AT$2,Omfattning!$AI$2:$AQ$2,0)),\"\")","v":0},{"$f":"IFERROR(INDEX(Omfattning!$AI$3:$AQ$50,MATCH($H19,Funktioner!$D$30:$D$77,0),MATCH(AU$2,Omfattning!$AI$2:$AQ$2,0)),\"\")","v":0},{"$f":"IFERROR(INDEX(Omfattning!$AI$3:$AQ$50,MATCH($H19,Funktioner!$D$30:$D$77,0),MATCH(AV$2,Omfattning!$AI$2:$AQ$2,0)),\"\")","v":0},{"$f":"IFERROR(INDEX(Omfattning!$AI$3:$AQ$50,MATCH($H19,Funktioner!$D$30:$D$77,0),MATCH(AW$2,Omfattning!$AI$2:$AQ$2,0)),\"\")","v":0},{"$f":"IFERROR(INDEX(Omfattning!$AI$3:$AQ$50,MATCH($H19,Funktioner!$D$30:$D$77,0),MATCH(AX$2,Omfattning!$AI$2:$AQ$2,0)),\"\")","v":0},{"$f":"IFERROR(INDEX(Omfattning!$AI$3:$AQ$50,MATCH($H19,Funktioner!$D$30:$D$77,0),MATCH(AY$2,Omfattning!$AI$2:$AQ$2,0)),\"\")","v":0},{"$f":"IFERROR(INDEX(Omfattning!$AI$3:$AQ$50,MATCH($H19,Funktioner!$D$30:$D$77,0),MATCH(AZ$2,Omfattning!$AI$2:$AQ$2,0)),\"\")","v":0},{"$f":"IFERROR(INDEX(Omfattning!$AI$3:$AQ$50,MATCH($H19,Funktioner!$D$30:$D$77,0),MATCH(BA$2,Omfattning!$AI$2:$AQ$2,0)),\"\")","v":0},{"$f":"IF(Uträkningsmall!$F29=\"\",\"\",IF(BC19=\"Kan ej leverera\",240000000,IF(ISNUMBER(AZ19),AZ19*Uträkningsmall!$F29,\"\")))","v":""},"",null,{"$f":"IFERROR(INDEX(Omfattning!$AT$3:$BB$50,MATCH($H19,Funktioner!$E$30:$E$77,0),MATCH(BE$2,Omfattning!$AT$2:$BB$2,0)),\"\")","v":0},{"$f":"IFERROR(INDEX(Omfattning!$AT$3:$BB$50,MATCH($H19,Funktioner!$E$30:$E$77,0),MATCH(BF$2,Omfattning!$AT$2:$BB$2,0)),\"\")","v":0},{"$f":"IFERROR(INDEX(Omfattning!$AT$3:$BB$50,MATCH($H19,Funktioner!$E$30:$E$77,0),MATCH(BG$2,Omfattning!$AT$2:$BB$2,0)),\"\")","v":0},{"$f":"IFERROR(INDEX(Omfattning!$AT$3:$BB$50,MATCH($H19,Funktioner!$E$30:$E$77,0),MATCH(BH$2,Omfattning!$AT$2:$BB$2,0)),\"\")","v":0},{"$f":"IFERROR(INDEX(Omfattning!$AT$3:$BB$50,MATCH($H19,Funktioner!$E$30:$E$77,0),MATCH(BI$2,Omfattning!$AT$2:$BB$2,0)),\"\")","v":0},{"$f":"IFERROR(INDEX(Omfattning!$AT$3:$BB$50,MATCH($H19,Funktioner!$E$30:$E$77,0),MATCH(BJ$2,Omfattning!$AT$2:$BB$2,0)),\"\")","v":0},{"$f":"IFERROR(INDEX(Omfattning!$AT$3:$BB$50,MATCH($H19,Funktioner!$E$30:$E$77,0),MATCH(BK$2,Omfattning!$AT$2:$BB$2,0)),\"\")","v":0},{"$f":"IFERROR(INDEX(Omfattning!$AT$3:$BB$50,MATCH($H19,Funktioner!$E$30:$E$77,0),MATCH(BL$2,Omfattning!$AT$2:$BB$2,0)),\"\")","v":0},{"$f":"IFERROR(INDEX(Omfattning!$AT$3:$BB$50,MATCH($H19,Funktioner!$E$30:$E$77,0),MATCH(BM$2,Omfattning!$AT$2:$BB$2,0)),\"\")","v":0},{"$f":"IF(Uträkningsmall!$F29=\"\",\"\",IF(BO19=\"Kan ej leverera\",240000000,IF(ISNUMBER(BL19),BL19*Uträkningsmall!$F29,\"\")))","v":""},"",null,{"$f":"IFERROR(INDEX(Omfattning!$BE$3:$BM$50,MATCH($H19,Funktioner!$F$30:$F$77,0),MATCH(BQ$2,Omfattning!$BE$2:$BM$2,0)),\"\")","v":0},{"$f":"IFERROR(INDEX(Omfattning!$BE$3:$BM$50,MATCH($H19,Funktioner!$F$30:$F$77,0),MATCH(BR$2,Omfattning!$BE$2:$BM$2,0)),\"\")","v":0},{"$f":"IFERROR(INDEX(Omfattning!$BE$3:$BM$50,MATCH($H19,Funktioner!$F$30:$F$77,0),MATCH(BS$2,Omfattning!$BE$2:$BM$2,0)),\"\")","v":0},{"$f":"IFERROR(INDEX(Omfattning!$BE$3:$BM$50,MATCH($H19,Funktioner!$F$30:$F$77,0),MATCH(BT$2,Omfattning!$BE$2:$BM$2,0)),\"\")","v":0},{"$f":"IFERROR(INDEX(Omfattning!$BE$3:$BM$50,MATCH($H19,Funktioner!$F$30:$F$77,0),MATCH(BU$2,Omfattning!$BE$2:$BM$2,0)),\"\")","v":0},{"$f":"IFERROR(INDEX(Omfattning!$BE$3:$BM$50,MATCH($H19,Funktioner!$F$30:$F$77,0),MATCH(BV$2,Omfattning!$BE$2:$BM$2,0)),\"\")","v":0},{"$f":"IFERROR(INDEX(Omfattning!$BE$3:$BM$50,MATCH($H19,Funktioner!$F$30:$F$77,0),MATCH(BW$2,Omfattning!$BE$2:$BM$2,0)),\"\")","v":0},{"$f":"IFERROR(INDEX(Omfattning!$BE$3:$BM$50,MATCH($H19,Funktioner!$F$30:$F$77,0),MATCH(BX$2,Omfattning!$BE$2:$BM$2,0)),\"\")","v":0},{"$f":"IFERROR(INDEX(Omfattning!$BE$3:$BM$50,MATCH($H19,Funktioner!$F$30:$F$77,0),MATCH(BY$2,Omfattning!$BE$2:$BM$2,0)),\"\")","v":0},{"$f":"IF(Uträkningsmall!$F29=\"\",\"\",IF(CA19=\"Kan ej leverera\",240000000,IF(ISNUMBER(BX19),BX19*Uträkningsmall!$F29,\"\")))","v":""},""]
[{"$f":"\"Position\"&Uträkningsmall!$A30","v":"Position"},{"$f":"IF(Uträkningsmall!$F30=\"\",\"\",IF(AND(Uträkningsmall!$A30=15,OR(Uträkningsmall!$E30=\"\",Uträkningsmall!$F30=\"\")),1,IF(AND(Uträkningsmall!$A30=16,OR(Uträkningsmall!$E30=\"\",Uträkningsmall!$F30=\"\")),1,IF(AND(Uträkningsmall!$A30=17,OR(Uträkningsmall!$E30=\"\",Uträkningsmall!$F30=\"\")),1,IF(AND(Uträkningsmall!$A30=19,OR(Uträkningsmall!$E30=\"\",Uträkningsmall!$F30=\"\")),1,IF(AND(Uträkningsmall!$A30=20,OR(Uträkningsmall!$E30=\"\",Uträkningsmall!$F30=\"\")),1,IF(AND(Uträkningsmall!$A30=21,OR(Uträkningsmall!$E30=\"\",Uträkningsmall!$F30=\"\")),1,IF(AND(Uträkningsmall!$A30=22,OR(Uträkningsmall!$E30=\"\",Uträkningsmall!$F30=\"\")),1,IF(AND(Uträkningsmall!$A30=23,OR(Uträkningsmall!$E30=\"\",Uträkningsmall!$F30=\"\")),1,IF(AND(Uträkningsmall!$A30=24,OR(Uträkningsmall!$E30=\"\",Uträkningsmall!$F30=\"\")),1,IF(AND(Uträkningsmall!$A30=25,OR(Uträkningsmall!$E30=\"\",Uträkningsmall!$F30=\"\")),1,IF(AND(Uträkningsmall!$A30=26,OR(Uträkningsmall!$E30=\"\",Uträkningsmall!$F30=\"\")),1,IF(AND(Uträkningsmall!$A30=27,OR(Uträkningsmall!$E30=\"\",Uträkningsmall!$F30=\"\")),1,IF(AND(Uträkningsmall!$A30=28,OR(Uträkningsmall!$E30=\"\",Uträkningsmall!$F30=\"\")),1,IF(AND(Uträkningsmall!$A30=29,OR(Uträkningsmall!$E30=\"\",Uträkningsmall!$F30=\"\")),1,IF(AND(Uträkningsmall!$A30=30,OR(Uträkningsmall!$E30=\"\",Uträkningsmall!$F30=\"\")),1,IF(AND(Uträkningsmall!$A30=39,OR(Uträkningsmall!$E30=\"\",Uträkningsmall!$F30=\"\")),1,IF(AND(Uträkningsmall!$A30=40,OR(Uträkningsmall!$E30=\"\",Uträkningsmall!$F30=\"\")),1,IF(AND(Uträkningsmall!$A30=41,OR(Uträkningsmall!$E30=\"\",Uträkningsmall!$F30=\"\")),1,IF(AND(Uträkningsmall!$A30=42,OR(Uträkningsmall!$E30=\"\",Uträkningsmall!$F30=\"\")),1,0))))))))))))))))))))","v":""},{"$f":"Funktioner!B163&Funktioner!C163&\", \"&Funktioner!D163&\"g\"&Funktioner!E163&Funktioner!F163","v":"Arkivbeständigt papperA4, 80gArkivbeständigtOhålat"},{"$f":"Uträkningsmall!B30&Uträkningsmall!C30&Uträkningsmall!D30&Uträkningsmall!E30","v":""},null,"",null,{"$f":"Uträkningsmall!$A30","v":""},{"$f":"IFERROR(INDEX(Omfattning!$B$3:$J$50,MATCH($H20,Funktioner!$A$30:$A$77,0),MATCH(I$2,Omfattning!$B$2:$J$2,0)),\"\")","v":0},{"$f":"IFERROR(INDEX(Omfattning!$B$3:$J$50,MATCH($H20,Funktioner!$A$30:$A$77,0),MATCH(J$2,Omfattning!$B$2:$J$2,0)),\"\")","v":0},{"$f":"IFERROR(INDEX(Omfattning!$B$3:$J$50,MATCH($H20,Funktioner!$A$30:$A$77,0),MATCH(K$2,Omfattning!$B$2:$J$2,0)),\"\")","v":0},{"$f":"IFERROR(INDEX(Omfattning!$B$3:$J$50,MATCH($H20,Funktioner!$A$30:$A$77,0),MATCH(L$2,Omfattning!$B$2:$J$2,0)),\"\")","v":""},{"$f":"IFERROR(INDEX(Omfattning!$B$3:$J$50,MATCH($H20,Funktioner!$A$30:$A$77,0),MATCH(M$2,Omfattning!$B$2:$J$2,0)),\"\")","v":0},{"$f":"IFERROR(INDEX(Omfattning!$B$3:$J$50,MATCH($H20,Funktioner!$A$30:$A$77,0),MATCH(N$2,Omfattning!$B$2:$J$2,0)),\"\")","v":0},{"$f":"IFERROR(INDEX(Omfattning!$B$3:$J$50,MATCH($H20,Funktioner!$A$30:$A$77,0),MATCH(O$2,Omfattning!$B$2:$J$2,0)),\"\")","v":0},{"$f":"IFERROR(INDEX(Omfattning!$B$3:$J$50,MATCH($H20,Funktioner!$A$30:$A$77,0),MATCH(P$2,Omfattning!$B$2:$J$2,0)),\"\")","v":0},{"$f":"IFERROR(INDEX(Omfattning!$B$3:$J$50,MATCH($H20,Funktioner!$A$30:$A$77,0),MATCH(Q$2,Omfattning!$B$2:$J$2,0)),\"\")","v":0},{"$f":"IF(Uträkningsmall!$F30=\"\",\"\",IF(S20=\"Kan ej leverera\",240000000,IF(ISNUMBER(P20),P20*Uträkningsmall!$F30,\"\")))","v":""},"",null,{"$f":"IFERROR(INDEX(Omfattning!$M$3:$U$50,MATCH($H20,Funktioner!$B$30:$B$77,0),MATCH(U$2,Omfattning!$M$2:$U$2,0)),\"\")","v":0},{"$f":"IFERROR(INDEX(Omfattning!$M$3:$U$50,MATCH($H20,Funktioner!$B$30:$B$77,0),MATCH(V$2,Omfattning!$M$2:$U$2,0)),\"\")","v":0},{"$f":"IFERROR(INDEX(Omfattning!$M$3:$U$50,MATCH($H20,Funktioner!$B$30:$B$77,0),MATCH(W$2,Omfattning!$M$2:$U$2,0)),\"\")","v":0},{"$f":"IFERROR(INDEX(Omfattning!$M$3:$U$50,MATCH($H20,Funktioner!$B$30:$B$77,0),MATCH(X$2,Omfattning!$M$2:$U$2,0)),\"\")","v":0},{"$f":"IFERROR(INDEX(Omfattning!$M$3:$U$50,MATCH($H20,Funktioner!$B$30:$B$77,0),MATCH(Y$2,Omfattning!$M$2:$U$2,0)),\"\")","v":0},{"$f":"IFERROR(INDEX(Omfattning!$M$3:$U$50,MATCH($H20,Funktioner!$B$30:$B$77,0),MATCH(Z$2,Omfattning!$M$2:$U$2,0)),\"\")","v":0},{"$f":"IFERROR(INDEX(Omfattning!$M$3:$U$50,MATCH($H20,Funktioner!$B$30:$B$77,0),MATCH(AA$2,Omfattning!$M$2:$U$2,0)),\"\")","v":0},{"$f":"IFERROR(INDEX(Omfattning!$M$3:$U$50,MATCH($H20,Funktioner!$B$30:$B$77,0),MATCH(AB$2,Omfattning!$M$2:$U$2,0)),\"\")","v":0},{"$f":"IFERROR(INDEX(Omfattning!$M$3:$U$50,MATCH($H20,Funktioner!$B$30:$B$77,0),MATCH(AC$2,Omfattning!$M$2:$U$2,0)),\"\")","v":0},{"$f":"IF(Uträkningsmall!$F30=\"\",\"\",IF(AE20=\"Kan ej leverera\",240000000,IF(ISNUMBER(AB20),AB20*Uträkningsmall!$F30,\"\")))","v":""},"",null,{"$f":"IFERROR(INDEX(Omfattning!$X$3:$AF$50,MATCH($H20,Funktioner!$C$30:$C$77,0),MATCH(AG$2,Omfattning!$X$2:$AF$2,0)),\"\")","v":0},{"$f":"IFERROR(INDEX(Omfattning!$X$3:$AF$50,MATCH($H20,Funktioner!$C$30:$C$77,0),MATCH(AH$2,Omfattning!$X$2:$AF$2,0)),\"\")","v":0},{"$f":"IFERROR(INDEX(Omfattning!$X$3:$AF$50,MATCH($H20,Funktioner!$C$30:$C$77,0),MATCH(AI$2,Omfattning!$X$2:$AF$2,0)),\"\")","v":0},{"$f":"IFERROR(INDEX(Omfattning!$X$3:$AF$50,MATCH($H20,Funktioner!$C$30:$C$77,0),MATCH(AJ$2,Omfattning!$X$2:$AF$2,0)),\"\")","v":0},{"$f":"IFERROR(INDEX(Omfattning!$X$3:$AF$50,MATCH($H20,Funktioner!$C$30:$C$77,0),MATCH(AK$2,Omfattning!$X$2:$AF$2,0)),\"\")","v":0},{"$f":"IFERROR(INDEX(Omfattning!$X$3:$AF$50,MATCH($H20,Funktioner!$C$30:$C$77,0),MATCH(AL$2,Omfattning!$X$2:$AF$2,0)),\"\")","v":0},{"$f":"IFERROR(INDEX(Omfattning!$X$3:$AF$50,MATCH($H20,Funktioner!$C$30:$C$77,0),MATCH(AM$2,Omfattning!$X$2:$AF$2,0)),\"\")","v":0},{"$f":"IFERROR(INDEX(Omfattning!$X$3:$AF$50,MATCH($H20,Funktioner!$C$30:$C$77,0),MATCH(AN$2,Omfattning!$X$2:$AF$2,0)),\"\")","v":0},{"$f":"IFERROR(INDEX(Omfattning!$X$3:$AF$50,MATCH($H20,Funktioner!$C$30:$C$77,0),MATCH(AO$2,Omfattning!$X$2:$AF$2,0)),\"\")","v":0},{"$f":"IF(Uträkningsmall!$F30=\"\",\"\",IF(AQ20=\"Kan ej leverera\",240000000,IF(ISNUMBER(AN20),AN20*Uträkningsmall!$F30,\"\")))","v":""},"",null,{"$f":"IFERROR(INDEX(Omfattning!$AI$3:$AQ$50,MATCH($H20,Funktioner!$D$30:$D$77,0),MATCH(AS$2,Omfattning!$AI$2:$AQ$2,0)),\"\")","v":0},{"$f":"IFERROR(INDEX(Omfattning!$AI$3:$AQ$50,MATCH($H20,Funktioner!$D$30:$D$77,0),MATCH(AT$2,Omfattning!$AI$2:$AQ$2,0)),\"\")","v":0},{"$f":"IFERROR(INDEX(Omfattning!$AI$3:$AQ$50,MATCH($H20,Funktioner!$D$30:$D$77,0),MATCH(AU$2,Omfattning!$AI$2:$AQ$2,0)),\"\")","v":0},{"$f":"IFERROR(INDEX(Omfattning!$AI$3:$AQ$50,MATCH($H20,Funktioner!$D$30:$D$77,0),MATCH(AV$2,Omfattning!$AI$2:$AQ$2,0)),\"\")","v":0},{"$f":"IFERROR(INDEX(Omfattning!$AI$3:$AQ$50,MATCH($H20,Funktioner!$D$30:$D$77,0),MATCH(AW$2,Omfattning!$AI$2:$AQ$2,0)),\"\")","v":0},{"$f":"IFERROR(INDEX(Omfattning!$AI$3:$AQ$50,MATCH($H20,Funktioner!$D$30:$D$77,0),MATCH(AX$2,Omfattning!$AI$2:$AQ$2,0)),\"\")","v":0},{"$f":"IFERROR(INDEX(Omfattning!$AI$3:$AQ$50,MATCH($H20,Funktioner!$D$30:$D$77,0),MATCH(AY$2,Omfattning!$AI$2:$AQ$2,0)),\"\")","v":0},{"$f":"IFERROR(INDEX(Omfattning!$AI$3:$AQ$50,MATCH($H20,Funktioner!$D$30:$D$77,0),MATCH(AZ$2,Omfattning!$AI$2:$AQ$2,0)),\"\")","v":0},{"$f":"IFERROR(INDEX(Omfattning!$AI$3:$AQ$50,MATCH($H20,Funktioner!$D$30:$D$77,0),MATCH(BA$2,Omfattning!$AI$2:$AQ$2,0)),\"\")","v":0},{"$f":"IF(Uträkningsmall!$F30=\"\",\"\",IF(BC20=\"Kan ej leverera\",240000000,IF(ISNUMBER(AZ20),AZ20*Uträkningsmall!$F30,\"\")))","v":""},"",null,{"$f":"IFERROR(INDEX(Omfattning!$AT$3:$BB$50,MATCH($H20,Funktioner!$E$30:$E$77,0),MATCH(BE$2,Omfattning!$AT$2:$BB$2,0)),\"\")","v":0},{"$f":"IFERROR(INDEX(Omfattning!$AT$3:$BB$50,MATCH($H20,Funktioner!$E$30:$E$77,0),MATCH(BF$2,Omfattning!$AT$2:$BB$2,0)),\"\")","v":0},{"$f":"IFERROR(INDEX(Omfattning!$AT$3:$BB$50,MATCH($H20,Funktioner!$E$30:$E$77,0),MATCH(BG$2,Omfattning!$AT$2:$BB$2,0)),\"\")","v":0},{"$f":"IFERROR(INDEX(Omfattning!$AT$3:$BB$50,MATCH($H20,Funktioner!$E$30:$E$77,0),MATCH(BH$2,Omfattning!$AT$2:$BB$2,0)),\"\")","v":0},{"$f":"IFERROR(INDEX(Omfattning!$AT$3:$BB$50,MATCH($H20,Funktioner!$E$30:$E$77,0),MATCH(BI$2,Omfattning!$AT$2:$BB$2,0)),\"\")","v":0},{"$f":"IFERROR(INDEX(Omfattning!$AT$3:$BB$50,MATCH($H20,Funktioner!$E$30:$E$77,0),MATCH(BJ$2,Omfattning!$AT$2:$BB$2,0)),\"\")","v":0},{"$f":"IFERROR(INDEX(Omfattning!$AT$3:$BB$50,MATCH($H20,Funktioner!$E$30:$E$77,0),MATCH(BK$2,Omfattning!$AT$2:$BB$2,0)),\"\")","v":0},{"$f":"IFERROR(INDEX(Omfattning!$AT$3:$BB$50,MATCH($H20,Funktioner!$E$30:$E$77,0),MATCH(BL$2,Omfattning!$AT$2:$BB$2,0)),\"\")","v":0},{"$f":"IFERROR(INDEX(Omfattning!$AT$3:$BB$50,MATCH($H20,Funktioner!$E$30:$E$77,0),MATCH(BM$2,Omfattning!$AT$2:$BB$2,0)),\"\")","v":0},{"$f":"IF(Uträkningsmall!$F30=\"\",\"\",IF(BO20=\"Kan ej leverera\",240000000,IF(ISNUMBER(BL20),BL20*Uträkningsmall!$F30,\"\")))","v":""},"",null,{"$f":"IFERROR(INDEX(Omfattning!$BE$3:$BM$50,MATCH($H20,Funktioner!$F$30:$F$77,0),MATCH(BQ$2,Omfattning!$BE$2:$BM$2,0)),\"\")","v":0},{"$f":"IFERROR(INDEX(Omfattning!$BE$3:$BM$50,MATCH($H20,Funktioner!$F$30:$F$77,0),MATCH(BR$2,Omfattning!$BE$2:$BM$2,0)),\"\")","v":0},{"$f":"IFERROR(INDEX(Omfattning!$BE$3:$BM$50,MATCH($H20,Funktioner!$F$30:$F$77,0),MATCH(BS$2,Omfattning!$BE$2:$BM$2,0)),\"\")","v":0},{"$f":"IFERROR(INDEX(Omfattning!$BE$3:$BM$50,MATCH($H20,Funktioner!$F$30:$F$77,0),MATCH(BT$2,Omfattning!$BE$2:$BM$2,0)),\"\")","v":0},{"$f":"IFERROR(INDEX(Omfattning!$BE$3:$BM$50,MATCH($H20,Funktioner!$F$30:$F$77,0),MATCH(BU$2,Omfattning!$BE$2:$BM$2,0)),\"\")","v":0},{"$f":"IFERROR(INDEX(Omfattning!$BE$3:$BM$50,MATCH($H20,Funktioner!$F$30:$F$77,0),MATCH(BV$2,Omfattning!$BE$2:$BM$2,0)),\"\")","v":0},{"$f":"IFERROR(INDEX(Omfattning!$BE$3:$BM$50,MATCH($H20,Funktioner!$F$30:$F$77,0),MATCH(BW$2,Omfattning!$BE$2:$BM$2,0)),\"\")","v":0},{"$f":"IFERROR(INDEX(Omfattning!$BE$3:$BM$50,MATCH($H20,Funktioner!$F$30:$F$77,0),MATCH(BX$2,Omfattning!$BE$2:$BM$2,0)),\"\")","v":0},{"$f":"IFERROR(INDEX(Omfattning!$BE$3:$BM$50,MATCH($H20,Funktioner!$F$30:$F$77,0),MATCH(BY$2,Omfattning!$BE$2:$BM$2,0)),\"\")","v":0},{"$f":"IF(Uträkningsmall!$F30=\"\",\"\",IF(CA20=\"Kan ej leverera\",240000000,IF(ISNUMBER(BX20),BX20*Uträkningsmall!$F30,\"\")))","v":""},""]
[{"$f":"\"Position\"&Uträkningsmall!$A31","v":"Position"},{"$f":"IF(Uträkningsmall!$F31=\"\",\"\",IF(AND(Uträkningsmall!$A31=15,OR(Uträkningsmall!$E31=\"\",Uträkningsmall!$F31=\"\")),1,IF(AND(Uträkningsmall!$A31=16,OR(Uträkningsmall!$E31=\"\",Uträkningsmall!$F31=\"\")),1,IF(AND(Uträkningsmall!$A31=17,OR(Uträkningsmall!$E31=\"\",Uträkningsmall!$F31=\"\")),1,IF(AND(Uträkningsmall!$A31=19,OR(Uträkningsmall!$E31=\"\",Uträkningsmall!$F31=\"\")),1,IF(AND(Uträkningsmall!$A31=20,OR(Uträkningsmall!$E31=\"\",Uträkningsmall!$F31=\"\")),1,IF(AND(Uträkningsmall!$A31=21,OR(Uträkningsmall!$E31=\"\",Uträkningsmall!$F31=\"\")),1,IF(AND(Uträkningsmall!$A31=22,OR(Uträkningsmall!$E31=\"\",Uträkningsmall!$F31=\"\")),1,IF(AND(Uträkningsmall!$A31=23,OR(Uträkningsmall!$E31=\"\",Uträkningsmall!$F31=\"\")),1,IF(AND(Uträkningsmall!$A31=24,OR(Uträkningsmall!$E31=\"\",Uträkningsmall!$F31=\"\")),1,IF(AND(Uträkningsmall!$A31=25,OR(Uträkningsmall!$E31=\"\",Uträkningsmall!$F31=\"\")),1,IF(AND(Uträkningsmall!$A31=26,OR(Uträkningsmall!$E31=\"\",Uträkningsmall!$F31=\"\")),1,IF(AND(Uträkningsmall!$A31=27,OR(Uträkningsmall!$E31=\"\",Uträkningsmall!$F31=\"\")),1,IF(AND(Uträkningsmall!$A31=28,OR(Uträkningsmall!$E31=\"\",Uträkningsmall!$F31=\"\")),1,IF(AND(Uträkningsmall!$A31=29,OR(Uträkningsmall!$E31=\"\",Uträkningsmall!$F31=\"\")),1,IF(AND(Uträkningsmall!$A31=30,OR(Uträkningsmall!$E31=\"\",Uträkningsmall!$F31=\"\")),1,IF(AND(Uträkningsmall!$A31=39,OR(Uträkningsmall!$E31=\"\",Uträkningsmall!$F31=\"\")),1,IF(AND(Uträkningsmall!$A31=40,OR(Uträkningsmall!$E31=\"\",Uträkningsmall!$F31=\"\")),1,IF(AND(Uträkningsmall!$A31=41,OR(Uträkningsmall!$E31=\"\",Uträkningsmall!$F31=\"\")),1,IF(AND(Uträkningsmall!$A31=42,OR(Uträkningsmall!$E31=\"\",Uträkningsmall!$F31=\"\")),1,0))))))))))))))))))))","v":""},{"$f":"Funktioner!B164&Funktioner!C164&\", \"&Funktioner!D164&\"g\"&Funktioner!E164&Funktioner!F164","v":"Arkivbeständigt papperA4, 100gArkivbeständigtOhålat"},{"$f":"Uträkningsmall!B31&Uträkningsmall!C31&Uträkningsmall!D31&Uträkningsmall!E31","v":""},null,"",null,{"$f":"Uträkningsmall!$A31","v":""},{"$f":"IFERROR(INDEX(Omfattning!$B$3:$J$50,MATCH($H21,Funktioner!$A$30:$A$77,0),MATCH(I$2,Omfattning!$B$2:$J$2,0)),\"\")","v":0},{"$f":"IFERROR(INDEX(Omfattning!$B$3:$J$50,MATCH($H21,Funktioner!$A$30:$A$77,0),MATCH(J$2,Omfattning!$B$2:$J$2,0)),\"\")","v":0},{"$f":"IFERROR(INDEX(Omfattning!$B$3:$J$50,MATCH($H21,Funktioner!$A$30:$A$77,0),MATCH(K$2,Omfattning!$B$2:$J$2,0)),\"\")","v":0},{"$f":"IFERROR(INDEX(Omfattning!$B$3:$J$50,MATCH($H21,Funktioner!$A$30:$A$77,0),MATCH(L$2,Omfattning!$B$2:$J$2,0)),\"\")","v":""},{"$f":"IFERROR(INDEX(Omfattning!$B$3:$J$50,MATCH($H21,Funktioner!$A$30:$A$77,0),MATCH(M$2,Omfattning!$B$2:$J$2,0)),\"\")","v":0},{"$f":"IFERROR(INDEX(Omfattning!$B$3:$J$50,MATCH($H21,Funktioner!$A$30:$A$77,0),MATCH(N$2,Omfattning!$B$2:$J$2,0)),\"\")","v":0},{"$f":"IFERROR(INDEX(Omfattning!$B$3:$J$50,MATCH($H21,Funktioner!$A$30:$A$77,0),MATCH(O$2,Omfattning!$B$2:$J$2,0)),\"\")","v":0},{"$f":"IFERROR(INDEX(Omfattning!$B$3:$J$50,MATCH($H21,Funktioner!$A$30:$A$77,0),MATCH(P$2,Omfattning!$B$2:$J$2,0)),\"\")","v":0},{"$f":"IFERROR(INDEX(Omfattning!$B$3:$J$50,MATCH($H21,Funktioner!$A$30:$A$77,0),MATCH(Q$2,Omfattning!$B$2:$J$2,0)),\"\")","v":0},{"$f":"IF(Uträkningsmall!$F31=\"\",\"\",IF(S21=\"Kan ej leverera\",240000000,IF(ISNUMBER(P21),P21*Uträkningsmall!$F31,\"\")))","v":""},"",null,{"$f":"IFERROR(INDEX(Omfattning!$M$3:$U$50,MATCH($H21,Funktioner!$B$30:$B$77,0),MATCH(U$2,Omfattning!$M$2:$U$2,0)),\"\")","v":0},{"$f":"IFERROR(INDEX(Omfattning!$M$3:$U$50,MATCH($H21,Funktioner!$B$30:$B$77,0),MATCH(V$2,Omfattning!$M$2:$U$2,0)),\"\")","v":0},{"$f":"IFERROR(INDEX(Omfattning!$M$3:$U$50,MATCH($H21,Funktioner!$B$30:$B$77,0),MATCH(W$2,Omfattning!$M$2:$U$2,0)),\"\")","v":0},{"$f":"IFERROR(INDEX(Omfattning!$M$3:$U$50,MATCH($H21,Funktioner!$B$30:$B$77,0),MATCH(X$2,Omfattning!$M$2:$U$2,0)),\"\")","v":0},{"$f":"IFERROR(INDEX(Omfattning!$M$3:$U$50,MATCH($H21,Funktioner!$B$30:$B$77,0),MATCH(Y$2,Omfattning!$M$2:$U$2,0)),\"\")","v":0},{"$f":"IFERROR(INDEX(Omfattning!$M$3:$U$50,MATCH($H21,Funktioner!$B$30:$B$77,0),MATCH(Z$2,Omfattning!$M$2:$U$2,0)),\"\")","v":0},{"$f":"IFERROR(INDEX(Omfattning!$M$3:$U$50,MATCH($H21,Funktioner!$B$30:$B$77,0),MATCH(AA$2,Omfattning!$M$2:$U$2,0)),\"\")","v":0},{"$f":"IFERROR(INDEX(Omfattning!$M$3:$U$50,MATCH($H21,Funktioner!$B$30:$B$77,0),MATCH(AB$2,Omfattning!$M$2:$U$2,0)),\"\")","v":0},{"$f":"IFERROR(INDEX(Omfattning!$M$3:$U$50,MATCH($H21,Funktioner!$B$30:$B$77,0),MATCH(AC$2,Omfattning!$M$2:$U$2,0)),\"\")","v":0},{"$f":"IF(Uträkningsmall!$F31=\"\",\"\",IF(AE21=\"Kan ej leverera\",240000000,IF(ISNUMBER(AB21),AB21*Uträkningsmall!$F31,\"\")))","v":""},"",null,{"$f":"IFERROR(INDEX(Omfattning!$X$3:$AF$50,MATCH($H21,Funktioner!$C$30:$C$77,0),MATCH(AG$2,Omfattning!$X$2:$AF$2,0)),\"\")","v":0},{"$f":"IFERROR(INDEX(Omfattning!$X$3:$AF$50,MATCH($H21,Funktioner!$C$30:$C$77,0),MATCH(AH$2,Omfattning!$X$2:$AF$2,0)),\"\")","v":0},{"$f":"IFERROR(INDEX(Omfattning!$X$3:$AF$50,MATCH($H21,Funktioner!$C$30:$C$77,0),MATCH(AI$2,Omfattning!$X$2:$AF$2,0)),\"\")","v":0},{"$f":"IFERROR(INDEX(Omfattning!$X$3:$AF$50,MATCH($H21,Funktioner!$C$30:$C$77,0),MATCH(AJ$2,Omfattning!$X$2:$AF$2,0)),\"\")","v":0},{"$f":"IFERROR(INDEX(Omfattning!$X$3:$AF$50,MATCH($H21,Funktioner!$C$30:$C$77,0),MATCH(AK$2,Omfattning!$X$2:$AF$2,0)),\"\")","v":0},{"$f":"IFERROR(INDEX(Omfattning!$X$3:$AF$50,MATCH($H21,Funktioner!$C$30:$C$77,0),MATCH(AL$2,Omfattning!$X$2:$AF$2,0)),\"\")","v":0},{"$f":"IFERROR(INDEX(Omfattning!$X$3:$AF$50,MATCH($H21,Funktioner!$C$30:$C$77,0),MATCH(AM$2,Omfattning!$X$2:$AF$2,0)),\"\")","v":0},{"$f":"IFERROR(INDEX(Omfattning!$X$3:$AF$50,MATCH($H21,Funktioner!$C$30:$C$77,0),MATCH(AN$2,Omfattning!$X$2:$AF$2,0)),\"\")","v":0},{"$f":"IFERROR(INDEX(Omfattning!$X$3:$AF$50,MATCH($H21,Funktioner!$C$30:$C$77,0),MATCH(AO$2,Omfattning!$X$2:$AF$2,0)),\"\")","v":0},{"$f":"IF(Uträkningsmall!$F31=\"\",\"\",IF(AQ21=\"Kan ej leverera\",240000000,IF(ISNUMBER(AN21),AN21*Uträkningsmall!$F31,\"\")))","v":""},"",null,{"$f":"IFERROR(INDEX(Omfattning!$AI$3:$AQ$50,MATCH($H21,Funktioner!$D$30:$D$77,0),MATCH(AS$2,Omfattning!$AI$2:$AQ$2,0)),\"\")","v":0},{"$f":"IFERROR(INDEX(Omfattning!$AI$3:$AQ$50,MATCH($H21,Funktioner!$D$30:$D$77,0),MATCH(AT$2,Omfattning!$AI$2:$AQ$2,0)),\"\")","v":0},{"$f":"IFERROR(INDEX(Omfattning!$AI$3:$AQ$50,MATCH($H21,Funktioner!$D$30:$D$77,0),MATCH(AU$2,Omfattning!$AI$2:$AQ$2,0)),\"\")","v":0},{"$f":"IFERROR(INDEX(Omfattning!$AI$3:$AQ$50,MATCH($H21,Funktioner!$D$30:$D$77,0),MATCH(AV$2,Omfattning!$AI$2:$AQ$2,0)),\"\")","v":0},{"$f":"IFERROR(INDEX(Omfattning!$AI$3:$AQ$50,MATCH($H21,Funktioner!$D$30:$D$77,0),MATCH(AW$2,Omfattning!$AI$2:$AQ$2,0)),\"\")","v":0},{"$f":"IFERROR(INDEX(Omfattning!$AI$3:$AQ$50,MATCH($H21,Funktioner!$D$30:$D$77,0),MATCH(AX$2,Omfattning!$AI$2:$AQ$2,0)),\"\")","v":0},{"$f":"IFERROR(INDEX(Omfattning!$AI$3:$AQ$50,MATCH($H21,Funktioner!$D$30:$D$77,0),MATCH(AY$2,Omfattning!$AI$2:$AQ$2,0)),\"\")","v":0},{"$f":"IFERROR(INDEX(Omfattning!$AI$3:$AQ$50,MATCH($H21,Funktioner!$D$30:$D$77,0),MATCH(AZ$2,Omfattning!$AI$2:$AQ$2,0)),\"\")","v":0},{"$f":"IFERROR(INDEX(Omfattning!$AI$3:$AQ$50,MATCH($H21,Funktioner!$D$30:$D$77,0),MATCH(BA$2,Omfattning!$AI$2:$AQ$2,0)),\"\")","v":0},{"$f":"IF(Uträkningsmall!$F31=\"\",\"\",IF(BC21=\"Kan ej leverera\",240000000,IF(ISNUMBER(AZ21),AZ21*Uträkningsmall!$F31,\"\")))","v":""},"",null,{"$f":"IFERROR(INDEX(Omfattning!$AT$3:$BB$50,MATCH($H21,Funktioner!$E$30:$E$77,0),MATCH(BE$2,Omfattning!$AT$2:$BB$2,0)),\"\")","v":0},{"$f":"IFERROR(INDEX(Omfattning!$AT$3:$BB$50,MATCH($H21,Funktioner!$E$30:$E$77,0),MATCH(BF$2,Omfattning!$AT$2:$BB$2,0)),\"\")","v":0},{"$f":"IFERROR(INDEX(Omfattning!$AT$3:$BB$50,MATCH($H21,Funktioner!$E$30:$E$77,0),MATCH(BG$2,Omfattning!$AT$2:$BB$2,0)),\"\")","v":0},{"$f":"IFERROR(INDEX(Omfattning!$AT$3:$BB$50,MATCH($H21,Funktioner!$E$30:$E$77,0),MATCH(BH$2,Omfattning!$AT$2:$BB$2,0)),\"\")","v":0},{"$f":"IFERROR(INDEX(Omfattning!$AT$3:$BB$50,MATCH($H21,Funktioner!$E$30:$E$77,0),MATCH(BI$2,Omfattning!$AT$2:$BB$2,0)),\"\")","v":0},{"$f":"IFERROR(INDEX(Omfattning!$AT$3:$BB$50,MATCH($H21,Funktioner!$E$30:$E$77,0),MATCH(BJ$2,Omfattning!$AT$2:$BB$2,0)),\"\")","v":0},{"$f":"IFERROR(INDEX(Omfattning!$AT$3:$BB$50,MATCH($H21,Funktioner!$E$30:$E$77,0),MATCH(BK$2,Omfattning!$AT$2:$BB$2,0)),\"\")","v":0},{"$f":"IFERROR(INDEX(Omfattning!$AT$3:$BB$50,MATCH($H21,Funktioner!$E$30:$E$77,0),MATCH(BL$2,Omfattning!$AT$2:$BB$2,0)),\"\")","v":0},{"$f":"IFERROR(INDEX(Omfattning!$AT$3:$BB$50,MATCH($H21,Funktioner!$E$30:$E$77,0),MATCH(BM$2,Omfattning!$AT$2:$BB$2,0)),\"\")","v":0},{"$f":"IF(Uträkningsmall!$F31=\"\",\"\",IF(BO21=\"Kan ej leverera\",240000000,IF(ISNUMBER(BL21),BL21*Uträkningsmall!$F31,\"\")))","v":""},"",null,{"$f":"IFERROR(INDEX(Omfattning!$BE$3:$BM$50,MATCH($H21,Funktioner!$F$30:$F$77,0),MATCH(BQ$2,Omfattning!$BE$2:$BM$2,0)),\"\")","v":0},{"$f":"IFERROR(INDEX(Omfattning!$BE$3:$BM$50,MATCH($H21,Funktioner!$F$30:$F$77,0),MATCH(BR$2,Omfattning!$BE$2:$BM$2,0)),\"\")","v":0},{"$f":"IFERROR(INDEX(Omfattning!$BE$3:$BM$50,MATCH($H21,Funktioner!$F$30:$F$77,0),MATCH(BS$2,Omfattning!$BE$2:$BM$2,0)),\"\")","v":0},{"$f":"IFERROR(INDEX(Omfattning!$BE$3:$BM$50,MATCH($H21,Funktioner!$F$30:$F$77,0),MATCH(BT$2,Omfattning!$BE$2:$BM$2,0)),\"\")","v":0},{"$f":"IFERROR(INDEX(Omfattning!$BE$3:$BM$50,MATCH($H21,Funktioner!$F$30:$F$77,0),MATCH(BU$2,Omfattning!$BE$2:$BM$2,0)),\"\")","v":0},{"$f":"IFERROR(INDEX(Omfattning!$BE$3:$BM$50,MATCH($H21,Funktioner!$F$30:$F$77,0),MATCH(BV$2,Omfattning!$BE$2:$BM$2,0)),\"\")","v":0},{"$f":"IFERROR(INDEX(Omfattning!$BE$3:$BM$50,MATCH($H21,Funktioner!$F$30:$F$77,0),MATCH(BW$2,Omfattning!$BE$2:$BM$2,0)),\"\")","v":0},{"$f":"IFERROR(INDEX(Omfattning!$BE$3:$BM$50,MATCH($H21,Funktioner!$F$30:$F$77,0),MATCH(BX$2,Omfattning!$BE$2:$BM$2,0)),\"\")","v":0},{"$f":"IFERROR(INDEX(Omfattning!$BE$3:$BM$50,MATCH($H21,Funktioner!$F$30:$F$77,0),MATCH(BY$2,Omfattning!$BE$2:$BM$2,0)),\"\")","v":0},{"$f":"IF(Uträkningsmall!$F31=\"\",\"\",IF(CA21=\"Kan ej leverera\",240000000,IF(ISNUMBER(BX21),BX21*Uträkningsmall!$F31,\"\")))","v":""},""]
[{"$f":"\"Position\"&Uträkningsmall!$A32","v":"Position"},{"$f":"IF(Uträkningsmall!$F32=\"\",\"\",IF(AND(Uträkningsmall!$A32=15,OR(Uträkningsmall!$E32=\"\",Uträkningsmall!$F32=\"\")),1,IF(AND(Uträkningsmall!$A32=16,OR(Uträkningsmall!$E32=\"\",Uträkningsmall!$F32=\"\")),1,IF(AND(Uträkningsmall!$A32=17,OR(Uträkningsmall!$E32=\"\",Uträkningsmall!$F32=\"\")),1,IF(AND(Uträkningsmall!$A32=19,OR(Uträkningsmall!$E32=\"\",Uträkningsmall!$F32=\"\")),1,IF(AND(Uträkningsmall!$A32=20,OR(Uträkningsmall!$E32=\"\",Uträkningsmall!$F32=\"\")),1,IF(AND(Uträkningsmall!$A32=21,OR(Uträkningsmall!$E32=\"\",Uträkningsmall!$F32=\"\")),1,IF(AND(Uträkningsmall!$A32=22,OR(Uträkningsmall!$E32=\"\",Uträkningsmall!$F32=\"\")),1,IF(AND(Uträkningsmall!$A32=23,OR(Uträkningsmall!$E32=\"\",Uträkningsmall!$F32=\"\")),1,IF(AND(Uträkningsmall!$A32=24,OR(Uträkningsmall!$E32=\"\",Uträkningsmall!$F32=\"\")),1,IF(AND(Uträkningsmall!$A32=25,OR(Uträkningsmall!$E32=\"\",Uträkningsmall!$F32=\"\")),1,IF(AND(Uträkningsmall!$A32=26,OR(Uträkningsmall!$E32=\"\",Uträkningsmall!$F32=\"\")),1,IF(AND(Uträkningsmall!$A32=27,OR(Uträkningsmall!$E32=\"\",Uträkningsmall!$F32=\"\")),1,IF(AND(Uträkningsmall!$A32=28,OR(Uträkningsmall!$E32=\"\",Uträkningsmall!$F32=\"\")),1,IF(AND(Uträkningsmall!$A32=29,OR(Uträkningsmall!$E32=\"\",Uträkningsmall!$F32=\"\")),1,IF(AND(Uträkningsmall!$A32=30,OR(Uträkningsmall!$E32=\"\",Uträkningsmall!$F32=\"\")),1,IF(AND(Uträkningsmall!$A32=39,OR(Uträkningsmall!$E32=\"\",Uträkningsmall!$F32=\"\")),1,IF(AND(Uträkningsmall!$A32=40,OR(Uträkningsmall!$E32=\"\",Uträkningsmall!$F32=\"\")),1,IF(AND(Uträkningsmall!$A32=41,OR(Uträkningsmall!$E32=\"\",Uträkningsmall!$F32=\"\")),1,IF(AND(Uträkningsmall!$A32=42,OR(Uträkningsmall!$E32=\"\",Uträkningsmall!$F32=\"\")),1,0))))))))))))))))))))","v":""},{"$f":"Funktioner!B165&Funktioner!C165&\", \"&Funktioner!D165&\"g\"&Funktioner!E165&Funktioner!F165","v":", g"},{"$f":"Uträkningsmall!B32&Uträkningsmall!C32&Uträkningsmall!D32&Uträkningsmall!E32","v":""},null,"",null,{"$f":"Uträkningsmall!$A32","v":""},{"$f":"IFERROR(INDEX(Omfattning!$B$3:$J$50,MATCH($H22,Funktioner!$A$30:$A$77,0),MATCH(I$2,Omfattning!$B$2:$J$2,0)),\"\")","v":0},{"$f":"IFERROR(INDEX(Omfattning!$B$3:$J$50,MATCH($H22,Funktioner!$A$30:$A$77,0),MATCH(J$2,Omfattning!$B$2:$J$2,0)),\"\")","v":0},{"$f":"IFERROR(INDEX(Omfattning!$B$3:$J$50,MATCH($H22,Funktioner!$A$30:$A$77,0),MATCH(K$2,Omfattning!$B$2:$J$2,0)),\"\")","v":0},{"$f":"IFERROR(INDEX(Omfattning!$B$3:$J$50,MATCH($H22,Funktioner!$A$30:$A$77,0),MATCH(L$2,Omfattning!$B$2:$J$2,0)),\"\")","v":""},{"$f":"IFERROR(INDEX(Omfattning!$B$3:$J$50,MATCH($H22,Funktioner!$A$30:$A$77,0),MATCH(M$2,Omfattning!$B$2:$J$2,0)),\"\")","v":0},{"$f":"IFERROR(INDEX(Omfattning!$B$3:$J$50,MATCH($H22,Funktioner!$A$30:$A$77,0),MATCH(N$2,Omfattning!$B$2:$J$2,0)),\"\")","v":0},{"$f":"IFERROR(INDEX(Omfattning!$B$3:$J$50,MATCH($H22,Funktioner!$A$30:$A$77,0),MATCH(O$2,Omfattning!$B$2:$J$2,0)),\"\")","v":0},{"$f":"IFERROR(INDEX(Omfattning!$B$3:$J$50,MATCH($H22,Funktioner!$A$30:$A$77,0),MATCH(P$2,Omfattning!$B$2:$J$2,0)),\"\")","v":0},{"$f":"IFERROR(INDEX(Omfattning!$B$3:$J$50,MATCH($H22,Funktioner!$A$30:$A$77,0),MATCH(Q$2,Omfattning!$B$2:$J$2,0)),\"\")","v":0},{"$f":"IF(Uträkningsmall!$F32=\"\",\"\",IF(S22=\"Kan ej leverera\",240000000,IF(ISNUMBER(P22),P22*Uträkningsmall!$F32,\"\")))","v":""},"",null,{"$f":"IFERROR(INDEX(Omfattning!$M$3:$U$50,MATCH($H22,Funktioner!$B$30:$B$77,0),MATCH(U$2,Omfattning!$M$2:$U$2,0)),\"\")","v":0},{"$f":"IFERROR(INDEX(Omfattning!$M$3:$U$50,MATCH($H22,Funktioner!$B$30:$B$77,0),MATCH(V$2,Omfattning!$M$2:$U$2,0)),\"\")","v":0},{"$f":"IFERROR(INDEX(Omfattning!$M$3:$U$50,MATCH($H22,Funktioner!$B$30:$B$77,0),MATCH(W$2,Omfattning!$M$2:$U$2,0)),\"\")","v":0},{"$f":"IFERROR(INDEX(Omfattning!$M$3:$U$50,MATCH($H22,Funktioner!$B$30:$B$77,0),MATCH(X$2,Omfattning!$M$2:$U$2,0)),\"\")","v":0},{"$f":"IFERROR(INDEX(Omfattning!$M$3:$U$50,MATCH($H22,Funktioner!$B$30:$B$77,0),MATCH(Y$2,Omfattning!$M$2:$U$2,0)),\"\")","v":0},{"$f":"IFERROR(INDEX(Omfattning!$M$3:$U$50,MATCH($H22,Funktioner!$B$30:$B$77,0),MATCH(Z$2,Omfattning!$M$2:$U$2,0)),\"\")","v":0},{"$f":"IFERROR(INDEX(Omfattning!$M$3:$U$50,MATCH($H22,Funktioner!$B$30:$B$77,0),MATCH(AA$2,Omfattning!$M$2:$U$2,0)),\"\")","v":0},{"$f":"IFERROR(INDEX(Omfattning!$M$3:$U$50,MATCH($H22,Funktioner!$B$30:$B$77,0),MATCH(AB$2,Omfattning!$M$2:$U$2,0)),\"\")","v":0},{"$f":"IFERROR(INDEX(Omfattning!$M$3:$U$50,MATCH($H22,Funktioner!$B$30:$B$77,0),MATCH(AC$2,Omfattning!$M$2:$U$2,0)),\"\")","v":0},{"$f":"IF(Uträkningsmall!$F32=\"\",\"\",IF(AE22=\"Kan ej leverera\",240000000,IF(ISNUMBER(AB22),AB22*Uträkningsmall!$F32,\"\")))","v":""},"",null,{"$f":"IFERROR(INDEX(Omfattning!$X$3:$AF$50,MATCH($H22,Funktioner!$C$30:$C$77,0),MATCH(AG$2,Omfattning!$X$2:$AF$2,0)),\"\")","v":0},{"$f":"IFERROR(INDEX(Omfattning!$X$3:$AF$50,MATCH($H22,Funktioner!$C$30:$C$77,0),MATCH(AH$2,Omfattning!$X$2:$AF$2,0)),\"\")","v":0},{"$f":"IFERROR(INDEX(Omfattning!$X$3:$AF$50,MATCH($H22,Funktioner!$C$30:$C$77,0),MATCH(AI$2,Omfattning!$X$2:$AF$2,0)),\"\")","v":0},{"$f":"IFERROR(INDEX(Omfattning!$X$3:$AF$50,MATCH($H22,Funktioner!$C$30:$C$77,0),MATCH(AJ$2,Omfattning!$X$2:$AF$2,0)),\"\")","v":0},{"$f":"IFERROR(INDEX(Omfattning!$X$3:$AF$50,MATCH($H22,Funktioner!$C$30:$C$77,0),MATCH(AK$2,Omfattning!$X$2:$AF$2,0)),\"\")","v":0},{"$f":"IFERROR(INDEX(Omfattning!$X$3:$AF$50,MATCH($H22,Funktioner!$C$30:$C$77,0),MATCH(AL$2,Omfattning!$X$2:$AF$2,0)),\"\")","v":0},{"$f":"IFERROR(INDEX(Omfattning!$X$3:$AF$50,MATCH($H22,Funktioner!$C$30:$C$77,0),MATCH(AM$2,Omfattning!$X$2:$AF$2,0)),\"\")","v":0},{"$f":"IFERROR(INDEX(Omfattning!$X$3:$AF$50,MATCH($H22,Funktioner!$C$30:$C$77,0),MATCH(AN$2,Omfattning!$X$2:$AF$2,0)),\"\")","v":0},{"$f":"IFERROR(INDEX(Omfattning!$X$3:$AF$50,MATCH($H22,Funktioner!$C$30:$C$77,0),MATCH(AO$2,Omfattning!$X$2:$AF$2,0)),\"\")","v":0},{"$f":"IF(Uträkningsmall!$F32=\"\",\"\",IF(AQ22=\"Kan ej leverera\",240000000,IF(ISNUMBER(AN22),AN22*Uträkningsmall!$F32,\"\")))","v":""},"",null,{"$f":"IFERROR(INDEX(Omfattning!$AI$3:$AQ$50,MATCH($H22,Funktioner!$D$30:$D$77,0),MATCH(AS$2,Omfattning!$AI$2:$AQ$2,0)),\"\")","v":0},{"$f":"IFERROR(INDEX(Omfattning!$AI$3:$AQ$50,MATCH($H22,Funktioner!$D$30:$D$77,0),MATCH(AT$2,Omfattning!$AI$2:$AQ$2,0)),\"\")","v":0},{"$f":"IFERROR(INDEX(Omfattning!$AI$3:$AQ$50,MATCH($H22,Funktioner!$D$30:$D$77,0),MATCH(AU$2,Omfattning!$AI$2:$AQ$2,0)),\"\")","v":0},{"$f":"IFERROR(INDEX(Omfattning!$AI$3:$AQ$50,MATCH($H22,Funktioner!$D$30:$D$77,0),MATCH(AV$2,Omfattning!$AI$2:$AQ$2,0)),\"\")","v":0},{"$f":"IFERROR(INDEX(Omfattning!$AI$3:$AQ$50,MATCH($H22,Funktioner!$D$30:$D$77,0),MATCH(AW$2,Omfattning!$AI$2:$AQ$2,0)),\"\")","v":0},{"$f":"IFERROR(INDEX(Omfattning!$AI$3:$AQ$50,MATCH($H22,Funktioner!$D$30:$D$77,0),MATCH(AX$2,Omfattning!$AI$2:$AQ$2,0)),\"\")","v":0},{"$f":"IFERROR(INDEX(Omfattning!$AI$3:$AQ$50,MATCH($H22,Funktioner!$D$30:$D$77,0),MATCH(AY$2,Omfattning!$AI$2:$AQ$2,0)),\"\")","v":0},{"$f":"IFERROR(INDEX(Omfattning!$AI$3:$AQ$50,MATCH($H22,Funktioner!$D$30:$D$77,0),MATCH(AZ$2,Omfattning!$AI$2:$AQ$2,0)),\"\")","v":0},{"$f":"IFERROR(INDEX(Omfattning!$AI$3:$AQ$50,MATCH($H22,Funktioner!$D$30:$D$77,0),MATCH(BA$2,Omfattning!$AI$2:$AQ$2,0)),\"\")","v":0},{"$f":"IF(Uträkningsmall!$F32=\"\",\"\",IF(BC22=\"Kan ej leverera\",240000000,IF(ISNUMBER(AZ22),AZ22*Uträkningsmall!$F32,\"\")))","v":""},"",null,{"$f":"IFERROR(INDEX(Omfattning!$AT$3:$BB$50,MATCH($H22,Funktioner!$E$30:$E$77,0),MATCH(BE$2,Omfattning!$AT$2:$BB$2,0)),\"\")","v":0},{"$f":"IFERROR(INDEX(Omfattning!$AT$3:$BB$50,MATCH($H22,Funktioner!$E$30:$E$77,0),MATCH(BF$2,Omfattning!$AT$2:$BB$2,0)),\"\")","v":0},{"$f":"IFERROR(INDEX(Omfattning!$AT$3:$BB$50,MATCH($H22,Funktioner!$E$30:$E$77,0),MATCH(BG$2,Omfattning!$AT$2:$BB$2,0)),\"\")","v":0},{"$f":"IFERROR(INDEX(Omfattning!$AT$3:$BB$50,MATCH($H22,Funktioner!$E$30:$E$77,0),MATCH(BH$2,Omfattning!$AT$2:$BB$2,0)),\"\")","v":0},{"$f":"IFERROR(INDEX(Omfattning!$AT$3:$BB$50,MATCH($H22,Funktioner!$E$30:$E$77,0),MATCH(BI$2,Omfattning!$AT$2:$BB$2,0)),\"\")","v":0},{"$f":"IFERROR(INDEX(Omfattning!$AT$3:$BB$50,MATCH($H22,Funktioner!$E$30:$E$77,0),MATCH(BJ$2,Omfattning!$AT$2:$BB$2,0)),\"\")","v":0},{"$f":"IFERROR(INDEX(Omfattning!$AT$3:$BB$50,MATCH($H22,Funktioner!$E$30:$E$77,0),MATCH(BK$2,Omfattning!$AT$2:$BB$2,0)),\"\")","v":0},{"$f":"IFERROR(INDEX(Omfattning!$AT$3:$BB$50,MATCH($H22,Funktioner!$E$30:$E$77,0),MATCH(BL$2,Omfattning!$AT$2:$BB$2,0)),\"\")","v":0},{"$f":"IFERROR(INDEX(Omfattning!$AT$3:$BB$50,MATCH($H22,Funktioner!$E$30:$E$77,0),MATCH(BM$2,Omfattning!$AT$2:$BB$2,0)),\"\")","v":0},{"$f":"IF(Uträkningsmall!$F32=\"\",\"\",IF(BO22=\"Kan ej leverera\",240000000,IF(ISNUMBER(BL22),BL22*Uträkningsmall!$F32,\"\")))","v":""},"",null,{"$f":"IFERROR(INDEX(Omfattning!$BE$3:$BM$50,MATCH($H22,Funktioner!$F$30:$F$77,0),MATCH(BQ$2,Omfattning!$BE$2:$BM$2,0)),\"\")","v":0},{"$f":"IFERROR(INDEX(Omfattning!$BE$3:$BM$50,MATCH($H22,Funktioner!$F$30:$F$77,0),MATCH(BR$2,Omfattning!$BE$2:$BM$2,0)),\"\")","v":0},{"$f":"IFERROR(INDEX(Omfattning!$BE$3:$BM$50,MATCH($H22,Funktioner!$F$30:$F$77,0),MATCH(BS$2,Omfattning!$BE$2:$BM$2,0)),\"\")","v":0},{"$f":"IFERROR(INDEX(Omfattning!$BE$3:$BM$50,MATCH($H22,Funktioner!$F$30:$F$77,0),MATCH(BT$2,Omfattning!$BE$2:$BM$2,0)),\"\")","v":0},{"$f":"IFERROR(INDEX(Omfattning!$BE$3:$BM$50,MATCH($H22,Funktioner!$F$30:$F$77,0),MATCH(BU$2,Omfattning!$BE$2:$BM$2,0)),\"\")","v":0},{"$f":"IFERROR(INDEX(Omfattning!$BE$3:$BM$50,MATCH($H22,Funktioner!$F$30:$F$77,0),MATCH(BV$2,Omfattning!$BE$2:$BM$2,0)),\"\")","v":0},{"$f":"IFERROR(INDEX(Omfattning!$BE$3:$BM$50,MATCH($H22,Funktioner!$F$30:$F$77,0),MATCH(BW$2,Omfattning!$BE$2:$BM$2,0)),\"\")","v":0},{"$f":"IFERROR(INDEX(Omfattning!$BE$3:$BM$50,MATCH($H22,Funktioner!$F$30:$F$77,0),MATCH(BX$2,Omfattning!$BE$2:$BM$2,0)),\"\")","v":0},{"$f":"IFERROR(INDEX(Omfattning!$BE$3:$BM$50,MATCH($H22,Funktioner!$F$30:$F$77,0),MATCH(BY$2,Omfattning!$BE$2:$BM$2,0)),\"\")","v":0},{"$f":"IF(Uträkningsmall!$F32=\"\",\"\",IF(CA22=\"Kan ej leverera\",240000000,IF(ISNUMBER(BX22),BX22*Uträkningsmall!$F32,\"\")))","v":""},""]
[null,{"$f":"SUM(B3:B22)","v":0},null,null,null,null,null,{"$f":"H3&H4&H5&H6&H7&H8&H9&H10&H11&H12&H13&H14&H15&H16&H17&H18&H19&H20&H21&H22","v":""},null,null,null,null,null,null,null,"Totalsumma",{"$f":"MAX(Q$3:Q$22)","v":0},{"$f":"SUM(R3:R22)","v":0},null,null,null,null,null,null,null,null,null,"Totalsumma",{"$f":"MAX(AC$3:AC$22)","v":0},{"$f":"SUM(AD3:AD22)","v":0},null,null,null,null,null,null,null,null,null,"Totalsumma",{"$f":"MAX(AO$3:AO$22)","v":0},{"$f":"SUM(AP3:AP22)","v":0},null,null,null,null,null,null,null,null,null,"Totalsumma",{"$f":"MAX(BA$3:BA$22)","v":0},{"$f":"SUM(BB3:BB22)","v":0},null,null,null,null,null,null,null,null,null,"Totalsumma",{"$f":"MAX(BM$3:BM$22)","v":0},{"$f":"SUM(BN3:BN22)","v":0},null,null,null,null,null,null,null,null,null,"Totalsumma",{"$f":"MAX(BY$3:BY$22)","v":0},{"$f":"SUM(BZ3:BZ22)","v":0}]
[]
[]
[null,null,null,null,null,null,null,"Ramavtalsleverantör",{"$f":"Omfattning!A1","v":"Antalis Aktiebolag"},{"$f":"Omfattning!L1","v":"Lyreco Sverige AB"},{"$f":"Omfattning!W1","v":"Procurator AB"},{"$f":"Omfattning!AH1","v":"Office Depot Svenska AB"}]
[null,null,null,null,null,null,null,"Organisationsnummer",{"$f":"Kontaktuppgifter!B4","v":5560762022},{"$f":"Kontaktuppgifter!C4","v":5560913591},{"$f":"Kontaktuppgifter!D4","v":5560576554},{"$f":"Kontaktuppgifter!E4","v":5560249558}]
["RAL 1","RAL 2","RAL 3","RAL 4","RAL 5","RAL 6",null,"Kontaktperson",{"$f":"Kontaktuppgifter!B5","v":"Charlotta Garvars"},{"$f":"Kontaktuppgifter!C5","v":"Magnus Parenmark"},{"$f":"Kontaktuppgifter!D5","v":"Patrik Lindkvist"},{"$f":"Kontaktuppgifter!E5","v":"Maria Arvas"}]
[null,null,null,null,null,null,null,"Telefonnummer",{"$f":"Kontaktuppgifter!B6","v":"0705296411"},{"$f":"Kontaktuppgifter!C6","v":"0706982272"},{"$f":"Kontaktuppgifter!D6","v":"010 604 00 74"},{"$f":"Kontaktuppgifter!E6","v":"0708-277657"}]
[{"$f":"IF(Omfattning!I3<>\"\",Omfattning!$A3,\"\")","v":1},{"$f":"IF(Omfattning!T3<>\"\",Omfattning!L3,\"\")","v":1},{"$f":"IF(Omfattning!AE3<>\"\",Omfattning!W3,\"\")","v":1},{"$f":"IF(Omfattning!AP3<>\"\",Omfattning!AH3,\"\")","v":1},{"$f":"IF(Omfattning!BA3<>\"\",Omfattning!AS3,\"\")","v":""},{"$f":"IF(Omfattning!BL3<>\"\",Omfattning!BD3,\"\")","v":""},null,"E-postadress",{"$f":"Kontaktuppgifter!B7","v":"order.kam@Antalis.com"},{"$f":"Kontaktuppgifter!C7","v":"se.order@lyreco.com"},{"$f":"Kontaktuppgifter!D7","v":"kontakt@procurator.com"},{"$f":"Kontaktuppgifter!E7","v":"bid@officedepot.se"}]
[{"$f":"IF(Omfattning!I4<>\"\",Omfattning!$A4,\"\")","v":2},{"$f":"IF(Omfattning!T4<>\"\",Omfattning!L4,\"\")","v":2},{"$f":"IF(Omfattning!AE4<>\"\",Omfattning!W4,\"\")","v":2},{"$f":"IF(Omfattning!AP4<>\"\",Omfattning!AH4,\"\")","v":2},{"$f":"IF(Omfattning!BA4<>\"\",Omfattning!AS4,\"\")","v":""},{"$f":"IF(Omfattning!BL4<>\"\",Omfattning!BD4,\"\")","v":""},null,"Totalpris",{"$f":"IF($H$23=\"\",\"\",IF(Funktioner!$R$23=0,240000000,Funktioner!$R$23))","v":""},{"$f":"IF($H$23=\"\",\"\",IF(Funktioner!$AD$23=0,240000000,Funktioner!$AD$23))","v":""},{"$f":"IF($H$23=\"\",\"\",IF(Funktioner!$AP$23=0,240000000,Funktioner!$AP$23))","v":""},{"$f":"IF($H$23=\"\",\"\",IF(Funktioner!$BB$23=0,240000000,Funktioner!$BB$23))","v":""}]
[{"$f":"IF(Omfattning!I5<>\"\",Omfattning!$A5,\"\")","v":3},{"$f":"IF(Omfattning!T5<>\"\",Omfattning!L5,\"\")","v":3},{"$f":"IF(Omfattning!AE5<>\"\",Omfattning!W5,\"\")","v":3},{"$f":"IF(Omfattning!AP5<>\"\",Omfattning!AH5,\"\")","v":3},{"$f":"IF(Omfattning!BA5<>\"\",Omfattning!AS5,\"\")","v":""},{"$f":"IF(Omfattning!BL5<>\"\",Omfattning!BD5,\"\")","v":""}]
[{"$f":"IF(Omfattning!I6<>\"\",Omfattning!$A6,\"\")","v":4},{"$f":"IF(Omfattning!T6<>\"\",Omfattning!L6,\"\")","v":4},{"$f":"IF(Omfattning!AE6<>\"\",Omfattning!W6,\"\")","v":4},{"$f":"IF(Omfattning!AP6<>\"\",Omfattning!AH6,\"\")","v":4},{"$f":"IF(Omfattning!BA6<>\"\",Omfattning!AS6,\"\")","v":""},{"$f":"IF(Omfattning!BL6<>\"\",Omfattning!BD6,\"\")","v":""},null,"Rangordning:",{"$f":"IF(I$31=\"\",\"\",_xlfn.RANK.EQ(I$31,$I$31:$L$31,1))","v":""},{"$f":"IF(J$31=\"\",\"\",_xlfn.RANK.EQ(J$31,$I$31:$L$31,1))","v":""},{"$f":"IF(K$31=\"\",\"\",_xlfn.RANK.EQ(K$31,$I$31:$L$31,1))","v":""},{"$f":"IF(L$31=\"\",\"\",_xlfn.RANK.EQ(L$31,$I$31:$L$31,1))","v":""}]
[{"$f":"IF(Omfattning!I7<>\"\",Omfattning!$A7,\"\")","v":5},{"$f":"IF(Omfattning!T7<>\"\",Omfattning!L7,\"\")","v":5},{"$f":"IF(Omfattning!AE7<>\"\",Omfattning!W7,\"\")","v":5},{"$f":"IF(Omfattning!AP7<>\"\",Omfattning!AH7,\"\")","v":5},{"$f":"IF(Omfattning!BA7<>\"\",Omfattning!AS7,\"\")","v":""},{"$f":"IF(Omfattning!BL7<>\"\",Omfattning!BD7,\"\")","v":""},null,null,{"$f":"IF(I$33=\"\",\"\",I$33+0.01)","v":""},{"$f":"IF(J$33=\"\",\"\",J$33+0.02)","v":""},{"$f":"IF(K$33=\"\",\"\",K$33+0.03)","v":""},{"$f":"IF(L$33=\"\",\"\",L$33+0.04)","v":""}]
[{"$f":"IF(Omfattning!I8<>\"\",Omfattning!$A8,\"\")","v":6},{"$f":"IF(Omfattning!T8<>\"\",Omfattning!L8,\"\")","v":6},{"$f":"IF(Omfattning!AE8<>\"\",Omfattning!W8,\"\")","v":6},{"$f":"IF(Omfattning!AP8<>\"\",Omfattning!AH8,\"\")","v":6},{"$f":"IF(Omfattning!BA8<>\"\",Omfattning!AS8,\"\")","v":""},{"$f":"IF(Omfattning!BL8<>\"\",Omfattning!BD8,\"\")","v":""},null,null,{"$f":"IF(I$34=\"\",\"\",_xlfn.RANK.EQ(I$34,$I$34:$L$34,1))","v":""},{"$f":"IF(J$34=\"\",\"\",_xlfn.RANK.EQ(J$34,$I$34:$L$34,1))","v":""},{"$f":"IF(K$34=\"\",\"\",_xlfn.RANK.EQ(K$34,$I$34:$L$34,1))","v":""},{"$f":"IF(L$34=\"\",\"\",_xlfn.RANK.EQ(L$34,$I$34:$L$34,1))","v":""}]
[{"$f":"IF(Omfattning!I9<>\"\",Omfattning!$A9,\"\")","v":7},{"$f":"IF(Omfattning!T9<>\"\",Omfattning!L9,\"\")","v":7},{"$f":"IF(Omfattning!AE9<>\"\",Omfattning!W9,\"\")","v":7},{"$f":"IF(Omfattning!AP9<>\"\",Omfattning!AH9,\"\")","v":7},{"$f":"IF(Omfattning!BA9<>\"\",Omfattning!AS9,\"\")","v":""},{"$f":"IF(Omfattning!BL9<>\"\",Omfattning!BD9,\"\")","v":""},null,null,null,null,null,{"$f":"SUM(Uträkningsmall!F13:F32)","v":0},null,null,null,null,null,null,"Ramavtalsleverantör","Totalpris","Leveranstid"]
[{"$f":"IF(Omfattning!I10<>\"\",Omfattning!$A10,\"\")","v":8},{"$f":"IF(Omfattning!T10<>\"\",Omfattning!L10,\"\")","v":8},{"$f":"IF(Omfattning!AE10<>\"\",Omfattning!W10,\"\")","v":8},{"$f":"IF(Omfattning!AP10<>\"\",Omfattning!AH10,\"\")","v":8},{"$f":"IF(Omfattning!BA10<>\"\",Omfattning!AS10,\"\")","v":""},{"$f":"IF(Omfattning!BL10<>\"\",Omfattning!BD10,\"\")","v":""},null,"Rangordning","Ramavtalsleverantör","Totalpris","Leveranstid","Ramavtalsleverantör","Totalpris","Leveranstid",null,"Ramavtalsleverantör",{"$f":"IF(OR($P$45=0,$P$45>239000000),\"\",IF($Q$45=H38,I38,IF($Q$45=H39,I39,IF($Q$45=H40,I40,IF($Q$45=H41,I41,\"\")))))","v":""},null,{"$f":"IF($M38=\"\",\"\",IF($M38>240000000,L38&\" kan inte tillhandahålla detta avrop\",L38))","v":""},{"$f":"IF($P$44=0,\"\",IF($M38>240000000,0,M38))","v":""},""]
[{"$f":"IF(Omfattning!I11<>\"\",Omfattning!$A11,\"\")","v":9},{"$f":"IF(Omfattning!T11<>\"\",Omfattning!L11,\"\")","v":9},{"$f":"IF(Omfattning!AE11<>\"\",Omfattning!W11,\"\")","v":9},{"$f":"IF(Omfattning!AP11<>\"\",Omfattning!AH11,\"\")","v":9},{"$f":"IF(Omfattning!BA11<>\"\",Omfattning!AS11,\"\")","v":""},{"$f":"IF(Omfattning!BL11<>\"\",Omfattning!BD11,\"\")","v":""},null,1,{"$f":"IF($P$45=0,\"\",IF($I$35=$H38,$I$26,IF($J$35=$H38,$J$26,IF($K$35=$H38,$K$26,IF($L$35=$H38,$L$26)))))","v":""},{"$f":"IF($P$45=0,\"\",IF($I$35=$H38,$I$31,IF($J$35=$H38,$J$31,IF($K$35=$H38,$K$31,IF($L$35=$H38,$L$31)))))","v":""},{"$f":"IF($P$45=0,\"\",IF($I$35=$H38,$Q$23,IF($J$35=$H38,$AC$23,IF($K$35=$H38,$AO$23,IF($L$35=$H38,$BA$23)))))","v":""},{"$f":"IF($L$36=0,\"\",IF($J38=240000000,$I38&\" kan inte tillhandahålla detta avrop\",$I38))","v":""},{"$f":"IF($J38=240000000,0,$J38)","v":""},{"$f":"IF($K38=240000000,0,$K38)","v":""},null,"Organisationsnummer",{"$f":"IF($Q$37=$I$26,$I27,IF($Q$37=$J$26,$J27,IF($Q$37=$K$26,$K27,IF($Q$37=$L$26,$L27,\"\"))))","v":""},null,"","",""]
[{"$f":"IF(Omfattning!I12<>\"\",Omfattning!$A12,\"\")","v":10},{"$f":"IF(Omfattning!T12<>\"\",Omfattning!L12,\"\")","v":10},{"$f":"IF(Omfattning!AE12<>\"\",Omfattning!W12,\"\")","v":10},{"$f":"IF(Omfattning!AP12<>\"\",Omfattning!AH12,\"\")","v":10},{"$f":"IF(Omfattning!BA12<>\"\",Omfattning!AS12,\"\")","v":""},{"$f":"IF(Omfattning!BL12<>\"\",Omfattning!BD12,\"\")","v":""},null,2,{"$f":"IF($P$45=0,\"\",IF($I$35=$H39,$I$26,IF($J$35=$H39,$J$26,IF($K$35=$H39,$K$26,IF($L$35=$H39,$L$26)))))","v":""},{"$f":"IF($P$45=0,\"\",IF($I$35=$H39,$I$31,IF($J$35=$H39,$J$31,IF($K$35=$H39,$K$31,IF($L$35=$H39,$L$31)))))","v":""},{"$f":"IF($P$45=0,\"\",IF($I$35=$H39,$Q$23,IF($J$35=$H39,$AC$23,IF($K$35=$H39,$AO$23,IF($L$35=$H39,$BA$23)))))","v":""},{"$f":"IF($L$36=0,\"\",IF($J39=240000000,$I39&\" kan inte tillhandahålla detta avrop\",$I39))","v":""},{"$f":"IF($J39=240000000,0,$J39)","v":""},{"$f":"IF($K39=240000000,0,$K39)","v":""},null,"Kontaktperson",{"$f":"IF($Q$37=$I$26,$I28,IF($Q$37=$J$26,$J28,IF($Q$37=$K$26,$K28,IF($Q$37=$L$26,$L28,\"\"))))","v":""},null,"","",""]
[{"$f":"IF(Omfattning!I13<>\"\",Omfattning!$A13,\"\")","v":11},{"$f":"IF(Omfattning!T13<>\"\",Omfattning!L13,\"\")","v":11},{"$f":"IF(Omfattning!AE13<>\"\",Omfattning!W13,\"\")","v":11},{"$f":"IF(Omfattning!AP13<>\"\",Omfattning!AH13,\"\")","v":11},{"$f":"IF(Omfattning!BA13<>\"\",Omfattning!AS13,\"\")","v":""},{"$f":"IF(Omfattning!BL13<>\"\",Omfattning!BD13,\"\")","v":""},null,3,"","","","","","",null,"Telefonnummer",{"$f":"IF($Q$37=$I$26,$I29,IF($Q$37=$J$26,$J29,IF($Q$37=$K$26,$K29,IF($Q$37=$L$26,$L29,\"\"))))","v":""},null,"","",""]
[{"$f":"IF(Omfattning!I14<>\"\",Omfattning!$A14,\"\")","v":12},{"$f":"IF(Omfattning!T14<>\"\",Omfattning!L14,\"\")","v":12},{"$f":"IF(Omfattning!AE14<>\"\",Omfattning!W14,\"\")","v":12},{"$f":"IF(Omfattning!AP14<>\"\",Omfattning!AH14,\"\")","v":12},{"$f":"IF(Omfattning!BA14<>\"\",Omfattning!AS14,\"\")","v":""},{"$f":"IF(Omfattning!BL14<>\"\",Omfattning!BD14,\"\")","v":""},null,4,"","","","","","",null,"E-postadress",{"$f":"IF($Q$37=$I$26,$I30,IF($Q$37=$J$26,$J30,IF($Q$37=$K$26,$K30,IF($Q$37=$L$26,$L30,\"\"))))","v":""}]
[{"$f":"IF(Omfattning!I15<>\"\",Omfattning!$A15,\"\")","v":13},{"$f":"IF(Omfattning!T15<>\"\",Omfattning!L15,\"\")","v":13},{"$f":"IF(Omfattning!AE15<>\"\",Omfattning!W15,\"\")","v":13},{"$f":"IF(Omfattning!AP15<>\"\",Omfattning!AH15,\"\")","v":13},{"$f":"IF(Omfattning!BA15<>\"\",Omfattning!AS15,\"\")","v":""},{"$f":"IF(Omfattning!BL15<>\"\",Omfattning!BD15,\"\")","v":""},null,null,null,null,null,null,null,null,null,"Totalsumma",{"$f":"IF($Q$37=$I$26,$I31,IF($Q$37=$J$26,$J31,IF($Q$37=$K$26,$K31,IF($Q$37=$L$26,$L31,\"\"))))","v":""}]
[{"$f":"IF(Omfattning!I16<>\"\",Omfattning!$A16,\"\")","v":14},{"$f":"IF(Omfattning!T16<>\"\",Omfattning!L16,\"\")","v":14},{"$f":"IF(Omfattning!AE16<>\"\",Omfattning!W16,\"\")","v":14},{"$f":"IF(Omfattning!AP16<>\"\",Omfattning!AH16,\"\")","v":14},{"$f":"IF(Omfattning!BA16<>\"\",Omfattning!AS16,\"\")","v":""},{"$f":"IF(Omfattning!BL16<>\"\",Omfattning!BD16,\"\")","v":""}]
[{"$f":"IF(Omfattning!I17<>\"\",Omfattning!$A17,\"\")","v":15},{"$f":"IF(Omfattning!T17<>\"\",Omfattning!L17,\"\")","v":15},{"$f":"IF(Omfattning!AE17<>\"\",Omfattning!W17,\"\")","v":15},{"$f":"IF(Omfattning!AP17<>\"\",Omfattning!AH17,\"\")","v":15},{"$f":"IF(Omfattning!BA17<>\"\",Omfattning!AS17,\"\")","v":""},{"$f":"IF(Omfattning!BL17<>\"\",Omfattning!BD17,\"\")","v":""},null,null,null,null,null,null,null,null,null,{"$f":"SUM(Funktioner!$R$23,Funktioner!$AD$23,Funktioner!$AP$23,Funktioner!$BB$23)","v":0}]
[{"$f":"IF(Omfattning!I18<>\"\",Omfattning!$A18,\"\")","v":16},{"$f":"IF(Omfattning!T18<>\"\",Omfattning!L18,\"\")","v":16},{"$f":"IF(Omfattning!AE18<>\"\",Omfattning!W18,\"\")","v":16},{"$f":"IF(Omfattning!AP18<>\"\",Omfattning!AH18,\"\")","v":16},{"$f":"IF(Omfattning!BA18<>\"\",Omfattning!AS18,\"\")","v":""},{"$f":"IF(Omfattning!BL18<>\"\",Omfattning!BD18,\"\")","v":""},null,null,null,null,null,null,null,null,null,{"$f":"IF($P$44=0,0,IF($I$35=$Q$45,$I$31,IF($J$35=$Q$45,$J$31,IF($K$35=$Q$45,$K$31,IF($L$35=$Q$45,$L$31)))))","v":0},{"$f":"Uträkningsmall!$N$8","v":1}]
[{"$f":"IF(Omfattning!I19<>\"\",Omfattning!$A19,\"\")","v":17},{"$f":"IF(Omfattning!T19<>\"\",Omfattning!L19,\"\")","v":17},{"$f":"IF(Omfattning!AE19<>\"\",Omfattning!W19,\"\")","v":17},{"$f":"IF(Omfattning!AP19<>\"\",Omfattning!AH19,\"\")","v":17},{"$f":"IF(Omfattning!BA19<>\"\",Omfattning!AS19,\"\")","v":""},{"$f":"IF(Omfattning!BL19<>\"\",Omfattning!BD19,\"\")","v":""}]
[{"$f":"IF(Omfattning!I20<>\"\",Omfattning!$A20,\"\")","v":18},{"$f":"IF(Omfattning!T20<>\"\",Omfattning!L20,\"\")","v":18},{"$f":"IF(Omfattning!AE20<>\"\",Omfattning!W20,\"\")","v":18},{"$f":"IF(Omfattning!AP20<>\"\",Omfattning!AH20,\"\")","v":18},{"$f":"IF(Omfattning!BA20<>\"\",Omfattning!AS20,\"\")","v":""},{"$f":"IF(Omfattning!BL20<>\"\",Omfattning!BD20,\"\")","v":""}]
[{"$f":"IF(Omfattning!I21<>\"\",Omfattning!$A21,\"\")","v":19},{"$f":"IF(Omfattning!T21<>\"\",Omfattning!L21,\"\")","v":19},{"$f":"IF(Omfattning!AE21<>\"\",Omfattning!W21,\"\")","v":19},{"$f":"IF(Omfattning!AP21<>\"\",Omfattning!AH21,\"\")","v":19},{"$f":"IF(Omfattning!BA21<>\"\",Omfattning!AS21,\"\")","v":""},{"$f":"IF(Omfattning!BL21<>\"\",Omfattning!BD21,\"\")","v":""}]
[{"$f":"IF(Omfattning!I22<>\"\",Omfattning!$A22,\"\")","v":""},{"$f":"IF(Omfattning!T22<>\"\",Omfattning!L22,\"\")","v":""},{"$f":"IF(Omfattning!AE22<>\"\",Omfattning!W22,\"\")","v":""},{"$f":"IF(Omfattning!AP22<>\"\",Omfattning!AH22,\"\")","v":""},{"$f":"IF(Omfattning!BA22<>\"\",Omfattning!AS22,\"\")","v":""},{"$f":"IF(Omfattning!BL22<>\"\",Omfattning!BD22,\"\")","v":""},null,"Varans position","Benämning","Storlek","Ytvikt (g/m2)","Kvalitet","Hålning","Artikelnamn  ","Artikelnummer   ","Pris per kartong","Leveranstid (Arbetsdagar)","Totalpris"]
[{"$f":"IF(Omfattning!I23<>\"\",Omfattning!$A23,\"\")","v":""},{"$f":"IF(Omfattning!T23<>\"\",Omfattning!L23,\"\")","v":""},{"$f":"IF(Omfattning!AE23<>\"\",Omfattning!W23,\"\")","v":""},{"$f":"IF(Omfattning!AP23<>\"\",Omfattning!AH23,\"\")","v":""},{"$f":"IF(Omfattning!BA23<>\"\",Omfattning!AS23,\"\")","v":""},{"$f":"IF(Omfattning!BL23<>\"\",Omfattning!BD23,\"\")","v":""},null,{"$f":"Funktioner!$H3","v":""},{"$f":"IF($H50=\"\",\"\",IF($Q$37=$I$26,Funktioner!I3,IF($Q$37=$J$26,Funktioner!U3,IF($Q$37=$K$26,Funktioner!AG3,IF($Q$37=$L$26,Funktioner!AS3,\"\")))))","v":""},{"$f":"IF($H50=\"\",\"\",IF($Q$37=$I$26,Funktioner!J3,IF($Q$37=$J$26,Funktioner!V3,IF($Q$37=$K$26,Funktioner!AH3,IF($Q$37=$L$26,Funktioner!AT3,\"\")))))","v":""},{"$f":"IF($H50=\"\",\"\",IF($Q$37=$I$26,Funktioner!K3,IF($Q$37=$J$26,Funktioner!W3,IF($Q$37=$K$26,Funktioner!AI3,IF($Q$37=$L$26,Funktioner!AU3,\"\")))))","v":""},{"$f":"IF($H50=\"\",\"\",IF($Q$37=$I$26,Funktioner!L3,IF($Q$37=$J$26,Funktioner!X3,IF($Q$37=$K$26,Funktioner!AJ3,IF($Q$37=$L$26,Funktioner!AV3,\"\")))))","v":""},{"$f":"IF($H50=\"\",\"\",IF($Q$37=$I$26,Funktioner!M3,IF($Q$37=$J$26,Funktioner!Y3,IF($Q$37=$K$26,Funktioner!AK3,IF($Q$37=$L$26,Funktioner!AW3,\"\")))))","v":""},{"$f":"IF($H50=\"\",\"\",IF($Q$37=$I$26,Funktioner!N3,IF($Q$37=$J$26,Funktioner!Z3,IF($Q$37=$K$26,Funktioner!AL3,IF($Q$37=$L$26,Funktioner!AX3,\"\")))))","v":""},{"$f":"IF($H50=\"\",\"\",IF($Q$37=$I$26,Funktioner!O3,IF($Q$37=$J$26,Funktioner!AA3,IF($Q$37=$K$26,Funktioner!AM3,IF($Q$37=$L$26,Funktioner!AY3,\"\")))))","v":""},{"$f":"IF($H50=\"\",\"\",IF($Q$37=$I$26,Funktioner!P3,IF($Q$37=$J$26,Funktioner!AB3,IF($Q$37=$K$26,Funktioner!AN3,IF($Q$37=$L$26,Funktioner!AZ3,)))))","v":""},{"$f":"IF($H50=\"\",\"\",IF($Q$37=$I$26,Funktioner!Q3,IF($Q$37=$J$26,Funktioner!AC3,IF($Q$37=$K$26,Funktioner!AO3,IF($Q$37=$L$26,Funktioner!BA3,\"\")))))","v":""},{"$f":"IF($H50=\"\",\"\",IF($Q$37=$I$26,Funktioner!R3,IF($Q$37=$J$26,Funktioner!AD3,IF($Q$37=$K$26,Funktioner!AP3,IF($Q$37=$L$26,Funktioner!BB3,\"\")))))","v":""}]
[{"$f":"IF(Omfattning!I24<>\"\",Omfattning!$A24,\"\")","v":""},{"$f":"IF(Omfattning!T24<>\"\",Omfattning!L24,\"\")","v":""},{"$f":"IF(Omfattning!AE24<>\"\",Omfattning!W24,\"\")","v":""},{"$f":"IF(Omfattning!AP24<>\"\",Omfattning!AH24,\"\")","v":""},{"$f":"IF(Omfattning!BA24<>\"\",Omfattning!AS24,\"\")","v":""},{"$f":"IF(Omfattning!BL24<>\"\",Omfattning!BD24,\"\")","v":""},null,{"$f":"Funktioner!$H4","v":""},{"$f":"IF($H51=\"\",\"\",IF($Q$37=$I$26,Funktioner!I4,IF($Q$37=$J$26,Funktioner!U4,IF($Q$37=$K$26,Funktioner!AG4,IF($Q$37=$L$26,Funktioner!AS4,\"\")))))","v":""},{"$f":"IF($H51=\"\",\"\",IF($Q$37=$I$26,Funktioner!J4,IF($Q$37=$J$26,Funktioner!V4,IF($Q$37=$K$26,Funktioner!AH4,IF($Q$37=$L$26,Funktioner!AT4,\"\")))))","v":""},{"$f":"IF($H51=\"\",\"\",IF($Q$37=$I$26,Funktioner!K4,IF($Q$37=$J$26,Funktioner!W4,IF($Q$37=$K$26,Funktioner!AI4,IF($Q$37=$L$26,Funktioner!AU4,\"\")))))","v":""},{"$f":"IF($H51=\"\",\"\",IF($Q$37=$I$26,Funktioner!L4,IF($Q$37=$J$26,Funktioner!X4,IF($Q$37=$K$26,Funktioner!AJ4,IF($Q$37=$L$26,Funktioner!AV4,\"\")))))","v":""},{"$f":"IF($H51=\"\",\"\",IF($Q$37=$I$26,Funktioner!M4,IF($Q$37=$J$26,Funktioner!Y4,IF($Q$37=$K$26,Funktioner!AK4,IF($Q$37=$L$26,Funktioner!AW4,\"\")))))","v":""},{"$f":"IF($H51=\"\",\"\",IF($Q$37=$I$26,Funktioner!N4,IF($Q$37=$J$26,Funktioner!Z4,IF($Q$37=$K$26,Funktioner!AL4,IF($Q$37=$L$26,Funktioner!AX4,\"\")))))","v":""},{"$f":"IF($H51=\"\",\"\",IF($Q$37=$I$26,Funktioner!O4,IF($Q$37=$J$26,Funktioner!AA4,IF($Q$37=$K$26,Funktioner!AM4,IF($Q$37=$L$26,Funktioner!AY4,\"\")))))","v":""},{"$f":"IF($H51=\"\",\"\",IF($Q$37=$I$26,Funktioner!P4,IF($Q$37=$J$26,Funktioner!AB4,IF($Q$37=$K$26,Funktioner!AN4,IF($Q$37=$L$26,Funktioner!AZ4,)))))","v":""},{"$f":"IF($H51=\"\",\"\",IF($Q$37=$I$26,Funktioner!Q4,IF($Q$37=$J$26,Funktioner!AC4,IF($Q$37=$K$26,Funktioner!AO4,IF($Q$37=$L$26,Funktioner!BA4,\"\")))))","v":""},{"$f":"IF($H51=\"\",\"\",IF($Q$37=$I$26,Funktioner!R4,IF($Q$37=$J$26,Funktioner!AD4,IF($Q$37=$K$26,Funktioner!AP4,IF($Q$37=$L$26,Funktioner!BB4,\"\")))))","v":""}]
[{"$f":"IF(Omfattning!I25<>\"\",Omfattning!$A25,\"\")","v":""},{"$f":"IF(Omfattning!T25<>\"\",Omfattning!L25,\"\")","v":""},{"$f":"IF(Omfattning!AE25<>\"\",Omfattning!W25,\"\")","v":""},{"$f":"IF(Omfattning!AP25<>\"\",Omfattning!AH25,\"\")","v":""},{"$f":"IF(Omfattning!BA25<>\"\",Omfattning!AS25,\"\")","v":""},{"$f":"IF(Omfattning!BL25<>\"\",Omfattning!BD25,\"\")","v":""},null,{"$f":"Funktioner!$H5","v":""},{"$f":"IF($H52=\"\",\"\",IF($Q$37=$I$26,Funktioner!I5,IF($Q$37=$J$26,Funktioner!U5,IF($Q$37=$K$26,Funktioner!AG5,IF($Q$37=$L$26,Funktioner!AS5,\"\")))))","v":""},{"$f":"IF($H52=\"\",\"\",IF($Q$37=$I$26,Funktioner!J5,IF($Q$37=$J$26,Funktioner!V5,IF($Q$37=$K$26,Funktioner!AH5,IF($Q$37=$L$26,Funktioner!AT5,\"\")))))","v":""},{"$f":"IF($H52=\"\",\"\",IF($Q$37=$I$26,Funktioner!K5,IF($Q$37=$J$26,Funktioner!W5,IF($Q$37=$K$26,Funktioner!AI5,IF($Q$37=$L$26,Funktioner!AU5,\"\")))))","v":""},{"$f":"IF($H52=\"\",\"\",IF($Q$37=$I$26,Funktioner!L5,IF($Q$37=$J$26,Funktioner!X5,IF($Q$37=$K$26,Funktioner!AJ5,IF($Q$37=$L$26,Funktioner!AV5,\"\")))))","v":""},{"$f":"IF($H52=\"\",\"\",IF($Q$37=$I$26,Funktioner!M5,IF($Q$37=$J$26,Funktioner!Y5,IF($Q$37=$K$26,Funktioner!AK5,IF($Q$37=$L$26,Funktioner!AW5,\"\")))))","v":""},{"$f":"IF($H52=\"\",\"\",IF($Q$37=$I$26,Funktioner!N5,IF($Q$37=$J$26,Funktioner!Z5,IF($Q$37=$K$26,Funktioner!AL5,IF($Q$37=$L$26,Funktioner!AX5,\"\")))))","v":""},{"$f":"IF($H52=\"\",\"\",IF($Q$37=$I$26,Funktioner!O5,IF($Q$37=$J$26,Funktioner!AA5,IF($Q$37=$K$26,Funktioner!AM5,IF($Q$37=$L$26,Funktioner!AY5,\"\")))))","v":""},{"$f":"IF($H52=\"\",\"\",IF($Q$37=$I$26,Funktioner!P5,IF($Q$37=$J$26,Funktioner!AB5,IF($Q$37=$K$26,Funktioner!AN5,IF($Q$37=$L$26,Funktioner!AZ5,)))))","v":""},{"$f":"IF($H52=\"\",\"\",IF($Q$37=$I$26,Funktioner!Q5,IF($Q$37=$J$26,Funktioner!AC5,IF($Q$37=$K$26,Funktioner!AO5,IF($Q$37=$L$26,Funktioner!BA5,\"\")))))","v":""},{"$f":"IF($H52=\"\",\"\",IF($Q$37=$I$26,Funktioner!R5,IF($Q$37=$J$26,Funktioner!AD5,IF($Q$37=$K$26,Funktioner!AP5,IF($Q$37=$L$26,Funktioner!BB5,\"\")))))","v":""}]
[{"$f":"IF(Omfattning!I26<>\"\",Omfattning!$A26,\"\")","v":""},{"$f":"IF(Omfattning!T26<>\"\",Omfattning!L26,\"\")","v":""},{"$f":"IF(Omfattning!AE26<>\"\",Omfattning!W26,\"\")","v":""},{"$f":"IF(Omfattning!AP26<>\"\",Omfattning!AH26,\"\")","v":""},{"$f":"IF(Omfattning!BA26<>\"\",Omfattning!AS26,\"\")","v":""},{"$f":"IF(Omfattning!BL26<>\"\",Omfattning!BD26,\"\")","v":""},null,{"$f":"Funktioner!$H6","v":""},{"$f":"IF($H53=\"\",\"\",IF($Q$37=$I$26,Funktioner!I6,IF($Q$37=$J$26,Funktioner!U6,IF($Q$37=$K$26,Funktioner!AG6,IF($Q$37=$L$26,Funktioner!AS6,\"\")))))","v":""},{"$f":"IF($H53=\"\",\"\",IF($Q$37=$I$26,Funktioner!J6,IF($Q$37=$J$26,Funktioner!V6,IF($Q$37=$K$26,Funktioner!AH6,IF($Q$37=$L$26,Funktioner!AT6,\"\")))))","v":""},{"$f":"IF($H53=\"\",\"\",IF($Q$37=$I$26,Funktioner!K6,IF($Q$37=$J$26,Funktioner!W6,IF($Q$37=$K$26,Funktioner!AI6,IF($Q$37=$L$26,Funktioner!AU6,\"\")))))","v":""},{"$f":"IF($H53=\"\",\"\",IF($Q$37=$I$26,Funktioner!L6,IF($Q$37=$J$26,Funktioner!X6,IF($Q$37=$K$26,Funktioner!AJ6,IF($Q$37=$L$26,Funktioner!AV6,\"\")))))","v":""},{"$f":"IF($H53=\"\",\"\",IF($Q$37=$I$26,Funktioner!M6,IF($Q$37=$J$26,Funktioner!Y6,IF($Q$37=$K$26,Funktioner!AK6,IF($Q$37=$L$26,Funktioner!AW6,\"\")))))","v":""},{"$f":"IF($H53=\"\",\"\",IF($Q$37=$I$26,Funktioner!N6,IF($Q$37=$J$26,Funktioner!Z6,IF($Q$37=$K$26,Funktioner!AL6,IF($Q$37=$L$26,Funktioner!AX6,\"\")))))","v":""},{"$f":"IF($H53=\"\",\"\",IF($Q$37=$I$26,Funktioner!O6,IF($Q$37=$J$26,Funktioner!AA6,IF($Q$37=$K$26,Funktioner!AM6,IF($Q$37=$L$26,Funktioner!AY6,\"\")))))","v":""},{"$f":"IF($H53=\"\",\"\",IF($Q$37=$I$26,Funktioner!P6,IF($Q$37=$J$26,Funktioner!AB6,IF($Q$37=$K$26,Funktioner!AN6,IF($Q$37=$L$26,Funktioner!AZ6,)))))","v":""},{"$f":"IF($H53=\"\",\"\",IF($Q$37=$I$26,Funktioner!Q6,IF($Q$37=$J$26,Funktioner!AC6,IF($Q$37=$K$26,Funktioner!AO6,IF($Q$37=$L$26,Funktioner!BA6,\"\")))))","v":""},{"$f":"IF($H53=\"\",\"\",IF($Q$37=$I$26,Funktioner!R6,IF($Q$37=$J$26,Funktioner!AD6,IF($Q$37=$K$26,Funktioner!AP6,IF($Q$37=$L$26,Funktioner!BB6,\"\")))))","v":""}]
[{"$f":"IF(Omfattning!I27<>\"\",Omfattning!$A27,\"\")","v":""},{"$f":"IF(Omfattning!T27<>\"\",Omfattning!L27,\"\")","v":""},{"$f":"IF(Omfattning!AE27<>\"\",Omfattning!W27,\"\")","v":""},{"$f":"IF(Omfattning!AP27<>\"\",Omfattning!AH27,\"\")","v":""},{"$f":"IF(Omfattning!BA27<>\"\",Omfattning!AS27,\"\")","v":""},{"$f":"IF(Omfattning!BL27<>\"\",Omfattning!BD27,\"\")","v":""},null,{"$f":"Funktioner!$H7","v":""},{"$f":"IF($H54=\"\",\"\",IF($Q$37=$I$26,Funktioner!I7,IF($Q$37=$J$26,Funktioner!U7,IF($Q$37=$K$26,Funktioner!AG7,IF($Q$37=$L$26,Funktioner!AS7,\"\")))))","v":""},{"$f":"IF($H54=\"\",\"\",IF($Q$37=$I$26,Funktioner!J7,IF($Q$37=$J$26,Funktioner!V7,IF($Q$37=$K$26,Funktioner!AH7,IF($Q$37=$L$26,Funktioner!AT7,\"\")))))","v":""},{"$f":"IF($H54=\"\",\"\",IF($Q$37=$I$26,Funktioner!K7,IF($Q$37=$J$26,Funktioner!W7,IF($Q$37=$K$26,Funktioner!AI7,IF($Q$37=$L$26,Funktioner!AU7,\"\")))))","v":""},{"$f":"IF($H54=\"\",\"\",IF($Q$37=$I$26,Funktioner!L7,IF($Q$37=$J$26,Funktioner!X7,IF($Q$37=$K$26,Funktioner!AJ7,IF($Q$37=$L$26,Funktioner!AV7,\"\")))))","v":""},{"$f":"IF($H54=\"\",\"\",IF($Q$37=$I$26,Funktioner!M7,IF($Q$37=$J$26,Funktioner!Y7,IF($Q$37=$K$26,Funktioner!AK7,IF($Q$37=$L$26,Funktioner!AW7,\"\")))))","v":""},{"$f":"IF($H54=\"\",\"\",IF($Q$37=$I$26,Funktioner!N7,IF($Q$37=$J$26,Funktioner!Z7,IF($Q$37=$K$26,Funktioner!AL7,IF($Q$37=$L$26,Funktioner!AX7,\"\")))))","v":""},{"$f":"IF($H54=\"\",\"\",IF($Q$37=$I$26,Funktioner!O7,IF($Q$37=$J$26,Funktioner!AA7,IF($Q$37=$K$26,Funktioner!AM7,IF($Q$37=$L$26,Funktioner!AY7,\"\")))))","v":""},{"$f":"IF($H54=\"\",\"\",IF($Q$37=$I$26,Funktioner!P7,IF($Q$37=$J$26,Funktioner!AB7,IF($Q$37=$K$26,Funktioner!AN7,IF($Q$37=$L$26,Funktioner!AZ7,)))))","v":""},{"$f":"IF($H54=\"\",\"\",IF($Q$37=$I$26,Funktioner!Q7,IF($Q$37=$J$26,Funktioner!AC7,IF($Q$37=$K$26,Funktioner!AO7,IF($Q$37=$L$26,Funktioner!BA7,\"\")))))","v":""},{"$f":"IF($H54=\"\",\"\",IF($Q$37=$I$26,Funktioner!R7,IF($Q$37=$J$26,Funktioner!AD7,IF($Q$37=$K$26,Funktioner!AP7,IF($Q$37=$L$26,Funktioner!BB7,\"\")))))","v":""}]
[{"$f":"IF(Omfattning!I28<>\"\",Omfattning!$A28,\"\")","v":""},{"$f":"IF(Omfattning!T28<>\"\",Omfattning!L28,\"\")","v":""},{"$f":"IF(Omfattning!AE28<>\"\",Omfattning!W28,\"\")","v":""},{"$f":"IF(Omfattning!AP28<>\"\",Omfattning!AH28,\"\")","v":""},{"$f":"IF(Omfattning!BA28<>\"\",Omfattning!AS28,\"\")","v":""},{"$f":"IF(Omfattning!BL28<>\"\",Omfattning!BD28,\"\")","v":""},null,{"$f":"Funktioner!$H8","v":""},{"$f":"IF($H55=\"\",\"\",IF($Q$37=$I$26,Funktioner!I8,IF($Q$37=$J$26,Funktioner!U8,IF($Q$37=$K$26,Funktioner!AG8,IF($Q$37=$L$26,Funktioner!AS8,\"\")))))","v":""},{"$f":"IF($H55=\"\",\"\",IF($Q$37=$I$26,Funktioner!J8,IF($Q$37=$J$26,Funktioner!V8,IF($Q$37=$K$26,Funktioner!AH8,IF($Q$37=$L$26,Funktioner!AT8,\"\")))))","v":""},{"$f":"IF($H55=\"\",\"\",IF($Q$37=$I$26,Funktioner!K8,IF($Q$37=$J$26,Funktioner!W8,IF($Q$37=$K$26,Funktioner!AI8,IF($Q$37=$L$26,Funktioner!AU8,\"\")))))","v":""},{"$f":"IF($H55=\"\",\"\",IF($Q$37=$I$26,Funktioner!L8,IF($Q$37=$J$26,Funktioner!X8,IF($Q$37=$K$26,Funktioner!AJ8,IF($Q$37=$L$26,Funktioner!AV8,\"\")))))","v":""},{"$f":"IF($H55=\"\",\"\",IF($Q$37=$I$26,Funktioner!M8,IF($Q$37=$J$26,Funktioner!Y8,IF($Q$37=$K$26,Funktioner!AK8,IF($Q$37=$L$26,Funktioner!AW8,\"\")))))","v":""},{"$f":"IF($H55=\"\",\"\",IF($Q$37=$I$26,Funktioner!N8,IF($Q$37=$J$26,Funktioner!Z8,IF($Q$37=$K$26,Funktioner!AL8,IF($Q$37=$L$26,Funktioner!AX8,\"\")))))","v":""},{"$f":"IF($H55=\"\",\"\",IF($Q$37=$I$26,Funktioner!O8,IF($Q$37=$J$26,Funktioner!AA8,IF($Q$37=$K$26,Funktioner!AM8,IF($Q$37=$L$26,Funktioner!AY8,\"\")))))","v":""},{"$f":"IF($H55=\"\",\"\",IF($Q$37=$I$26,Funktioner!P8,IF($Q$37=$J$26,Funktioner!AB8,IF($Q$37=$K$26,Funktioner!AN8,IF($Q$37=$L$26,Funktioner!AZ8,)))))","v":""},{"$f":"IF($H55=\"\",\"\",IF($Q$37=$I$26,Funktioner!Q8,IF($Q$37=$J$26,Funktioner!AC8,IF($Q$37=$K$26,Funktioner!AO8,IF($Q$37=$L$26,Funktioner!BA8,\"\")))))","v":""},{"$f":"IF($H55=\"\",\"\",IF($Q$37=$I$26,Funktioner!R8,IF($Q$37=$J$26,Funktioner!AD8,IF($Q$37=$K$26,Funktioner!AP8,IF($Q$37=$L$26,Funktioner!BB8,\"\")))))","v":""}]
[{"$f":"IF(Omfattning!I29<>\"\",Omfattning!$A29,\"\")","v":""},{"$f":"IF(Omfattning!T29<>\"\",Omfattning!L29,\"\")","v":""},{"$f":"IF(Omfattning!AE29<>\"\",Omfattning!W29,\"\")","v":""},{"$f":"IF(Omfattning!AP29<>\"\",Omfattning!AH29,\"\")","v":""},{"$f":"IF(Omfattning!BA29<>\"\",Omfattning!AS29,\"\")","v":""},{"$f":"IF(Omfattning!BL29<>\"\",Omfattning!BD29,\"\")","v":""},null,{"$f":"Funktioner!$H9","v":""},{"$f":"IF($H56=\"\",\"\",IF($Q$37=$I$26,Funktioner!I9,IF($Q$37=$J$26,Funktioner!U9,IF($Q$37=$K$26,Funktioner!AG9,IF($Q$37=$L$26,Funktioner!AS9,\"\")))))","v":""},{"$f":"IF($H56=\"\",\"\",IF($Q$37=$I$26,Funktioner!J9,IF($Q$37=$J$26,Funktioner!V9,IF($Q$37=$K$26,Funktioner!AH9,IF($Q$37=$L$26,Funktioner!AT9,\"\")))))","v":""},{"$f":"IF($H56=\"\",\"\",IF($Q$37=$I$26,Funktioner!K9,IF($Q$37=$J$26,Funktioner!W9,IF($Q$37=$K$26,Funktioner!AI9,IF($Q$37=$L$26,Funktioner!AU9,\"\")))))","v":""},{"$f":"IF($H56=\"\",\"\",IF($Q$37=$I$26,Funktioner!L9,IF($Q$37=$J$26,Funktioner!X9,IF($Q$37=$K$26,Funktioner!AJ9,IF($Q$37=$L$26,Funktioner!AV9,\"\")))))","v":""},{"$f":"IF($H56=\"\",\"\",IF($Q$37=$I$26,Funktioner!M9,IF($Q$37=$J$26,Funktioner!Y9,IF($Q$37=$K$26,Funktioner!AK9,IF($Q$37=$L$26,Funktioner!AW9,\"\")))))","v":""},{"$f":"IF($H56=\"\",\"\",IF($Q$37=$I$26,Funktioner!N9,IF($Q$37=$J$26,Funktioner!Z9,IF($Q$37=$K$26,Funktioner!AL9,IF($Q$37=$L$26,Funktioner!AX9,\"\")))))","v":""},{"$f":"IF($H56=\"\",\"\",IF($Q$37=$I$26,Funktioner!O9,IF($Q$37=$J$26,Funktioner!AA9,IF($Q$37=$K$26,Funktioner!AM9,IF($Q$37=$L$26,Funktioner!AY9,\"\")))))","v":""},{"$f":"IF($H56=\"\",\"\",IF($Q$37=$I$26,Funktioner!P9,IF($Q$37=$J$26,Funktioner!AB9,IF($Q$37=$K$26,Funktioner!AN9,IF($Q$37=$L$26,Funktioner!AZ9,)))))","v":""},{"$f":"IF($H56=\"\",\"\",IF($Q$37=$I$26,Funktioner!Q9,IF($Q$37=$J$26,Funktioner!AC9,IF($Q$37=$K$26,Funktioner!AO9,IF($Q$37=$L$26,Funktioner!BA9,\"\")))))","v":""},{"$f":"IF($H56=\"\",\"\",IF($Q$37=$I$26,Funktioner!R9,IF($Q$37=$J$26,Funktioner!AD9,IF($Q$37=$K$26,Funktioner!AP9,IF($Q$37=$L$26,Funktioner!BB9,\"\")))))","v":""}]
[{"$f":"IF(Omfattning!I30<>\"\",Omfattning!$A30,\"\")","v":""},{"$f":"IF(Omfattning!T30<>\"\",Omfattning!L30,\"\")","v":""},{"$f":"IF(Omfattning!AE30<>\"\",Omfattning!W30,\"\")","v":""},{"$f":"IF(Omfattning!AP30<>\"\",Omfattning!AH30,\"\")","v":""},{"$f":"IF(Omfattning!BA30<>\"\",Omfattning!AS30,\"\")","v":""},{"$f":"IF(Omfattning!BL30<>\"\",Omfattning!BD30,\"\")","v":""},null,{"$f":"Funktioner!$H10","v":""},{"$f":"IF($H57=\"\",\"\",IF($Q$37=$I$26,Funktioner!I10,IF($Q$37=$J$26,Funktioner!U10,IF($Q$37=$K$26,Funktioner!AG10,IF($Q$37=$L$26,Funktioner!AS10,\"\")))))","v":""},{"$f":"IF($H57=\"\",\"\",IF($Q$37=$I$26,Funktioner!J10,IF($Q$37=$J$26,Funktioner!V10,IF($Q$37=$K$26,Funktioner!AH10,IF($Q$37=$L$26,Funktioner!AT10,\"\")))))","v":""},{"$f":"IF($H57=\"\",\"\",IF($Q$37=$I$26,Funktioner!K10,IF($Q$37=$J$26,Funktioner!W10,IF($Q$37=$K$26,Funktioner!AI10,IF($Q$37=$L$26,Funktioner!AU10,\"\")))))","v":""},{"$f":"IF($H57=\"\",\"\",IF($Q$37=$I$26,Funktioner!L10,IF($Q$37=$J$26,Funktioner!X10,IF($Q$37=$K$26,Funktioner!AJ10,IF($Q$37=$L$26,Funktioner!AV10,\"\")))))","v":""},{"$f":"IF($H57=\"\",\"\",IF($Q$37=$I$26,Funktioner!M10,IF($Q$37=$J$26,Funktioner!Y10,IF($Q$37=$K$26,Funktioner!AK10,IF($Q$37=$L$26,Funktioner!AW10,\"\")))))","v":""},{"$f":"IF($H57=\"\",\"\",IF($Q$37=$I$26,Funktioner!N10,IF($Q$37=$J$26,Funktioner!Z10,IF($Q$37=$K$26,Funktioner!AL10,IF($Q$37=$L$26,Funktioner!AX10,\"\")))))","v":""},{"$f":"IF($H57=\"\",\"\",IF($Q$37=$I$26,Funktioner!O10,IF($Q$37=$J$26,Funktioner!AA10,IF($Q$37=$K$26,Funktioner!AM10,IF($Q$37=$L$26,Funktioner!AY10,\"\")))))","v":""},{"$f":"IF($H57=\"\",\"\",IF($Q$37=$I$26,Funktioner!P10,IF($Q$37=$J$26,Funktioner!AB10,IF($Q$37=$K$26,Funktioner!AN10,IF($Q$37=$L$26,Funktioner!AZ10,)))))","v":""},{"$f":"IF($H57=\"\",\"\",IF($Q$37=$I$26,Funktioner!Q10,IF($Q$37=$J$26,Funktioner!AC10,IF($Q$37=$K$26,Funktioner!AO10,IF($Q$37=$L$26,Funktioner!BA10,\"\")))))","v":""},{"$f":"IF($H57=\"\",\"\",IF($Q$37=$I$26,Funktioner!R10,IF($Q$37=$J$26,Funktioner!AD10,IF($Q$37=$K$26,Funktioner!AP10,IF($Q$37=$L$26,Funktioner!BB10,\"\")))))","v":""}]
[{"$f":"IF(Omfattning!I31<>\"\",Omfattning!$A31,\"\")","v":""},{"$f":"IF(Omfattning!T31<>\"\",Omfattning!L31,\"\")","v":""},{"$f":"IF(Omfattning!AE31<>\"\",Omfattning!W31,\"\")","v":""},{"$f":"IF(Omfattning!AP31<>\"\",Omfattning!AH31,\"\")","v":""},{"$f":"IF(Omfattning!BA31<>\"\",Omfattning!AS31,\"\")","v":""},{"$f":"IF(Omfattning!BL31<>\"\",Omfattning!BD31,\"\")","v":""},null,{"$f":"Funktioner!$H11","v":""},{"$f":"IF($H58=\"\",\"\",IF($Q$37=$I$26,Funktioner!I11,IF($Q$37=$J$26,Funktioner!U11,IF($Q$37=$K$26,Funktioner!AG11,IF($Q$37=$L$26,Funktioner!AS11,\"\")))))","v":""},{"$f":"IF($H58=\"\",\"\",IF($Q$37=$I$26,Funktioner!J11,IF($Q$37=$J$26,Funktioner!V11,IF($Q$37=$K$26,Funktioner!AH11,IF($Q$37=$L$26,Funktioner!AT11,\"\")))))","v":""},{"$f":"IF($H58=\"\",\"\",IF($Q$37=$I$26,Funktioner!K11,IF($Q$37=$J$26,Funktioner!W11,IF($Q$37=$K$26,Funktioner!AI11,IF($Q$37=$L$26,Funktioner!AU11,\"\")))))","v":""},{"$f":"IF($H58=\"\",\"\",IF($Q$37=$I$26,Funktioner!L11,IF($Q$37=$J$26,Funktioner!X11,IF($Q$37=$K$26,Funktioner!AJ11,IF($Q$37=$L$26,Funktioner!AV11,\"\")))))","v":""},{"$f":"IF($H58=\"\",\"\",IF($Q$37=$I$26,Funktioner!M11,IF($Q$37=$J$26,Funktioner!Y11,IF($Q$37=$K$26,Funktioner!AK11,IF($Q$37=$L$26,Funktioner!AW11,\"\")))))","v":""},{"$f":"IF($H58=\"\",\"\",IF($Q$37=$I$26,Funktioner!N11,IF($Q$37=$J$26,Funktioner!Z11,IF($Q$37=$K$26,Funktioner!AL11,IF($Q$37=$L$26,Funktioner!AX11,\"\")))))","v":""},{"$f":"IF($H58=\"\",\"\",IF($Q$37=$I$26,Funktioner!O11,IF($Q$37=$J$26,Funktioner!AA11,IF($Q$37=$K$26,Funktioner!AM11,IF($Q$37=$L$26,Funktioner!AY11,\"\")))))","v":""},{"$f":"IF($H58=\"\",\"\",IF($Q$37=$I$26,Funktioner!P11,IF($Q$37=$J$26,Funktioner!AB11,IF($Q$37=$K$26,Funktioner!AN11,IF($Q$37=$L$26,Funktioner!AZ11,)))))","v":""},{"$f":"IF($H58=\"\",\"\",IF($Q$37=$I$26,Funktioner!Q11,IF($Q$37=$J$26,Funktioner!AC11,IF($Q$37=$K$26,Funktioner!AO11,IF($Q$37=$L$26,Funktioner!BA11,\"\")))))","v":""},{"$f":"IF($H58=\"\",\"\",IF($Q$37=$I$26,Funktioner!R11,IF($Q$37=$J$26,Funktioner!AD11,IF($Q$37=$K$26,Funktioner!AP11,IF($Q$37=$L$26,Funktioner!BB11,\"\")))))","v":""}]
[{"$f":"IF(Omfattning!I32<>\"\",Omfattning!$A32,\"\")","v":""},{"$f":"IF(Omfattning!T32<>\"\",Omfattning!L32,\"\")","v":""},{"$f":"IF(Omfattning!AE32<>\"\",Omfattning!W32,\"\")","v":""},{"$f":"IF(Omfattning!AP32<>\"\",Omfattning!AH32,\"\")","v":""},{"$f":"IF(Omfattning!BA32<>\"\",Omfattning!AS32,\"\")","v":""},{"$f":"IF(Omfattning!BL32<>\"\",Omfattning!BD32,\"\")","v":""},null,{"$f":"Funktioner!$H12","v":""},{"$f":"IF($H59=\"\",\"\",IF($Q$37=$I$26,Funktioner!I12,IF($Q$37=$J$26,Funktioner!U12,IF($Q$37=$K$26,Funktioner!AG12,IF($Q$37=$L$26,Funktioner!AS12,\"\")))))","v":""},{"$f":"IF($H59=\"\",\"\",IF($Q$37=$I$26,Funktioner!J12,IF($Q$37=$J$26,Funktioner!V12,IF($Q$37=$K$26,Funktioner!AH12,IF($Q$37=$L$26,Funktioner!AT12,\"\")))))","v":""},{"$f":"IF($H59=\"\",\"\",IF($Q$37=$I$26,Funktioner!K12,IF($Q$37=$J$26,Funktioner!W12,IF($Q$37=$K$26,Funktioner!AI12,IF($Q$37=$L$26,Funktioner!AU12,\"\")))))","v":""},{"$f":"IF($H59=\"\",\"\",IF($Q$37=$I$26,Funktioner!L12,IF($Q$37=$J$26,Funktioner!X12,IF($Q$37=$K$26,Funktioner!AJ12,IF($Q$37=$L$26,Funktioner!AV12,\"\")))))","v":""},{"$f":"IF($H59=\"\",\"\",IF($Q$37=$I$26,Funktioner!M12,IF($Q$37=$J$26,Funktioner!Y12,IF($Q$37=$K$26,Funktioner!AK12,IF($Q$37=$L$26,Funktioner!AW12,\"\")))))","v":""},{"$f":"IF($H59=\"\",\"\",IF($Q$37=$I$26,Funktioner!N12,IF($Q$37=$J$26,Funktioner!Z12,IF($Q$37=$K$26,Funktioner!AL12,IF($Q$37=$L$26,Funktioner!AX12,\"\")))))","v":""},{"$f":"IF($H59=\"\",\"\",IF($Q$37=$I$26,Funktioner!O12,IF($Q$37=$J$26,Funktioner!AA12,IF($Q$37=$K$26,Funktioner!AM12,IF($Q$37=$L$26,Funktioner!AY12,\"\")))))","v":""},{"$f":"IF($H59=\"\",\"\",IF($Q$37=$I$26,Funktioner!P12,IF($Q$37=$J$26,Funktioner!AB12,IF($Q$37=$K$26,Funktioner!AN12,IF($Q$37=$L$26,Funktioner!AZ12,)))))","v":""},{"$f":"IF($H59=\"\",\"\",IF($Q$37=$I$26,Funktioner!Q12,IF($Q$37=$J$26,Funktioner!AC12,IF($Q$37=$K$26,Funktioner!AO12,IF($Q$37=$L$26,Funktioner!BA12,\"\")))))","v":""},{"$f":"IF($H59=\"\",\"\",IF($Q$37=$I$26,Funktioner!R12,IF($Q$37=$J$26,Funktioner!AD12,IF($Q$37=$K$26,Funktioner!AP12,IF($Q$37=$L$26,Funktioner!BB12,\"\")))))","v":""}]
[{"$f":"IF(Omfattning!I33<>\"\",Omfattning!$A33,\"\")","v":""},{"$f":"IF(Omfattning!T33<>\"\",Omfattning!L33,\"\")","v":""},{"$f":"IF(Omfattning!AE33<>\"\",Omfattning!W33,\"\")","v":""},{"$f":"IF(Omfattning!AP33<>\"\",Omfattning!AH33,\"\")","v":""},{"$f":"IF(Omfattning!BA33<>\"\",Omfattning!AS33,\"\")","v":""},{"$f":"IF(Omfattning!BL33<>\"\",Omfattning!BD33,\"\")","v":""},null,{"$f":"Funktioner!$H13","v":""},{"$f":"IF($H60=\"\",\"\",IF($Q$37=$I$26,Funktioner!I13,IF($Q$37=$J$26,Funktioner!U13,IF($Q$37=$K$26,Funktioner!AG13,IF($Q$37=$L$26,Funktioner!AS13,\"\")))))","v":""},{"$f":"IF($H60=\"\",\"\",IF($Q$37=$I$26,Funktioner!J13,IF($Q$37=$J$26,Funktioner!V13,IF($Q$37=$K$26,Funktioner!AH13,IF($Q$37=$L$26,Funktioner!AT13,\"\")))))","v":""},{"$f":"IF($H60=\"\",\"\",IF($Q$37=$I$26,Funktioner!K13,IF($Q$37=$J$26,Funktioner!W13,IF($Q$37=$K$26,Funktioner!AI13,IF($Q$37=$L$26,Funktioner!AU13,\"\")))))","v":""},{"$f":"IF($H60=\"\",\"\",IF($Q$37=$I$26,Funktioner!L13,IF($Q$37=$J$26,Funktioner!X13,IF($Q$37=$K$26,Funktioner!AJ13,IF($Q$37=$L$26,Funktioner!AV13,\"\")))))","v":""},{"$f":"IF($H60=\"\",\"\",IF($Q$37=$I$26,Funktioner!M13,IF($Q$37=$J$26,Funktioner!Y13,IF($Q$37=$K$26,Funktioner!AK13,IF($Q$37=$L$26,Funktioner!AW13,\"\")))))","v":""},{"$f":"IF($H60=\"\",\"\",IF($Q$37=$I$26,Funktioner!N13,IF($Q$37=$J$26,Funktioner!Z13,IF($Q$37=$K$26,Funktioner!AL13,IF($Q$37=$L$26,Funktioner!AX13,\"\")))))","v":""},{"$f":"IF($H60=\"\",\"\",IF($Q$37=$I$26,Funktioner!O13,IF($Q$37=$J$26,Funktioner!AA13,IF($Q$37=$K$26,Funktioner!AM13,IF($Q$37=$L$26,Funktioner!AY13,\"\")))))","v":""},{"$f":"IF($H60=\"\",\"\",IF($Q$37=$I$26,Funktioner!P13,IF($Q$37=$J$26,Funktioner!AB13,IF($Q$37=$K$26,Funktioner!AN13,IF($Q$37=$L$26,Funktioner!AZ13,)))))","v":""},{"$f":"IF($H60=\"\",\"\",IF($Q$37=$I$26,Funktioner!Q13,IF($Q$37=$J$26,Funktioner!AC13,IF($Q$37=$K$26,Funktioner!AO13,IF($Q$37=$L$26,Funktioner!BA13,\"\")))))","v":""},{"$f":"IF($H60=\"\",\"\",IF($Q$37=$I$26,Funktioner!R13,IF($Q$37=$J$26,Funktioner!AD13,IF($Q$37=$K$26,Funktioner!AP13,IF($Q$37=$L$26,Funktioner!BB13,\"\")))))","v":""}]
[{"$f":"IF(Omfattning!I34<>\"\",Omfattning!$A34,\"\")","v":""},{"$f":"IF(Omfattning!T34<>\"\",Omfattning!L34,\"\")","v":""},{"$f":"IF(Omfattning!AE34<>\"\",Omfattning!W34,\"\")","v":""},{"$f":"IF(Omfattning!AP34<>\"\",Omfattning!AH34,\"\")","v":""},{"$f":"IF(Omfattning!BA34<>\"\",Omfattning!AS34,\"\")","v":""},{"$f":"IF(Omfattning!BL34<>\"\",Omfattning!BD34,\"\")","v":""},null,{"$f":"Funktioner!$H14","v":""},{"$f":"IF($H61=\"\",\"\",IF($Q$37=$I$26,Funktioner!I14,IF($Q$37=$J$26,Funktioner!U14,IF($Q$37=$K$26,Funktioner!AG14,IF($Q$37=$L$26,Funktioner!AS14,\"\")))))","v":""},{"$f":"IF($H61=\"\",\"\",IF($Q$37=$I$26,Funktioner!J14,IF($Q$37=$J$26,Funktioner!V14,IF($Q$37=$K$26,Funktioner!AH14,IF($Q$37=$L$26,Funktioner!AT14,\"\")))))","v":""},{"$f":"IF($H61=\"\",\"\",IF($Q$37=$I$26,Funktioner!K14,IF($Q$37=$J$26,Funktioner!W14,IF($Q$37=$K$26,Funktioner!AI14,IF($Q$37=$L$26,Funktioner!AU14,\"\")))))","v":""},{"$f":"IF($H61=\"\",\"\",IF($Q$37=$I$26,Funktioner!L14,IF($Q$37=$J$26,Funktioner!X14,IF($Q$37=$K$26,Funktioner!AJ14,IF($Q$37=$L$26,Funktioner!AV14,\"\")))))","v":""},{"$f":"IF($H61=\"\",\"\",IF($Q$37=$I$26,Funktioner!M14,IF($Q$37=$J$26,Funktioner!Y14,IF($Q$37=$K$26,Funktioner!AK14,IF($Q$37=$L$26,Funktioner!AW14,\"\")))))","v":""},{"$f":"IF($H61=\"\",\"\",IF($Q$37=$I$26,Funktioner!N14,IF($Q$37=$J$26,Funktioner!Z14,IF($Q$37=$K$26,Funktioner!AL14,IF($Q$37=$L$26,Funktioner!AX14,\"\")))))","v":""},{"$f":"IF($H61=\"\",\"\",IF($Q$37=$I$26,Funktioner!O14,IF($Q$37=$J$26,Funktioner!AA14,IF($Q$37=$K$26,Funktioner!AM14,IF($Q$37=$L$26,Funktioner!AY14,\"\")))))","v":""},{"$f":"IF($H61=\"\",\"\",IF($Q$37=$I$26,Funktioner!P14,IF($Q$37=$J$26,Funktioner!AB14,IF($Q$37=$K$26,Funktioner!AN14,IF($Q$37=$L$26,Funktioner!AZ14,)))))","v":""},{"$f":"IF($H61=\"\",\"\",IF($Q$37=$I$26,Funktioner!Q14,IF($Q$37=$J$26,Funktioner!AC14,IF($Q$37=$K$26,Funktioner!AO14,IF($Q$37=$L$26,Funktioner!BA14,\"\")))))","v":""},{"$f":"IF($H61=\"\",\"\",IF($Q$37=$I$26,Funktioner!R14,IF($Q$37=$J$26,Funktioner!AD14,IF($Q$37=$K$26,Funktioner!AP14,IF($Q$37=$L$26,Funktioner!BB14,\"\")))))","v":""}]
[{"$f":"IF(Omfattning!I35<>\"\",Omfattning!$A35,\"\")","v":""},{"$f":"IF(Omfattning!T35<>\"\",Omfattning!L35,\"\")","v":""},{"$f":"IF(Omfattning!AE35<>\"\",Omfattning!W35,\"\")","v":""},{"$f":"IF(Omfattning!AP35<>\"\",Omfattning!AH35,\"\")","v":""},{"$f":"IF(Omfattning!BA35<>\"\",Omfattning!AS35,\"\")","v":""},{"$f":"IF(Omfattning!BL35<>\"\",Omfattning!BD35,\"\")","v":""},null,{"$f":"Funktioner!$H15","v":""},{"$f":"IF($H62=\"\",\"\",IF($Q$37=$I$26,Funktioner!I15,IF($Q$37=$J$26,Funktioner!U15,IF($Q$37=$K$26,Funktioner!AG15,IF($Q$37=$L$26,Funktioner!AS15,\"\")))))","v":""},{"$f":"IF($H62=\"\",\"\",IF($Q$37=$I$26,Funktioner!J15,IF($Q$37=$J$26,Funktioner!V15,IF($Q$37=$K$26,Funktioner!AH15,IF($Q$37=$L$26,Funktioner!AT15,\"\")))))","v":""},{"$f":"IF($H62=\"\",\"\",IF($Q$37=$I$26,Funktioner!K15,IF($Q$37=$J$26,Funktioner!W15,IF($Q$37=$K$26,Funktioner!AI15,IF($Q$37=$L$26,Funktioner!AU15,\"\")))))","v":""},{"$f":"IF($H62=\"\",\"\",IF($Q$37=$I$26,Funktioner!L15,IF($Q$37=$J$26,Funktioner!X15,IF($Q$37=$K$26,Funktioner!AJ15,IF($Q$37=$L$26,Funktioner!AV15,\"\")))))","v":""},{"$f":"IF($H62=\"\",\"\",IF($Q$37=$I$26,Funktioner!M15,IF($Q$37=$J$26,Funktioner!Y15,IF($Q$37=$K$26,Funktioner!AK15,IF($Q$37=$L$26,Funktioner!AW15,\"\")))))","v":""},{"$f":"IF($H62=\"\",\"\",IF($Q$37=$I$26,Funktioner!N15,IF($Q$37=$J$26,Funktioner!Z15,IF($Q$37=$K$26,Funktioner!AL15,IF($Q$37=$L$26,Funktioner!AX15,\"\")))))","v":""},{"$f":"IF($H62=\"\",\"\",IF($Q$37=$I$26,Funktioner!O15,IF($Q$37=$J$26,Funktioner!AA15,IF($Q$37=$K$26,Funktioner!AM15,IF($Q$37=$L$26,Funktioner!AY15,\"\")))))","v":""},{"$f":"IF($H62=\"\",\"\",IF($Q$37=$I$26,Funktioner!P15,IF($Q$37=$J$26,Funktioner!AB15,IF($Q$37=$K$26,Funktioner!AN15,IF($Q$37=$L$26,Funktioner!AZ15,)))))","v":""},{"$f":"IF($H62=\"\",\"\",IF($Q$37=$I$26,Funktioner!Q15,IF($Q$37=$J$26,Funktioner!AC15,IF($Q$37=$K$26,Funktioner!AO15,IF($Q$37=$L$26,Funktioner!BA15,\"\")))))","v":""},{"$f":"IF($H62=\"\",\"\",IF($Q$37=$I$26,Funktioner!R15,IF($Q$37=$J$26,Funktioner!AD15,IF($Q$37=$K$26,Funktioner!AP15,IF($Q$37=$L$26,Funktioner!BB15,\"\")))))","v":""}]
[{"$f":"IF(Omfattning!I36<>\"\",Omfattning!$A36,\"\")","v":""},{"$f":"IF(Omfattning!T36<>\"\",Omfattning!L36,\"\")","v":""},{"$f":"IF(Omfattning!AE36<>\"\",Omfattning!W36,\"\")","v":""},{"$f":"IF(Omfattning!AP36<>\"\",Omfattning!AH36,\"\")","v":""},{"$f":"IF(Omfattning!BA36<>\"\",Omfattning!AS36,\"\")","v":""},{"$f":"IF(Omfattning!BL36<>\"\",Omfattning!BD36,\"\")","v":""},null,{"$f":"Funktioner!$H16","v":""},{"$f":"IF($H63=\"\",\"\",IF($Q$37=$I$26,Funktioner!I16,IF($Q$37=$J$26,Funktioner!U16,IF($Q$37=$K$26,Funktioner!AG16,IF($Q$37=$L$26,Funktioner!AS16,\"\")))))","v":""},{"$f":"IF($H63=\"\",\"\",IF($Q$37=$I$26,Funktioner!J16,IF($Q$37=$J$26,Funktioner!V16,IF($Q$37=$K$26,Funktioner!AH16,IF($Q$37=$L$26,Funktioner!AT16,\"\")))))","v":""},{"$f":"IF($H63=\"\",\"\",IF($Q$37=$I$26,Funktioner!K16,IF($Q$37=$J$26,Funktioner!W16,IF($Q$37=$K$26,Funktioner!AI16,IF($Q$37=$L$26,Funktioner!AU16,\"\")))))","v":""},{"$f":"IF($H63=\"\",\"\",IF($Q$37=$I$26,Funktioner!L16,IF($Q$37=$J$26,Funktioner!X16,IF($Q$37=$K$26,Funktioner!AJ16,IF($Q$37=$L$26,Funktioner!AV16,\"\")))))","v":""},{"$f":"IF($H63=\"\",\"\",IF($Q$37=$I$26,Funktioner!M16,IF($Q$37=$J$26,Funktioner!Y16,IF($Q$37=$K$26,Funktioner!AK16,IF($Q$37=$L$26,Funktioner!AW16,\"\")))))","v":""},{"$f":"IF($H63=\"\",\"\",IF($Q$37=$I$26,Funktioner!N16,IF($Q$37=$J$26,Funktioner!Z16,IF($Q$37=$K$26,Funktioner!AL16,IF($Q$37=$L$26,Funktioner!AX16,\"\")))))","v":""},{"$f":"IF($H63=\"\",\"\",IF($Q$37=$I$26,Funktioner!O16,IF($Q$37=$J$26,Funktioner!AA16,IF($Q$37=$K$26,Funktioner!AM16,IF($Q$37=$L$26,Funktioner!AY16,\"\")))))","v":""},{"$f":"IF($H63=\"\",\"\",IF($Q$37=$I$26,Funktioner!P16,IF($Q$37=$J$26,Funktioner!AB16,IF($Q$37=$K$26,Funktioner!AN16,IF($Q$37=$L$26,Funktioner!AZ16,)))))","v":""},{"$f":"IF($H63=\"\",\"\",IF($Q$37=$I$26,Funktioner!Q16,IF($Q$37=$J$26,Funktioner!AC16,IF($Q$37=$K$26,Funktioner!AO16,IF($Q$37=$L$26,Funktioner!BA16,\"\")))))","v":""},{"$f":"IF($H63=\"\",\"\",IF($Q$37=$I$26,Funktioner!R16,IF($Q$37=$J$26,Funktioner!AD16,IF($Q$37=$K$26,Funktioner!AP16,IF($Q$37=$L$26,Funktioner!BB16,\"\")))))","v":""}]
[{"$f":"IF(Omfattning!I37<>\"\",Omfattning!$A37,\"\")","v":""},{"$f":"IF(Omfattning!T37<>\"\",Omfattning!L37,\"\")","v":""},{"$f":"IF(Omfattning!AE37<>\"\",Omfattning!W37,\"\")","v":""},{"$f":"IF(Omfattning!AP37<>\"\",Omfattning!AH37,\"\")","v":""},{"$f":"IF(Omfattning!BA37<>\"\",Omfattning!AS37,\"\")","v":""},{"$f":"IF(Omfattning!BL37<>\"\",Omfattning!BD37,\"\")","v":""},null,{"$f":"Funktioner!$H17","v":""},{"$f":"IF($H64=\"\",\"\",IF($Q$37=$I$26,Funktioner!I17,IF($Q$37=$J$26,Funktioner!U17,IF($Q$37=$K$26,Funktioner!AG17,IF($Q$37=$L$26,Funktioner!AS17,\"\")))))","v":""},{"$f":"IF($H64=\"\",\"\",IF($Q$37=$I$26,Funktioner!J17,IF($Q$37=$J$26,Funktioner!V17,IF($Q$37=$K$26,Funktioner!AH17,IF($Q$37=$L$26,Funktioner!AT17,\"\")))))","v":""},{"$f":"IF($H64=\"\",\"\",IF($Q$37=$I$26,Funktioner!K17,IF($Q$37=$J$26,Funktioner!W17,IF($Q$37=$K$26,Funktioner!AI17,IF($Q$37=$L$26,Funktioner!AU17,\"\")))))","v":""},{"$f":"IF($H64=\"\",\"\",IF($Q$37=$I$26,Funktioner!L17,IF($Q$37=$J$26,Funktioner!X17,IF($Q$37=$K$26,Funktioner!AJ17,IF($Q$37=$L$26,Funktioner!AV17,\"\")))))","v":""},{"$f":"IF($H64=\"\",\"\",IF($Q$37=$I$26,Funktioner!M17,IF($Q$37=$J$26,Funktioner!Y17,IF($Q$37=$K$26,Funktioner!AK17,IF($Q$37=$L$26,Funktioner!AW17,\"\")))))","v":""},{"$f":"IF($H64=\"\",\"\",IF($Q$37=$I$26,Funktioner!N17,IF($Q$37=$J$26,Funktioner!Z17,IF($Q$37=$K$26,Funktioner!AL17,IF($Q$37=$L$26,Funktioner!AX17,\"\")))))","v":""},{"$f":"IF($H64=\"\",\"\",IF($Q$37=$I$26,Funktioner!O17,IF($Q$37=$J$26,Funktioner!AA17,IF($Q$37=$K$26,Funktioner!AM17,IF($Q$37=$L$26,Funktioner!AY17,\"\")))))","v":""},{"$f":"IF($H64=\"\",\"\",IF($Q$37=$I$26,Funktioner!P17,IF($Q$37=$J$26,Funktioner!AB17,IF($Q$37=$K$26,Funktioner!AN17,IF($Q$37=$L$26,Funktioner!AZ17,)))))","v":""},{"$f":"IF($H64=\"\",\"\",IF($Q$37=$I$26,Funktioner!Q17,IF($Q$37=$J$26,Funktioner!AC17,IF($Q$37=$K$26,Funktioner!AO17,IF($Q$37=$L$26,Funktioner!BA17,\"\")))))","v":""},{"$f":"IF($H64=\"\",\"\",IF($Q$37=$I$26,Funktioner!R17,IF($Q$37=$J$26,Funktioner!AD17,IF($Q$37=$K$26,Funktioner!AP17,IF($Q$37=$L$26,Funktioner!BB17,\"\")))))","v":""}]
[{"$f":"IF(Omfattning!I38<>\"\",Omfattning!$A38,\"\")","v":""},{"$f":"IF(Omfattning!T38<>\"\",Omfattning!L38,\"\")","v":""},{"$f":"IF(Omfattning!AE38<>\"\",Omfattning!W38,\"\")","v":""},{"$f":"IF(Omfattning!AP38<>\"\",Omfattning!AH38,\"\")","v":""},{"$f":"IF(Omfattning!BA38<>\"\",Omfattning!AS38,\"\")","v":""},{"$f":"IF(Omfattning!BL38<>\"\",Omfattning!BD38,\"\")","v":""},null,{"$f":"Funktioner!$H18","v":""},{"$f":"IF($H65=\"\",\"\",IF($Q$37=$I$26,Funktioner!I18,IF($Q$37=$J$26,Funktioner!U18,IF($Q$37=$K$26,Funktioner!AG18,IF($Q$37=$L$26,Funktioner!AS18,\"\")))))","v":""},{"$f":"IF($H65=\"\",\"\",IF($Q$37=$I$26,Funktioner!J18,IF($Q$37=$J$26,Funktioner!V18,IF($Q$37=$K$26,Funktioner!AH18,IF($Q$37=$L$26,Funktioner!AT18,\"\")))))","v":""},{"$f":"IF($H65=\"\",\"\",IF($Q$37=$I$26,Funktioner!K18,IF($Q$37=$J$26,Funktioner!W18,IF($Q$37=$K$26,Funktioner!AI18,IF($Q$37=$L$26,Funktioner!AU18,\"\")))))","v":""},{"$f":"IF($H65=\"\",\"\",IF($Q$37=$I$26,Funktioner!L18,IF($Q$37=$J$26,Funktioner!X18,IF($Q$37=$K$26,Funktioner!AJ18,IF($Q$37=$L$26,Funktioner!AV18,\"\")))))","v":""},{"$f":"IF($H65=\"\",\"\",IF($Q$37=$I$26,Funktioner!M18,IF($Q$37=$J$26,Funktioner!Y18,IF($Q$37=$K$26,Funktioner!AK18,IF($Q$37=$L$26,Funktioner!AW18,\"\")))))","v":""},{"$f":"IF($H65=\"\",\"\",IF($Q$37=$I$26,Funktioner!N18,IF($Q$37=$J$26,Funktioner!Z18,IF($Q$37=$K$26,Funktioner!AL18,IF($Q$37=$L$26,Funktioner!AX18,\"\")))))","v":""},{"$f":"IF($H65=\"\",\"\",IF($Q$37=$I$26,Funktioner!O18,IF($Q$37=$J$26,Funktioner!AA18,IF($Q$37=$K$26,Funktioner!AM18,IF($Q$37=$L$26,Funktioner!AY18,\"\")))))","v":""},{"$f":"IF($H65=\"\",\"\",IF($Q$37=$I$26,Funktioner!P18,IF($Q$37=$J$26,Funktioner!AB18,IF($Q$37=$K$26,Funktioner!AN18,IF($Q$37=$L$26,Funktioner!AZ18,)))))","v":""},{"$f":"IF($H65=\"\",\"\",IF($Q$37=$I$26,Funktioner!Q18,IF($Q$37=$J$26,Funktioner!AC18,IF($Q$37=$K$26,Funktioner!AO18,IF($Q$37=$L$26,Funktioner!BA18,\"\")))))","v":""},{"$f":"IF($H65=\"\",\"\",IF($Q$37=$I$26,Funktioner!R18,IF($Q$37=$J$26,Funktioner!AD18,IF($Q$37=$K$26,Funktioner!AP18,IF($Q$37=$L$26,Funktioner!BB18,\"\")))))","v":""}]
[{"$f":"IF(Omfattning!I39<>\"\",Omfattning!$A39,\"\")","v":""},{"$f":"IF(Omfattning!T39<>\"\",Omfattning!L39,\"\")","v":""},{"$f":"IF(Omfattning!AE39<>\"\",Omfattning!W39,\"\")","v":""},{"$f":"IF(Omfattning!AP39<>\"\",Omfattning!AH39,\"\")","v":""},{"$f":"IF(Omfattning!BA39<>\"\",Omfattning!AS39,\"\")","v":""},{"$f":"IF(Omfattning!BL39<>\"\",Omfattning!BD39,\"\")","v":""},null,{"$f":"Funktioner!$H19","v":""},{"$f":"IF($H66=\"\",\"\",IF($Q$37=$I$26,Funktioner!I19,IF($Q$37=$J$26,Funktioner!U19,IF($Q$37=$K$26,Funktioner!AG19,IF($Q$37=$L$26,Funktioner!AS19,\"\")))))","v":""},{"$f":"IF($H66=\"\",\"\",IF($Q$37=$I$26,Funktioner!J19,IF($Q$37=$J$26,Funktioner!V19,IF($Q$37=$K$26,Funktioner!AH19,IF($Q$37=$L$26,Funktioner!AT19,\"\")))))","v":""},{"$f":"IF($H66=\"\",\"\",IF($Q$37=$I$26,Funktioner!K19,IF($Q$37=$J$26,Funktioner!W19,IF($Q$37=$K$26,Funktioner!AI19,IF($Q$37=$L$26,Funktioner!AU19,\"\")))))","v":""},{"$f":"IF($H66=\"\",\"\",IF($Q$37=$I$26,Funktioner!L19,IF($Q$37=$J$26,Funktioner!X19,IF($Q$37=$K$26,Funktioner!AJ19,IF($Q$37=$L$26,Funktioner!AV19,\"\")))))","v":""},{"$f":"IF($H66=\"\",\"\",IF($Q$37=$I$26,Funktioner!M19,IF($Q$37=$J$26,Funktioner!Y19,IF($Q$37=$K$26,Funktioner!AK19,IF($Q$37=$L$26,Funktioner!AW19,\"\")))))","v":""},{"$f":"IF($H66=\"\",\"\",IF($Q$37=$I$26,Funktioner!N19,IF($Q$37=$J$26,Funktioner!Z19,IF($Q$37=$K$26,Funktioner!AL19,IF($Q$37=$L$26,Funktioner!AX19,\"\")))))","v":""},{"$f":"IF($H66=\"\",\"\",IF($Q$37=$I$26,Funktioner!O19,IF($Q$37=$J$26,Funktioner!AA19,IF($Q$37=$K$26,Funktioner!AM19,IF($Q$37=$L$26,Funktioner!AY19,\"\")))))","v":""},{"$f":"IF($H66=\"\",\"\",IF($Q$37=$I$26,Funktioner!P19,IF($Q$37=$J$26,Funktioner!AB19,IF($Q$37=$K$26,Funktioner!AN19,IF($Q$37=$L$26,Funktioner!AZ19,)))))","v":""},{"$f":"IF($H66=\"\",\"\",IF($Q$37=$I$26,Funktioner!Q19,IF($Q$37=$J$26,Funktioner!AC19,IF($Q$37=$K$26,Funktioner!AO19,IF($Q$37=$L$26,Funktioner!BA19,\"\")))))","v":""},{"$f":"IF($H66=\"\",\"\",IF($Q$37=$I$26,Funktioner!R19,IF($Q$37=$J$26,Funktioner!AD19,IF($Q$37=$K$26,Funktioner!AP19,IF($Q$37=$L$26,Funktioner!BB19,\"\")))))","v":""}]
[{"$f":"IF(Omfattning!I40<>\"\",Omfattning!$A40,\"\")","v":""},{"$f":"IF(Omfattning!T40<>\"\",Omfattning!L40,\"\")","v":""},{"$f":"IF(Omfattning!AE40<>\"\",Omfattning!W40,\"\")","v":""},{"$f":"IF(Omfattning!AP40<>\"\",Omfattning!AH40,\"\")","v":""},{"$f":"IF(Omfattning!BA40<>\"\",Omfattning!AS40,\"\")","v":""},{"$f":"IF(Omfattning!BL40<>\"\",Omfattning!BD40,\"\")","v":""},null,{"$f":"Funktioner!$H20","v":""},{"$f":"IF($H67=\"\",\"\",IF($Q$37=$I$26,Funktioner!I20,IF($Q$37=$J$26,Funktioner!U20,IF($Q$37=$K$26,Funktioner!AG20,IF($Q$37=$L$26,Funktioner!AS20,\"\")))))","v":""},{"$f":"IF($H67=\"\",\"\",IF($Q$37=$I$26,Funktioner!J20,IF($Q$37=$J$26,Funktioner!V20,IF($Q$37=$K$26,Funktioner!AH20,IF($Q$37=$L$26,Funktioner!AT20,\"\")))))","v":""},{"$f":"IF($H67=\"\",\"\",IF($Q$37=$I$26,Funktioner!K20,IF($Q$37=$J$26,Funktioner!W20,IF($Q$37=$K$26,Funktioner!AI20,IF($Q$37=$L$26,Funktioner!AU20,\"\")))))","v":""},{"$f":"IF($H67=\"\",\"\",IF($Q$37=$I$26,Funktioner!L20,IF($Q$37=$J$26,Funktioner!X20,IF($Q$37=$K$26,Funktioner!AJ20,IF($Q$37=$L$26,Funktioner!AV20,\"\")))))","v":""},{"$f":"IF($H67=\"\",\"\",IF($Q$37=$I$26,Funktioner!M20,IF($Q$37=$J$26,Funktioner!Y20,IF($Q$37=$K$26,Funktioner!AK20,IF($Q$37=$L$26,Funktioner!AW20,\"\")))))","v":""},{"$f":"IF($H67=\"\",\"\",IF($Q$37=$I$26,Funktioner!N20,IF($Q$37=$J$26,Funktioner!Z20,IF($Q$37=$K$26,Funktioner!AL20,IF($Q$37=$L$26,Funktioner!AX20,\"\")))))","v":""},{"$f":"IF($H67=\"\",\"\",IF($Q$37=$I$26,Funktioner!O20,IF($Q$37=$J$26,Funktioner!AA20,IF($Q$37=$K$26,Funktioner!AM20,IF($Q$37=$L$26,Funktioner!AY20,\"\")))))","v":""},{"$f":"IF($H67=\"\",\"\",IF($Q$37=$I$26,Funktioner!P20,IF($Q$37=$J$26,Funktioner!AB20,IF($Q$37=$K$26,Funktioner!AN20,IF($Q$37=$L$26,Funktioner!AZ20,)))))","v":""},{"$f":"IF($H67=\"\",\"\",IF($Q$37=$I$26,Funktioner!Q20,IF($Q$37=$J$26,Funktioner!AC20,IF($Q$37=$K$26,Funktioner!AO20,IF($Q$37=$L$26,Funktioner!BA20,\"\")))))","v":""},{"$f":"IF($H67=\"\",\"\",IF($Q$37=$I$26,Funktioner!R20,IF($Q$37=$J$26,Funktioner!AD20,IF($Q$37=$K$26,Funktioner!AP20,IF($Q$37=$L$26,Funktioner!BB20,\"\")))))","v":""}]
[{"$f":"IF(Omfattning!I41<>\"\",Omfattning!$A41,\"\")","v":""},{"$f":"IF(Omfattning!T41<>\"\",Omfattning!L41,\"\")","v":""},{"$f":"IF(Omfattning!AE41<>\"\",Omfattning!W41,\"\")","v":""},{"$f":"IF(Omfattning!AP41<>\"\",Omfattning!AH41,\"\")","v":""},{"$f":"IF(Omfattning!BA41<>\"\",Omfattning!AS41,\"\")","v":""},{"$f":"IF(Omfattning!BL41<>\"\",Omfattning!BD41,\"\")","v":""},null,{"$f":"Funktioner!$H21","v":""},{"$f":"IF($H68=\"\",\"\",IF($Q$37=$I$26,Funktioner!I21,IF($Q$37=$J$26,Funktioner!U21,IF($Q$37=$K$26,Funktioner!AG21,IF($Q$37=$L$26,Funktioner!AS21,\"\")))))","v":""},{"$f":"IF($H68=\"\",\"\",IF($Q$37=$I$26,Funktioner!J21,IF($Q$37=$J$26,Funktioner!V21,IF($Q$37=$K$26,Funktioner!AH21,IF($Q$37=$L$26,Funktioner!AT21,\"\")))))","v":""},{"$f":"IF($H68=\"\",\"\",IF($Q$37=$I$26,Funktioner!K21,IF($Q$37=$J$26,Funktioner!W21,IF($Q$37=$K$26,Funktioner!AI21,IF($Q$37=$L$26,Funktioner!AU21,\"\")))))","v":""},{"$f":"IF($H68=\"\",\"\",IF($Q$37=$I$26,Funktioner!L21,IF($Q$37=$J$26,Funktioner!X21,IF($Q$37=$K$26,Funktioner!AJ21,IF($Q$37=$L$26,Funktioner!AV21,\"\")))))","v":""},{"$f":"IF($H68=\"\",\"\",IF($Q$37=$I$26,Funktioner!M21,IF($Q$37=$J$26,Funktioner!Y21,IF($Q$37=$K$26,Funktioner!AK21,IF($Q$37=$L$26,Funktioner!AW21,\"\")))))","v":""},{"$f":"IF($H68=\"\",\"\",IF($Q$37=$I$26,Funktioner!N21,IF($Q$37=$J$26,Funktioner!Z21,IF($Q$37=$K$26,Funktioner!AL21,IF($Q$37=$L$26,Funktioner!AX21,\"\")))))","v":""},{"$f":"IF($H68=\"\",\"\",IF($Q$37=$I$26,Funktioner!O21,IF($Q$37=$J$26,Funktioner!AA21,IF($Q$37=$K$26,Funktioner!AM21,IF($Q$37=$L$26,Funktioner!AY21,\"\")))))","v":""},{"$f":"IF($H68=\"\",\"\",IF($Q$37=$I$26,Funktioner!P21,IF($Q$37=$J$26,Funktioner!AB21,IF($Q$37=$K$26,Funktioner!AN21,IF($Q$37=$L$26,Funktioner!AZ21,)))))","v":""},{"$f":"IF($H68=\"\",\"\",IF($Q$37=$I$26,Funktioner!Q21,IF($Q$37=$J$26,Funktioner!AC21,IF($Q$37=$K$26,Funktioner!AO21,IF($Q$37=$L$26,Funktioner!BA21,\"\")))))","v":""},{"$f":"IF($H68=\"\",\"\",IF($Q$37=$I$26,Funktioner!R21,IF($Q$37=$J$26,Funktioner!AD21,IF($Q$37=$K$26,Funktioner!AP21,IF($Q$37=$L$26,Funktioner!BB21,\"\")))))","v":""}]
[{"$f":"IF(Omfattning!I42<>\"\",Omfattning!$A42,\"\")","v":""},{"$f":"IF(Omfattning!T42<>\"\",Omfattning!L42,\"\")","v":""},{"$f":"IF(Omfattning!AE42<>\"\",Omfattning!W42,\"\")","v":""},{"$f":"IF(Omfattning!AP42<>\"\",Omfattning!AH42,\"\")","v":""},{"$f":"IF(Omfattning!BA42<>\"\",Omfattning!AS42,\"\")","v":""},{"$f":"IF(Omfattning!BL42<>\"\",Omfattning!BD42,\"\")","v":""},null,{"$f":"Funktioner!$H22","v":""},{"$f":"IF($H69=\"\",\"\",IF($Q$37=$I$26,Funktioner!I22,IF($Q$37=$J$26,Funktioner!U22,IF($Q$37=$K$26,Funktioner!AG22,IF($Q$37=$L$26,Funktioner!AS22,\"\")))))","v":""},{"$f":"IF($H69=\"\",\"\",IF($Q$37=$I$26,Funktioner!J22,IF($Q$37=$J$26,Funktioner!V22,IF($Q$37=$K$26,Funktioner!AH22,IF($Q$37=$L$26,Funktioner!AT22,\"\")))))","v":""},{"$f":"IF($H69=\"\",\"\",IF($Q$37=$I$26,Funktioner!K22,IF($Q$37=$J$26,Funktioner!W22,IF($Q$37=$K$26,Funktioner!AI22,IF($Q$37=$L$26,Funktioner!AU22,\"\")))))","v":""},{"$f":"IF($H69=\"\",\"\",IF($Q$37=$I$26,Funktioner!L22,IF($Q$37=$J$26,Funktioner!X22,IF($Q$37=$K$26,Funktioner!AJ22,IF($Q$37=$L$26,Funktioner!AV22,\"\")))))","v":""},{"$f":"IF($H69=\"\",\"\",IF($Q$37=$I$26,Funktioner!M22,IF($Q$37=$J$26,Funktioner!Y22,IF($Q$37=$K$26,Funktioner!AK22,IF($Q$37=$L$26,Funktioner!AW22,\"\")))))","v":""},{"$f":"IF($H69=\"\",\"\",IF($Q$37=$I$26,Funktioner!N22,IF($Q$37=$J$26,Funktioner!Z22,IF($Q$37=$K$26,Funktioner!AL22,IF($Q$37=$L$26,Funktioner!AX22,\"\")))))","v":""},{"$f":"IF($H69=\"\",\"\",IF($Q$37=$I$26,Funktioner!O22,IF($Q$37=$J$26,Funktioner!AA22,IF($Q$37=$K$26,Funktioner!AM22,IF($Q$37=$L$26,Funktioner!AY22,\"\")))))","v":""},{"$f":"IF($H69=\"\",\"\",IF($Q$37=$I$26,Funktioner!P22,IF($Q$37=$J$26,Funktioner!AB22,IF($Q$37=$K$26,Funktioner!AN22,IF($Q$37=$L$26,Funktioner!AZ22,)))))","v":""},{"$f":"IF($H69=\"\",\"\",IF($Q$37=$I$26,Funktioner!Q22,IF($Q$37=$J$26,Funktioner!AC22,IF($Q$37=$K$26,Funktioner!AO22,IF($Q$37=$L$26,Funktioner!BA22,\"\")))))","v":""},{"$f":"IF($H69=\"\",\"\",IF($Q$37=$I$26,Funktioner!R22,IF($Q$37=$J$26,Funktioner!AD22,IF($Q$37=$K$26,Funktioner!AP22,IF($Q$37=$L$26,Funktioner!BB22,\"\")))))","v":""}]
[{"$f":"IF(Omfattning!I43<>\"\",Omfattning!$A43,\"\")","v":""},{"$f":"IF(Omfattning!T43<>\"\",Omfattning!L43,\"\")","v":""},{"$f":"IF(Omfattning!AE43<>\"\",Omfattning!W43,\"\")","v":""},{"$f":"IF(Omfattning!AP43<>\"\",Omfattning!AH43,\"\")","v":""},{"$f":"IF(Omfattning!BA43<>\"\",Omfattning!AS43,\"\")","v":""},{"$f":"IF(Omfattning!BL43<>\"\",Omfattning!BD43,\"\")","v":""},null,null,null,null,null,null,null,null,null,null,null,{"$f":"SUM(R50:R69)","v":0}]
[{"$f":"IF(Omfattning!I44<>\"\",Omfattning!$A44,\"\")","v":""},{"$f":"IF(Omfattning!T44<>\"\",Omfattning!L44,\"\")","v":""},{"$f":"IF(Omfattning!AE44<>\"\",Omfattning!W44,\"\")","v":""},{"$f":"IF(Omfattning!AP44<>\"\",Omfattning!AH44,\"\")","v":""},{"$f":"IF(Omfattning!BA44<>\"\",Omfattning!AS44,\"\")","v":""},{"$f":"IF(Omfattning!BL44<>\"\",Omfattning!BD44,\"\")","v":""}]
[{"$f":"IF(Omfattning!I45<>\"\",Omfattning!$A45,\"\")","v":""},{"$f":"IF(Omfattning!T45<>\"\",Omfattning!L45,\"\")","v":""},{"$f":"IF(Omfattning!AE45<>\"\",Omfattning!W45,\"\")","v":""},{"$f":"IF(Omfattning!AP45<>\"\",Omfattning!AH45,\"\")","v":""},{"$f":"IF(Omfattning!BA45<>\"\",Omfattning!AS45,\"\")","v":""},{"$f":"IF(Omfattning!BL45<>\"\",Omfattning!BD45,\"\")","v":""}]
[{"$f":"IF(Omfattning!I46<>\"\",Omfattning!$A46,\"\")","v":""},{"$f":"IF(Omfattning!T46<>\"\",Omfattning!L46,\"\")","v":""},{"$f":"IF(Omfattning!AE46<>\"\",Omfattning!W46,\"\")","v":""},{"$f":"IF(Omfattning!AP46<>\"\",Omfattning!AH46,\"\")","v":""},{"$f":"IF(Omfattning!BA46<>\"\",Omfattning!AS46,\"\")","v":""},{"$f":"IF(Omfattning!BL46<>\"\",Omfattning!BD46,\"\")","v":""},null,"Varans position","Benämning","Storlek","Ytvikt (g/m2)","Kvalitet","Hålning","Artikelnamn  ","Artikelnummer   ","Pris per kartong","Leveranstid (Arbetsdagar)","Totalpris"]
[{"$f":"IF(Omfattning!I47<>\"\",Omfattning!$A47,\"\")","v":""},{"$f":"IF(Omfattning!T47<>\"\",Omfattning!L47,\"\")","v":""},{"$f":"IF(Omfattning!AE47<>\"\",Omfattning!W47,\"\")","v":""},{"$f":"IF(Omfattning!AP47<>\"\",Omfattning!AH47,\"\")","v":""},{"$f":"IF(Omfattning!BA47<>\"\",Omfattning!AS47,\"\")","v":""},{"$f":"IF(Omfattning!BL47<>\"\",Omfattning!BD47,\"\")","v":""},null,{"$f":"IF($R$70>240000000,\"\",H50)","v":""},"","","","","","","","","",""]
[{"$f":"IF(Omfattning!I48<>\"\",Omfattning!$A48,\"\")","v":""},{"$f":"IF(Omfattning!T48<>\"\",Omfattning!L48,\"\")","v":""},{"$f":"IF(Omfattning!AE48<>\"\",Omfattning!W48,\"\")","v":""},{"$f":"IF(Omfattning!AP48<>\"\",Omfattning!AH48,\"\")","v":""},{"$f":"IF(Omfattning!BA48<>\"\",Omfattning!AS48,\"\")","v":""},{"$f":"IF(Omfattning!BL48<>\"\",Omfattning!BD48,\"\")","v":""},null,{"$f":"IF($R$70>240000000,\"\",H51)","v":""},"","","","","","","","",{"$f":"IF($R$70>240000000,\"\",Q51)","v":""},{"$f":"IF($R$70>240000000,\"\",R51)","v":""}]
[{"$f":"IF(Omfattning!I49<>\"\",Omfattning!$A49,\"\")","v":""},{"$f":"IF(Omfattning!T49<>\"\",Omfattning!L49,\"\")","v":""},{"$f":"IF(Omfattning!AE49<>\"\",Omfattning!W49,\"\")","v":""},{"$f":"IF(Omfattning!AP49<>\"\",Omfattning!AH49,\"\")","v":""},{"$f":"IF(Omfattning!BA49<>\"\",Omfattning!AS49,\"\")","v":""},{"$f":"IF(Omfattning!BL49<>\"\",Omfattning!BD49,\"\")","v":""},null,{"$f":"IF($R$70>240000000,\"\",H52)","v":""},"","","","","","","","","",""]
[{"$f":"IF(Omfattning!I50<>\"\",Omfattning!$A50,\"\")","v":""},{"$f":"IF(Omfattning!T50<>\"\",Omfattning!L50,\"\")","v":""},{"$f":"IF(Omfattning!AE50<>\"\",Omfattning!W50,\"\")","v":""},{"$f":"IF(Omfattning!AP50<>\"\",Omfattning!AH50,\"\")","v":""},{"$f":"IF(Omfattning!BA50<>\"\",Omfattning!AS50,\"\")","v":""},{"$f":"IF(Omfattning!BL50<>\"\",Omfattning!BD50,\"\")","v":""},null,{"$f":"IF($R$70>240000000,\"\",H53)","v":""},"","","","","","","","","",""]
[null,null,null,null,null,null,null,{"$f":"IF($R$70>240000000,\"\",H54)","v":""},"","","","","","","","","",""]
[null,null,null,null,null,null,null,{"$f":"IF($R$70>240000000,\"\",H55)","v":""},"","","","","","","","","",""]
[null,null,null,null,null,null,null,{"$f":"IF($R$70>240000000,\"\",H56)","v":""},"","","","","","","","","",""]
[null,null,null,null,null,null,null,{"$f":"IF($R$70>240000000,\"\",H57)","v":""},"","","","","","","","","",""]
[null,null,null,null,null,null,null,{"$f":"IF($R$70>240000000,\"\",H58)","v":""},"","","","","","","","","",""]
[null,null,null,null,null,null,null,{"$f":"IF($R$70>240000000,\"\",H59)","v":""},"","","","","","","","","",""]
[null,null,null,null,null,null,null,{"$f":"IF($R$70>240000000,\"\",H60)","v":""},"","","","","","","","","",""]
[null,null,null,null,null,null,null,{"$f":"IF($R$70>240000000,\"\",H61)","v":""},"","","","","","","","","",""]
[null,null,null,null,null,null,null,{"$f":"IF($R$70>240000000,\"\",H62)","v":""},"","","","","","","","","",""]
[null,null,null,null,null,null,null,{"$f":"IF($R$70>240000000,\"\",H63)","v":""},"","","","","","","","","",""]
[null,null,null,null,null,null,null,{"$f":"IF($R$70>240000000,\"\",H64)","v":""},"","","","","","","","","",""]
[null,null,null,null,null,null,null,{"$f":"IF($R$70>240000000,\"\",H65)","v":""},"","","","","","","","","",""]
[null,null,null,null,null,null,null,{"$f":"IF($R$70>240000000,\"\",H66)","v":""},"","","","","","","","","",""]
[null,null,null,null,null,null,null,{"$f":"IF($R$70>240000000,\"\",H67)","v":""},"","","","","","","","","",""]
[null,null,null,null,null,null,null,{"$f":"IF($R$70>240000000,\"\",H68)","v":""},"","","","","","","","","",""]
[null,null,"Vitt kopieringspapper - storpack","2500 lösa ark per kartong",null,null,null,{"$f":"IF($R$70>240000000,\"\",H69)","v":""},"","","","","","","","","",""]
[null,null,"Annars:","500 ark per paket (2500 ark per kartong)",null,null,null,null,null,null,null,null,null,null,null,null,null,{"$f":"SUM(R74:R93)","v":0}]
[]
[]
[]
[]
["Rullistan","Vitt kopieringspapper",{"$f":"IF(Uträkningsmall!$B13=$B$99,\"Vitt_kopieringspapper\",IF(Uträkningsmall!$B13=$B$100,\"Storpack\",IF(Uträkningsmall!$B13=$B$101,\"Fyrfärg\",IF(Uträkningsmall!$B13=$B$102,\"Färgat_papper\",IF(Uträkningsmall!$B13=$B$103,\"Arkivbeständigt\",\"\")))))","v":""},{"$f":"IF($F99=\"Färgat_A3\",\"Färgat_A3_kvalitet\",IF(Uträkningsmall!$B13=$B$99,\"Vitt_Kvalitet\",IF(Uträkningsmall!$B13=$B$100,\"Vitt_Kvalitet\",IF(Uträkningsmall!$B13=$B$101,\"Fyrfärg_Kvalitet\",IF(Uträkningsmall!$B13=$B$102,\"Färgat_Kvalitet\",IF(Uträkningsmall!$B13=$B$103,\"Arkivbeständigt_kvalitet\",\"\"))))))","v":""},{"$f":"IF(Uträkningsmall!$B13=$B$101,\"Fyrfärg_hålning\",IF(Uträkningsmall!$B13=$B$102,\"Färgat_hålning\",IF(Uträkningsmall!$B13=$B$103,\"Arkivbeständigt_hålning\",IF(Uträkningsmall!$C13=$B$122,\"A4_hålning\",IF(Uträkningsmall!$C13=$B$123,\"A3_hålning\",IF(Uträkningsmall!$C13=$B$124,\"A3_hålning\",IF(Uträkningsmall!$C13=$B$125,\"A3_hålning\",\"\")))))))","v":""},{"$f":"IF(AND(Uträkningsmall!B13=\"Färgat papper\",Uträkningsmall!C13=$B$135),\"Färgat_A3\",\"\")","v":""}]
[null,"Vitt kopieringspapper - storpack",{"$f":"IF(Uträkningsmall!$B14=$B$99,\"Vitt_kopieringspapper\",IF(Uträkningsmall!$B14=$B$100,\"Storpack\",IF(Uträkningsmall!$B14=$B$101,\"Fyrfärg\",IF(Uträkningsmall!$B14=$B$102,\"Färgat_papper\",IF(Uträkningsmall!$B14=$B$103,\"Arkivbeständigt\",\"\")))))","v":""},{"$f":"IF($F100=\"Färgat_A3\",\"Färgat_A3_kvalitet\",IF(Uträkningsmall!$B14=$B$99,\"Vitt_Kvalitet\",IF(Uträkningsmall!$B14=$B$100,\"Vitt_Kvalitet\",IF(Uträkningsmall!$B14=$B$101,\"Fyrfärg_Kvalitet\",IF(Uträkningsmall!$B14=$B$102,\"Färgat_Kvalitet\",IF(Uträkningsmall!$B14=$B$103,\"Arkivbeständigt_kvalitet\",\"\"))))))","v":""},{"$f":"IF(Uträkningsmall!$B14=$B$101,\"Fyrfärg_hålning\",IF(Uträkningsmall!$B14=$B$102,\"Färgat_hålning\",IF(Uträkningsmall!$B14=$B$103,\"Arkivbeständigt_hålning\",IF(Uträkningsmall!$C14=$B$122,\"A4_hålning\",IF(Uträkningsmall!$C14=$B$123,\"A3_hålning\",IF(Uträkningsmall!$C14=$B$124,\"A3_hålning\",IF(Uträkningsmall!$C14=$B$125,\"A3_hålning\",\"\")))))))","v":""},{"$f":"IF(AND(Uträkningsmall!B14=\"Färgat papper\",Uträkningsmall!C14=$B$135),\"Färgat_A3\",\"\")","v":""}]
[null,"Papper för fyrfärgskopiering",{"$f":"IF(Uträkningsmall!$B15=$B$99,\"Vitt_kopieringspapper\",IF(Uträkningsmall!$B15=$B$100,\"Storpack\",IF(Uträkningsmall!$B15=$B$101,\"Fyrfärg\",IF(Uträkningsmall!$B15=$B$102,\"Färgat_papper\",IF(Uträkningsmall!$B15=$B$103,\"Arkivbeständigt\",\"\")))))","v":""},{"$f":"IF($F101=\"Färgat_A3\",\"Färgat_A3_kvalitet\",IF(Uträkningsmall!$B15=$B$99,\"Vitt_Kvalitet\",IF(Uträkningsmall!$B15=$B$100,\"Vitt_Kvalitet\",IF(Uträkningsmall!$B15=$B$101,\"Fyrfärg_Kvalitet\",IF(Uträkningsmall!$B15=$B$102,\"Färgat_Kvalitet\",IF(Uträkningsmall!$B15=$B$103,\"Arkivbeständigt_kvalitet\",\"\"))))))","v":""},{"$f":"IF(Uträkningsmall!$B15=$B$101,\"Fyrfärg_hålning\",IF(Uträkningsmall!$B15=$B$102,\"Färgat_hålning\",IF(Uträkningsmall!$B15=$B$103,\"Arkivbeständigt_hålning\",IF(Uträkningsmall!$C15=$B$122,\"A4_hålning\",IF(Uträkningsmall!$C15=$B$123,\"A3_hålning\",IF(Uträkningsmall!$C15=$B$124,\"A3_hålning\",IF(Uträkningsmall!$C15=$B$125,\"A3_hålning\",\"\")))))))","v":""},{"$f":"IF(AND(Uträkningsmall!B15=\"Färgat papper\",Uträkningsmall!C15=$B$135),\"Färgat_A3\",\"\")","v":""}]
[null,"Färgat papper",{"$f":"IF(Uträkningsmall!$B16=$B$99,\"Vitt_kopieringspapper\",IF(Uträkningsmall!$B16=$B$100,\"Storpack\",IF(Uträkningsmall!$B16=$B$101,\"Fyrfärg\",IF(Uträkningsmall!$B16=$B$102,\"Färgat_papper\",IF(Uträkningsmall!$B16=$B$103,\"Arkivbeständigt\",\"\")))))","v":""},{"$f":"IF($F102=\"Färgat_A3\",\"Färgat_A3_kvalitet\",IF(Uträkningsmall!$B16=$B$99,\"Vitt_Kvalitet\",IF(Uträkningsmall!$B16=$B$100,\"Vitt_Kvalitet\",IF(Uträkningsmall!$B16=$B$101,\"Fyrfärg_Kvalitet\",IF(Uträkningsmall!$B16=$B$102,\"Färgat_Kvalitet\",IF(Uträkningsmall!$B16=$B$103,\"Arkivbeständigt_kvalitet\",\"\"))))))","v":""},{"$f":"IF(Uträkningsmall!$B16=$B$101,\"Fyrfärg_hålning\",IF(Uträkningsmall!$B16=$B$102,\"Färgat_hålning\",IF(Uträkningsmall!$B16=$B$103,\"Arkivbeständigt_hålning\",IF(Uträkningsmall!$C16=$B$122,\"A4_hålning\",IF(Uträkningsmall!$C16=$B$123,\"A3_hålning\",IF(Uträkningsmall!$C16=$B$124,\"A3_hålning\",IF(Uträkningsmall!$C16=$B$125,\"A3_hålning\",\"\")))))))","v":""},{"$f":"IF(AND(Uträkningsmall!B16=\"Färgat papper\",Uträkningsmall!C16=$B$135),\"Färgat_A3\",\"\")","v":""}]
[null,"Arkivbeständigt papper",{"$f":"IF(Uträkningsmall!$B17=$B$99,\"Vitt_kopieringspapper\",IF(Uträkningsmall!$B17=$B$100,\"Storpack\",IF(Uträkningsmall!$B17=$B$101,\"Fyrfärg\",IF(Uträkningsmall!$B17=$B$102,\"Färgat_papper\",IF(Uträkningsmall!$B17=$B$103,\"Arkivbeständigt\",\"\")))))","v":""},{"$f":"IF($F103=\"Färgat_A3\",\"Färgat_A3_kvalitet\",IF(Uträkningsmall!$B17=$B$99,\"Vitt_Kvalitet\",IF(Uträkningsmall!$B17=$B$100,\"Vitt_Kvalitet\",IF(Uträkningsmall!$B17=$B$101,\"Fyrfärg_Kvalitet\",IF(Uträkningsmall!$B17=$B$102,\"Färgat_Kvalitet\",IF(Uträkningsmall!$B17=$B$103,\"Arkivbeständigt_kvalitet\",\"\"))))))","v":""},{"$f":"IF(Uträkningsmall!$B17=$B$101,\"Fyrfärg_hålning\",IF(Uträkningsmall!$B17=$B$102,\"Färgat_hålning\",IF(Uträkningsmall!$B17=$B$103,\"Arkivbeständigt_hålning\",IF(Uträkningsmall!$C17=$B$122,\"A4_hålning\",IF(Uträkningsmall!$C17=$B$123,\"A3_hålning\",IF(Uträkningsmall!$C17=$B$124,\"A3_hålning\",IF(Uträkningsmall!$C17=$B$125,\"A3_hålning\",\"\")))))))","v":""},{"$f":"IF(AND(Uträkningsmall!B17=\"Färgat papper\",Uträkningsmall!C17=$B$135),\"Färgat_A3\",\"\")","v":""}]
[null,null,{"$f":"IF(Uträkningsmall!$B18=$B$99,\"Vitt_kopieringspapper\",IF(Uträkningsmall!$B18=$B$100,\"Storpack\",IF(Uträkningsmall!$B18=$B$101,\"Fyrfärg\",IF(Uträkningsmall!$B18=$B$102,\"Färgat_papper\",IF(Uträkningsmall!$B18=$B$103,\"Arkivbeständigt\",\"\")))))","v":""},{"$f":"IF($F104=\"Färgat_A3\",\"Färgat_A3_kvalitet\",IF(Uträkningsmall!$B18=$B$99,\"Vitt_Kvalitet\",IF(Uträkningsmall!$B18=$B$100,\"Vitt_Kvalitet\",IF(Uträkningsmall!$B18=$B$101,\"Fyrfärg_Kvalitet\",IF(Uträkningsmall!$B18=$B$102,\"Färgat_Kvalitet\",IF(Uträkningsmall!$B18=$B$103,\"Arkivbeständigt_kvalitet\",\"\"))))))","v":""},{"$f":"IF(Uträkningsmall!$B18=$B$101,\"Fyrfärg_hålning\",IF(Uträkningsmall!$B18=$B$102,\"Färgat_hålning\",IF(Uträkningsmall!$B18=$B$103,\"Arkivbeständigt_hålning\",IF(Uträkningsmall!$C18=$B$122,\"A4_hålning\",IF(Uträkningsmall!$C18=$B$123,\"A3_hålning\",IF(Uträkningsmall!$C18=$B$124,\"A3_hålning\",IF(Uträkningsmall!$C18=$B$125,\"A3_hålning\",\"\")))))))","v":""},{"$f":"IF(AND(Uträkningsmall!B18=\"Färgat papper\",Uträkningsmall!C18=$B$135),\"Färgat_A3\",\"\")","v":""}]
[null,null,{"$f":"IF(Uträkningsmall!$B19=$B$99,\"Vitt_kopieringspapper\",IF(Uträkningsmall!$B19=$B$100,\"Storpack\",IF(Uträkningsmall!$B19=$B$101,\"Fyrfärg\",IF(Uträkningsmall!$B19=$B$102,\"Färgat_papper\",IF(Uträkningsmall!$B19=$B$103,\"Arkivbeständigt\",\"\")))))","v":""},{"$f":"IF($F105=\"Färgat_A3\",\"Färgat_A3_kvalitet\",IF(Uträkningsmall!$B19=$B$99,\"Vitt_Kvalitet\",IF(Uträkningsmall!$B19=$B$100,\"Vitt_Kvalitet\",IF(Uträkningsmall!$B19=$B$101,\"Fyrfärg_Kvalitet\",IF(Uträkningsmall!$B19=$B$102,\"Färgat_Kvalitet\",IF(Uträkningsmall!$B19=$B$103,\"Arkivbeständigt_kvalitet\",\"\"))))))","v":""},{"$f":"IF(Uträkningsmall!$B19=$B$101,\"Fyrfärg_hålning\",IF(Uträkningsmall!$B19=$B$102,\"Färgat_hålning\",IF(Uträkningsmall!$B19=$B$103,\"Arkivbeständigt_hålning\",IF(Uträkningsmall!$C19=$B$122,\"A4_hålning\",IF(Uträkningsmall!$C19=$B$123,\"A3_hålning\",IF(Uträkningsmall!$C19=$B$124,\"A3_hålning\",IF(Uträkningsmall!$C19=$B$125,\"A3_hålning\",\"\")))))))","v":""},{"$f":"IF(AND(Uträkningsmall!B19=\"Färgat papper\",Uträkningsmall!C19=$B$135),\"Färgat_A3\",\"\")","v":""}]
[null,null,{"$f":"IF(Uträkningsmall!$B20=$B$99,\"Vitt_kopieringspapper\",IF(Uträkningsmall!$B20=$B$100,\"Storpack\",IF(Uträkningsmall!$B20=$B$101,\"Fyrfärg\",IF(Uträkningsmall!$B20=$B$102,\"Färgat_papper\",IF(Uträkningsmall!$B20=$B$103,\"Arkivbeständigt\",\"\")))))","v":""},{"$f":"IF($F106=\"Färgat_A3\",\"Färgat_A3_kvalitet\",IF(Uträkningsmall!$B20=$B$99,\"Vitt_Kvalitet\",IF(Uträkningsmall!$B20=$B$100,\"Vitt_Kvalitet\",IF(Uträkningsmall!$B20=$B$101,\"Fyrfärg_Kvalitet\",IF(Uträkningsmall!$B20=$B$102,\"Färgat_Kvalitet\",IF(Uträkningsmall!$B20=$B$103,\"Arkivbeständigt_kvalitet\",\"\"))))))","v":""},{"$f":"IF(Uträkningsmall!$B20=$B$101,\"Fyrfärg_hålning\",IF(Uträkningsmall!$B20=$B$102,\"Färgat_hålning\",IF(Uträkningsmall!$B20=$B$103,\"Arkivbeständigt_hålning\",IF(Uträkningsmall!$C20=$B$122,\"A4_hålning\",IF(Uträkningsmall!$C20=$B$123,\"A3_hålning\",IF(Uträkningsmall!$C20=$B$124,\"A3_hålning\",IF(Uträkningsmall!$C20=$B$125,\"A3_hålning\",\"\")))))))","v":""},{"$f":"IF(AND(Uträkningsmall!B20=\"Färgat papper\",Uträkningsmall!C20=$B$135),\"Färgat_A3\",\"\")","v":""}]
[null,null,{"$f":"IF(Uträkningsmall!$B21=$B$99,\"Vitt_kopieringspapper\",IF(Uträkningsmall!$B21=$B$100,\"Storpack\",IF(Uträkningsmall!$B21=$B$101,\"Fyrfärg\",IF(Uträkningsmall!$B21=$B$102,\"Färgat_papper\",IF(Uträkningsmall!$B21=$B$103,\"Arkivbeständigt\",\"\")))))","v":""},{"$f":"IF($F107=\"Färgat_A3\",\"Färgat_A3_kvalitet\",IF(Uträkningsmall!$B21=$B$99,\"Vitt_Kvalitet\",IF(Uträkningsmall!$B21=$B$100,\"Vitt_Kvalitet\",IF(Uträkningsmall!$B21=$B$101,\"Fyrfärg_Kvalitet\",IF(Uträkningsmall!$B21=$B$102,\"Färgat_Kvalitet\",IF(Uträkningsmall!$B21=$B$103,\"Arkivbeständigt_kvalitet\",\"\"))))))","v":""},{"$f":"IF(Uträkningsmall!$B21=$B$101,\"Fyrfärg_hålning\",IF(Uträkningsmall!$B21=$B$102,\"Färgat_hålning\",IF(Uträkningsmall!$B21=$B$103,\"Arkivbeständigt_hålning\",IF(Uträkningsmall!$C21=$B$122,\"A4_hålning\",IF(Uträkningsmall!$C21=$B$123,\"A3_hålning\",IF(Uträkningsmall!$C21=$B$124,\"A3_hålning\",IF(Uträkningsmall!$C21=$B$125,\"A3_hålning\",\"\")))))))","v":""},{"$f":"IF(AND(Uträkningsmall!B21=\"Färgat papper\",Uträkningsmall!C21=$B$135),\"Färgat_A3\",\"\")","v":""}]
[null,null,{"$f":"IF(Uträkningsmall!$B22=$B$99,\"Vitt_kopieringspapper\",IF(Uträkningsmall!$B22=$B$100,\"Storpack\",IF(Uträkningsmall!$B22=$B$101,\"Fyrfärg\",IF(Uträkningsmall!$B22=$B$102,\"Färgat_papper\",IF(Uträkningsmall!$B22=$B$103,\"Arkivbeständigt\",\"\")))))","v":""},{"$f":"IF($F108=\"Färgat_A3\",\"Färgat_A3_kvalitet\",IF(Uträkningsmall!$B22=$B$99,\"Vitt_Kvalitet\",IF(Uträkningsmall!$B22=$B$100,\"Vitt_Kvalitet\",IF(Uträkningsmall!$B22=$B$101,\"Fyrfärg_Kvalitet\",IF(Uträkningsmall!$B22=$B$102,\"Färgat_Kvalitet\",IF(Uträkningsmall!$B22=$B$103,\"Arkivbeständigt_kvalitet\",\"\"))))))","v":""},{"$f":"IF(Uträkningsmall!$B22=$B$101,\"Fyrfärg_hålning\",IF(Uträkningsmall!$B22=$B$102,\"Färgat_hålning\",IF(Uträkningsmall!$B22=$B$103,\"Arkivbeständigt_hålning\",IF(Uträkningsmall!$C22=$B$122,\"A4_hålning\",IF(Uträkningsmall!$C22=$B$123,\"A3_hålning\",IF(Uträkningsmall!$C22=$B$124,\"A3_hålning\",IF(Uträkningsmall!$C22=$B$125,\"A3_hålning\",\"\")))))))","v":""},{"$f":"IF(AND(Uträkningsmall!B22=\"Färgat papper\",Uträkningsmall!C22=$B$135),\"Färgat_A3\",\"\")","v":""}]
[null,null,{"$f":"IF(Uträkningsmall!$B23=$B$99,\"Vitt_kopieringspapper\",IF(Uträkningsmall!$B23=$B$100,\"Storpack\",IF(Uträkningsmall!$B23=$B$101,\"Fyrfärg\",IF(Uträkningsmall!$B23=$B$102,\"Färgat_papper\",IF(Uträkningsmall!$B23=$B$103,\"Arkivbeständigt\",\"\")))))","v":""},{"$f":"IF($F109=\"Färgat_A3\",\"Färgat_A3_kvalitet\",IF(Uträkningsmall!$B23=$B$99,\"Vitt_Kvalitet\",IF(Uträkningsmall!$B23=$B$100,\"Vitt_Kvalitet\",IF(Uträkningsmall!$B23=$B$101,\"Fyrfärg_Kvalitet\",IF(Uträkningsmall!$B23=$B$102,\"Färgat_Kvalitet\",IF(Uträkningsmall!$B23=$B$103,\"Arkivbeständigt_kvalitet\",\"\"))))))","v":""},{"$f":"IF(Uträkningsmall!$B23=$B$101,\"Fyrfärg_hålning\",IF(Uträkningsmall!$B23=$B$102,\"Färgat_hålning\",IF(Uträkningsmall!$B23=$B$103,\"Arkivbeständigt_hålning\",IF(Uträkningsmall!$C23=$B$122,\"A4_hålning\",IF(Uträkningsmall!$C23=$B$123,\"A3_hålning\",IF(Uträkningsmall!$C23=$B$124,\"A3_hålning\",IF(Uträkningsmall!$C23=$B$125,\"A3_hålning\",\"\")))))))","v":""},{"$f":"IF(AND(Uträkningsmall!B23=\"Färgat papper\",Uträkningsmall!C23=$B$135),\"Färgat_A3\",\"\")","v":""}]
[null,null,{"$f":"IF(Uträkningsmall!$B24=$B$99,\"Vitt_kopieringspapper\",IF(Uträkningsmall!$B24=$B$100,\"Storpack\",IF(Uträkningsmall!$B24=$B$101,\"Fyrfärg\",IF(Uträkningsmall!$B24=$B$102,\"Färgat_papper\",IF(Uträkningsmall!$B24=$B$103,\"Arkivbeständigt\",\"\")))))","v":""},{"$f":"IF($F110=\"Färgat_A3\",\"Färgat_A3_kvalitet\",IF(Uträkningsmall!$B24=$B$99,\"Vitt_Kvalitet\",IF(Uträkningsmall!$B24=$B$100,\"Vitt_Kvalitet\",IF(Uträkningsmall!$B24=$B$101,\"Fyrfärg_Kvalitet\",IF(Uträkningsmall!$B24=$B$102,\"Färgat_Kvalitet\",IF(Uträkningsmall!$B24=$B$103,\"Arkivbeständigt_kvalitet\",\"\"))))))","v":""},{"$f":"IF(Uträkningsmall!$B24=$B$101,\"Fyrfärg_hålning\",IF(Uträkningsmall!$B24=$B$102,\"Färgat_hålning\",IF(Uträkningsmall!$B24=$B$103,\"Arkivbeständigt_hålning\",IF(Uträkningsmall!$C24=$B$122,\"A4_hålning\",IF(Uträkningsmall!$C24=$B$123,\"A3_hålning\",IF(Uträkningsmall!$C24=$B$124,\"A3_hålning\",IF(Uträkningsmall!$C24=$B$125,\"A3_hålning\",\"\")))))))","v":""},{"$f":"IF(AND(Uträkningsmall!B24=\"Färgat papper\",Uträkningsmall!C24=$B$135),\"Färgat_A3\",\"\")","v":""}]
[null,null,{"$f":"IF(Uträkningsmall!$B25=$B$99,\"Vitt_kopieringspapper\",IF(Uträkningsmall!$B25=$B$100,\"Storpack\",IF(Uträkningsmall!$B25=$B$101,\"Fyrfärg\",IF(Uträkningsmall!$B25=$B$102,\"Färgat_papper\",IF(Uträkningsmall!$B25=$B$103,\"Arkivbeständigt\",\"\")))))","v":""},{"$f":"IF($F111=\"Färgat_A3\",\"Färgat_A3_kvalitet\",IF(Uträkningsmall!$B25=$B$99,\"Vitt_Kvalitet\",IF(Uträkningsmall!$B25=$B$100,\"Vitt_Kvalitet\",IF(Uträkningsmall!$B25=$B$101,\"Fyrfärg_Kvalitet\",IF(Uträkningsmall!$B25=$B$102,\"Färgat_Kvalitet\",IF(Uträkningsmall!$B25=$B$103,\"Arkivbeständigt_kvalitet\",\"\"))))))","v":""},{"$f":"IF(Uträkningsmall!$B25=$B$101,\"Fyrfärg_hålning\",IF(Uträkningsmall!$B25=$B$102,\"Färgat_hålning\",IF(Uträkningsmall!$B25=$B$103,\"Arkivbeständigt_hålning\",IF(Uträkningsmall!$C25=$B$122,\"A4_hålning\",IF(Uträkningsmall!$C25=$B$123,\"A3_hålning\",IF(Uträkningsmall!$C25=$B$124,\"A3_hålning\",IF(Uträkningsmall!$C25=$B$125,\"A3_hålning\",\"\")))))))","v":""},{"$f":"IF(AND(Uträkningsmall!B25=\"Färgat papper\",Uträkningsmall!C25=$B$135),\"Färgat_A3\",\"\")","v":""}]
[null,null,{"$f":"IF(Uträkningsmall!$B26=$B$99,\"Vitt_kopieringspapper\",IF(Uträkningsmall!$B26=$B$100,\"Storpack\",IF(Uträkningsmall!$B26=$B$101,\"Fyrfärg\",IF(Uträkningsmall!$B26=$B$102,\"Färgat_papper\",IF(Uträkningsmall!$B26=$B$103,\"Arkivbeständigt\",\"\")))))","v":""},{"$f":"IF($F112=\"Färgat_A3\",\"Färgat_A3_kvalitet\",IF(Uträkningsmall!$B26=$B$99,\"Vitt_Kvalitet\",IF(Uträkningsmall!$B26=$B$100,\"Vitt_Kvalitet\",IF(Uträkningsmall!$B26=$B$101,\"Fyrfärg_Kvalitet\",IF(Uträkningsmall!$B26=$B$102,\"Färgat_Kvalitet\",IF(Uträkningsmall!$B26=$B$103,\"Arkivbeständigt_kvalitet\",\"\"))))))","v":""},{"$f":"IF(Uträkningsmall!$B26=$B$101,\"Fyrfärg_hålning\",IF(Uträkningsmall!$B26=$B$102,\"Färgat_hålning\",IF(Uträkningsmall!$B26=$B$103,\"Arkivbeständigt_hålning\",IF(Uträkningsmall!$C26=$B$122,\"A4_hålning\",IF(Uträkningsmall!$C26=$B$123,\"A3_hålning\",IF(Uträkningsmall!$C26=$B$124,\"A3_hålning\",IF(Uträkningsmall!$C26=$B$125,\"A3_hålning\",\"\")))))))","v":""},{"$f":"IF(AND(Uträkningsmall!B26=\"Färgat papper\",Uträkningsmall!C26=$B$135),\"Färgat_A3\",\"\")","v":""}]
[null,null,{"$f":"IF(Uträkningsmall!$B27=$B$99,\"Vitt_kopieringspapper\",IF(Uträkningsmall!$B27=$B$100,\"Storpack\",IF(Uträkningsmall!$B27=$B$101,\"Fyrfärg\",IF(Uträkningsmall!$B27=$B$102,\"Färgat_papper\",IF(Uträkningsmall!$B27=$B$103,\"Arkivbeständigt\",\"\")))))","v":""},{"$f":"IF($F113=\"Färgat_A3\",\"Färgat_A3_kvalitet\",IF(Uträkningsmall!$B27=$B$99,\"Vitt_Kvalitet\",IF(Uträkningsmall!$B27=$B$100,\"Vitt_Kvalitet\",IF(Uträkningsmall!$B27=$B$101,\"Fyrfärg_Kvalitet\",IF(Uträkningsmall!$B27=$B$102,\"Färgat_Kvalitet\",IF(Uträkningsmall!$B27=$B$103,\"Arkivbeständigt_kvalitet\",\"\"))))))","v":""},{"$f":"IF(Uträkningsmall!$B27=$B$101,\"Fyrfärg_hålning\",IF(Uträkningsmall!$B27=$B$102,\"Färgat_hålning\",IF(Uträkningsmall!$B27=$B$103,\"Arkivbeständigt_hålning\",IF(Uträkningsmall!$C27=$B$122,\"A4_hålning\",IF(Uträkningsmall!$C27=$B$123,\"A3_hålning\",IF(Uträkningsmall!$C27=$B$124,\"A3_hålning\",IF(Uträkningsmall!$C27=$B$125,\"A3_hålning\",\"\")))))))","v":""},{"$f":"IF(AND(Uträkningsmall!B27=\"Färgat papper\",Uträkningsmall!C27=$B$135),\"Färgat_A3\",\"\")","v":""}]
[null,null,{"$f":"IF(Uträkningsmall!$B28=$B$99,\"Vitt_kopieringspapper\",IF(Uträkningsmall!$B28=$B$100,\"Storpack\",IF(Uträkningsmall!$B28=$B$101,\"Fyrfärg\",IF(Uträkningsmall!$B28=$B$102,\"Färgat_papper\",IF(Uträkningsmall!$B28=$B$103,\"Arkivbeständigt\",\"\")))))","v":""},{"$f":"IF($F114=\"Färgat_A3\",\"Färgat_A3_kvalitet\",IF(Uträkningsmall!$B28=$B$99,\"Vitt_Kvalitet\",IF(Uträkningsmall!$B28=$B$100,\"Vitt_Kvalitet\",IF(Uträkningsmall!$B28=$B$101,\"Fyrfärg_Kvalitet\",IF(Uträkningsmall!$B28=$B$102,\"Färgat_Kvalitet\",IF(Uträkningsmall!$B28=$B$103,\"Arkivbeständigt_kvalitet\",\"\"))))))","v":""},{"$f":"IF(Uträkningsmall!$B28=$B$101,\"Fyrfärg_hålning\",IF(Uträkningsmall!$B28=$B$102,\"Färgat_hålning\",IF(Uträkningsmall!$B28=$B$103,\"Arkivbeständigt_hålning\",IF(Uträkningsmall!$C28=$B$122,\"A4_hålning\",IF(Uträkningsmall!$C28=$B$123,\"A3_hålning\",IF(Uträkningsmall!$C28=$B$124,\"A3_hålning\",IF(Uträkningsmall!$C28=$B$125,\"A3_hålning\",\"\")))))))","v":""},{"$f":"IF(AND(Uträkningsmall!B28=\"Färgat papper\",Uträkningsmall!C28=$B$135),\"Färgat_A3\",\"\")","v":""}]
[null,null,{"$f":"IF(Uträkningsmall!$B29=$B$99,\"Vitt_kopieringspapper\",IF(Uträkningsmall!$B29=$B$100,\"Storpack\",IF(Uträkningsmall!$B29=$B$101,\"Fyrfärg\",IF(Uträkningsmall!$B29=$B$102,\"Färgat_papper\",IF(Uträkningsmall!$B29=$B$103,\"Arkivbeständigt\",\"\")))))","v":""},{"$f":"IF($F115=\"Färgat_A3\",\"Färgat_A3_kvalitet\",IF(Uträkningsmall!$B29=$B$99,\"Vitt_Kvalitet\",IF(Uträkningsmall!$B29=$B$100,\"Vitt_Kvalitet\",IF(Uträkningsmall!$B29=$B$101,\"Fyrfärg_Kvalitet\",IF(Uträkningsmall!$B29=$B$102,\"Färgat_Kvalitet\",IF(Uträkningsmall!$B29=$B$103,\"Arkivbeständigt_kvalitet\",\"\"))))))","v":""},{"$f":"IF(Uträkningsmall!$B29=$B$101,\"Fyrfärg_hålning\",IF(Uträkningsmall!$B29=$B$102,\"Färgat_hålning\",IF(Uträkningsmall!$B29=$B$103,\"Arkivbeständigt_hålning\",IF(Uträkningsmall!$C29=$B$122,\"A4_hålning\",IF(Uträkningsmall!$C29=$B$123,\"A3_hålning\",IF(Uträkningsmall!$C29=$B$124,\"A3_hålning\",IF(Uträkningsmall!$C29=$B$125,\"A3_hålning\",\"\")))))))","v":""},{"$f":"IF(AND(Uträkningsmall!B29=\"Färgat papper\",Uträkningsmall!C29=$B$135),\"Färgat_A3\",\"\")","v":""}]
[null,null,{"$f":"IF(Uträkningsmall!$B30=$B$99,\"Vitt_kopieringspapper\",IF(Uträkningsmall!$B30=$B$100,\"Storpack\",IF(Uträkningsmall!$B30=$B$101,\"Fyrfärg\",IF(Uträkningsmall!$B30=$B$102,\"Färgat_papper\",IF(Uträkningsmall!$B30=$B$103,\"Arkivbeständigt\",\"\")))))","v":""},{"$f":"IF($F116=\"Färgat_A3\",\"Färgat_A3_kvalitet\",IF(Uträkningsmall!$B30=$B$99,\"Vitt_Kvalitet\",IF(Uträkningsmall!$B30=$B$100,\"Vitt_Kvalitet\",IF(Uträkningsmall!$B30=$B$101,\"Fyrfärg_Kvalitet\",IF(Uträkningsmall!$B30=$B$102,\"Färgat_Kvalitet\",IF(Uträkningsmall!$B30=$B$103,\"Arkivbeständigt_kvalitet\",\"\"))))))","v":""},{"$f":"IF(Uträkningsmall!$B30=$B$101,\"Fyrfärg_hålning\",IF(Uträkningsmall!$B30=$B$102,\"Färgat_hålning\",IF(Uträkningsmall!$B30=$B$103,\"Arkivbeständigt_hålning\",IF(Uträkningsmall!$C30=$B$122,\"A4_hålning\",IF(Uträkningsmall!$C30=$B$123,\"A3_hålning\",IF(Uträkningsmall!$C30=$B$124,\"A3_hålning\",IF(Uträkningsmall!$C30=$B$125,\"A3_hålning\",\"\")))))))","v":""},{"$f":"IF(AND(Uträkningsmall!B30=\"Färgat papper\",Uträkningsmall!C30=$B$135),\"Färgat_A3\",\"\")","v":""}]
[null,null,{"$f":"IF(Uträkningsmall!$B31=$B$99,\"Vitt_kopieringspapper\",IF(Uträkningsmall!$B31=$B$100,\"Storpack\",IF(Uträkningsmall!$B31=$B$101,\"Fyrfärg\",IF(Uträkningsmall!$B31=$B$102,\"Färgat_papper\",IF(Uträkningsmall!$B31=$B$103,\"Arkivbeständigt\",\"\")))))","v":""},{"$f":"IF($F117=\"Färgat_A3\",\"Färgat_A3_kvalitet\",IF(Uträkningsmall!$B31=$B$99,\"Vitt_Kvalitet\",IF(Uträkningsmall!$B31=$B$100,\"Vitt_Kvalitet\",IF(Uträkningsmall!$B31=$B$101,\"Fyrfärg_Kvalitet\",IF(Uträkningsmall!$B31=$B$102,\"Färgat_Kvalitet\",IF(Uträkningsmall!$B31=$B$103,\"Arkivbeständigt_kvalitet\",\"\"))))))","v":""},{"$f":"IF(Uträkningsmall!$B31=$B$101,\"Fyrfärg_hålning\",IF(Uträkningsmall!$B31=$B$102,\"Färgat_hålning\",IF(Uträkningsmall!$B31=$B$103,\"Arkivbeständigt_hålning\",IF(Uträkningsmall!$C31=$B$122,\"A4_hålning\",IF(Uträkningsmall!$C31=$B$123,\"A3_hålning\",IF(Uträkningsmall!$C31=$B$124,\"A3_hålning\",IF(Uträkningsmall!$C31=$B$125,\"A3_hålning\",\"\")))))))","v":""},{"$f":"IF(AND(Uträkningsmall!B31=\"Färgat papper\",Uträkningsmall!C31=$B$135),\"Färgat_A3\",\"\")","v":""}]
[null,null,{"$f":"IF(Uträkningsmall!$B32=$B$99,\"Vitt_kopieringspapper\",IF(Uträkningsmall!$B32=$B$100,\"Storpack\",IF(Uträkningsmall!$B32=$B$101,\"Fyrfärg\",IF(Uträkningsmall!$B32=$B$102,\"Färgat_papper\",IF(Uträkningsmall!$B32=$B$103,\"Arkivbeständigt\",\"\")))))","v":""},{"$f":"IF($F118=\"Färgat_A3\",\"Färgat_A3_kvalitet\",IF(Uträkningsmall!$B32=$B$99,\"Vitt_Kvalitet\",IF(Uträkningsmall!$B32=$B$100,\"Vitt_Kvalitet\",IF(Uträkningsmall!$B32=$B$101,\"Fyrfärg_Kvalitet\",IF(Uträkningsmall!$B32=$B$102,\"Färgat_Kvalitet\",IF(Uträkningsmall!$B32=$B$103,\"Arkivbeständigt_kvalitet\",\"\"))))))","v":""},{"$f":"IF(Uträkningsmall!$B32=$B$101,\"Fyrfärg_hålning\",IF(Uträkningsmall!$B32=$B$102,\"Färgat_hålning\",IF(Uträkningsmall!$B32=$B$103,\"Arkivbeständigt_hålning\",IF(Uträkningsmall!$C32=$B$122,\"A4_hålning\",IF(Uträkningsmall!$C32=$B$123,\"A3_hålning\",IF(Uträkningsmall!$C32=$B$124,\"A3_hålning\",IF(Uträkningsmall!$C32=$B$125,\"A3_hålning\",\"\")))))))","v":""},{"$f":"IF(AND(Uträkningsmall!B32=\"Färgat papper\",Uträkningsmall!C32=$B$135),\"Färgat_A3\",\"\")","v":""}]
[]
[null,"Namn","Kvalitet","Hålning","Hålning A3"]
["Vitt kopieringspapper","Vitt_kpieringspapper","Vitt_Kvalitet","A4_hålning","A3_hålning"]
[null,"A4, 80g","A-kvalitet, åldringsbeständigt","Ohålat","Ohålat"]
[null,"A4, 90g",null,"Hålat"]
[null,"A3, 80g"]
[null,"A3, 90g"]
[]
["Storpack","Storpack"]
[null,"A4, 80g"]
[]
["Papper för fyrfärgskopiering","Fyrfärg","Fyrfärg_kvalitet","Fyrfärg_hålning"]
[null,"A4, 90g","För digitala färgutskrifter och kopiering, motsvarande \"4CC\", åldringsbeständigt","Ohålat"]
[]
["Färgat papper","Färgat_papper","Färgat_kvalitet","Färgat_A3_kvalitet","Färgat_hålning"]
[null,"A4, 80g","A-kvalitet, färg: svag/mellansvag gul nyans","A-kvalitet, färg: svag/mellansvag gul nyans","Ohålat"]
[null,"A3, 80g","A-kvalitet, färg: svag/mellansvag blå nyans","A-kvalitet, färg: svag/mellansvag blå nyans"]
[null,null,"A-kvalitet, färg: svag/mellansvag grön nyans","A-kvalitet, färg: svag/mellansvag grön nyans"]
[null,null,"A-kvalitet, färg: svag/mellansvag rosa nyans","A-kvalitet, färg: röd nyans"]
[null,null,"A-kvalitet, färg: röd nyans"]
[]
["Arkivbeständigt papper","Arkivbeständigt","Arkivbeständigt_kvalitet","Arkivbeständigt_hålning"]
[null,"A4, 80g","Arkivbeständigt","Ohålat"]
[null,"A4, 100g"]
[]
[]
["Position","Varubenämning","Storlek","Ytvikt (g/m2)","Varubeskrivning","Hålning","Artikelnamn  ","Artikelnummer   ","Pris per kartong (SEK) "]
[1,"Vitt kopieringspapper","A4",80,"A-kvalitet, åldringsbeständigt","Ohålat"]
[2,"Vitt kopieringspapper","A4",80,"A-kvalitet, åldringsbeständigt","Hålat"]
[3,"Vitt kopieringspapper - storpack","A4",80,"A-kvalitet, åldringsbeständigt","Ohålat"]
[4,"Vitt kopieringspapper - storpack","A4",80,"A-kvalitet, åldringsbeständigt","Hålat"]
[5,"Vitt kopieringspapper","A4",90,"A-kvalitet, åldringsbeständigt","Ohålat"]
[6,"Vitt kopieringspapper","A3",80,"A-kvalitet, åldringsbeständigt","Ohålat"]
[7,"Vitt kopieringspapper","A3",90,"A-kvalitet, åldringsbeständigt","Ohålat"]
[8,"Papper för fyrfärgskopiering","A4",90,"För digitala färgutskrifter och kopiering, motsvarande \"4CC\", åldringsbeständigt","Ohålat"]
[9,"Färgat papper","A4",80,"A-kvalitet, färg: svag/mellansvag gul nyans","Ohålat"]
[10,"Färgat papper","A4",80,"A-kvalitet, färg: svag/mellansvag blå nyans","Ohålat"]
[11,"Färgat papper","A4",80,"A-kvalitet, färg: svag/mellansvag grön nyans","Ohålat"]
[12,"Färgat papper","A4",80,"A-kvalitet, färg: svag/mellansvag rosa nyans","Ohålat"]
[13,"Färgat papper","A4",80,"A-kvalitet, färg: röd nyans","Ohålat"]
[14,"Färgat papper","A3",80,"A-kvalitet, färg: svag/mellansvag gul nyans","Ohålat"]
[15,"Färgat papper","A3",80,"A-kvalitet, färg: svag/mellansvag blå nyans","Ohålat"]
[16,"Färgat papper","A3",80,"A-kvalitet, färg: svag/mellansvag grön nyans","Ohålat"]
[17,"Färgat papper","A3",80,"A-kvalitet, färg: röd nyans","Ohålat"]
[18,"Arkivbeständigt papper","A4",80,"Arkivbeständigt","Ohålat"]
[19,"Arkivbeständigt papper","A4",100,"Arkivbeständigt","Ohålat"]

{"sheet":"Kontaktuppgifter","index":6,"n_rows":7,"n_cols":5,"rows_kept":7,"cut":false,"hidden":true,"merged":[]}
[]
["Rangordning:",1,2,3,4]
["Ramavtalsleverantör","Antalis Aktiebolag","Lyreco Sverige AB","Procurator AB","Office Depot Svenska AB"]
["Organisationsnummer",5560762022,5560913591,5560576554,5560249558]
["Kontaktperson","Charlotta Garvars","Magnus Parenmark","Patrik Lindkvist","Maria Arvas"]
["Telefonnummer","0705296411","0706982272","010 604 00 74","0708-277657"]
["E-postadress","order.kam@Antalis.com","se.order@lyreco.com","kontakt@procurator.com","bid@officedepot.se"]